Workbook

Sheet COMMENTS
A1: Dating currency crises in emerging market economies
A2: Boonman, Tjeerd M.
A3: North American Journal of Economics and Finance
A5: Input sheets | C5: Input date, with transformations (monthly / quarterly / annual changes, real rates, etc.)
A7: Currency crisis definitions | C7: 1: Frankel and Rose (1996)
C8: 2: Apoteker and Barthelemy (2001)
C9: 3: Eichengreen, Rose and Weiplosz (1995)
C10: 4: Bussiere and Fratzscher (2006, 2008)
C11: 5: Kaminsky, Lizondo and Reinhart (1998)
C12: 6: Kamin & Babson (1999) and Ari & Cerigibozan (2016)
A14: Output macro's | C14: Do not insert / delete columns or rows.
C15: Do not change the names of the sheets.
C16: Further explanations: see below.
A18: Results | C18: sheet "Results" contains the main results - from all definitions and combinations.
C19: sheet "Graphs" contains the ROC graph for the individual definitions and selected combinations.
C20: sheet "Weighted TME" contains a grid search for the TME with increasing weights.
C21: sheet "ERR-Descript" contains stylized facts and descriptive statistics on relation between ER regime and crises
C22: sheet "ERR results" contains the tables with crisis occurrence and exchange rate regime.
A25: The spreadsheet contains two macro's
B26: Crisis_indicator_per_country | E26: In the top part of the macro one can change the name of the country (official
E27: names in the hidden sheet "CountryList"). This will generate the creation of
E28: a new sheet with the country name and the analysis. The format is as in the sheet "MEX"
B30: Whole_sample_crisis_indicators | E30: To run all 35 countries use this macro. It takes approximately 15 minutes to run.
E31: The results will be placed in the sheet "indicators"

Sheet ExchRate
A1: National Currency per USD (end of period) | OO1: Standardizing 1990M1-2016M12*
B2: Jan 1985 | C2: Feb 1985 | D2: Mar 1985 | E2: Apr 1985 | F2: May 1985 | G2: Jun 1985 | H2: Jul 1985 | I2: Aug 1985 | J2: Sep 1985 | K2: Oct 1985 | L2: Nov 1985 | M2: Dec 1985 | N2: Jan 1986 | O2: Feb 1986 | P2: Mar 1986 | Q2: Apr 1986 | R2: May 1986 | S2: Jun 1986 | T2: Jul 1986 | U2: Aug 1986 | V2: Sep 1986 | W2: Oct 1986 | X2: Nov 1986 | Y2: Dec 1986 | Z2: Jan 1987 | AA2: Feb 1987 | AB2: Mar 1987 | AC2: Apr 1987 | AD2: May 1987 | AE2: Jun 1987 | AF2: Jul 1987 | AG2: Aug 1987 | AH2: Sep 1987 | AI2: Oct 1987 | AJ2: Nov 1987 | AK2: Dec 1987 | AL2: Jan 1988 | AM2: Feb 1988 | AN2: Mar 1988 | AO2: Apr 1988 | AP2: May 1988 | AQ2: Jun 1988 | AR2: Jul 1988 | AS2: Aug 1988 | AT2: Sep 1988 | AU2: Oct 1988 | AV2: Nov 1988 | AW2: Dec 1988 | AX2: Jan 1989 | AY2: Feb 1989 | AZ2: Mar 1989 | BA2: Apr 1989 | BB2: May 1989 | BC2: Jun 1989 | BD2: Jul 1989 | BE2: Aug 1989 | BF2: Sep 1989 | BG2: Oct 1989 | BH2: Nov 1989 | BI2: Dec 1989 | BJ2: Jan 1990 | BK2: Feb 1990 | BL2: Mar 1990 | BM2: Apr 1990 | BN2: May 1990 | BO2: Jun 1990 | BP2: Jul 1990 | BQ2: Aug 1990 | BR2: Sep 1990 | BS2: Oct 1990 | BT2: Nov 1990 | BU2: Dec 1990 | BV2: Jan 1991 | BW2: Feb 1991 | BX2: Mar 1991 | BY2: Apr 1991 | BZ2: May 1991 | CA2: Jun 1991 | CB2: Jul 1991 | CC2: Aug 1991 | CD2: Sep 1991 | CE2: Oct 1991 | CF2: Nov 1991 | CG2: Dec 1991 | CH2: Jan 1992 | CI2: Feb 1992 | CJ2: Mar 1992 | CK2: Apr 1992 | CL2: May 1992 | CM2: Jun 1992 | CN2: Jul 1992 | CO2: Aug 1992 | CP2: Sep 1992 | CQ2: Oct 1992 | CR2: Nov 1992 | CS2: Dec 1992 | CT2: Jan 1993 | CU2: Feb 1993 | CV2: Mar 1993 | CW2: Apr 1993 | CX2: May 1993 | CY2: Jun 1993 | CZ2: Jul 1993 | DA2: Aug 1993 | DB2: Sep 1993 | DC2: Oct 1993 | DD2: Nov 1993 | DE2: Dec 1993 | DF2: Jan 1994 | DG2: Feb 1994 | DH2: Mar 1994 | DI2: Apr 1994 | DJ2: May 1994 | DK2: Jun 1994 | DL2: Jul 1994 | DM2: Aug 1994 | DN2: Sep 1994 | DO2: Oct 1994 | DP2: Nov 1994 | DQ2: Dec 1994 | DR2: Jan 1995 | DS2: Feb 1995 | DT2: Mar 1995 | DU2: Apr 1995 | DV2: May 1995 | DW2: Jun 1995 | DX2: Jul 1995 | DY2: Aug 1995 | DZ2: Sep 1995 | EA2: Oct 1995 | EB2: Nov 1995 | EC2: Dec 1995 | ED2: Jan 1996 | EE2: Feb 1996 | EF2: Mar 1996 | EG2: Apr 1996 | EH2: May 1996 | EI2: Jun 1996 | EJ2: Jul 1996 | EK2: Aug 1996 | EL2: Sep 1996 | EM2: Oct 1996 | EN2: Nov 1996 | EO2: Dec 1996 | EP2: Jan 1997 | EQ2: Feb 1997 | ER2: Mar 1997 | ES2: Apr 1997 | ET2: May 1997 | EU2: Jun 1997 | EV2: Jul 1997 | EW2: Aug 1997 | EX2: Sep 1997 | EY2: Oct 1997 | EZ2: Nov 1997 | FA2: Dec 1997 | FB2: Jan 1998 | FC2: Feb 1998 | FD2: Mar 1998 | FE2: Apr 1998 | FF2: May 1998 | FG2: Jun 1998 | FH2: Jul 1998 | FI2: Aug 1998 | FJ2: Sep 1998 | FK2: Oct 1998 | FL2: Nov 1998 | FM2: Dec 1998 | FN2: Jan 1999 | FO2: Feb 1999 | FP2: Mar 1999 | FQ2: Apr 1999 | FR2: May 1999 | FS2: Jun 1999 | FT2: Jul 1999 | FU2: Aug 1999 | FV2: Sep 1999 | FW2: Oct 1999 | FX2: Nov 1999 | FY2: Dec 1999 | FZ2: Jan 2000 | GA2: Feb 2000 | GB2: Mar 2000 | GC2: Apr 2000 | GD2: May 2000 | GE2: Jun 2000 | GF2: Jul 2000 | GG2: Aug 2000 | GH2: Sep 2000 | GI2: Oct 2000 | GJ2: Nov 2000 | GK2: Dec 2000 | GL2: Jan 2001 | GM2: Feb 2001 | GN2: Mar 2001 | GO2: Apr 2001 | GP2: May 2001 | GQ2: Jun 2001 | GR2: Jul 2001 | GS2: Aug 2001 | GT2: Sep 2001 | GU2: Oct 2001 | GV2: Nov 2001 | GW2: Dec 2001 | GX2: Jan 2002 | GY2: Feb 2002 | GZ2: Mar 2002 | HA2: Apr 2002 | HB2: May 2002 | HC2: Jun 2002 | HD2: Jul 2002 | HE2: Aug 2002 | HF2: Sep 2002 | HG2: Oct 2002 | HH2: Nov 2002 | HI2: Dec 2002 | HJ2: Jan 2003 | HK2: Feb 2003 | HL2: Mar 2003 | HM2: Apr 2003 | HN2: May 2003 | HO2: Jun 2003 | HP2: Jul 2003 | HQ2: Aug 2003 | HR2: Sep 2003 | HS2: Oct 2003 | HT2: Nov 2003 | HU2: Dec 2003 | HV2: Jan 2004 | HW2: Feb 2004 | HX2: Mar 2004 | HY2: Apr 2004 | HZ2: May 2004 | IA2: Jun 2004 | IB2: Jul 2004 | IC2: Aug 2004 | ID2: Sep 2004 | IE2: Oct 2004 | IF2: Nov 2004 | IG2: Dec 2004 | IH2: Jan 2005 | II2: Feb 2005 | IJ2: Mar 2005 | IK2: Apr 2005 | IL2: May 2005 | IM2: Jun 2005 | IN2: Jul 2005 | IO2: Aug 2005 | IP2: Sep 2005 | IQ2: Oct 2005 | IR2: Nov 2005 | IS2: Dec 2005 | IT2: Jan 2006 | IU2: Feb 2006 | IV2: Mar 2006 | IW2: Apr 2006 | IX2: May 2006 | IY2: Jun 2006 | IZ2: Jul 2006 | JA2: Aug 2006 | JB2: Sep 2006 | JC2: Oct 2006 | JD2: Nov 2006 | JE2: Dec 2006 | JF2: Jan 2007 | JG2: Feb 2007 | JH2: Mar 2007 | JI2: Apr 2007 | JJ2: May 2007 | JK2: Jun 2007 | JL2: Jul 2007 | JM2: Aug 2007 | JN2: Sep 2007 | JO2: Oct 2007 | JP2: Nov 2007 | JQ2: Dec 2007 | JR2: Jan 2008 | JS2: Feb 2008 | JT2: Mar 2008 | JU2: Apr 2008 | JV2: May 2008 | JW2: Jun 2008 | JX2: Jul 2008 | JY2: Aug 2008 | JZ2: Sep 2008 | KA2: Oct 2008 | KB2: Nov 2008 | KC2: Dec 2008 | KD2: Jan 2009 | KE2: Feb 2009 | KF2: Mar 2009 | KG2: Apr 2009 | KH2: May 2009 | KI2: Jun 2009 | KJ2: Jul 2009 | KK2: Aug 2009 | KL2: Sep 2009 | KM2: Oct 2009 | KN2: Nov 2009 | KO2: Dec 2009 | KP2: Jan 2010 | KQ2: Feb 2010 | KR2: Mar 2010 | KS2: Apr 2010 | KT2: May 2010 | KU2: Jun 2010 | KV2: Jul 2010 | KW2: Aug 2010 | KX2: Sep 2010 | KY2: Oct 2010 | KZ2: Nov 2010 | LA2: Dec 2010 | LB2: Jan 2011 | LC2: Feb 2011 | LD2: Mar 2011 | LE2: Apr 2011 | LF2: May 2011 | LG2: Jun 2011 | LH2: Jul 2011 | LI2: Aug 2011 | LJ2: Sep 2011 | LK2: Oct 2011 | LL2: Nov 2011 | LM2: Dec 2011 | LN2: Jan 2012 | LO2: Feb 2012 | LP2: Mar 2012 | LQ2: Apr 2012 | LR2: May 2012 | LS2: Jun 2012 | LT2: Jul 2012 | LU2: Aug 2012 | LV2: Sep 2012 | LW2: Oct 2012 | LX2: Nov 2012 | LY2: Dec 2012 | LZ2: Jan 2013 | MA2: Feb 2013 | MB2: Mar 2013 | MC2: Apr 2013 | MD2: May 2013 | ME2: Jun 2013 | MF2: Jul 2013 | MG2: Aug 2013 | MH2: Sep 2013 | MI2: Oct 2013 | MJ2: Nov 2013 | MK2: Dec 2013 | ML2: Jan 2014 | MM2: Feb 2014 | MN2: Mar 2014 | MO2: Apr 2014 | MP2: May 2014 | MQ2: Jun 2014 | MR2: Jul 2014 | MS2: Aug 2014 | MT2: Sep 2014 | MU2: Oct 2014 | MV2: Nov 2014 | MW2: Dec 2014 | MX2: Jan 2015 | MY2: Feb 2015 | MZ2: Mar 2015 | NA2: Apr 2015 | NB2: May 2015 | NC2: Jun 2015 | ND2: Jul 2015 | NE2: Aug 2015 | NF2: Sep 2015 | NG2: Oct 2015 | NH2: Nov 2015 | NI2: Dec 2015 | NJ2: Jan 2016 | NK2: Feb 2016 | NL2: Mar 2016 | NM2: Apr 2016 | NN2: May 2016 | NO2: Jun 2016 | NP2: Jul 2016 | NQ2: Aug 2016 | NR2: Sep 2016 | NS2: Oct 2016 | NT2: Nov 2016 | NU2: Dec 2016 | NV2: 2017 - Jan | NW2: 2017 - Feb | NX2: 2017 - Mar | NY2: 2017 - Apr | NZ2: 2017 - May | OA2: 2017 - Jun | OB2: 2017 - Jul | OC2: 2017 - Aug | OD2: 2017 - Sep | OE2: 2017 - Oct | OF2: 2017 - Nov | OG2: 2017 - Dec | OH2: 2018 - Jan | OI2: 2018 - Feb | OJ2: 2018 - Mar | OK2: 2018 - Apr | OL2: 2018 - May | OM2: 2018 - Jun | OO2: mean | OP2: standard dev. | OQ2: * start month
A3: Algeria | B3: 5.1403 | C3: 5.2072 | D3: 5.1041 | E3: 5.1049 | F3: 5.1021 | G3: 5.0855 | H3: 4.9538 | I3: 4.9556 | J3: 4.8976 | K3: 4.8635 | L3: 4.8021 | M3: 4.7728 | N3: 4.7375 | O3: 4.6254 | P3: 4.6895 | Q3: 4.6243 | R3: 4.7127 | S3: 4.6332 | T3: 4.5775 | U3: 4.5562 | V3: 4.6716 | W3: 4.8512 | X3: 4.7766 | Y3: 4.8235 | Z3: 4.6386 | AA3: 4.6619 | AB3: 4.6676 | AC3: 4.6862 | AD3: 4.7886 | AE3: 4.8508 | AF3: 4.9762 | AG3: 5.0077 | AH3: 5.0817 | AI3: 5.0009 | AJ3: 4.8732 | AK3: 4.9363 | AL3: 5.1751 | AM3: 5.2901 | AN3: 5.2971 | AO3: 5.429 | AP3: 5.6272 | AQ3: 5.9654 | AR3: 6.2367 | AS3: 6.4451 | AT3: 6.6009 | AU3: 6.4609 | AV3: 6.399 | AW3: 6.7308 | AX3: 6.9424 | AY3: 6.8453 | AZ3: 7.0663 | BA3: 7.1992 | BB3: 7.6268 | BC3: 7.712 | BD3: 7.686 | BE3: 8.1305 | BF3: 8.0939 | BG3: 8.1455 | BH3: 8.1844 | BI3: 8.0324 | BJ3: 7.9718 | BK3: 7.9776 | BL3: 7.9674 | BM3: 8.0367 | BN3: 8.4396 | BO3: 8.7314 | BP3: 8.8466 | BQ3: 8.9843 | BR3: 9.4915 | BS3: 9.691 | BT3: 10.9451 | BU3: 12.1908 | BV3: 15.8889 | BW3: 16.5949 | BX3: 17.7653 | BY3: 17.8332 | BZ3: 17.817 | CA3: 18.3849 | CB3: 17.9981 | CC3: 17.9577 | CD3: 22.511 | CE3: 22.6275 | CF3: 22.1532 | CG3: 21.3919 | CH3: 21.1407 | CI3: 22.33 | CJ3: 22.3508 | CK3: 22.4215 | CL3: 22.0055 | CM3: 21.3316 | CN3: 21.0154 | CO3: 20.5432 | CP3: 20.874 | CQ3: 21.914 | CR3: 22.5963 | CS3: 22.7814 | CT3: 22.6046 | CU3: 23.2016 | CV3: 22.9998 | CW3: 22.563 | CX3: 22.7439 | CY3: 23.3971 | CZ3: 24.1043 | DA3: 23.7278 | DB3: 23.343 | DC3: 23.8193 | DD3: 24.0856 | DE3: 24.123 | DF3: 24.0835 | DG3: 23.9337 | DH3: 25.9446 | DI3: 35.995 | DJ3: 36.9852 | DK3: 38.2772 | DL3: 38.2495 | DM3: 38.5666 | DN3: 40.9028 | DO3: 40.9625 | DP3: 42.5006 | DQ3: 42.8925 | DR3: 42.6 | DS3: 43.7315 | DT3: 43.57 | DU3: 44.784 | DV3: 45.922 | DW3: 49.21 | DX3: 49.686 | DY3: 51.08 | DZ3: 50.2645 | EA3: 51.01 | EB3: 51.465 | EC3: 52.175 | ED3: 53.7749 | EE3: 53.3946 | EF3: 53.4801 | EG3: 54.1139 | EH3: 55.1252 | EI3: 55.0946 | EJ3: 54.9945 | EK3: 55.1661 | EL3: 55.822 | EM3: 55.4165 | EN3: 55.8376 | EO3: 56.1859 | EP3: 57.2925 | EQ3: 57.2474 | ER3: 56.7153 | ES3: 57.6163 | ET3: 56.9736 | EU3: 57.4869 | EV3: 59.3459 | EW3: 58.6083 | EX3: 58.0252 | EY3: 57.0982 | EZ3: 57.786 | FA3: 58.4139 | FB3: 59.3061 | FC3: 58.9422 | FD3: 59.5901 | FE3: 58.4787 | FF3: 58.4139 | FG3: 58.8276 | FH3: 58.7787 | FI3: 59.1387 | FJ3: 57.6491 | FK3: 58.1135 | FL3: 59.7458 | FM3: 60.3531 | FN3: 62.0716 | FO3: 64.5729 | FP3: 66.1894 | FQ3: 67.1571 | FR3: 67.82 | FS3: 68.3143 | FT3: 66.7526 | FU3: 67.5672 | FV3: 67.1065 | FW3: 67.4436 | FX3: 69.2412 | FY3: 69.3143 | FZ3: 70.7292 | GA3: 72.4357 | GB3: 73.4741 | GC3: 76.0025 | GD3: 75.2502 | GE3: 73.9423 | GF3: 75.5222 | GG3: 77.1946 | GH3: 77.9353 | GI3: 80.3716 | GJ3: 79.1216 | GK3: 75.3428 | GL3: 75.4064 | GM3: 75.8578 | GN3: 78.1552 | GO3: 77.5592 | GP3: 79.9087 | GQ3: 80.1749 | GR3: 78.433 | GS3: 76.1182 | GT3: 76.3439 | GU3: 76.7258 | GV3: 77.7791 | GW3: 77.8196 | GX3: 79.1795 | GY3: 79.6429 | GZ3: 80.2144 | HA3: 80.1333 | HB3: 80.0146 | HC3: 79.9082 | HD3: 79.9321 | HE3: 79.9291 | HF3: 79.9142 | HG3: 79.8904 | HH3: 79.0904 | HI3: 79.7234 | HJ3: 79.6407 | HK3: 79.6638 | HL3: 79.6399 | HM3: 79.5808 | HN3: 79.3776 | HO3: 78.3783 | HP3: 77.7398 | HQ3: 77.8563 | HR3: 77.0962 | HS3: 75.8277 | HT3: 69.4576 | HU3: 72.6128 | HV3: 71.5743 | HW3: 71.4398 | HX3: 71.4498 | HY3: 71.5424 | HZ3: 71.4396 | IA3: 71.488 | IB3: 72.627 | IC3: 72.6106 | ID3: 72.5831 | IE3: 73.0284 | IF3: 73.0311 | IG3: 72.6137 | IH3: 72.7691 | II3: 72.301 | IJ3: 72.9182 | IK3: 72.8905 | IL3: 74.1075 | IM3: 73.8386 | IN3: 74.09 | IO3: 74.846 | IP3: 73.6302 | IQ3: 73.2916 | IR3: 74.5518 | IS3: 73.3799 | IT3: 72.7956 | IU3: 74.0358 | IV3: 73.9375 | IW3: 72.3803 | IX3: 72.8851 | IY3: 73.2834 | IZ3: 73.2106 | JA3: 72.0947 | JB3: 72.1182 | JC3: 72.0807 | JD3: 71.0935 | JE3: 71.1582 | JF3: 71.6075 | JG3: 71.0833 | JH3: 70.8825 | JI3: 70.3583 | JJ3: 70.6238 | JK3: 69.9916 | JL3: 68.6701 | JM3: 68.5663 | JN3: 67.6712 | JO3: 67.1991 | JP3: 66.7601 | JQ3: 66.8299 | JR3: 66.597 | JS3: 66.0615 | JT3: 65.303 | JU3: 63.848 | JV3: 62.9071 | JW3: 61.8851 | JX3: 61.335 | JY3: 60.9204 | JZ3: 60.7667 | KA3: 67.0746 | KB3: 70.3476 | KC3: 71.1826 | KD3: 71.8513 | KE3: 72.6545 | KF3: 73.1463 | KG3: 72.681 | KH3: 72.498 | KI3: 73.0967 | KJ3: 73.0431 | KK3: 72.9822 | KL3: 72.5363 | KM3: 72.3463 | KN3: 72.1859 | KO3: 72.7309 | KP3: 73.4862 | KQ3: 73.5225 | KR3: 73.7159 | KS3: 73.6011 | KT3: 75.4171 | KU3: 75.3636 | KV3: 74.8857 | KW3: 75.9052 | KX3: 74.7419 | KY3: 74.207 | KZ3: 74.207 | LA3: 74.9437 | LB3: 72.7908 | LC3: 72.6177 | LD3: 72.1755 | LE3: 71.3037 | LF3: 71.9898 | LG3: 71.6635 | LH3: 72.1315 | LI3: 71.9361 | LJ3: 73.969 | LK3: 73.0379 | LL3: 76.0563 | LM3: 76.0563 | LN3: 75.3444 | LO3: 74.3919 | LP3: 74.0669 | LQ3: 74.2283 | LR3: 76.8398 | LS3: 78.8582 | LT3: 81.9104 | LU3: 80.0433 | LV3: 79.3289 | LW3: 79.1784 | LX3: 78.5182 | LY3: 78.1025 | LZ3: 77.4235 | MA3: 78.3413 | MB3: 79.024 | MC3: 78.4943 | MD3: 78.9732 | ME3: 79.7345 | MF3: 79.4673 | MG3: 81.1474 | MH3: 81.4128 | MI3: 81.0293 | MJ3: 79.7327 | MK3: 78.1524 | ML3: 78.0067 | MM3: 77.6359 | MN3: 78.4983 | MO3: 78.6001 | MP3: 79.1476 | MQ3: 79.2669 | MR3: 78.4865 | MS3: 80.002 | MT3: 82.7168 | MU3: 82.7168 | MV3: 85.9812 | MW3: 87.9039 | MX3: 88.1742 | MY3: 94.926 | MZ3: 97.5474 | NA3: 97.2128 | NB3: 99.5673 | NC3: 99.0178 | ND3: 99.5473 | NE3: 106.0997 | NF3: 106.0524 | NG3: 106.7866 | NH3: 108.425 | NI3: 107.1317 | NJ3: 107.3252 | NK3: 108.3279 | NL3: 108.7168 | NM3: 109.1286 | NN3: 110.6228 | NO3: 110.3718 | NP3: 110.4325 | NQ3: 109.6457 | NR3: 109.7371 | NS3: 109.9685 | NT3: 110.7609 | NU3: 110.5274 | NV3: 109.6906 | NW3: 110.1784 | NX3: 110.014 | NY3: 109.3475 | NZ3: 108.5771 | OA3: 107.8459 | OB3: 108.4355 | OC3: 110.8852 | OD3: 113.2077 | OE3: 115.2205 | OF3: 115.0396 | OG3: 114.9327 | OH3: 113.4278 | OI3: 114.4395 | OJ3: 114.0777 | OK3: 114.8873 | OL3: 116.4508 | OM3: 117.6749 | ON3: 117.7024 | OO3: 117.8824 | OP3: 118.1587
A4: Argentina | B4: 2.2338e-05 | C4: 2.68025e-05 | D4: 3.4274e-05 | E4: 4.4845e-05 | F4: 5.9385e-05 | G4: 8.005e-05 | H4: 8.005e-05 | I4: 8.005e-05 | J4: 8.005e-05 | K4: 8.005e-05 | L4: 8.005e-05 | M4: 8.005e-05 | N4: 8.005e-05 | O4: 8.005e-05 | P4: 8.005e-05 | Q4: 8.405e-05 | R4: 8.605e-05 | S4: 8.905e-05 | T4: 9.205e-05 | U4: 0.00010065 | V4: 0.00010685 | W4: 0.0001129 | X4: 0.0001179 | Y4: 0.0001257 | Z4: 0.000133 | AA4: 0.0001538 | AB4: 0.0001538 | AC4: 0.0001538 | AD4: 0.0001619 | AE4: 0.00017985 | AF4: 0.000197325 | AG4: 0.000226625 | AH4: 0.000263025 | AI4: 0.00035 | AJ4: 0.00035 | AK4: 0.000375 | AL4: 0.000408 | AM4: 0.0004595 | AN4: 0.0005275 | AO4: 0.000621 | AP4: 0.0007075 | AQ4: 0.0008695 | AR4: 0.001074 | AS4: 0.001196 | AT4: 0.001196 | AU4: 0.001232 | AV4: 0.001281 | AW4: 0.001337 | AX4: 0.001394 | AY4: 0.001478 | AZ4: 0.001582 | BA4: 0.0077 | BB4: 0.0177 | BC4: 0.0261 | BD4: 0.06525 | BE4: 0.06525 | BF4: 0.06525 | BG4: 0.06525 | BH4: 0.06525 | BI4: 0.1795 | BJ4: 0.1865 | BK4: 0.5965 | BL4: 0.4655 | BM4: 0.5005 | BN4: 0.5005 | BO4: 0.5265 | BP4: 0.5445 | BQ4: 0.6195 | BR4: 0.561 | BS4: 0.5565 | BT4: 0.5125 | BU4: 0.5585 | BV4: 0.942 | BW4: 0.998 | BX4: 0.9625 | BY4: 0.9805 | BZ4: 0.9905 | CA4: 0.997 | CB4: 0.9955 | CC4: 0.996 | CD4: 0.9905 | CE4: 0.9905 | CF4: 0.9905 | CG4: 0.9985 | CH4: 0.9905 | CI4: 0.9905 | CJ4: 0.9925 | CK4: 0.9905 | CL4: 0.9905 | CM4: 0.9905 | CN4: 0.9905 | CO4: 0.9905 | CP4: 0.9905 | CQ4: 0.9905 | CR4: 0.9905 | CS4: 0.9905 | CT4: 0.9993 | CU4: 0.9995 | CV4: 0.9995 | CW4: 0.9985 | CX4: 0.9995 | CY4: 0.9985 | CZ4: 0.9987 | DA4: 0.9995 | DB4: 0.9995 | DC4: 0.9995 | DD4: 0.9985 | DE4: 0.9985 | DF4: 0.9985 | DG4: 0.9995 | DH4: 0.9995 | DI4: 0.9985 | DJ4: 0.9985 | DK4: 0.9985 | DL4: 0.9985 | DM4: 0.9995 | DN4: 0.9995 | DO4: 0.9995 | DP4: 0.9987 | DQ4: 0.9995 | DR4: 1 | DS4: 1 | DT4: 1 | DU4: 1 | DV4: 1 | DW4: 1 | DX4: 1 | DY4: 1 | DZ4: 1 | EA4: 1 | EB4: 1 | EC4: 1 | ED4: 1 | EE4: 1 | EF4: 1 | EG4: 0.9995 | EH4: 0.9995 | EI4: 0.9995 | EJ4: 0.9995 | EK4: 0.9995 | EL4: 0.9995 | EM4: 0.9995 | EN4: 0.9995 | EO4: 0.9995 | EP4: 0.9995 | EQ4: 0.9995 | ER4: 0.9995 | ES4: 0.9995 | ET4: 0.9995 | EU4: 0.9995 | EV4: 0.9995 | EW4: 0.9995 | EX4: 0.9995 | EY4: 0.9995 | EZ4: 0.9995 | FA4: 0.9995 | FB4: 0.9995 | FC4: 0.9995 | FD4: 0.9995 | FE4: 0.9995 | FF4: 0.9995 | FG4: 0.9995 | FH4: 0.9995 | FI4: 0.9995 | FJ4: 0.9995 | FK4: 0.9995 | FL4: 0.9995 | FM4: 0.9995 | FN4: 0.9995 | FO4: 0.9995 | FP4: 0.9995 | FQ4: 0.9995 | FR4: 0.9995 | FS4: 0.9995 | FT4: 0.9995 | FU4: 0.9995 | FV4: 0.9995 | FW4: 0.9995 | FX4: 0.9995 | FY4: 0.9995 | FZ4: 0.9995 | GA4: 0.9995 | GB4: 0.9995 | GC4: 0.9995 | GD4: 0.9995 | GE4: 0.9995 | GF4: 0.9995 | GG4: 0.9995 | GH4: 0.9995 | GI4: 0.9995 | GJ4: 0.9995 | GK4: 0.9995 | GL4: 0.9995 | GM4: 0.9995 | GN4: 0.9995 | GO4: 0.9995 | GP4: 0.9995 | GQ4: 0.9995 | GR4: 0.9995 | GS4: 0.9995 | GT4: 0.9995 | GU4: 0.9995 | GV4: 0.9995 | GW4: 0.9995 | GX4: 1.4 | GY4: 2.1 | GZ4: 2.95 | HA4: 2.93 | HB4: 3.55 | HC4: 3.75 | HD4: 3.65 | HE4: 3.58 | HF4: 3.69 | HG4: 3.47 | HH4: 3.59 | HI4: 3.32 | HJ4: 3.16 | HK4: 3.14 | HL4: 2.93 | HM4: 2.77 | HN4: 2.8 | HO4: 2.75 | HP4: 2.87 | HQ4: 2.906 | HR4: 2.865 | HS4: 2.815 | HT4: 2.94 | HU4: 2.905 | HV4: 2.908 | HW4: 2.903 | HX4: 2.84 | HY4: 2.82 | HZ4: 2.94 | IA4: 2.938 | IB4: 2.96 | IC4: 2.977 | ID4: 2.961 | IE4: 2.95 | IF4: 2.924 | IG4: 2.959 | IH4: 2.904 | II4: 2.918 | IJ4: 2.897 | IK4: 2.89 | IL4: 2.863 | IM4: 2.867 | IN4: 2.841 | IO4: 2.891 | IP4: 2.89 | IQ4: 2.982 | IR4: 2.946 | IS4: 3.012 | IT4: 3.047 | IU4: 3.054 | IV4: 3.062 | IW4: 3.028 | IX4: 3.065 | IY4: 3.066 | IZ4: 3.052 | JA4: 3.077 | JB4: 3.084 | JC4: 3.069 | JD4: 3.048 | JE4: 3.042 | JF4: 3.087 | JG4: 3.08 | JH4: 3.08 | JI4: 3.07 | JJ4: 3.057 | JK4: 3.073 | JL4: 3.101 | JM4: 3.136 | JN4: 3.13 | JO4: 3.122 | JP4: 3.125 | JQ4: 3.129 | JR4: 3.138 | JS4: 3.141 | JT4: 3.148 | JU4: 3.144 | JV4: 3.079 | JW4: 3.005 | JX4: 3.024 | JY4: 3.01 | JZ4: 3.115 | KA4: 3.368 | KB4: 3.353 | KC4: 3.433 | KD4: 3.468 | KE4: 3.547 | KF4: 3.7 | KG4: 3.694 | KH4: 3.729 | KI4: 3.777 | KJ4: 3.81 | KK4: 3.831 | KL4: 3.823 | KM4: 3.799 | KN4: 3.791 | KO4: 3.78 | KP4: 3.83 | KQ4: 3.87 | KR4: 3.858 | KS4: 3.868 | KT4: 3.909 | KU4: 3.911 | KV4: 3.92 | KW4: 3.93 | KX4: 3.94 | KY4: 3.937 | KZ4: 3.968 | LA4: 3.956 | LB4: 3.988 | LC4: 4.01 | LD4: 4.034 | LE4: 4.06 | LF4: 4.07 | LG4: 4.09 | LH4: 4.125 | LI4: 4.18 | LJ4: 4.185 | LK4: 4.216 | LL4: 4.261 | LM4: 4.284 | LN4: 4.317 | LO4: 4.355 | LP4: 4.359 | LQ4: 4.397 | LR4: 4.451 | LS4: 4.525 | LT4: 4.575 | LU4: 4.618 | LV4: 4.677 | LW4: 4.746 | LX4: 4.835 | LY4: 4.898 | LZ4: 4.965 | MA4: 5.026 | MB4: 5.102 | MC4: 5.175 | MD4: 5.264 | ME4: 5.375 | MF4: 5.485 | MG4: 5.652 | MH4: 5.775 | MI4: 5.892 | MJ4: 6.121 | MK4: 6.501 | ML4: 7.89 | MM4: 7.824 | MN4: 7.952 | MO4: 7.952 | MP4: 8.03 | MQ4: 8.083 | MR4: 8.17 | MS4: 8.351 | MT4: 8.38 | MU4: 8.445 | MV4: 8.48 | MW4: 8.51 | MX4: 8.595 | MY4: 8.68 | MZ4: 8.77 | NA4: 8.86 | NB4: 8.945 | NC4: 9.04 | ND4: 9.145 | NE4: 9.25 | NF4: 9.375 | NG4: 9.505 | NH4: 9.645 | NI4: 13.1 | NJ4: 13.78 | NK4: 15.7 | NL4: 14.6 | NM4: 14.3 | NN4: 14 | NO4: 15 | NP4: 15 | NQ4: 14.9 | NR4: 15.3 | NS4: 15.18 | NT4: 15.34 | NU4: 15.83 | NV4: 15.91 | NW4: 15.6 | NX4: 15.52 | NY4: 15.36 | NZ4: 15.7 | OA4: 16.12 | OB4: 17.17 | OC4: 17.42 | OD4: 17.25 | OE4: 17.45 | OF4: 17.49 | OG4: 17.7 | OH4: 19.03 | OI4: 19.84 | OJ4: 20.24 | OK4: 20.23 | OL4: 23.67 | OM4: 26.53 | ON4: 27.62 | OO4: 30.12 | OP4: 38.59
A5: Bolivia | B5: 0.008783 | C5: 0.047275 | D5: 0.047275 | E5: 0.047275 | F5: 0.070665 | G5: 0.070665 | H5: 0.070665 | I5: 0.070665 | J5: 1.075 | K5: 1.12 | L5: 1.493 | M5: 1.692 | N5: 1.834 | O5: 1.855 | P5: 1.9 | Q5: 1.9 | R5: 1.905 | S5: 1.907 | T5: 1.904 | U5: 1.912 | V5: 1.917 | W5: 1.924 | X5: 1.925 | Y5: 1.923 | Z5: 1.9302 | AA5: 1.9523 | AB5: 2.0006 | AC5: 2.012 | AD5: 2.06 | AE5: 2.07 | AF5: 2.08 | AG5: 2.08 | AH5: 2.11 | AI5: 2.13 | AJ5: 2.17 | AK5: 2.21 | AL5: 2.23 | AM5: 2.25 | AN5: 2.29 | AO5: 2.32 | AP5: 2.35 | AQ5: 2.39 | AR5: 2.41 | AS5: 2.39 | AT5: 2.4 | AU5: 2.4 | AV5: 2.43 | AW5: 2.47 | AX5: 2.49 | AY5: 2.52 | AZ5: 2.54 | BA5: 2.57 | BB5: 2.61 | BC5: 2.64 | BD5: 2.68 | BE5: 2.8 | BF5: 2.87 | BG5: 2.9 | BH5: 2.93 | BI5: 2.98 | BJ5: 3.02 | BK5: 3.05 | BL5: 3.09 | BM5: 3.11 | BN5: 3.14 | BO5: 3.15 | BP5: 3.18 | BQ5: 3.22 | BR5: 3.27 | BS5: 3.3 | BT5: 3.35 | BU5: 3.4 | BV5: 3.46 | BW5: 3.485 | BX5: 3.505 | BY5: 3.535 | BZ5: 3.555 | CA5: 3.585 | CB5: 3.605 | CC5: 3.625 | CD5: 3.655 | CE5: 3.685 | CF5: 3.705 | CG5: 3.745 | CH5: 3.765 | CI5: 3.785 | CJ5: 3.805 | CK5: 3.825 | CL5: 3.855 | CM5: 3.875 | CN5: 3.925 | CO5: 3.965 | CP5: 4.005 | CQ5: 4.035 | CR5: 4.065 | CS5: 4.095 | CT5: 4.115 | CU5: 4.145 | CV5: 4.175 | CW5: 4.205 | CX5: 4.235 | CY5: 4.265 | CZ5: 4.295 | DA5: 4.325 | DB5: 4.345 | DC5: 4.385 | DD5: 4.425 | DE5: 4.475 | DF5: 4.495 | DG5: 4.535 | DH5: 4.575 | DI5: 4.595 | DJ5: 4.635 | DK5: 4.665 | DL5: 4.645 | DM5: 4.675 | DN5: 4.665 | DO5: 4.675 | DP5: 4.695 | DQ5: 4.695 | DR5: 4.735 | DS5: 4.725 | DT5: 4.765 | DU5: 4.755 | DV5: 4.765 | DW5: 4.795 | DX5: 4.815 | DY5: 4.835 | DZ5: 4.8554 | EA5: 4.855 | EB5: 4.895 | EC5: 4.935 | ED5: 4.975 | EE5: 4.985 | EF5: 5.005 | EG5: 5.045 | EH5: 5.065 | EI5: 5.065 | EJ5: 5.105 | EK5: 5.125 | EL5: 5.145 | EM5: 5.185 | EN5: 5.164 | EO5: 5.185 | EP5: 5.205 | EQ5: 5.215 | ER5: 5.225 | ES5: 5.225 | ET5: 5.215 | EU5: 5.225 | EV5: 5.245 | EW5: 5.265 | EX5: 5.285 | EY5: 5.315 | EZ5: 5.335 | FA5: 5.365 | FB5: 5.385 | FC5: 5.405 | FD5: 5.445 | FE5: 5.475 | FF5: 5.495 | FG5: 5.515 | FH5: 5.535 | FI5: 5.545 | FJ5: 5.575 | FK5: 5.595 | FL5: 5.615 | FM5: 5.645 | FN5: 5.66 | FO5: 5.69 | FP5: 5.72 | FQ5: 5.75 | FR5: 5.78 | FS5: 5.8 | FT5: 5.84 | FU5: 5.88 | FV5: 5.92 | FW5: 5.95 | FX5: 5.97 | FY5: 5.99 | FZ5: 6.02 | GA5: 6.06 | GB5: 6.09 | GC5: 6.12 | GD5: 6.15 | GE5: 6.18 | GF5: 6.21 | GG5: 6.24 | GH5: 6.28 | GI5: 6.31 | GJ5: 6.35 | GK5: 6.39 | GL5: 6.42 | GM5: 6.44 | GN5: 6.48 | GO5: 6.51 | GP5: 6.56 | GQ5: 6.59 | GR5: 6.65 | GS5: 6.69 | GT5: 6.73 | GU5: 6.79 | GV5: 6.82 | GW5: 6.82 | GX5: 6.9 | GY5: 6.97 | GZ5: 7.02 | HA5: 7.05 | HB5: 7.08 | HC5: 7.16 | HD5: 7.23 | HE5: 7.29 | HF5: 7.34 | HG5: 7.39 | HH5: 7.44 | HI5: 7.49 | HJ5: 7.54 | HK5: 7.56 | HL5: 7.59 | HM5: 7.6 | HN5: 7.62 | HO5: 7.65 | HP5: 7.68 | HQ5: 7.72 | HR5: 7.74 | HS5: 7.76 | HT5: 7.78 | HU5: 7.83 | HV5: 7.85 | HW5: 7.86 | HX5: 7.89 | HY5: 7.9 | HZ5: 7.91 | IA5: 7.93 | IB5: 7.94 | IC5: 7.97 | ID5: 7.99 | IE5: 8.02 | IF5: 8.03 | IG5: 8.05 | IH5: 8.06 | II5: 8.07 | IJ5: 8.09 | IK5: 8.09 | IL5: 8.09 | IM5: 8.09 | IN5: 8.06 | IO5: 8.06 | IP5: 8.05 | IQ5: 8.04 | IR5: 8.04 | IS5: 8.04 | IT5: 8.04 | IU5: 8.03 | IV5: 8.02 | IW5: 8.01 | IX5: 8.01 | IY5: 8.01 | IZ5: 8.01 | JA5: 8 | JB5: 8 | JC5: 8 | JD5: 8 | JE5: 7.98 | JF5: 7.96 | JG5: 7.94 | JH5: 7.94 | JI5: 7.94 | JJ5: 7.92 | JK5: 7.9 | JL5: 7.82 | JM5: 7.76 | JN5: 7.76 | JO5: 7.72 | JP5: 7.68 | JQ5: 7.62 | JR5: 7.58 | JS5: 7.54 | JT5: 7.45 | JU5: 7.35 | JV5: 7.26 | JW5: 7.17 | JX5: 7.09 | JY5: 7.04 | JZ5: 7.04 | KA5: 7.52 | KB5: 7.02 | KC5: 7.02 | KD5: 7.02 | KE5: 7.02 | KF5: 7.02 | KG5: 7.02 | KH5: 7.02 | KI5: 7.02 | KJ5: 7.02 | KK5: 7.02 | KL5: 7.02 | KM5: 7.02 | KN5: 7.02 | KO5: 7.02 | KP5: 7.02 | KQ5: 7.02 | KR5: 7.02 | KS5: 7.02 | KT5: 7.02 | KU5: 7.02 | KV5: 7.02 | KW5: 7.02 | KX5: 7.02 | KY5: 7.02 | KZ5: 7.01 | LA5: 6.99 | LB5: 6.99 | LC5: 6.97 | LD5: 6.95 | LE5: 6.94 | LF5: 6.94 | LG5: 6.93 | LH5: 6.92 | LI5: 6.92 | LJ5: 6.92 | LK5: 6.92 | LL5: 6.91 | LM5: 6.91 | LN5: 6.91 | LO5: 6.91 | LP5: 6.91 | LQ5: 6.91 | LR5: 6.91 | LS5: 6.91 | LT5: 6.91 | LU5: 6.91 | LV5: 6.91 | LW5: 6.91 | LX5: 6.91 | LY5: 6.91 | LZ5: 6.91 | MA5: 6.91 | MB5: 6.91 | MC5: 6.91 | MD5: 6.91 | ME5: 6.91 | MF5: 6.91 | MG5: 6.91 | MH5: 6.91 | MI5: 6.91 | MJ5: 6.91 | MK5: 6.91 | ML5: 6.91 | MM5: 6.91 | MN5: 6.91 | MO5: 6.91 | MP5: 6.91 | MQ5: 6.91 | MR5: 6.91 | MS5: 6.91 | MT5: 6.91 | MU5: 6.91 | MV5: 6.91 | MW5: 6.91 | MX5: 6.91 | MY5: 6.91 | MZ5: 6.91 | NA5: 6.91 | NB5: 6.91 | NC5: 6.91 | ND5: 6.91 | NE5: 6.91 | NF5: 6.91 | NG5: 6.91 | NH5: 6.91 | NI5: 6.91 | NJ5: 6.91 | NK5: 6.91 | NL5: 6.91 | NM5: 6.91 | NN5: 6.91 | NO5: 6.91 | NP5: 6.91 | NQ5: 6.91 | NR5: 6.91 | NS5: 6.91 | NT5: 6.91 | NU5: 6.91 | NV5: 6.91 | NW5: 6.91 | NX5: 6.91 | NY5: 6.91 | NZ5: 6.91 | OA5: 6.91 | OB5: 6.91 | OC5: 6.91 | OD5: 6.91 | OE5: 6.91 | OF5: 6.91 | OG5: 6.91 | OH5: 6.91 | OI5: 6.91 | OJ5: 6.91 | OK5: 6.91 | OL5: 6.91 | OM5: 6.91 | ON5: 6.91 | OO5: 6.91 | OP5: 6.91
A6: Brazil | B6: 1.303636364e-09 | C6: 1.436727273e-09 | D6: 1.618181818e-09 | E6: 1.810909091e-09 | F6: 1.992727273e-09 | G6: 2.174545455e-09 | H6: 2.341818182e-09 | I6: 2.534545455e-09 | J6: 2.845454545e-09 | K6: 3.112727273e-09 | L6: 3.4e-09 | M6: 3.814545455e-09 | N6: 4.42e-09 | O6: 5.032727273e-09 | P6: 5.032727273e-09 | Q6: 5.032727273e-09 | R6: 5.032727273e-09 | S6: 5.032727273e-09 | T6: 5.032727273e-09 | U6: 5.032727273e-09 | V6: 5.032727273e-09 | W6: 5.123636364e-09 | X6: 5.162181818e-09 | Y6: 5.416363636e-09 | Z6: 6.013454545e-09 | AA6: 7.198181818e-09 | AB6: 8.052363636e-09 | AC6: 9.248727273e-09 | AD6: 1.236218182e-08 | AE6: 1.577309091e-08 | AF6: 1.673490909e-08 | AG6: 1.758472727e-08 | AH6: 1.8648e-08 | AI6: 2.032618182e-08 | AJ6: 2.293418182e-08 | AK6: 2.627309091e-08 | AL6: 3.032836364e-08 | AM6: 3.581781818e-08 | AN6: 4.165454545e-08 | AO6: 4.997818182e-08 | AP6: 5.916e-08 | AQ6: 7.077454545e-08 | AR6: 8.790181818e-08 | AS6: 1.0636e-07 | AT6: 1.319927273e-07 | AU6: 1.684872727e-07 | AV6: 2.138436364e-07 | AW6: 2.782909091e-07 | AX6: 3.636363636e-07 | AY6: 3.636363636e-07 | AZ6: 3.636363636e-07 | BA6: 3.752727273e-07 | BB6: 4.192727273e-07 | BC6: 5.523636364e-07 | BD6: 7.876363636e-07 | BE6: 1.018909091e-06 | BF6: 1.380727273e-06 | BG6: 1.9e-06 | BH6: 2.679272727e-06 | BI6: 4.130181818e-06 | BJ6: 6.447636364e-06 | BK6: 1.114036364e-05 | BL6: 1.547636364e-05 | BM6: 1.863381818e-05 | BN6: 2.007963636e-05 | BO6: 2.218981818e-05 | BP6: 2.508727273e-05 | BQ6: 2.606327273e-05 | BR6: 3.062654545e-05 | BS6: 3.889090909e-05 | BT6: 5.262181818e-05 | BU6: 6.438545455e-05 | BV6: 8.005090909e-05 | BW6: 8.124727273e-05 | BX6: 8.688363636e-05 | BY6: 9.481090909e-05 | BZ6: 0.0001035272727 | CA6: 0.0001135345455 | CB6: 0.0001260254545 | CC6: 0.0001431854545 | CD6: 0.0001690654545 | CE6: 0.0002345527273 | CF6: 0.0003056 | CG6: 0.0003886545455 | CH6: 0.0004798 | CI6: 0.0005930363636 | CJ6: 0.0007229090909 | CK6: 0.0008713090909 | CL6: 0.001036036364 | CM6: 0.001253345455 | CN6: 0.001528945455 | CO6: 0.001865818182 | CP6: 0.002327272727 | CQ6: 0.002921490909 | CR6: 0.003618145455 | CS6: 0.004504545455 | CT6: 0.005716363636 | CU6: 0.007221090909 | CV6: 0.009134909091 | CW6: 0.01173381818 | CX6: 0.01516363636 | CY6: 0.01975854545 | CZ6: 0.02587381818 | DA6: 0.03441890909 | DB6: 0.04657090909 | DC6: 0.06327272727 | DD6: 0.08581090909 | DE6: 0.1185836364 | DF6: 0.1667854545 | DG6: 0.2318 | DH6: 0.3321254545 | DI6: 0.4735563636 | DJ6: 0.6819163636 | DK6: 1 | DL6: 0.94 | DM6: 0.889 | DN6: 0.853 | DO6: 0.846 | DP6: 0.845 | DQ6: 0.846 | DR6: 0.842 | DS6: 0.852 | DT6: 0.896 | DU6: 0.913 | DV6: 0.906 | DW6: 0.922 | DX6: 0.936 | DY6: 0.951 | DZ6: 0.954 | EA6: 0.962 | EB6: 0.967 | EC6: 0.973 | ED6: 0.979 | EE6: 0.984 | EF6: 0.98729998 | EG6: 0.9925 | EH6: 0.9984 | EI6: 1.0044 | EJ6: 1.0112 | EK6: 1.0169 | EL6: 1.0215 | EM6: 1.0267 | EN6: 1.0332 | EO6: 1.0394 | EP6: 1.046 | EQ6: 1.0515 | ER6: 1.0593 | ES6: 1.0638 | ET6: 1.0717 | EU6: 1.0769 | EV6: 1.0834 | EW6: 1.0916 | EX6: 1.0964 | EY6: 1.1031 | EZ6: 1.1098 | FA6: 1.1164 | FB6: 1.1237 | FC6: 1.1304 | FD6: 1.1374 | FE6: 1.1443 | FF6: 1.1505 | FG6: 1.1569 | FH6: 1.1624 | FI6: 1.1769 | FJ6: 1.1856 | FK6: 1.1932 | FL6: 1.2012 | FM6: 1.2087 | FN6: 1.9824 | FO6: 2.064 | FP6: 1.7212 | FQ6: 1.6599 | FR6: 1.7232 | FS6: 1.7687 | FT6: 1.7884 | FU6: 1.9151 | FV6: 1.9215 | FW6: 1.9522 | FX6: 1.9219 | FY6: 1.7882 | FZ6: 1.8016 | GA6: 1.7677 | GB6: 1.7465 | GC6: 1.8059 | GD6: 1.8258 | GE6: 1.7992 | GF6: 1.774 | GG6: 1.8226 | GH6: 1.8429 | GI6: 1.9082 | GJ6: 1.9588 | GK6: 1.9546 | GL6: 1.9703 | GM6: 2.0444 | GN6: 2.1608 | GO6: 2.1839 | GP6: 2.3592 | GQ6: 2.3041 | GR6: 2.4305 | GS6: 2.5509 | GT6: 2.6705 | GU6: 2.7063 | GV6: 2.5279 | GW6: 2.3196 | GX6: 2.4175 | GY6: 2.3474 | GZ6: 2.3228 | HA6: 2.3617 | HB6: 2.5212 | HC6: 2.8436 | HD6: 3.4277 | HE6: 3.0215 | HF6: 3.8941 | HG6: 3.6442 | HH6: 3.6357 | HI6: 3.5325 | HJ6: 3.525 | HK6: 3.5624 | HL6: 3.3523 | HM6: 2.889 | HN6: 2.9648 | HO6: 2.8712 | HP6: 2.9647 | HQ6: 2.9657 | HR6: 2.9226 | HS6: 2.8554 | HT6: 2.9486 | HU6: 2.8884 | HV6: 2.9401 | HW6: 2.913 | HX6: 2.9078 | HY6: 2.9439 | HZ6: 3.1283 | IA6: 3.1067 | IB6: 3.026 | IC6: 2.933 | ID6: 2.8578 | IE6: 2.8557 | IF6: 2.7299 | IG6: 2.6536 | IH6: 2.624 | II6: 2.5942 | IJ6: 2.6654 | IK6: 2.5305 | IL6: 2.403 | IM6: 2.3496 | IN6: 2.3897 | IO6: 2.3629 | IP6: 2.2214 | IQ6: 2.2535 | IR6: 2.2062 | IS6: 2.3399 | IT6: 2.2152 | IU6: 2.1347 | IV6: 2.1716 | IW6: 2.0884 | IX6: 2.2997 | IY6: 2.1635 | IZ6: 2.1754 | JA6: 2.138 | JB6: 2.1734 | JC6: 2.1422 | JD6: 2.166 | JE6: 2.1372 | JF6: 2.1239 | JG6: 2.1174 | JH6: 2.0496 | JI6: 2.0331 | JJ6: 1.9281 | JK6: 1.9254 | JL6: 1.8768 | JM6: 1.9612 | JN6: 1.8381 | JO6: 1.7432 | JP6: 1.7829 | JQ6: 1.7705 | JR6: 1.7595 | JS6: 1.6825 | JT6: 1.7483 | JU6: 1.6864 | JV6: 1.6286 | JW6: 1.5911 | JX6: 1.5658 | JY6: 1.6336 | JZ6: 1.9135 | KA6: 2.1145 | KB6: 2.3323 | KC6: 2.3362 | KD6: 2.3154 | KE6: 2.3776 | KF6: 2.2367 | KG6: 2.1775 | KH6: 2.0136 | KI6: 1.9479 | KJ6: 1.8803 | KK6: 1.8732 | KL6: 1.792 | KM6: 1.7105 | KN6: 1.7435 | KO6: 1.7404 | KP6: 1.8552 | KQ6: 1.8356 | KR6: 1.7944 | KS6: 1.7298 | KT6: 1.832 | KU6: 1.8068 | KV6: 1.7635 | KW6: 1.7583 | KX6: 1.7045 | KY6: 1.7018 | KZ6: 1.7263 | LA6: 1.6858 | LB6: 1.6774 | LC6: 1.6617 | LD6: 1.6352 | LE6: 1.5845 | LF6: 1.595 | LG6: 1.5722 | LH6: 1.5651 | LI6: 1.5904 | LJ6: 1.8291 | LK6: 1.6957 | LL6: 1.8494 | LM6: 1.8588 | LN6: 1.7509 | LO6: 1.7024 | LP6: 1.8334 | LQ6: 1.8852 | LR6: 2.0078 | LS6: 2.0904 | LT6: 2.0313 | LU6: 2.0513 | LV6: 2.0311 | LW6: 2.0323 | LX6: 2.0991 | LY6: 2.0483 | LZ6: 1.99 | MA6: 1.9807 | MB6: 2.0185 | MC6: 2.0001 | MD6: 2.0894 | ME6: 2.2185 | MF6: 2.2609 | MG6: 2.3578 | MH6: 2.2571 | MI6: 2.1804 | MJ6: 2.304 | MK6: 2.3538 | ML6: 2.4224 | MM6: 2.3436 | MN6: 2.2603 | MO6: 2.2199 | MP6: 2.2384 | MQ6: 2.2019 | MR6: 2.2447 | MS6: 2.2499 | MT6: 2.4522 | MU6: 2.4119 | MV6: 2.5237 | MW6: 2.6562 | MX6: 2.596 | MY6: 2.8728 | MZ6: 3.1915 | NA6: 2.9375 | NB6: 3.1748 | NC6: 3.139 | ND6: 3.3652 | NE6: 3.579 | NF6: 4.1172 | NG6: 3.9328 | NH6: 3.8499 | NI6: 3.9042 | NJ6: 4.0422 | NK6: 3.979 | NL6: 3.5583 | NM6: 3.4502 | NN6: 3.5945 | NO6: 3.2092 | NP6: 3.2384 | NQ6: 3.2397 | NR6: 3.2456 | NS6: 3.1805 | NT6: 3.3961 | NU6: 3.2585 | NV6: 3.1264 | NW6: 3.0987 | NX6: 3.1678 | NY6: 3.1978 | NZ6: 3.2431 | OA6: 3.3076 | OB6: 3.1301 | OC6: 3.1465 | OD6: 3.1674 | OE6: 3.2763 | OF6: 3.261 | OG6: 3.3074 | OH6: 3.1618 | OI6: 3.2443 | OJ6: 3.3232 | OK6: 3.4805 | OL6: 3.7364 | OM6: 3.8552 | ON6: 3.7543 | OO6: 4.1347 | OP6: 4.0033
A7: Bulgaria* | FB7: 1.937305029 | FC7: 1.965548678 | FD7: 1.942274323 | FE7: 1.959317105 | FF7: 1.955939736 | FG7: 1.957452019 | FH7: 1.944289559 | FI7: 1.977349317 | FJ7: 1.952679012 | FK7: 1.951920236 | FL7: 1.956519482 | FM7: 1.958285017 | FN7: 1.95588504 | FO7: 1.95580518 | FP7: 1.95579594 | FQ7: 1.95578232 | FR7: 1.9557948 | FS7: 1.95581336 | FT7: 1.95582566 | FU7: 1.95579354 | FV7: 1.95585435 | FW7: 1.9552995 | FX7: 1.9557889 | FY7: 1.95585574 | FZ7: 1.95585016 | GA7: 1.95581676 | GB7: 1.95588122 | GC7: 1.9558188 | GD7: 1.95586272 | GE7: 1.95582652 | GF7: 1.9558188 | GG7: 1.95584666 | GH7: 1.9558221 | GI7: 1.95585829 | GJ7: 1.95581048 | GK7: 1.95581795 | GL7: 1.95580478 | GM7: 1.95585952 | GN7: 1.9558464 | GO7: 1.92396176 | GP7: 1.9558272 | GQ7: 1.9558272 | GR7: 1.955867 | GS7: 1.95587406 | GT7: 1.9558602 | GU7: 1.95587502 | GV7: 1.95586938 | GW7: 1.95586909 | GX7: 1.95584865 | GY7: 1.95581808 | GZ7: 1.95583356 | HA7: 1.95581696 | HB7: 1.95587532 | HC7: 1.95579825 | HD7: 1.95581736 | HE7: 1.95588203 | HF7: 1.9558296 | HG7: 1.95583392 | HH7: 1.95581754 | HI7: 1.9767995 | HJ7: 1.95585728 | HK7: 1.955833236 | HL7: 1.9558704 | HM7: 1.95582801 | HN7: 1.95583168 | HO7: 1.89048288 | HP7: 1.95586358 | HQ7: 1.95582373 | HR7: 1.9557882 | HS7: 1.95586638 | HT7: 1.95586158 | HU7: 1.9558818 | HV7: 1.95580512 | HW7: 1.955835 | HX7: 1.95584 | HY7: 1.95584337 | HZ7: 1.96352364 | IA7: 1.95586105 | IB7: 1.95585594 | IC7: 1.95580539 | ID7: 1.95578249 | IE7: 1.95589372 | IF7: 1.95582745 | IG7: 1.95583939 | IH7: 1.97197572 | II7: 1.95580521 | IJ7: 1.95587868 | IK7: 1.95585915 | IL7: 1.95581991 | IM7: 1.955881 | IN7: 1.95580089 | IO7: 1.95582732 | IP7: 1.95586164 | IQ7: 1.95578141 | IR7: 1.95589011 | IS7: 1.95582463 | IT7: 1.9558452 | IU7: 1.9558125 | IV7: 1.95588536 | IW7: 1.95589737 | IX7: 1.95580732 | IY7: 1.95589505 | IZ7: 1.95577673 | JA7: 1.95579369 | JB7: 1.9558434 | JC7: 1.9558188 | JD7: 1.955844 | JE7: 1.9558767 | JF7: 1.95579492 | JG7: 1.95588855 | JH7: 1.95588148 | JI7: 1.9504128 | JJ7: 1.95579714 | JK7: 1.9557941 | JL7: 1.95585183 | JM7: 1.95584055 | JN7: 1.95585126 | JO7: 1.95583486 | JP7: 1.9558325 | JQ7: 1.95965952 | JR7: 1.9558511 | JS7: 1.95578465 | JT7: 1.95578628 | JU7: 1.9558644 | JV7: 1.95586896 | JW7: 1.95583948 | JX7: 1.95590219 | JY7: 1.95577655 | JZ7: 1.95579222 | KA7: 1.95577567 | KB7: 1.95588536 | KC7: 1.93070541 | KD7: 1.95584976 | KE7: 1.95577392 | KF7: 1.95587676 | KG7: 1.95580575 | KH7: 1.95581554 | KI7: 1.95586292 | KJ7: 1.95585092 | KK7: 1.95583488 | KL7: 1.95586551 | KM7: 1.95582 | KN7: 1.95584437 | KO7: 1.96512246 | KP7: 1.95579864 | KQ7: 1.9558441 | KR7: 1.9558029 | KS7: 1.95584035 | KT7: 1.95582844 | KU7: 1.95587469 | KV7: 1.95589364 | KW7: 1.95589 | KX7: 1.95589488 | KY7: 1.95577698 | KZ7: 1.95580906 | LA7: 1.96795536 | LB7: 1.9559022 | LC7: 1.95585092 | LD7: 1.95587769 | LE7: 1.9558732 | LF7: 1.9557846 | LG7: 1.95577996 | LH7: 1.9559016 | LI7: 1.9558075 | LJ7: 1.95577452 | LK7: 1.95579969 | LL7: 1.95580768 | LM7: 1.95585924 | LN7: 1.95584544 | LO7: 1.95582207 | LP7: 1.95585264 | LQ7: 1.95355776 | LR7: 1.95582907 | LS7: 1.9558565 | LT7: 1.95585848 | LU7: 1.95583999 | LV7: 1.9557918 | LW7: 1.95583629 | LX7: 1.95582146 | LY7: 1.95746184 | LZ7: 1.955807 | MA7: 1.95582713 | MB7: 1.9558357 | MC7: 1.95583264 | MD7: 1.95584228 | ME7: 1.9558524 | MF7: 1.95580575 | MG7: 1.9558683 | MH7: 1.9557941 | MI7: 1.95584658 | MJ7: 1.9537452 | MK7: 1.9569429 | ML7: 1.95590036 | MM7: 1.95578267 | MN7: 1.9558278 | MO7: 1.955897 | MP7: 1.95644514 | MQ7: 1.9558256 | MR7: 1.95587601 | MS7: 1.9557804 | MT7: 1.95577569 | MU7: 1.95587308 | MV7: 1.95583644 | MW7: 1.95275844 | MX7: 1.95587805 | MY7: 1.9558724 | MZ7: 1.95587861 | NA7: 1.95578385 | NB7: 1.9558413 | NC7: 1.9558372 | ND7: 1.95585478 | NE7: 1.95582871 | NF7: 1.95581974 | NG7: 1.95584801 | NH7: 1.95584552 | NI7: 1.94888187 | NJ7: 1.9558812 | NK7: 1.95581144 | NL7: 1.95582915 | NM7: 1.9635966 | NN7: 1.9558539 | NO7: 1.95583934 | NP7: 1.955888 | NQ7: 1.95578108 | NR7: 1.95585364 | NS7: 1.95583128 | NT7: 1.95588285 | NU7: 1.95588255 | NV7: 1.95579675 | NW7: 1.95578232 | NX7: 1.95581154 | NY7: 1.9558142 | NZ7: 1.9558203 | OA7: 1.95578856 | OB7: 1.95582906 | OC7: 1.955855 | OD7: 1.95578196 | OE7: 1.95588228 | OF7: 1.95579594 | OG7: 1.95581844 | OH7: 1.95587357 | OI7: 1.95582782 | OJ7: 1.95583554 | OK7: 1.95583168 | OL7: 1.95583882 | OM7: 1.95586266
A8: Chile | B8: 90.21 | C8: 92.47 | D8: 94.71 | E8: 97.11 | F8: 99.51 | G8: 101.57 | H8: 171.96 | I8: 174.04 | J8: 175.27 | K8: 176.68 | L8: 178.25 | M8: 183.66 | N8: 185.6 | O8: 188.21 | P8: 190 | Q8: 188.26 | R8: 188.05 | S8: 192.18 | T8: 192.55 | U8: 197.63 | V8: 198.82 | W8: 200.83 | X8: 202.96 | Y8: 205 | Z8: 206.29 | AA8: 205.39 | AB8: 212.54 | AC8: 212.28 | AD8: 214.8 | AE8: 222.16 | AF8: 224.64 | AG8: 225.44 | AH8: 225.35 | AI8: 232.6 | AJ8: 235.15 | AK8: 238.11 | AL8: 241.15 | AM8: 240.94 | AN8: 244.33 | AO8: 243.96 | AP8: 248.07 | AQ8: 250.79 | AR8: 244.74 | AS8: 245.82 | AT8: 246.38 | AU8: 247.77 | AV8: 245.47 | AW8: 247.49 | AX8: 245.9 | AY8: 246.01 | AZ8: 254.71 | BA8: 252.26 | BB8: 254.49 | BC8: 269.52 | BD8: 274.7 | BE8: 278.54 | BF8: 281.02 | BG8: 285.31 | BH8: 291.38 | BI8: 296.58 | BJ8: 295.4 | BK8: 295.48 | BL8: 297.64 | BM8: 297.14 | BN8: 297.11 | BO8: 297.27 | BP8: 298.2 | BQ8: 304.21 | BR8: 307.31 | BS8: 319.19 | BT8: 331.19 | BU8: 336.86 | BV8: 337.38 | BW8: 337.67 | BX8: 344.38 | BY8: 338.9 | BZ8: 341.95 | CA8: 347.76 | CB8: 348.23 | CC8: 353.16 | CD8: 357.15 | CE8: 360.46 | CF8: 368.33 | CG8: 374.87 | CH8: 353.8 | CI8: 347.3 | CJ8: 349.53 | CK8: 346.78 | CL8: 347.69 | CM8: 359.88 | CN8: 364.17 | CO8: 374.9 | CP8: 375.92 | CQ8: 373.38 | CR8: 381.3 | CS8: 382.33 | CT8: 384.82 | CU8: 390.84 | CV8: 401.06 | CW8: 404.5 | CX8: 405.27 | CY8: 404.02 | CZ8: 404.07 | DA8: 409.2 | DB8: 410.13 | DC8: 411.86 | DD8: 420.33 | DE8: 431.04 | DF8: 430.65 | DG8: 429.47 | DH8: 427 | DI8: 427 | DJ8: 422.66 | DK8: 418.94 | DL8: 422.84 | DM8: 418.89 | DN8: 412.2 | DO8: 409.68 | DP8: 416.43 | DQ8: 404.09 | DR8: 409.87 | DS8: 410.73 | DT8: 405.22 | DU8: 388.2 | DV8: 376.34 | DW8: 374.48 | DX8: 383.93 | DY8: 395.53 | DZ8: 396.74 | EA8: 416.08 | EB8: 414.23 | EC8: 407.13 | ED8: 412.76 | EE8: 412.53 | EF8: 411.64 | EG8: 406.81 | EH8: 407.72 | EI8: 409.68 | EJ8: 410.73 | EK8: 410.79 | EL8: 412.98 | EM8: 420.64 | EN8: 420.63 | EO8: 424.97 | EP8: 419.5 | EQ8: 412.51 | ER8: 414.79 | ES8: 418.88 | ET8: 419.03 | EU8: 416.47 | EV8: 416.78 | EW8: 414.73 | EX8: 415.2 | EY8: 420.87 | EZ8: 435.41 | FA8: 439.81 | FB8: 451.8 | FC8: 452.67 | FD8: 454.18 | FE8: 452.81 | FF8: 454.58 | FG8: 465.22 | FH8: 465.21 | FI8: 474.38 | FJ8: 466.38 | FK8: 462.49 | FL8: 466.22 | FM8: 473.77 | FN8: 483.25 | FO8: 498.74 | FP8: 483.83 | FQ8: 486.3 | FR8: 493.26 | FS8: 518.9 | FT8: 515.97 | FU8: 516.98 | FV8: 531.11 | FW8: 548.51 | FX8: 546.79 | FY8: 530.07 | FZ8: 517.89 | GA8: 503.98 | GB8: 505.81 | GC8: 515.61 | GD8: 524.77 | GE8: 538.61 | GF8: 556.38 | GG8: 556.44 | GH8: 565.37 | GI8: 571.94 | GJ8: 580.37 | GK8: 572.68 | GL8: 563.62 | GM8: 567.21 | GN8: 592.91 | GO8: 599.89 | GP8: 610.53 | GQ8: 626.65 | GR8: 664.38 | GS8: 660.57 | GT8: 696.23 | GU8: 716.62 | GV8: 681.9 | GW8: 656.2 | GX8: 678.19 | GY8: 675.3 | GZ8: 664.44 | HA8: 649.09 | HB8: 654.44 | HC8: 697.62 | HD8: 700.98 | HE8: 715.16 | HF8: 747.62 | HG8: 733.24 | HH8: 705.1 | HI8: 712.38 | HJ8: 734.34 | HK8: 753.54 | HL8: 727.36 | HM8: 705.32 | HN8: 710.12 | HO8: 697.23 | HP8: 705.64 | HQ8: 699.39 | HR8: 665.13 | HS8: 628.1 | HT8: 624.51 | HU8: 599.42 | HV8: 596.78 | HW8: 594.32 | HX8: 623.21 | HY8: 624.84 | HZ8: 632.32 | IA8: 636.59 | IB8: 638.37 | IC8: 628.95 | ID8: 606.96 | IE8: 615.2 | IF8: 588.18 | IG8: 559.83 | IH8: 586.18 | II8: 577.52 | IJ8: 586.45 | IK8: 582.87 | IL8: 580.2 | IM8: 578.92 | IN8: 563.44 | IO8: 545.02 | IP8: 533.69 | IQ8: 543.72 | IR8: 518.96 | IS8: 514.21 | IT8: 524.78 | IU8: 517.76 | IV8: 527.7 | IW8: 518.62 | IX8: 531.11 | IY8: 547.31 | IZ8: 539.41 | JA8: 537.77 | JB8: 538.22 | JC8: 525.99 | JD8: 529.29 | JE8: 534.43 | JF8: 545.18 | JG8: 538.42 | JH8: 539.37 | JI8: 527.08 | JJ8: 527.52 | JK8: 527.46 | JL8: 523.08 | JM8: 524.63 | JN8: 511.72 | JO8: 494.64 | JP8: 508.47 | JQ8: 495.82 | JR8: 465.3 | JS8: 458.02 | JT8: 439.09 | JU8: 459.16 | JV8: 479.66 | JW8: 520.14 | JX8: 502.78 | JY8: 516.47 | JZ8: 552.47 | KA8: 664.96 | KB8: 659.43 | KC8: 629.11 | KD8: 612.43 | KE8: 595.76 | KF8: 582.1 | KG8: 588.62 | KH8: 564.64 | KI8: 529.07 | KJ8: 541.9 | KK8: 550.64 | KL8: 546.07 | KM8: 531.74 | KN8: 495.84 | KO8: 506.43 | KP8: 531.75 | KQ8: 529.69 | KR8: 526.29 | KS8: 520.99 | KT8: 529.23 | KU8: 543.09 | KV8: 522.36 | KW8: 499.26 | KX8: 485.23 | KY8: 491.76 | KZ8: 486.39 | LA8: 468.37 | LB8: 483.32 | LC8: 475.63 | LD8: 482.08 | LE8: 460.04 | LF8: 467.31 | LG8: 471.13 | LH8: 455.91 | LI8: 465.66 | LJ8: 515.14 | LK8: 492.04 | LL8: 524.25 | LM8: 521.46 | LN8: 488.99 | LO8: 477.41 | LP8: 489.76 | LQ8: 483.41 | LR8: 517.91 | LS8: 509.73 | LT8: 482.83 | LU8: 481.17 | LV8: 470.48 | LW8: 480.03 | LX8: 479.42 | LY8: 478.6 | LZ8: 471.4 | MA8: 473.3 | MB8: 472.54 | MC8: 471.54 | MD8: 492.8 | ME8: 503.86 | MF8: 509.89 | MG8: 511.65 | MH8: 502.97 | MI8: 508.58 | MJ8: 528.19 | MK8: 523.76 | ML8: 547.22 | MM8: 563.32 | MN8: 550.53 | MO8: 560.56 | MP8: 554.04 | MQ8: 550.6 | MR8: 570.51 | MS8: 593.28 | MT8: 601.66 | MU8: 576.65 | MV8: 598.94 | MW8: 607.38 | MX8: 626.48 | MY8: 617.67 | MZ8: 626.87 | NA8: 606.82 | NB8: 617.45 | NC8: 634.58 | ND8: 672.19 | NE8: 690.12 | NF8: 704.68 | NG8: 690.34 | NH8: 712.63 | NI8: 707.34 | NJ8: 711.72 | NK8: 689.18 | NL8: 675.1 | NM8: 663.4 | NN8: 690.27 | NO8: 661.49 | NP8: 664.94 | NQ8: 673.17 | NR8: 659.08 | NS8: 651.65 | NT8: 675.48 | NU8: 667.29 | NV8: 648.87 | NW8: 645.19 | NX8: 662.66 | NY8: 664.28 | NZ8: 675.31 | OA8: 663.21 | OB8: 651.58 | OC8: 628.36 | OD8: 636.85 | OE8: 636.49 | OF8: 642.41 | OG8: 615.22 | OH8: 604.42 | OI8: 589.15 | OJ8: 605.26 | OK8: 605.74 | OL8: 628.33 | OM8: 647.95
A9: Colombia | B9: 116.6 | C9: 120.1 | D9: 126.27 | E9: 132.58 | F9: 138.7 | G9: 142.9 | H9: 147.79 | I9: 152.06 | J9: 157.9 | K9: 162.43 | L9: 166.64 | M9: 172.2 | N9: 175 | O9: 178.1 | P9: 181.53 | Q9: 186.56 | R9: 190.46 | S9: 193.76 | T9: 197.59 | U9: 200.72 | V9: 205.56 | W9: 210.3 | X9: 214.64 | Y9: 219 | Z9: 222.79 | AA9: 226.73 | AB9: 231.08 | AC9: 235.13 | AD9: 239.41 | AE9: 243.32 | AF9: 247.56 | AG9: 250.95 | AH9: 254.39 | AI9: 257.17 | AJ9: 260.3 | AK9: 263.7 | AL9: 267.98 | AM9: 273.64 | AN9: 280.09 | AO9: 286.46 | AP9: 293.16 | AQ9: 299.28 | AR9: 305.03 | AS9: 311.44 | AT9: 317.96 | AU9: 323.88 | AV9: 329.88 | AW9: 335.86 | AX9: 343.12 | AY9: 350.22 | AZ9: 357.72 | BA9: 365.61 | BB9: 373.7 | BC9: 381.79 | BD9: 389.2 | BE9: 397.33 | BF9: 405.84 | BG9: 414.87 | BH9: 424.16 | BI9: 433.92 | BJ9: 445.69 | BK9: 457.17 | BL9: 468.96 | BM9: 479.75 | BN9: 491.64 | BO9: 502.39 | BP9: 513.71 | BQ9: 525.6 | BR9: 534.9 | BS9: 545.61 | BT9: 556.53 | BU9: 568.73 | BV9: 578.96 | BW9: 588.63 | BX9: 598.46 | BY9: 608.45 | BZ9: 618.61 | CA9: 628.82 | CB9: 639.37 | CC9: 652.11 | CD9: 667.18 | CE9: 679.3 | CF9: 694.7 | CG9: 706.86 | CH9: 716.7 | CI9: 725.1 | CJ9: 733.34 | CK9: 741.66 | CL9: 750.08 | CM9: 758.62 | CN9: 767.22 | CO9: 775.94 | CP9: 784.75 | CQ9: 793.65 | CR9: 802.12 | CS9: 811.77 | CT9: 820.08 | CU9: 828.49 | CV9: 836.94 | CW9: 845.54 | CX9: 853.7 | CY9: 862.91 | CZ9: 871.76 | DA9: 880.72 | DB9: 889.76001 | DC9: 898.88 | DD9: 908.06 | DE9: 917.33002 | DF9: 926 | DG9: 929.92999 | DH9: 820.78 | DI9: 837.31 | DJ9: 841.12 | DK9: 819.64001 | DL9: 815.62 | DM9: 816.29999 | DN9: 842 | DO9: 838.54999 | DP9: 829.03003 | DQ9: 831.27002 | DR9: 859.29999 | DS9: 856.98999 | DT9: 880.22998 | DU9: 876.21002 | DV9: 876.35999 | DW9: 881.22998 | DX9: 897.63 | DY9: 960.19 | DZ9: 972.79999 | EA9: 994.5 | EB9: 998.15997 | EC9: 987.65002 | ED9: 1028.14 | EE9: 1039.8101 | EF9: 1048.42 | EG9: 1058.9 | EH9: 1073.0601 | EI9: 1069.73 | EJ9: 1056.74 | EK9: 1045.02 | EL9: 1025.0601 | EM9: 1005.83 | EN9: 994.94 | EO9: 1005.33 | EP9: 1070.97 | EQ9: 1080.51 | ER9: 1059.88 | ES9: 1063.11 | ET9: 1076.4 | EU9: 1090.58 | EV9: 1109.65 | EW9: 1167.28 | EX9: 1246.27 | EY9: 1281.2 | EZ9: 1303.1 | FA9: 1293.58 | FB9: 1341.85 | FC9: 1344.25 | FD9: 1358.03 | FE9: 1365.72 | FF9: 1396.6899 | FG9: 1363.04 | FH9: 1370.65 | FI9: 1440.87 | FJ9: 1556.15 | FK9: 1577.1899 | FL9: 1547.11 | FM9: 1507.52 | FN9: 1580.72 | FO9: 1572.46 | FP9: 1533.51 | FQ9: 1598.6899 | FR9: 1682.12 | FS9: 1732.1 | FT9: 1806.52 | FU9: 1954.72 | FV9: 2017.27 | FW9: 1965.44 | FX9: 1923.77 | FY9: 1873.77 | FZ9: 1976.72 | GA9: 1946.17 | GB9: 1951.56 | GC9: 2002.95 | GD9: 2084.92 | GE9: 2139.11 | GF9: 2173.78 | GG9: 2208.21 | GH9: 2211.94 | GI9: 2158.36 | GJ9: 2172.84 | GK9: 2187.02 | GL9: 2240.56 | GM9: 2256.42 | GN9: 2309.83 | GO9: 2346.73 | GP9: 2324.98 | GQ9: 2305.33 | GR9: 2301.53 | GS9: 2301.23 | GT9: 2328.49 | GU9: 2311.42 | GV9: 2308.59 | GW9: 2301.33 | GX9: 2264.82 | GY9: 2309.82 | GZ9: 2261.37 | HA9: 2275.35 | HB9: 2321.16 | HC9: 2398.14 | HD9: 2625.06 | HE9: 2712.46 | HF9: 2828.08 | HG9: 2773.73 | HH9: 2784.21 | HI9: 2864.79 | HJ9: 2926.46 | HK9: 2956.31 | HL9: 2958.25 | HM9: 2887.82 | HN9: 2853.33 | HO9: 2817.32 | HP9: 2880.4 | HQ9: 2846.26 | HR9: 2889.39 | HS9: 2884.17 | HT9: 2838.7 | HU9: 2780.82 | HV9: 2740.55 | HW9: 2686.54 | HX9: 2678.16 | HY9: 2646.99 | HZ9: 2724.92 | IA9: 2699.58 | IB9: 2619.55 | IC9: 2551.43 | ID9: 2595.17 | IE9: 2575.19 | IF9: 2479.1 | IG9: 2412.1 | IH9: 2367.76 | II9: 2323.77 | IJ9: 2376.48 | IK9: 2348.32 | IL9: 2332.79 | IM9: 2331.81 | IN9: 2313.84 | IO9: 2304.3 | IP9: 2289.61 | IQ9: 2289.57 | IR9: 2274.04 | IS9: 2284.22 | IT9: 2265.65 | IU9: 2247.32 | IV9: 2289.98 | IW9: 2375.66 | IX9: 2475.75 | IY9: 2633.12 | IZ9: 2426 | JA9: 2396.63 | JB9: 2397.07 | JC9: 2315.38 | JD9: 2317.35 | JE9: 2225.44 | JF9: 2259.72 | JG9: 2224.12 | JH9: 2155.06 | JI9: 2110.67 | JJ9: 1930.64 | JK9: 1958.09 | JL9: 1971.8 | JM9: 2173.17 | JN9: 2013.18 | JO9: 1999.44 | JP9: 2060.42 | JQ9: 1987.81 | JR9: 1939.6 | JS9: 1854.87 | JT9: 1821.6 | JU9: 1780.21 | JV9: 1755.95 | JW9: 1832.81 | JX9: 1792.24 | JY9: 1907.97 | JZ9: 2174.62 | KA9: 2359.52 | KB9: 2324.1 | KC9: 2198.09 | KD9: 2386.58 | KE9: 2555.05 | KF9: 2561.21 | KG9: 2289.73 | KH9: 2190.45 | KI9: 2188.5 | KJ9: 2043.37 | KK9: 2035 | KL9: 1922 | KM9: 2006.18 | KN9: 1997.47 | KO9: 2044.23 | KP9: 1991.21 | KQ9: 1941.98 | KR9: 1928.59 | KS9: 1969.75 | KT9: 1966.8 | KU9: 1916.46 | KV9: 1841.35 | KW9: 1823.74 | KX9: 1799.89 | KY9: 1839.9 | KZ9: 1916.96 | LA9: 1989.88 | LB9: 1857.98 | LC9: 1898.39 | LD9: 1879.47 | LE9: 1767.54 | LF9: 1817.31 | LG9: 1780.16 | LH9: 1771.15 | LI9: 1783.66 | LJ9: 1915.1 | LK9: 1863.06 | LL9: 1967.18 | LM9: 1942.7 | LN9: 1815.08 | LO9: 1767.83 | LP9: 1784.66 | LQ9: 1761.2 | LR9: 1827.83 | LS9: 1805.6 | LT9: 1789.02 | LU9: 1830.5 | LV9: 1796.75 | LW9: 1829.89 | LX9: 1817.93 | LY9: 1771.54 | LZ9: 1773.24 | MA9: 1816.42 | MB9: 1832.2 | MC9: 1833.7 | MD9: 1891.48 | ME9: 1928.27 | MF9: 1890.33 | MG9: 1943.04 | MH9: 1914.65 | MI9: 1883.42 | MJ9: 1926.74 | MK9: 1922.56 | ML9: 2008.26 | MM9: 2054.9 | MN9: 1965.32 | MO9: 1935.14 | MP9: 1905.53 | MQ9: 1881.19 | MR9: 1872.43 | MS9: 1935.04 | MT9: 2028.48 | MU9: 2050.52 | MV9: 2162.15 | MW9: 2392.46 | MX9: 2397.35 | MY9: 2484.58 | MZ9: 2576.05 | NA9: 2388.06 | NB9: 2549.97 | NC9: 2556.21 | ND9: 2866.04 | NE9: 3101.1 | NF9: 3121.94 | NG9: 2921.32 | NH9: 3101.1 | NI9: 3149.47 | NJ9: 3302.92 | NK9: 3306 | NL9: 3022.35 | NM9: 2885.72 | NN9: 3069.17 | NO9: 2916.15 | NP9: 3091.78 | NQ9: 2933.82 | NR9: 2879.95 | NS9: 2967.66 | NT9: 3165.09 | NU9: 3000.71 | NV9: 2936.66 | NW9: 2896.27 | NX9: 2880.24 | NY9: 2944.31 | NZ9: 2920.42 | OA9: 3038.26 | OB9: 2995.23 | OC9: 2937.09 | OD9: 2941.07 | OE9: 3011.44 | OF9: 3006.09 | OG9: 2971.63 | OH9: 2844.14 | OI9: 2855.93 | OJ9: 2780.04 | OK9: 2806.28 | OL9: 2879.32 | OM9: 2945.09
A10: Costa Rica | B10: 48.2 | C10: 48.6 | D10: 49 | E10: 49.25 | F10: 49.6 | G10: 50.35 | H10: 50.85 | I10: 51.7 | J10: 52.2 | K10: 52.7 | L10: 53.05 | M10: 53.7 | N10: 53.7 | O10: 54.32 | P10: 54.58 | Q10: 54.88 | R10: 55.48 | S10: 56.08 | T10: 56.37 | U10: 56.67 | V10: 57.275 | W10: 57.575 | X10: 58.275 | Y10: 58.875 | Z10: 59.175 | AA10: 59.725 | AB10: 60.125 | AC10: 60.875 | AD10: 61.675 | AE10: 62.375 | AF10: 62.965 | AG10: 63.725 | AH10: 64.85 | AI10: 66.25 | AJ10: 67.25 | AK10: 69.25 | AL10: 73.45 | AM10: 73.7 | AN10: 74 | AO10: 74.55 | AP10: 75.25 | AQ10: 75.95 | AR10: 76.6 | AS10: 76.95 | AT10: 77.9 | AU10: 78.5 | AV10: 79.15 | AW10: 79.5 | AX10: 79.65 | AY10: 79.95 | AZ10: 80.25 | BA10: 80.55 | BB10: 80.85 | BC10: 81.15 | BD10: 81.7 | BE10: 82.15 | BF10: 82.6 | BG10: 83.15 | BH10: 83.75 | BI10: 84.35 | BJ10: 84.95 | BK10: 85.4 | BL10: 86.45 | BM10: 87.05 | BN10: 89.075 | BO10: 90.425 | BP10: 91.755 | BQ10: 94.025 | BR10: 95.825 | BS10: 98.175 | BT10: 100.925 | BU10: 103.55 | BV10: 108.025 | BW10: 111.5 | BX10: 115.45 | BY10: 118.45 | BZ10: 121.2 | CA10: 123.525 | CB10: 126.025 | CC10: 128.5 | CD10: 130.275 | CE10: 132.25 | CF10: 133.825 | CG10: 135.425 | CH10: 137.325 | CI10: 137.25 | CJ10: 133.008 | CK10: 130.65 | CL10: 128.155 | CM10: 134.33 | CN10: 134.01 | CO10: 135.42 | CP10: 135.93 | CQ10: 136.4 | CR10: 136.885 | CS10: 137.43 | CT10: 138.47 | CU10: 138.21 | CV10: 138.21 | CW10: 138.2 | CX10: 138.21 | CY10: 140.5 | CZ10: 142.12 | DA10: 144 | DB10: 145.87 | DC10: 147.68 | DD10: 149.72 | DE10: 151.44 | DF10: 152.43 | DG10: 153.01 | DH10: 153.97 | DI10: 154.32 | DJ10: 155.22 | DK10: 156.13 | DL10: 157.34 | DM10: 158.65 | DN10: 160.05 | DO10: 161.81 | DP10: 163.59 | DQ10: 165.07 | DR10: 167.21 | DS10: 169.54 | DT10: 172.36 | DU10: 174.44 | DV10: 177.16 | DW10: 179.62 | DX10: 181.96 | DY10: 184.56 | DZ10: 187.12 | EA10: 189.79 | EB10: 192.67 | EC10: 194.9 | ED10: 197.41 | EE10: 199.56 | EF10: 201.52 | EG10: 203.43 | EH10: 205.61 | EI10: 207.48 | EJ10: 209.64 | EK10: 211.66 | EL10: 213.82 | EM10: 216.07 | EN10: 218.19 | EO10: 220.11 | EP10: 222.31 | EQ10: 224.37 | ER10: 226.24 | ES10: 228.51 | ET10: 230.67 | EU10: 232.85 | EV10: 234.89 | EW10: 236.71 | EX10: 238.61 | EY10: 240.74 | EZ10: 242.49 | FA10: 244.29 | FB10: 246.17 | FC10: 248.09 | FD10: 250.24 | FE10: 252.23 | FF10: 254.26 | FG10: 256.7 | FH10: 259.26 | FI10: 261.58 | FJ10: 264.01 | FK10: 266.48 | FL10: 269.05 | FM10: 271.42 | FN10: 273.83 | FO10: 276.19 | FP10: 278.97 | FQ10: 281.37 | FR10: 283.89 | FS10: 286.5 | FT10: 288.72 | FU10: 290.56 | FV10: 292.48 | FW10: 294.31 | FX10: 296.28 | FY10: 298.19 | FZ10: 299.82 | GA10: 301.49 | GB10: 303.35 | GC10: 304.67 | GD10: 306.43 | GE10: 308.23 | GF10: 309.84 | GG10: 311.48 | GH10: 313.09 | GI10: 314.81 | GJ10: 316.57 | GK10: 318.02 | GL10: 319.85 | GM10: 321.37 | GN10: 323.17 | GO10: 324.61 | GP10: 326.39 | GQ10: 328.1 | GR10: 330.14 | GS10: 332.23 | GT10: 334.29 | GU10: 336.79 | GV10: 339.47 | GW10: 341.67 | GX10: 344.53 | GY10: 347.4 | GZ10: 350.1 | HA10: 353.26 | HB10: 356.53 | HC10: 359.51 | HD10: 362.82 | HE10: 365.8 | HF10: 368.97 | HG10: 372.37 | HH10: 375.55 | HI10: 378.72 | HJ10: 382.075 | HK10: 385.33 | HL10: 388.71 | HM10: 391.695 | HN10: 395.1 | HO10: 398.455 | HP10: 401.96 | HQ10: 405.04 | HR10: 408.51 | HS10: 412.15 | HT10: 415.42 | HU10: 418.53 | HV10: 421.66 | HW10: 424.58 | HX10: 428.06 | HY10: 430.98 | HZ10: 434.24 | IA10: 437.48 | IB10: 440.7 | IC10: 444.29 | ID10: 447.86 | IE10: 451.3 | IF10: 455.07 | IG10: 458.61 | IH10: 462.24 | II10: 465.16 | IJ10: 468.19 | IK10: 471.24 | IL10: 474.51 | IM10: 477.845 | IN10: 480.76 | IO10: 483.99 | IP10: 487.15 | IQ10: 490.145 | IR10: 493.45 | IS10: 496.68 | IT10: 499.76 | IU10: 502.425 | IV10: 505.54 | IW10: 507.63 | IX10: 510.23 | IY10: 513.045 | IZ10: 515.83 | JA10: 518.48 | JB10: 520.895 | JC10: 517.335 | JD10: 516.7 | JE10: 517.895 | JF10: 519.08 | JG10: 518.99 | JH10: 518.8 | JI10: 518.74 | JJ10: 518.71 | JK10: 518.63 | JL10: 518.61 | JM10: 518.6 | JN10: 518.565 | JO10: 518.94 | JP10: 499.21 | JQ10: 498.1 | JR10: 496.84 | JS10: 496.11 | JT10: 494.66 | JU10: 494.275 | JV10: 519.67 | JW10: 519.55 | JX10: 551.57 | JY10: 552.64 | JZ10: 554.43 | KA10: 555.665 | KB10: 530.985 | KC10: 555.47 | KD10: 560.335 | KE10: 565.27 | KF10: 563.385 | KG10: 573.13 | KH10: 576.815 | KI10: 575.26 | KJ10: 586.245 | KK10: 589.005 | KL10: 587.11 | KM10: 581.59 | KN10: 554.255 | KO10: 565.24 | KP10: 560.055 | KQ10: 553.495 | KR10: 523.645 | KS10: 510.97 | KT10: 540.43 | KU10: 535.075 | KV10: 517.175 | KW10: 509.2 | KX10: 507.745 | KY10: 513.85 | KZ10: 507.69 | LA10: 512.97 | LB10: 505.77 | LC10: 502.445 | LD10: 500.91 | LE10: 501.02 | LF10: 505.565 | LG10: 504.09 | LH10: 505.3 | LI10: 511.34 | LJ10: 514.115 | LK10: 515.445 | LL10: 506.55 | LM10: 511.84 | LN10: 509.295 | LO10: 511.3 | LP10: 508.08 | LQ10: 504.065 | LR10: 501.735 | LS10: 498.21 | LT10: 500.545 | LU10: 497.935 | LV10: 497.865 | LW10: 497.85 | LX10: 497.99 | LY10: 508.195 | LZ10: 501.66 | MA10: 501.285 | MB10: 498.685 | MC10: 498.91 | MD10: 498.71 | ME10: 498.78 | MF10: 498.715 | MG10: 503.585 | MH10: 499.54 | MI10: 499.83 | MJ10: 499.03 | MK10: 501.405 | ML10: 512.51 | MM10: 546.06 | MN10: 545.985 | MO10: 548.415 | MP10: 553.115 | MQ10: 543.12 | MR10: 538.465 | MS10: 539.805 | MT10: 539.77 | MU10: 538.915 | MV10: 535.395 | MW10: 539.42 | MX10: 536.965 | MY10: 534.635 | MZ10: 533.22 | NA10: 532.19 | NB10: 536.355 | NC10: 534.84 | ND10: 534.615 | NE10: 535.255 | NF10: 534.83 | NG10: 534.22 | NH10: 532.38 | NI10: 538.405 | NJ10: 538.22 | NK10: 535.935 | NL10: 535.91 | NM10: 537.76 | NN10: 538.255 | NO10: 547.935 | NP10: 549.725 | NQ10: 552.31 | NR10: 552.565 | NS10: 553.78 | NT10: 552.075 | NU10: 554.64 | NV10: 555.085 | NW10: 561.675 | NX10: 560.885 | NY10: 564.31 | NZ10: 573.745 | OA10: 573.48 | OB10: 572.02 | OC10: 574.665 | OD10: 571.23 | OE10: 569.38 | OF10: 565.94 | OG10: 569.49 | OH10: 569.335 | OI10: 569.97 | OJ10: 565.855 | OK10: 565.175
A11: Cote d'Ivoire | B11: 484.0246576 | C11: 509.0996399 | D11: 471.3496666 | E11: 475.2246638 | F11: 471.0496667 | G11: 465.8496705 | H11: 424.9746994 | I11: 424.9996994 | J11: 407.6247116 | K11: 398.699718 | L11: 383.2247289 | M11: 378.0497326 | N11: 365.8497412 | O11: 341.4997584 | P11: 356.6247477 | Q11: 348.3497536 | R11: 368.2747395 | S11: 350.574752 | T11: 340.0247595 | U11: 336.1747622 | V11: 331.0997658 | W11: 329.5997669 | X11: 323.9247709 | Y11: 322.7497717 | Z11: 301.6747866 | AA11: 304.4997846 | AB11: 300.6497873 | AC11: 298.274789 | AD11: 303.6747852 | AE11: 305.2747841 | AF11: 308.5497817 | AG11: 303.2497855 | AH11: 305.8997836 | AI11: 294.9997913 | AJ11: 278.1748032 | AK11: 266.9998111 | AL11: 282.6498001 | AM11: 285.7997978 | AN11: 281.2498011 | AO11: 283.5497994 | AP11: 290.0997948 | AQ11: 307.0997828 | AR11: 316.624776 | AS11: 318.2497749 | AT11: 319.7747738 | AU11: 304.0497849 | AV11: 296.7997901 | AW11: 302.9497857 | AX11: 316.9647758 | AY11: 311.1497799 | AZ11: 319.7247738 | BA11: 317.4247755 | BB11: 337.2497614 | BC11: 331.7997653 | BD11: 315.7497767 | BE11: 330.3247663 | BF11: 316.7747759 | BG11: 311.8497794 | BH11: 305.1997841 | BI11: 289.3997953 | BJ11: 285.7997978 | BK11: 286.2497975 | BL11: 284.8997985 | BM11: 281.9248006 | BN11: 285.1997983 | BO11: 280.4998016 | BP11: 267.0748111 | BQ11: 262.1248146 | BR11: 261.8248148 | BS11: 254.42482 | BT11: 253.9748203 | BU11: 256.4498186 | BV11: 252.1998216 | BW11: 258.8498169 | BX11: 290.7997943 | BY11: 292.599793 | BZ11: 292.3247932 | CA11: 307.2247827 | CB11: 296.89979 | CC11: 295.7747908 | CD11: 283.3247996 | CE11: 285.9747977 | CF11: 278.8498028 | CG11: 258.9998168 | CH11: 274.9898055 | CI11: 278.6898029 | CJ11: 278.3748031 | CK11: 279.7748021 | CL11: 270.5748086 | CM11: 256.6248185 | CN11: 249.9748232 | CO11: 240.34983 | CP11: 238.2498315 | CQ11: 260.7498156 | CR11: 271.424808 | CS11: 275.3248052 | CT11: 270.2998088 | CU11: 279.4498023 | CV11: 273.9448062 | CW11: 266.0498118 | CX11: 269.5998093 | CY11: 284.7497986 | CZ11: 298.5247888 | DA11: 291.3747939 | DB11: 283.1497997 | DC11: 293.4247924 | DD11: 295.5497909 | DE11: 294.7747915 | DF11: 591.6995815 | DG11: 582.8995877 | DH11: 570.9995961 | DI11: 569.3495973 | DJ11: 561.0996031 | DK11: 547.149613 | DL11: 544.299615 | DM11: 541.5996169 | DN11: 528.1496264 | DO11: 511.749638 | DP11: 538.7996189 | DQ11: 534.5996218 | DR11: 524.0996293 | DS11: 514.9496357 | DT11: 484.899657 | DU11: 491.3996524 | DV11: 488.4996545 | DW11: 485.2996567 | DX11: 476.6996628 | DY11: 503.7996436 | DZ11: 491.4496524 | EA11: 489.9996534 | EB11: 496.199649 | EC11: 489.9996534 | ED11: 512.1496377 | EE11: 504.5996431 | EF11: 503.1496441 | EG11: 516.2496348 | EH11: 519.4696325 | EI11: 515.2496355 | EJ11: 498.8996471 | EK11: 507.3996411 | EL11: 517.1496342 | EM11: 510.6496388 | EN11: 521.4996311 | EO11: 523.6996296 | EP11: 551.5496099 | EQ11: 571.149596 | ER11: 564.3496008 | ES11: 582.2195882 | ET11: 575.1395932 | EU11: 587.7695842 | EV11: 617.4095633 | EW11: 604.7995722 | EX11: 593.3095803 | EY11: 577.3195916 | EZ11: 590.0095826 | FA11: 598.8095764 | FB11: 611.2195676 | FC11: 607.88957 | FD11: 618.4495625 | FE11: 601.9995742 | FF11: 598.019577 | FG11: 611.7395673 | FH11: 596.2795782 | FI11: 593.3495803 | FJ11: 561.6396027 | FK11: 553.9196082 | FL11: 570.2295966 | FM11: 562.2096023 | FN11: 576.2095924 | FO11: 595.3503358 | FP11: 610.6469931 | FQ11: 619.0025479 | FR11: 627.349847 | FS11: 635.1249032 | FT11: 613.3878811 | FU11: 620.4076421 | FV11: 615.05579 | FW11: 627.7100478 | FX11: 649.6553432 | FY11: 652.9534143 | FZ11: 669.9591462 | GA11: 675.2697138 | GB11: 686.6502669 | GC11: 722.0220143 | GD11: 705.1026551 | GE11: 686.4347007 | GF11: 709.6797577 | GG11: 736.5337974 | GH11: 748.3822019 | GI11: 779.3239872 | GJ11: 755.3627361 | GK11: 704.9511016 | GL11: 705.8614011 | GM11: 709.296064 | GN11: 742.7049366 | GO11: 739.0232087 | GP11: 773.5341981 | GQ11: 773.5341981 | GR11: 749.2370074 | GS11: 716.2666521 | GT11: 718.3846238 | GU11: 725.4556514 | GV11: 737.1959991 | GW11: 744.3061387 | GX11: 759.4731967 | GY11: 758.2441336 | GZ11: 751.8993581 | HA11: 728.1938277 | HB11: 698.7930116 | HC11: 657.6010025 | HD11: 670.5070019 | HE11: 667.0975287 | HF11: 665.2707911 | HG11: 665.0010138 | HH11: 660.7806991 | HI11: 625.4953752 | HJ11: 606.4691198 | HK11: 608.3815619 | HL11: 602.0715925 | HM11: 589.3064415 | HN11: 554.8612756 | HO11: 574.0413057 | HP11: 579.569712 | HQ11: 600.3084104 | HR11: 562.956574 | HS11: 564.4097401 | HT11: 546.9042855 | HU11: 519.3642122 | HV11: 529.6810401 | HW11: 528.230794 | HX11: 536.614038 | HY11: 549.0558299 | HZ11: 535.6500082 | IA11: 539.6602221 | IB11: 544.8600382 | IC11: 541.6208406 | ID11: 528.6139093 | IE11: 515.0011777 | IF11: 493.3862354 | IG11: 481.5777109 | IH11: 499.0922925 | II11: 494.8004828 | IJ11: 505.9834927 | IK11: 506.2568496 | IL11: 531.9576677 | IM11: 542.4718822 | IN11: 542.4270239 | IO11: 537.7578292 | IP11: 544.7242983 | IQ11: 545.5851285 | IR11: 557.3600136 | IS11: 556.0371281 | IT11: 541.3079716 | IU11: 552.3848421 | IV11: 541.9340714 | IW11: 523.216878 | IX11: 509.7583152 | IY11: 515.973413 | IZ11: 513.7910237 | JA11: 510.4326512 | JB11: 518.1334913 | JC11: 516.6643037 | JD11: 496.9371212 | JE11: 498.0690964 | JF11: 506.3740929 | JG11: 496.5233518 | JH11: 492.5341643 | JI11: 482.1440647 | JJ11: 487.5916153 | JK11: 485.7141799 | JL11: 478.5562122 | JM11: 478.6260489 | JN11: 462.6257141 | JO11: 454.0437461 | JP11: 444.3852043 | JQ11: 445.5926907 | JR11: 441.127774 | JS11: 432.4896156 | JT11: 414.8475841 | JU11: 422.1087516 | JV11: 422.9797524 | JW11: 416.1107587 | JX11: 420.1889693 | JY11: 445.1693247 | JZ11: 458.6149759 | KA11: 514.193776 | KB11: 515.4058301 | KC11: 471.3350578 | KD11: 511.826623 | KE11: 518.789149 | KF11: 492.9042681 | KG11: 494.1295669 | KH11: 465.2837282 | KI11: 464.0986274 | KJ11: 463.9673221 | KK11: 459.6111267 | KL11: 447.9662637 | KM11: 443.2141892 | KN11: 436.6351594 | KO11: 455.3359711 | KP11: 469.681369 | KQ11: 483.3876197 | KR11: 486.6510869 | KS11: 492.6451371 | KT11: 532.9950435 | KU11: 534.5587157 | KV11: 503.4978508 | KW11: 517.3162461 | KX11: 480.625 | KY11: 473.3759111 | KZ11: 504.6599477 | LA11: 490.9122886 | LB11: 479.080485 | LC11: 474.1629319 | LD11: 461.7139438 | LE11: 441.4246299 | LF11: 456.0006952 | LG11: 453.855255 | LH11: 459.9978962 | LI11: 453.949481 | LJ11: 485.7861216 | LK11: 468.5072495 | LL11: 488.863467 | LM11: 506.9611253 | LN11: 497.842289 | LO11: 487.9543257 | LP11: 491.1328242 | LQ11: 496.4106251 | LR11: 528.8696283 | LS11: 521.0142971 | LT11: 533.992999 | LU11: 520.1466973 | LV11: 507.3139985 | LW11: 504.8541522 | LX11: 505.1262899 | LY11: 497.1631044 | LZ11: 484.101107 | MA11: 499.6244954 | MB11: 512.2663022 | MC11: 501.8030906 | MD11: 504.349531 | ME11: 501.4961774 | MF11: 494.1295669 | MG11: 495.6229694 | MH11: 485.7141799 | MI11: 480.871637 | MJ11: 482.4632245 | MK11: 475.6413603 | ML11: 485.3188813 | MM11: 474.8838051 | MN11: 475.7448506 | MO11: 473.6151625 | MP11: 481.931526 | MQ11: 480.2731 | MR11: 490.2885118 | MS11: 497.3892933 | MT11: 521.3041405 | MU11: 523.7599808 | MV11: 525.4802531 | MW11: 540.2825138 | MX11: 580.2361787 | MY11: 583.591637 | MZ11: 609.6821266 | NA11: 584.8925546 | NB11: 597.9553327 | NC11: 586.2516758 | ND11: 598.1189022 | NE11: 584.8925546 | NF11: 585.5190574 | NG11: 595.4043751 | NH11: 620.0557709 | NI11: 602.5140075 | NJ11: 600.6932234 | NK11: 602.4586701 | NL11: 576.1589811 | NM11: 575.2494957 | NN11: 588.0912677 | NO11: 590.8457936 | NP11: 590.2609556 | NQ11: 589.2535034 | NR11: 587.7224263 | NS11: 599.2663987 | NT11: 616.7907851 | NU11: 622.291054 | NV11: 609.9088796 | NW11: 619.0025479 | NX11: 613.5600037 | NY11: 600.1436414 | NZ11: 584.5798057 | OA11: 574.795829 | OB11: 559.3561866 | OC11: 554.7205074 | OD11: 555.6132475 | OE11: 563.6337859 | OF11: 553.596928 | OG11: 546.9498874 | OH11: 526.577025 | OI11: 537.0533814 | OJ11: 532.3894164 | OK11: 543.0557165 | OL11: 560.6949312 | OM11: 562.6668382
A12: Croatia* | DF12: 7.349868523 | DG12: 7.051327556 | DH12: 7.180992441 | DI12: 7.222085634 | DJ12: 7.294797818 | DK12: 7.190746175 | DL12: 7.216397443 | DM12: 7.224833549 | DN12: 7.233274019 | DO12: 7.103983318 | DP12: 7.094552939 | DQ12: 7.107941839 | DR12: 7.123587077 | DS12: 7.082270457 | DT12: 7.063434036 | DU12: 7.011930925 | DV12: 7.029270202 | DW12: 7.127040562 | DX12: 7.093832954 | DY12: 7.154216753 | DZ12: 7.244070094 | EA12: 7.269532561 | EB12: 7.268575986 | EC12: 7.253148143 | ED12: 7.21826869 | EE12: 7.161642189 | EF12: 7.23327086 | EG12: 7.119072857 | EH12: 7.110011295 | EI12: 6.994415111 | EJ12: 6.993848028 | EK12: 6.940693767 | EL12: 6.950062657 | EM12: 6.965397744 | EN12: 6.967134513 | EO12: 6.968430581 | EP12: 6.998174287 | EQ12: 6.981175129 | ER12: 6.984590899 | ES12: 7.020109509 | ET12: 6.997499545 | EU12: 6.915099877 | EV12: 7.001284384 | EW12: 6.955951913 | EX12: 6.911596358 | EY12: 6.879231891 | EZ12: 6.903457787 | FA12: 6.878964384 | FB12: 6.877154444 | FC12: 6.894646303 | FD12: 6.873893102 | FE12: 7.008318185 | FF12: 7.099718866 | FG12: 7.136124796 | FH12: 7.047802356 | FI12: 7.111306506 | FJ12: 7.201408307 | FK12: 7.313628901 | FL12: 7.303105992 | FM12: 7.303674791 | FN12: 7.377418276 | FO12: 7.568821711 | FP12: 7.615129481 | FQ12: 7.586100882 | FR12: 7.594040142 | FS12: 7.579706806 | FT12: 7.588492343 | FU12: 7.677323854 | FV12: 7.731142754 | FW12: 7.644462375 | FX12: 7.643826822 | FY12: 7.682833208 | FZ12: 7.674579398 | GA12: 7.754405465 | GB12: 7.720006661 | GC12: 7.716996145 | GD12: 7.708648139 | GE12: 7.688994589 | GF12: 7.575365924 | GG12: 7.578302426 | GH12: 7.475489694 | GI12: 7.482968035 | GJ12: 7.618611276 | GK12: 7.588547592 | GL12: 7.784621574 | GM12: 7.785614685 | GN12: 7.70337815 | GO12: 7.419099573 | GP12: 7.212168768 | GQ12: 7.331919936 | GR12: 7.194149845 | GS12: 7.667573048 | GT12: 7.515693228 | GU12: 7.433318792 | GV12: 7.440403493 | GW12: 7.364180696 | GX12: 7.550122511 | GY12: 7.440428371 | GZ12: 7.411030148 | HA12: 7.373716394 | HB12: 7.442043638 | HC12: 7.341329678 | HD12: 7.359496542 | HE12: 7.363837337 | HF12: 7.399881686 | HG12: 7.52359338 | HH12: 7.428184494 | HI12: 7.493741733 | HJ12: 7.609234464 | HK12: 7.604261033 | HL12: 7.806241352 | HM12: 7.668582235 | HN12: 7.529237919 | HO12: 7.512131511 | HP12: 7.459783212 | HQ12: 7.468832874 | HR12: 7.72586093 | HS12: 7.547875358 | HT12: 7.655785792 | HU12: 7.727673078 | HV12: 7.663442112 | HW12: 7.622639042 | HX12: 7.40270649 | HY12: 7.604870018 | HZ12: 7.3679602 | IA12: 7.363407838 | IB12: 7.401644618 | IC12: 7.43217917 | ID12: 7.601748436 | IE12: 7.482814277 | IF12: 7.619748726 | IG12: 7.677998334 | IH12: 7.602552578 | II12: 7.559976591 | IJ12: 7.446926077 | IK12: 7.35932593 | IL12: 7.198060947 | IM12: 7.331115994 | IN12: 7.304598883 | IO12: 7.371103804 | IP12: 7.43067385 | IQ12: 7.304053054 | IR12: 7.372626497 | IS12: 7.353808592 | IT12: 7.383093871 | IU12: 7.320523062 | IV12: 7.341142572 | IW12: 7.281406856 | IX12: 7.271497052 | IY12: 7.361204576 | IZ12: 7.301583907 | JA12: 7.328866185 | JB12: 7.37711493 | JC12: 7.353704753 | JD12: 7.35862776 | JE12: 7.346754117 | JF12: 7.372261303 | JG12: 7.349185502 | JH12: 7.381911694 | JI12: 7.366342899 | JJ12: 7.317881772 | JK12: 7.323282073 | JL12: 7.316011189 | JM12: 7.362919426 | JN12: 7.283688494 | JO12: 7.377636488 | JP12: 7.325079826 | JQ12: 7.339089778 | JR12: 7.280710367 | JS12: 7.315095668 | JT12: 7.264002757 | JU12: 7.249758096 | JV12: 7.254181812 | JW12: 7.243507555 | JX12: 7.232707432 | JY12: 7.159704083 | JZ12: 7.096329038 | KA12: 6.978022869 | KB12: 7.049929472 | KC12: 7.174914917 | KD12: 7.336087301 | KE12: 7.382284115 | KF12: 7.532528951 | KG12: 7.447564395 | KH12: 7.336896668 | KI12: 7.356050194 | KJ12: 7.365434274 | KK12: 7.289488224 | KL12: 7.32076785 | KM12: 7.20393256 | KN12: 7.37013357 | KO12: 7.33164558 | KP12: 7.313101773 | KQ12: 7.249167278 | KR12: 7.268500878 | KS12: 7.288476546 | KT12: 7.202837895 | KU12: 7.236504431 | KV12: 7.265246592 | KW12: 7.252099028 | KX12: 7.31740659 | KY12: 7.35998758 | KZ12: 7.309539682 | LA12: 7.440298322 | LB12: 7.384551544 | LC12: 7.438478164 | LD12: 7.450457671 | LE12: 7.351875036 | LF12: 7.48494705 | LG12: 7.410349387 | LH12: 7.43798748 | LI12: 7.49055632 | LJ12: 7.418405068 | LK12: 7.396054852 | LL12: 7.499144424 | LM12: 7.53036861 | LN12: 7.59593106 | LO12: 7.573318384 | LP12: 7.510853448 | LQ12: 7.526313837 | LR12: 7.531634929 | LS12: 7.519058973 | LT12: 7.523201904 | LU12: 7.514037352 | LV12: 7.443988485 | LW12: 7.556978266 | LX12: 7.550081178 | LY12: 7.555932004 | LZ12: 7.58026837 | MA12: 7.609423981 | MB12: 7.579032363 | MC12: 7.597191496 | MD12: 7.623046806 | ME12: 7.463897952 | MF12: 7.494022912 | MG12: 7.554461237 | MH12: 7.620057149 | MI12: 7.554509933 | MJ12: 7.624646317 | MK12: 7.6526259 | ML12: 7.594905314 | MM12: 7.748015586 | MN12: 7.687946131 | MO12: 7.597061555 | MP12: 7.587819447 | MQ12: 7.596957927 | MR12: 7.623398351 | MS12: 7.631762401 | MT12: 7.569121197 | MU12: 7.624875456 | MV12: 7.694084295 | MW12: 7.651388109 | MX12: 7.662209069 | MY12: 7.690547376 | MZ12: 7.585373658 | NA12: 7.734936154 | NB12: 7.570217092 | NC12: 7.641441395 | ND12: 7.586200717 | NE12: 7.499611809 | NF12: 7.610340178 | NG12: 7.610792584 | NH12: 7.616702273 | NI12: 7.611973749 | NJ12: 7.661924088 | NK12: 7.531054303 | NL12: 7.568910805 | NM12: 7.492081162 | NN12: 7.502800562 | NO12: 7.539903316 | NP12: 7.480181415 | NQ12: 7.45098156 | NR12: 7.473602034 | NS12: 7.52239112 | NT12: 7.551974119 | NU12: 7.556353798 | NV12: 7.529147451 | NW12: 7.439187254 | NX12: 7.406521671 | NY12: 7.466846988 | NZ12: 7.453266481 | OA12: 7.40664477 | OB12: 7.41661098 | OC12: 7.334509462 | OD12: 7.501563096 | OE12: 7.50855596 | OF12: 7.54248095 | OG12: 7.519290787 | OH12: 7.440412879 | OI12: 7.374198836 | OJ12: 7.429011019 | OK12: 7.410675467 | OL12: 7.436497428 | OM12: 7.387181467
A13: Czech Republic* | CT13: 35.05029012 | CU13: 34.38475323 | CV13: 34.92943003 | CW13: 35.07547549 | CX13: 35.06138159 | CY13: 34.34114018 | CZ13: 33.58649264 | DA13: 34.34865622 | DB13: 34.62274281 | DC13: 34.34989918 | DD13: 34.08928244 | DE13: 33.93783679 | DF13: 33.73902217 | DG13: 34.09120347 | DH13: 34.39546969 | DI13: 34.60432153 | DJ13: 34.65961475 | DK13: 34.65670935 | DL13: 34.59777232 | DM13: 35.02578943 | DN13: 35.29412272 | DO13: 35.30324892 | DP13: 35.02888044 | DQ13: 35.42037427 | DR13: 35.68015691 | DS13: 35.94946991 | DT13: 36.49177069 | DU13: 36.45161878 | DV13: 36.55896532 | DW13: 36.92288159 | DX13: 36.78320485 | DY13: 36.13584306 | DZ13: 36.33614531 | EA13: 36.37948967 | EB13: 36.19517508 | EC13: 36.29507475 | ED13: 35.77341291 | EE13: 36.01223494 | EF13: 36.2472011 | EG13: 35.41185336 | EH13: 35.53666998 | EI13: 35.48355485 | EJ13: 35.34965865 | EK13: 34.38980172 | EL13: 34.51140688 | EM13: 34.7797933 | EN13: 34.4768573 | EO13: 34.38175042 | EP13: 33.31112763 | EQ13: 33.28796755 | ER13: 34.04109409 | ES13: 35.1050765 | ET13: 37.6106109 | EU13: 35.94528686 | EV13: 36.93610303 | EW13: 36.84461019 | EX13: 36.32049979 | EY13: 37.33217472 | EZ13: 38.19840119 | FA13: 37.80041732 | FB13: 37.45363587 | FC13: 36.8769846 | FD13: 35.66625663 | FE13: 36.12313833 | FF13: 36.59156783 | FG13: 36.14181793 | FH13: 33.94208601 | FI13: 36.92273325 | FJ13: 34.93628909 | FK13: 34.26967697 | FL13: 35.09117551 | FM13: 34.9021546 | FN13: 36.2364104 | FO13: 37.907429 | FP13: 38.504699 | FQ13: 37.7189618 | FR13: 37.777528 | FS13: 36.5600872 | FT13: 36.7862906 | FU13: 37.0277033 | FV13: 36.09036 | FW13: 35.97935 | FX13: 35.9523879 | FY13: 36.1445034 | FZ13: 35.511957 | GA13: 35.6231808 | GB13: 35.5839697 | GC13: 35.742207 | GD13: 35.9598162 | GE13: 36.0844116 | GF13: 35.474634 | GG13: 35.3906628 | GH13: 35.075777 | GI13: 34.4524644 | GJ13: 34.848892 | GK13: 35.1849965 | GL13: 35.1907324 | GM13: 34.9555904 | GN13: 34.3008384 | GO13: 34.1175688 | GP13: 33.86912 | GQ13: 33.392544 | GR13: 33.913368 | GS13: 34.4991018 | GT13: 33.7079996 | GU13: 33.527736 | GV13: 33.3372468 | GW13: 31.9550567 | GX13: 31.9327164 | GY13: 31.6003728 | GZ13: 30.8428296 | HA13: 30.60468 | HB13: 30.4251444 | HC13: 29.2736325 | HD13: 30.3449094 | HE13: 30.4449346 | HF13: 30.298794 | HG13: 30.790476 | HH13: 30.87297 | HI13: 31.6088667 | HJ13: 31.523232 | HK13: 31.7918052 | HL13: 31.9408715 | HM13: 31.4573191 | HN13: 31.32249286 | HO13: 31.5739437 | HP13: 32.2291368 | HQ13: 32.4400776 | HR13: 31.8437508 | HS13: 32.0267454 | HT13: 32.0971434 | HU13: 32.401002 | HV13: 33.3018144 | HW13: 32.435816 | HX13: 32.8324416 | HY13: 32.543628 | HZ13: 31.7465304 | IA13: 31.7719545 | IB13: 31.6962792 | IC13: 31.8773631 | ID13: 31.6578408 | IE13: 31.536812 | IF13: 30.9866565 | IG13: 30.4633665 | IH13: 30.3839874 | II13: 29.7606393 | IJ13: 29.94684 | IK13: 30.4981866 | IL13: 30.3638544 | IM13: 30.0316912 | IN13: 30.1430118 | IO13: 29.5667322 | IP13: 29.5474554 | IQ13: 29.6018283 | IR13: 28.928202 | IS13: 29.0064636 | IT13: 28.410651 | IU13: 28.321875 | IV13: 28.5932792 | IW13: 28.4314086 | IX13: 28.1976484 | IY13: 28.4936469 | IZ13: 28.5316916 | JA13: 28.2143705 | JB13: 28.32675 | JC13: 28.2193992 | JD13: 27.96552 | JE13: 27.493692 | JF13: 28.1581098 | JG13: 28.3006042 | JH13: 27.9984314 | JI13: 28.1256165 | JJ13: 28.3212556 | JK13: 28.708929 | JL13: 28.0335564 | JM13: 27.722474 | JN13: 27.6093488 | JO13: 26.9711043 | JP13: 26.2568668 | JQ13: 26.6126238 | JR13: 26.071571 | JS13: 25.2196876 | JT13: 25.3371488 | JU13: 25.207434 | JV13: 25.0903932 | JW13: 23.8934948 | JX13: 23.9519573 | JY13: 24.731224 | JZ13: 24.6655235 | KA13: 24.2268187 | KB13: 25.2109143 | KC13: 26.9238282 | KD13: 27.8671104 | KE13: 28.126578 | KF13: 27.367902 | KG13: 26.7106275 | KH13: 26.8228548 | KI13: 25.8906612 | KJ13: 25.5671592 | KK13: 25.3784704 | KL13: 25.1537454 | KM13: 26.46684 | KN13: 26.124997 | KO13: 26.4609408 | KP13: 26.2309412 | KQ13: 25.960767 | KR13: 25.4321772 | KS13: 25.575452 | KT13: 25.5074882 | KU13: 25.7040637 | KV13: 24.7909812 | KW13: 24.84646 | KX13: 24.60052 | KY13: 24.6017178 | KZ13: 24.910667 | LA13: 25.0550862 | LB13: 24.2293632 | LC13: 24.3450732 | LD13: 24.5411718 | LE13: 24.209912 | LF13: 24.535056 | LG13: 24.3460785 | LH13: 24.189238 | LI13: 24.112715 | LJ13: 24.7523493 | LK13: 24.8027715 | LL13: 25.2768284 | LM13: 25.800366 | LN13: 25.1806536 | LO13: 24.8413197 | LP13: 24.7366476 | LQ13: 24.8661052 | LR13: 25.6952951 | LS13: 25.634499 | LT13: 25.255904 | LU13: 24.84367 | LV13: 24.975588 | LW13: 25.063497 | LX13: 25.2564714 | LY13: 25.141167 | LZ13: 25.613565 | MA13: 25.6343725 | MB13: 25.702196 | MC13: 25.7949776 | MD13: 25.7115614 | ME13: 25.952028 | MF13: 25.8928875 | MG13: 25.7354575 | MH13: 25.732427 | MI13: 25.7160132 | MJ13: 27.3592308 | MK13: 27.4358154 | ML13: 27.4996536 | MM13: 27.3373083 | MN13: 27.4394988 | MO13: 27.46178 | MP13: 27.4751646 | MQ13: 27.45258 | MR13: 27.5701053 | MS13: 27.7238136 | MT13: 27.4976299 | MU13: 27.7732224 | MV13: 27.6535899 | MW13: 27.7227594 | MX13: 27.7933425 | MY13: 27.426724 | MZ13: 27.5279774 | NA13: 27.43189 | NB13: 27.400866 | NC13: 27.2418583 | ND13: 27.0314616 | NE13: 27.025907 | NF13: 27.1851998 | NG13: 27.0952098 | NH13: 27.0240555 | NI13: 27.0258888 | NJ13: 27.03792 | NK13: 26.6581792 | NL13: 27.0473445 | NM13: 27.0410742 | NN13: 27.0183342 | NO13: 27.1255166 | NP13: 27.0312612 | NQ13: 27.0351752 | NR13: 27.020781 | NS13: 27.0223902 | NT13: 27.0713925 | NU13: 27.0260699 | NV13: 27.01656 | NW13: 27.0191709 | NX13: 27.0289862 | NY13: 26.919497 | NZ13: 26.4198445 | OA13: 26.1928224 | OB13: 26.080848 | OC13: 26.1013225 | OD13: 25.9767418 | OE13: 25.673428 | OF13: 25.4978631 | OG13: 25.5342963 | OH13: 25.2764987 | OI13: 25.4246624 | OJ13: 25.4317761 | OK13: 25.5398376 | OL13: 25.796295 | OM13: 26.0183244
A14: Dominican Republic | B14: 3.264999999 | C14: 3.309999999 | D14: 3.32 | E14: 3.21 | F14: 3.135 | G14: 3.1 | H14: 2.9833 | I14: 3 | J14: 3 | K14: 3.0167 | L14: 3 | M14: 2.94 | N14: 2.9233 | O14: 2.83 | P14: 2.82 | Q14: 2.86 | R14: 2.85 | S14: 2.79 | T14: 2.86 | U14: 2.85 | V14: 2.93 | W14: 3.08 | X14: 3.07 | Y14: 3.0766 | Z14: 3.1 | AA14: 3.17 | AB14: 3.3433 | AC14: 3.3 | AD14: 3.7 | AE14: 4 | AF14: 3.7 | AG14: 3.86 | AH14: 4.5 | AI14: 4.7 | AJ14: 4.65 | AK14: 4.96 | AL14: 5.14 | AM14: 5.3 | AN14: 5.25 | AO14: 5.9 | AP14: 6.4 | AQ14: 7.5 | AR14: 6.5 | AS14: 6.34 | AT14: 6.34 | AU14: 6.34 | AV14: 6.34 | AW14: 6.34 | AX14: 6.34 | AY14: 6.34 | AZ14: 6.34 | BA14: 6.34 | BB14: 6.34 | BC14: 6.34 | BD14: 6.34 | BE14: 6.34 | BF14: 6.34 | BG14: 6.34 | BH14: 6.34 | BI14: 6.34 | BJ14: 6.34 | BK14: 6.34 | BL14: 6.34 | BM14: 7.45 | BN14: 7.45 | BO14: 7.45 | BP14: 7.45 | BQ14: 10.35 | BR14: 10.35 | BS14: 10.35 | BT14: 11.35 | BU14: 11.35 | BV14: 11.85 | BW14: 12.835 | BX14: 12.835 | BY14: 12.8833 | BZ14: 12.835 | CA14: 12.7583 | CB14: 12.7167 | CC14: 12.7167 | CD14: 12.7214 | CE14: 12.7786 | CF14: 12.7833 | CG14: 12.66 | CH14: 12.725 | CI14: 12.76 | CJ14: 12.9563 | CK14: 12.8667 | CL14: 12.9583 | CM14: 12.9917 | CN14: 12.7829 | CO14: 12.7586 | CP14: 12.715 | CQ14: 12.6467 | CR14: 12.66 | CS14: 12.575 | CT14: 12.62 | CU14: 12.61 | CV14: 12.5967 | CW14: 12.5883 | CX14: 12.6017 | CY14: 12.6133 | CZ14: 12.676 | DA14: 12.7375 | DB14: 12.74 | DC14: 12.8 | DD14: 12.8633 | DE14: 12.7667 | DF14: 12.89 | DG14: 13.0208 | DH14: 13.0508 | DI14: 13.225 | DJ14: 13.004 | DK14: 13.051 | DL14: 13.083 | DM14: 13.268 | DN14: 13.5133 | DO14: 13.61 | DP14: 13.5483 | DQ14: 13.0636 | DR14: 13.42 | DS14: 13.5073 | DT14: 13.6 | DU14: 13.6217 | DV14: 13.7391 | DW14: 13.7867 | DX14: 13.798 | DY14: 13.7475 | DZ14: 13.6454 | EA14: 13.6825 | EB14: 13.6467 | EC14: 13.4646 | ED14: 13.7017 | EE14: 13.7422 | EF14: 13.5727 | EG14: 13.7 | EH14: 13.8775 | EI14: 13.9558 | EJ14: 13.8392 | EK14: 13.7992 | EL14: 13.7645 | EM14: 13.7775 | EN14: 13.4327 | EO14: 14.0617 | EP14: 14.2025 | EQ14: 14.3275 | ER14: 13.273 | ES14: 14.3073 | ET14: 14.24 | EU14: 14.02 | EV14: 14.1 | EW14: 14.207 | EX14: 14.255 | EY14: 14.4191 | EZ14: 14.3391 | FA14: 14.3655 | FB14: 14.5445 | FC14: 14.5591 | FD14: 14.8627 | FE14: 15.4944 | FF14: 15.119 | FG14: 15.304 | FH14: 15.4011 | FI14: 15.433 | FJ14: 15.6178 | FK14: 15.826 | FL14: 15.951 | FM14: 15.7878 | FN14: 16.089 | FO14: 16.221 | FP14: 16.116 | FQ14: 16.075 | FR14: 15.946 | FS14: 15.886 | FT14: 15.885 | FU14: 15.935 | FV14: 16.052 | FW14: 16.1993 | FX14: 16.0863 | FY14: 16.0392 | FZ14: 16.2489 | GA14: 16.2744 | GB14: 16.2425 | GC14: 16.2679 | GD14: 16.2745 | GE14: 16.5539 | GF14: 16.4365 | GG14: 16.4684 | GH14: 16.535 | GI14: 16.5915 | GJ14: 16.6779 | GK14: 16.6744 | GL14: 17.0147 | GM14: 16.9895 | GN14: 16.893 | GO14: 16.82 | GP14: 16.8275 | GQ14: 16.8325 | GR14: 16.8417 | GS14: 16.8515 | GT14: 17.0475 | GU14: 17.1425 | GV14: 17.133 | GW14: 17.1488 | GX14: 17.4995 | GY14: 17.8165 | GZ14: 17.59 | HA14: 17.8084 | HB14: 17.86 | HC14: 17.9874 | HD14: 18.1516 | HE14: 19.1233 | HF14: 18.963 | HG14: 20.2861 | HH14: 21.3156 | HI14: 21.1938 | HJ14: 23.3333 | HK14: 23.6588 | HL14: 24.76 | HM14: 25.41 | HN14: 28.67 | HO14: 33.83 | HP14: 35.2479 | HQ14: 33.4684 | HR14: 33.0472 | HS14: 38 | HT14: 43.79 | HU14: 37.25 | HV14: 51.6393 | HW14: 49.09 | HX14: 44.89 | HY14: 46.3856 | HZ14: 49.5684 | IA14: 47.3711 | IB14: 45.2595 | IC14: 38.6917 | ID14: 32.7353 | IE14: 32.6395 | IF14: 28.92 | IG14: 31.109375 | IH14: 29.31578947 | II14: 28.98157895 | IJ14: 28.12 | IK14: 28.75 | IL14: 29.21176471 | IM14: 29.07842105 | IN14: 29.17105263 | IO14: 30.140625 | IP14: 31.46578947 | IQ14: 33.75526316 | IR14: 34.87916667 | IS14: 34.87894737 | IT14: 33.71052632 | IU14: 32.65789474 | IV14: 32.41111111 | IW14: 33.16388889 | IX14: 32.95555556 | IY14: 32.9344 | IZ14: 32.83888889 | JA14: 33.98333333 | JB14: 33.78684211 | JC14: 33.57222222 | JD14: 33.79705882 | JE14: 33.51666667 | JF14: 32.6 | JG14: 32.69666667 | JH14: 32.52 | JI14: 33.44666667 | JJ14: 32.90666667 | JK14: 33.39333333 | JL14: 33.58666667 | JM14: 33.66666667 | JN14: 33.74333333 | JO14: 34.34230769 | JP14: 34.26 | JQ14: 34.06875 | JR14: 34.15333333 | JS14: 34.25333333 | JT14: 34.26333333 | JU14: 34.35333333 | JV14: 34.62666667 | JW14: 35.01785714 | JX14: 35.07307692 | JY14: 34.9662 | JZ14: 35.75833333 | KA14: 35.45769231 | KB14: 35.65416667 | KC14: 35.783 | KD14: 35.98333333 | KE14: 36.09090909 | KF14: 36.08181818 | KG14: 36.0069 | KH14: 36.154 | KI14: 36.187 | KJ14: 36.22666667 | KK14: 36.0358 | KL14: 36.2129 | KM14: 36.21 | KN14: 36.241 | KO14: 36.381 | KP14: 36.7571 | KQ14: 36.9033 | KR14: 37.0609 | KS14: 37.07 | KT14: 37.2825 | KU14: 37.3396 | KV14: 37.3415 | KW14: 37.5414 | KX14: 37.5886 | KY14: 37.8161 | KZ14: 37.9082 | LA14: 37.9266 | LB14: 38.0835 | LC14: 38.18 | LD14: 38.1911 | LE14: 38.1082 | LF14: 38.0835 | LG14: 38.18 | LH14: 38.1911 | LI14: 38.1082 | LJ14: 38.2864 | LK14: 38.4157 | LL14: 38.5945 | LM14: 38.7915 | LN14: 39.0182 | LO14: 39.068 | LP14: 39.1173 | LQ14: 39.1169 | LR14: 39.1349 | LS14: 39.1533 | LT14: 39.1649 | LU14: 39.1936 | LV14: 39.3397 | LW14: 39.6929 | LX14: 40.2243 | LY14: 40.3645 | LZ14: 40.8441 | MA14: 41.0443 | MB14: 41.1258 | MC14: 41.1364 | MD14: 41.2701 | ME14: 41.9595 | MF14: 42.2053 | MG14: 42.9653 | MH14: 42.5386 | MI14: 42.4954 | MJ14: 42.5231 | MK14: 42.8499 | ML14: 43.1426 | MM14: 43.2086 | MN14: 43.1225 | MO14: 43.2651 | MP14: 43.3326 | MQ14: 43.5119 | MR14: 43.7571 | MS14: 43.7226 | MT14: 43.8317 | MU14: 44.1926 | MV14: 44.1845 | MW14: 44.3874 | MX14: 44.799 | MY14: 44.8086 | MZ14: 44.7413 | NA14: 44.8102 | NB14: 44.8512 | NC14: 44.9444 | ND14: 45.0874 | NE14: 45.1437 | NF14: 45.3354 | NG14: 45.4758 | NH14: 45.5062 | NI14: 45.6562 | NJ14: 45.7428 | NK14: 45.7712 | NL14: 45.8357 | NM14: 45.8767 | NN14: 45.9286 | NO14: 45.9938 | NP14: 45.9989 | NQ14: 46.0255 | NR14: 46.4668 | NS14: 46.5238 | NT14: 46.6281 | NU14: 46.7062 | NV14: 46.9354 | NW14: 47.2322 | NX14: 47.3587 | NY14: 47.4164 | NZ14: 47.4591 | OA14: 47.5271 | OB14: 47.548 | OC14: 47.6845 | OD14: 47.7401 | OE14: 47.9133 | OF14: 48.0941 | OG14: 48.2993 | OH14: 48.5743 | OI14: 48.9906 | OJ14: 49.3001 | OK14: 49.3987 | OL14: 49.4037 | OM14: 49.4345
A15: Egypt | B15: 0.7 | C15: 0.7 | D15: 0.7 | E15: 0.7 | F15: 0.7 | G15: 0.7 | H15: 0.7 | I15: 0.7 | J15: 0.7 | K15: 0.7 | L15: 0.7 | M15: 0.7 | N15: 0.7 | O15: 0.7 | P15: 0.7 | Q15: 0.7 | R15: 0.7 | S15: 0.7 | T15: 0.7 | U15: 0.7 | V15: 0.7 | W15: 0.7 | X15: 0.7 | Y15: 0.7 | Z15: 0.7 | AA15: 0.7 | AB15: 0.7 | AC15: 0.7 | AD15: 0.7 | AE15: 0.7 | AF15: 0.7 | AG15: 0.7 | AH15: 0.7 | AI15: 0.7 | AJ15: 0.7 | AK15: 0.7 | AL15: 0.7 | AM15: 0.7 | AN15: 0.7 | AO15: 0.7 | AP15: 0.7 | AQ15: 0.7 | AR15: 0.7 | AS15: 0.7 | AT15: 0.7 | AU15: 0.7 | AV15: 0.7 | AW15: 0.7 | AX15: 0.7 | AY15: 0.7 | AZ15: 0.7 | BA15: 0.7 | BB15: 0.7 | BC15: 0.7 | BD15: 0.7 | BE15: 0.91936 | BF15: 1.1 | BG15: 1.1 | BH15: 1.1 | BI15: 1.1 | BJ15: 1.1 | BK15: 1.1 | BL15: 1.1 | BM15: 1.1 | BN15: 1.1 | BO15: 1.1 | BP15: 2 | BQ15: 2 | BR15: 2 | BS15: 2 | BT15: 2 | BU15: 2 | BV15: 2 | BW15: 2.074 | BX15: 3.1658 | BY15: 3.2049 | BZ15: 3.2451 | CA15: 3.28133 | CB15: 3.28133 | CC15: 3.29138 | CD15: 3.29138 | CE15: 3.29137 | CF15: 3.3232 | CG15: 3.33221 | CH15: 3.32124 | CI15: 3.3233 | CJ15: 3.32063 | CK15: 3.32061 | CL15: 3.31936 | CM15: 3.32108 | CN15: 3.32003 | CO15: 3.32162 | CP15: 3.33188 | CQ15: 3.3169 | CR15: 3.32484 | CS15: 3.33861 | CT15: 3.33765 | CU15: 3.34118 | CV15: 3.34189 | CW15: 3.34242 | CX15: 3.35077 | CY15: 3.35252 | CZ15: 3.36214 | DA15: 3.35539 | DB15: 3.36068 | DC15: 3.36452 | DD15: 3.369 | DE15: 3.3718 | DF15: 3.377 | DG15: 3.38 | DH15: 3.38 | DI15: 3.383 | DJ15: 3.385 | DK15: 3.39 | DL15: 3.393 | DM15: 3.386 | DN15: 3.386 | DO15: 3.391 | DP15: 3.397 | DQ15: 3.391 | DR15: 3.392 | DS15: 3.391 | DT15: 3.389 | DU15: 3.392 | DV15: 3.393 | DW15: 3.395 | DX15: 3.392 | DY15: 3.393 | DZ15: 3.39 | EA15: 3.393 | EB15: 3.39 | EC15: 3.39 | ED15: 3.392 | EE15: 3.388 | EF15: 3.393 | EG15: 3.394 | EH15: 3.392 | EI15: 3.393 | EJ15: 3.392 | EK15: 3.388 | EL15: 3.3941 | EM15: 3.3942 | EN15: 3.388 | EO15: 3.388 | EP15: 3.39 | EQ15: 3.389 | ER15: 3.389 | ES15: 3.389 | ET15: 3.389 | EU15: 3.389 | EV15: 3.389 | EW15: 3.389 | EX15: 3.389 | EY15: 3.388 | EZ15: 3.388 | FA15: 3.388 | FB15: 3.388 | FC15: 3.388 | FD15: 3.388 | FE15: 3.388 | FF15: 3.388 | FG15: 3.388 | FH15: 3.388 | FI15: 3.388 | FJ15: 3.388 | FK15: 3.388 | FL15: 3.388 | FM15: 3.388 | FN15: 3.388 | FO15: 3.389 | FP15: 3.395 | FQ15: 3.396 | FR15: 3.396 | FS15: 3.396 | FT15: 3.396 | FU15: 3.396 | FV15: 3.396 | FW15: 3.396 | FX15: 3.4 | FY15: 3.405 | FZ15: 3.405 | GA15: 3.41 | GB15: 3.413 | GC15: 3.415 | GD15: 3.421 | GE15: 3.446 | GF15: 3.461 | GG15: 3.481 | GH15: 3.501 | GI15: 3.5312 | GJ15: 3.69 | GK15: 3.69 | GL15: 3.84 | GM15: 3.84 | GN15: 3.84 | GO15: 3.84 | GP15: 3.85 | GQ15: 3.85 | GR15: 3.85 | GS15: 3.89 | GT15: 4.14 | GU15: 4.14 | GV15: 4.14 | GW15: 4.49 | GX15: 4.5 | GY15: 4.5 | GZ15: 4.5 | HA15: 4.5 | HB15: 4.5 | HC15: 4.5 | HD15: 4.5 | HE15: 4.5 | HF15: 4.5 | HG15: 4.5 | HH15: 4.5 | HI15: 4.5 | HJ15: 5.3783 | HK15: 5.5136 | HL15: 5.7284 | HM15: 5.8875 | HN15: 5.9733 | HO15: 6.0329 | HP15: 6.1364 | HQ15: 6.1492 | HR15: 6.1257 | HS15: 6.135 | HT15: 6.1304 | HU15: 6.1532 | HV15: 6.1602 | HW15: 6.1665 | HX15: 6.168 | HY15: 6.1937 | HZ15: 6.1936 | IA15: 6.1899 | IB15: 6.1971 | IC15: 6.2105 | ID15: 6.229 | IE15: 6.2331 | IF15: 6.225 | IG15: 6.1314 | IH15: 5.8105 | II15: 5.7853 | IJ15: 5.7881 | IK15: 5.786 | IL15: 5.7883 | IM15: 5.7789 | IN15: 5.7641 | IO15: 5.7621 | IP15: 5.7517 | IQ15: 5.7516 | IR15: 5.7523 | IS15: 5.7322 | IT15: 5.7249 | IU15: 5.7277 | IV15: 5.7366 | IW15: 5.744 | IX15: 5.7572 | IY15: 5.7523 | IZ15: 5.7376 | JA15: 5.7342 | JB15: 5.7318 | JC15: 5.7257 | JD15: 5.7123 | JE15: 5.7036 | JF15: 5.6917 | JG15: 5.6901 | JH15: 5.6925 | JI15: 5.6733 | JJ15: 5.688 | JK15: 5.6892 | JL15: 5.6411 | JM15: 5.6471 | JN15: 5.5776 | JO15: 5.5028 | JP15: 5.5197 | JQ15: 5.5038 | JR15: 5.5408 | JS15: 5.4792 | JT15: 5.4424 | JU15: 5.365 | JV15: 5.7572 | JW15: 5.3236 | JX15: 5.2969 | JY15: 5.3572 | JZ15: 5.453 | KA15: 5.5578 | KB15: 5.5073 | KC15: 5.5041 | KD15: 5.5449 | KE15: 5.5934 | KF15: 5.6289 | KG15: 5.6234 | KH15: 5.6089 | KI15: 5.5855 | KJ15: 5.5377 | KK15: 5.517 | KL15: 5.4897 | KM15: 5.4586 | KN15: 5.4585 | KO15: 5.4754 | KP15: 5.4566 | KQ15: 5.4756 | KR15: 5.4913 | KS15: 5.5436 | KT15: 5.6468 | KU15: 5.6807 | KV15: 5.6896 | KW15: 5.6931 | KX15: 5.6832 | KY15: 5.763 | KZ15: 5.776 | LA15: 5.7926 | LB15: 5.8399 | LC15: 5.8795 | LD15: 5.9539 | LE15: 5.9351 | LF15: 5.9304 | LG15: 5.9558 | LH15: 5.9442 | LI15: 5.9401 | LJ15: 5.9525 | LK15: 5.9561 | LL15: 5.9914 | LM15: 6.0169 | LN15: 6.0183 | LO15: 6.0209 | LP15: 6.0264 | LQ15: 6.0336 | LR15: 6.0307 | LS15: 6.0455 | LT15: 6.0563 | LU15: 6.0831 | LV15: 6.0801 | LW15: 6.0947 | LX15: 6.096 | LY15: 6.3057 | LZ15: 6.7053 | MA15: 6.7279 | MB15: 6.7947 | MC15: 6.9356 | MD15: 6.9774 | ME15: 7.0119 | MF15: 6.9982 | MG15: 7.015 | MH15: 6.8838 | MI15: 6.8857 | MJ15: 6.8833 | MK15: 6.943 | ML15: 6.9555 | MM15: 6.9553 | MN15: 6.9615 | MO15: 7.0011 | MP15: 7.138 | MQ15: 7.1459 | MR15: 7.1473 | MS15: 7.1452 | MT15: 7.147 | MU15: 7.1472 | MV15: 7.1443 | MW15: 7.1431 | MX15: 7.5607 | MY15: 7.6051 | MZ15: 7.6032 | NA15: 7.6064 | NB15: 7.6061 | NC15: 7.6061 | ND15: 7.8085 | NE15: 7.809 | NF15: 7.8057 | NG15: 8.0066 | NH15: 7.8078 | NI15: 7.808 | NJ15: 7.8086 | NK15: 7.8066 | NL15: 8.8572 | NM15: 8.8575 | NN15: 8.8575 | NO15: 8.8571 | NP15: 8.8574 | NQ15: 8.8569 | NR15: 8.8574 | NS15: 8.858006452 | NT15: 17.7663 | NU15: 18.125 | NV15: 18.725 | NW15: 15.7679 | NX15: 18.08352941 | NY15: 18.0312 | NZ15: 18.0324 | OA15: 18.04 | OB15: 17.8366 | OC15: 17.6096 | OD15: 17.60588235 | OE15: 17.6049 | OF15: 17.6672 | OG15: 17.68083333 | OH15: 17.62611111 | OI15: 17.59166667 | OJ15: 17.595 | OK15: 17.6162 | OL15: 17.8572 | OM15: 17.83475
A16: Ghana | B16: 0.00500000025 | C16: 0.00500000025 | D16: 0.00500000025 | E16: 0.005299417064 | F16: 0.005299417064 | G16: 0.005299417064 | H16: 0.005299417064 | I16: 0.005701254276 | J16: 0.005701254276 | K16: 0.0059988006 | L16: 0.0059988006 | M16: 0.0059988006 | N16: 0.00900090009 | O16: 0.00900090009 | P16: 0.00900090009 | Q16: 0.00900090009 | R16: 0.00900090009 | S16: 0.00900090009 | T16: 0.00900090009 | U16: 0.00900090009 | V16: 0.00900090009 | W16: 0.00900090009 | X16: 0.00900090009 | Y16: 0.00900090009 | Z16: 0.00900090009 | AA16: 0.01499250375 | AB16: 0.01499250375 | AC16: 0.01499250375 | AD16: 0.01499250375 | AE16: 0.01499250375 | AF16: 0.01499250375 | AG16: 0.01639344262 | AH16: 0.01754385965 | AI16: 0.01754385965 | AJ16: 0.01754385965 | AK16: 0.0176056338 | AL16: 0.0176056338 | AM16: 0.01818181818 | AN16: 0.01851851852 | AO16: 0.01851851852 | AP16: 0.01841620626 | AQ16: 0.01886792453 | AR16: 0.02 | AS16: 0.02272727273 | AT16: 0.02272727273 | AU16: 0.02325581395 | AV16: 0.02309468822 | AW16: 0.02298850575 | AX16: 0.02320185615 | AY16: 0.02597402597 | AZ16: 0.02617801047 | BA16: 0.02652519894 | BB16: 0.02666666667 | BC16: 0.02702702703 | BD16: 0.02732240437 | BE16: 0.02770083102 | BF16: 0.02816901408 | BG16: 0.02873563218 | BH16: 0.02976190476 | BI16: 0.0303030303 | BJ16: 0.0305997552 | BK16: 0.03076923077 | BL16: 0.03115264798 | BM16: 0.03164556962 | BN16: 0.0325732899 | BO16: 0.03289473684 | BP16: 0.03322259136 | BQ16: 0.03355704698 | BR16: 0.03378378378 | BS16: 0.03424657534 | BT16: 0.03436426117 | BU16: 0.03448275862 | BV16: 0.03460207612 | BW16: 0.03533568905 | BX16: 0.03610108303 | BY16: 0.03636363636 | BZ16: 0.03663003663 | CA16: 0.03663003663 | CB16: 0.03703703704 | CC16: 0.03731343284 | CD16: 0.03759398496 | CE16: 0.03787878788 | CF16: 0.03861003861 | CG16: 0.0390625 | CH16: 0.0390625 | CI16: 0.03921568627 | CJ16: 0.0406504065 | CK16: 0.04081632653 | CL16: 0.04115226337 | CM16: 0.04149377593 | CN16: 0.04366812227 | CO16: 0.04504504505 | CP16: 0.04807692308 | CQ16: 0.04901960784 | CR16: 0.05128205128 | CS16: 0.05208333333 | CT16: 0.05555555556 | CU16: 0.05952380952 | CV16: 0.06024096386 | CW16: 0.06024096386 | CX16: 0.06024096386 | CY16: 0.06024096386 | CZ16: 0.06666666667 | DA16: 0.06849315068 | DB16: 0.06993006993 | DC16: 0.07246376812 | DD16: 0.07692307692 | DE16: 0.08196721311 | DF16: 0.09090909091 | DG16: 0.09345794393 | DH16: 0.09345794393 | DI16: 0.09345794393 | DJ16: 0.09345794393 | DK16: 0.09433962264 | DL16: 0.09708737864 | DM16: 0.09708737864 | DN16: 0.09803921569 | DO16: 0.101010101 | DP16: 0.1041666667 | DQ16: 0.1052631579 | DR16: 0.1063829787 | DS16: 0.1063829787 | DT16: 0.1111111111 | DU16: 0.1136363636 | DV16: 0.1149425287 | DW16: 0.1176470588 | DX16: 0.119047619 | DY16: 0.1219512195 | DZ16: 0.1298701299 | EA16: 0.1351351351 | EB16: 0.1408450704 | EC16: 0.1449275362 | ED16: 0.1492537313 | EE16: 0.1538461538 | EF16: 0.1587301587 | EG16: 0.1612903226 | EH16: 0.1639344262 | EI16: 0.1666666667 | EJ16: 0.1694915254 | EK16: 0.1694915254 | EL16: 0.1724137931 | EM16: 0.1724137931 | EN16: 0.1724137931 | EO16: 0.1754385965 | EP16: 0.1753822895 | EQ16: 0.1811600767 | ER16: 0.1892648951 | ES16: 0.1960784314 | ET16: 0.2023062917 | EU16: 0.2023062917 | EV16: 0.2169211513 | EW16: 0.2186863076 | EX16: 0.2216277673 | EY16: 0.2231460469 | EZ16: 0.2222222222 | FA16: 0.2272727273 | FB16: 0.2272727273 | FC16: 0.2272727273 | FD16: 0.2325581395 | FE16: 0.2325581395 | FF16: 0.2325581395 | FG16: 0.2325581395 | FH16: 0.2325581395 | FI16: 0.2325581395 | FJ16: 0.2325581395 | FK16: 0.2325581395 | FL16: 0.2325581395 | FM16: 0.2325581395 | FN16: 0.2380952381 | FO16: 0.2380952381 | FP16: 0.243902439 | FQ16: 0.243902439 | FR16: 0.25 | FS16: 0.25 | FT16: 0.2564102564 | FU16: 0.2631578947 | FV16: 0.2702702703 | FW16: 0.2995814847 | FX16: 0.344928448 | FY16: 0.3535140356 | FZ16: 0.3625880228 | GA16: 0.3910539373 | GB16: 0.434416943 | GC16: 0.4693473912 | GD16: 0.4991335042 | GE16: 0.5664400151 | GF16: 0.6056164873 | GG16: 0.6436439516 | GH16: 0.6515430494 | GI16: 0.6817106575 | GJ16: 0.6820030977 | GK16: 0.7047648446 | GL16: 0.7006476086 | GM16: 0.7089955943 | GN16: 0.7204927594 | GO16: 0.7228076161 | GP16: 0.72358586 | GQ16: 0.7227000072 | GR16: 0.7177318525 | GS16: 0.7159046816 | GT16: 0.7156649028 | GU16: 0.719477 | GV16: 0.72778 | GW16: 0.732194 | GX16: 0.735734 | GY16: 0.754477 | GZ16: 0.769029 | HA16: 0.780305 | HB16: 0.791007 | HC16: 0.804337 | HD16: 0.813582 | HE16: 0.816366 | HF16: 0.81879 | HG16: 0.827539 | HH16: 0.833932 | HI16: 0.843882 | HJ16: 0.853653 | HK16: 0.855986 | HL16: 0.860029 | HM16: 0.869016 | HN16: 0.868425 | HO16: 0.870036 | HP16: 0.872189 | HQ16: 0.873559 | HR16: 0.873228 | HS16: 0.875386 | HT16: 0.880537 | HU16: 0.885232 | HV16: 0.888024 | HW16: 0.891516 | HX16: 0.901829 | HY16: 0.904898 | HZ16: 0.902945 | IA16: 0.904654 | IB16: 0.904183 | IC16: 0.90457 | ID16: 0.905176 | IE16: 0.904936 | IF16: 0.905473 | IG16: 0.905426 | IH16: 0.904959 | II16: 0.905795 | IJ16: 0.907545 | IK16: 0.908094 | IL16: 0.906606 | IM16: 0.907491 | IN16: 0.907728 | IO16: 0.908642 | IP16: 0.908647 | IQ16: 0.908367 | IR16: 0.909939 | IS16: 0.913082 | IT16: 0.912857 | IU16: 0.911813 | IV16: 0.913881 | IW16: 0.914102 | IX16: 0.914501 | IY16: 0.919102 | IZ16: 0.919819 | JA16: 0.919762 | JB16: 0.920951 | JC16: 0.922444 | JD16: 0.922945 | JE16: 0.92353 | JF16: 0.923547 | JG16: 0.925642 | JH16: 0.926938 | JI16: 0.927447 | JJ16: 0.927393 | JK16: 0.928525 | JL16: 0.93 | JM16: 0.9355 | JN16: 0.9428 | JO16: 0.9455 | JP16: 0.965 | JQ16: 0.9704 | JR16: 0.9759 | JS16: 0.9751 | JT16: 0.978 | JU16: 0.9872 | JV16: 1.0024 | JW16: 1.0325 | JX16: 1.0692 | JY16: 1.1161 | JZ16: 1.1345 | KA16: 1.1565 | KB16: 1.1777 | KC16: 1.2141 | KD16: 1.2828 | KE16: 1.3402 | KF16: 1.3832 | KG16: 1.4042 | KH16: 1.4396 | KI16: 1.4725 | KJ16: 1.4858 | KK16: 1.4619 | KL16: 1.4514 | KM16: 1.4416 | KN16: 1.4322 | KO16: 1.4186 | KP16: 1.4258 | KQ16: 1.4265 | KR16: 1.4177 | KS16: 1.417 | KT16: 1.4206 | KU16: 1.4267 | KV16: 1.4353 | KW16: 1.4307 | KX16: 1.4269 | KY16: 1.4293 | KZ16: 1.4367 | LA16: 1.4738 | LB16: 1.5013 | LC16: 1.497 | LD16: 1.5021 | LE16: 1.4972 | LF16: 1.5018 | LG16: 1.5064 | LH16: 1.5055 | LI16: 1.5104 | LJ16: 1.5224 | LK16: 1.5326 | LL16: 1.5412 | LM16: 1.5505 | LN16: 1.6475 | LO16: 1.6735 | LP16: 1.6888 | LQ16: 1.703 | LR16: 1.8103 | LS16: 1.8735 | LT16: 1.8843 | LU16: 1.89045 | LV16: 1.88875 | LW16: 1.8792 | LX16: 1.8772 | LY16: 1.88 | LZ16: 1.884 | MA16: 1.8864 | MB16: 1.901 | MC16: 1.9126 | MD16: 1.9408 | ME16: 1.9469 | MF16: 1.9494 | MG16: 1.9559 | MH16: 1.9608 | MI16: 2.0291 | MJ16: 2.0822 | MK16: 2.2 | ML16: 2.3864 | MM16: 2.5243 | MN16: 2.6707 | MO16: 2.7939 | MP16: 2.892 | MQ16: 3.0016 | MR16: 3.0337 | MS16: 3.1333 | MT16: 3.1973 | MU16: 3.1942 | MV16: 3.19545 | MW16: 3.20005 | MX16: 3.2401 | MY16: 3.4745 | MZ16: 3.7472 | NA16: 3.8493 | NB16: 3.9976 | NC16: 4.3364 | ND16: 3.4648 | NE16: 3.9231 | NF16: 3.7253 | NG16: 3.7896 | NH16: 3.7932 | NI16: 3.795 | NJ16: 3.8344 | NK16: 3.87805 | NL16: 3.8365 | NM16: 3.7848 | NN16: 3.8416 | NO16: 3.92595 | NP16: 3.94505 | NQ16: 3.9456 | NR16: 3.9715 | NS16: 3.9643 | NT16: 3.9805 | NU16: 4.2002 | NV16: 4.2711 | NW16: 4.4786 | NX16: 4.3173 | NY16: 4.1867 | NZ16: 4.2857 | OA16: 4.3629 | OB16: 4.3743 | OC16: 4.3994 | OD16: 4.3944 | OE16: 4.3765 | OF16: 4.4122 | OG16: 4.41565 | OH16: 4.424 | OI16: 4.4187 | OJ16: 4.4044 | OK16: 4.4078 | OL16: 4.4226 | OM16: 4.523
A17: Guatemala | B17: 1 | C17: 1 | D17: 1 | E17: 1 | F17: 1 | G17: 1 | H17: 1 | I17: 1 | J17: 1 | K17: 1 | L17: 1 | M17: 1 | N17: 1 | O17: 1 | P17: 1 | Q17: 1 | R17: 1 | S17: 2.5 | T17: 2.5 | U17: 2.5 | V17: 2.5 | W17: 2.5 | X17: 2.5 | Y17: 2.5 | Z17: 2.5 | AA17: 2.5 | AB17: 2.5 | AC17: 2.5 | AD17: 2.5 | AE17: 2.5 | AF17: 2.5 | AG17: 2.5 | AH17: 2.5 | AI17: 2.5 | AJ17: 2.5 | AK17: 2.5 | AL17: 2.5 | AM17: 2.5 | AN17: 2.5 | AO17: 2.5 | AP17: 2.5 | AQ17: 2.705 | AR17: 2.705 | AS17: 2.705 | AT17: 2.705 | AU17: 2.705 | AV17: 2.705 | AW17: 2.705 | AX17: 2.7 | AY17: 2.7 | AZ17: 2.7 | BA17: 2.7 | BB17: 2.7 | BC17: 2.7 | BD17: 2.7 | BE17: 2.78 | BF17: 2.78 | BG17: 2.78 | BH17: 3.40028 | BI17: 3.4 | BJ17: 3.54741 | BK17: 3.855 | BL17: 3.98382 | BM17: 4.27799 | BN17: 4.27317 | BO17: 4.33078 | BP17: 4.10848 | BQ17: 5.1692 | BR17: 5.39855 | BS17: 5.26462 | BT17: 4.96251 | BU17: 5.0146 | BV17: 5.05276 | BW17: 5.05684 | BX17: 5.0095 | BY17: 4.94302 | BZ17: 4.90112 | CA17: 4.97768 | CB17: 5.03273 | CC17: 5.02858 | CD17: 5.0735 | CE17: 5.12251 | CF17: 5.05741 | CG17: 5.04338 | CH17: 5.12448 | CI17: 5.18612 | CJ17: 5.08446 | CK17: 5.0237 | CL17: 5.03361 | CM17: 5.12135 | CN17: 5.17071 | CO17: 5.27005 | CP17: 5.32185 | CQ17: 5.27204 | CR17: 5.29657 | CS17: 5.27433 | CT17: 5.32489 | CU17: 5.36994 | CV17: 5.4732 | CW17: 5.52041 | CX17: 5.5843 | CY17: 5.67637 | CZ17: 5.72591 | DA17: 5.82681 | DB17: 5.87851 | DC17: 5.83402 | DD17: 5.83836 | DE17: 5.81522 | DF17: 5.89623 | DG17: 5.83346 | DH17: 5.81276 | DI17: 5.78342 | DJ17: 5.74657 | DK17: 5.72222 | DL17: 5.51804 | DM17: 5.79076 | DN17: 5.8109 | DO17: 5.76793 | DP17: 5.61184 | DQ17: 5.64853 | DR17: 5.70705 | DS17: 5.69906 | DT17: 5.71328 | DU17: 5.70708 | DV17: 5.7396 | DW17: 5.75904 | DX17: 5.77774 | DY17: 5.85595 | DZ17: 5.91739 | EA17: 5.97819 | EB17: 5.965 | EC17: 6.04178 | ED17: 6.14708 | EE17: 6.2131 | EF17: 6.16832 | EG17: 6.10738 | EH17: 6.128 | EI17: 6.12507 | EJ17: 6.09539 | EK17: 6.04722 | EL17: 6.02875 | EM17: 6.0534 | EN17: 6.00197 | EO17: 5.96556 | EP17: 6.10175 | EQ17: 6.05519 | ER17: 5.98738 | ES17: 5.99557 | ET17: 5.94349 | EU17: 5.90213 | EV17: 6.04736 | EW17: 6.08128 | EX17: 6.13951 | EY17: 6.1972 | EZ17: 6.22614 | FA17: 6.17688 | FB17: 6.24127 | FC17: 6.21335 | FD17: 6.30509 | FE17: 6.2813 | FF17: 6.27855 | FG17: 6.32101 | FH17: 6.33333 | FI17: 6.52481 | FJ17: 6.52446 | FK17: 6.59683 | FL17: 6.622065 | FM17: 6.84824 | FN17: 6.95926 | FO17: 6.83807 | FP17: 7.01864 | FQ17: 7.16393 | FR17: 7.3604 | FS17: 7.36365 | FT17: 7.43519 | FU17: 7.77873 | FV17: 7.80977 | FW17: 7.80277 | FX17: 7.72861 | FY17: 7.82084 | FZ17: 7.90987 | GA17: 7.76199 | GB17: 7.71499 | GC17: 7.70881 | GD17: 7.69338 | GE17: 7.75929 | GF17: 7.7457 | GG17: 7.76736 | GH17: 7.79992 | GI17: 7.84271 | GJ17: 7.76706 | GK17: 7.73121 | GL17: 7.78999 | GM17: 7.69423 | GN17: 7.70717 | GO17: 7.79283 | GP17: 7.762 | GQ17: 7.80238 | GR17: 7.82961 | GS17: 7.90822 | GT17: 7.99696 | GU17: 8.15869 | GV17: 8.06529 | GW17: 8.00048 | GX17: 7.99324 | GY17: 7.93788 | GZ17: 7.8355 | HA17: 7.80699 | HB17: 7.85066 | HC17: 7.91312 | HD17: 7.80083 | HE17: 7.79907 | HF17: 7.75413 | HG17: 7.6711 | HH17: 7.58673 | HI17: 7.8072 | HJ17: 7.88173 | HK17: 7.8742 | HL17: 7.92 | HM17: 7.87517 | HN17: 7.90527 | HO17: 7.92806 | HP17: 7.91577 | HQ17: 7.9332 | HR17: 8.09169 | HS17: 8.13102 | HT17: 8.05569 | HU17: 8.04069 | HV17: 8.11418 | HW17: 8.10304 | HX17: 8.09412 | HY17: 7.99733 | HZ17: 7.97284 | IA17: 7.90178 | IB17: 7.9407 | IC17: 7.89717 | ID17: 7.88566 | IE17: 7.78555 | IF17: 7.75413 | IG17: 7.74844 | IH17: 7.74535 | II17: 7.67508 | IJ17: 7.58771 | IK17: 7.59499 | IL17: 7.6058 | IM17: 7.60291 | IN17: 7.58511 | IO17: 7.59059 | IP17: 7.69885 | IQ17: 7.6124 | IR17: 7.62258 | IS17: 7.6103 | IT17: 7.60416 | IU17: 7.62106 | IV17: 7.60701 | IW17: 7.5879 | IX17: 7.59559 | IY17: 7.60408 | IZ17: 7.57682 | JA17: 7.6011 | JB17: 7.62211 | JC17: 7.5803 | JD17: 7.64142 | JE17: 7.62449 | JF17: 7.74072 | JG17: 7.72358 | JH17: 7.69234 | JI17: 7.65685 | JJ17: 7.67092 | JK17: 7.71771 | JL17: 7.67584 | JM17: 7.68028 | JN17: 7.74658 | JO17: 7.68483 | JP17: 7.67231 | JQ17: 7.63082 | JR17: 7.77983 | JS17: 7.69325 | JT17: 7.60061 | JU17: 7.47811 | JV17: 7.43398 | JW17: 7.53104 | JX17: 7.42903 | JY17: 7.4356 | JZ17: 7.48966 | KA17: 7.55389 | KB17: 7.66458 | KC17: 7.77441 | KD17: 7.93301 | KE17: 7.99567 | KF17: 8.10673 | KG17: 8.11373 | KH17: 8.11387 | KI17: 8.14641 | KJ17: 8.24346 | KK17: 8.27989 | KL17: 8.34082 | KM17: 8.29946 | KN17: 8.31841 | KO17: 8.34705 | KP17: 8.32094 | KQ17: 8.1477 | KR17: 7.9807 | KS17: 8.013155 | KT17: 8.00633 | KU17: 8.03401 | KV17: 8.00996 | KW17: 8.0488 | KX17: 8.13532 | KY17: 8.02119 | KZ17: 7.97668 | LA17: 8.01604 | LB17: 7.85405 | LC17: 7.76779 | LD17: 7.65844 | LE17: 7.57621 | LF17: 7.77866 | LG17: 7.78094 | LH17: 7.77847 | LI17: 7.83875 | LJ17: 7.88079 | LK17: 7.82844 | LL17: 7.858195 | LM17: 7.80661 | LN17: 7.75832 | LO17: 7.7722 | LP17: 7.680585 | LQ17: 7.77904 | LR17: 7.82002 | LS17: 7.836475 | LT17: 7.832485 | LU17: 7.959625 | LV17: 7.95066 | LW17: 7.82323 | LX17: 7.88469 | LY17: 7.89494 | LZ17: 7.81517 | MA17: 7.83799 | MB17: 7.77446 | MC17: 7.78284 | MD17: 7.79317 | ME17: 7.83438 | MF17: 7.83839 | MG17: 7.94942 | MH17: 7.94026 | MI17: 7.916 | MJ17: 7.89452 | MK17: 7.85206 | ML17: 7.79941 | MM17: 7.7319 | MN17: 7.72681 | MO17: 7.72062 | MP17: 7.78308 | MQ17: 7.77204 | MR17: 7.799305 | MS17: 7.755155 | MT17: 7.65298 | MU17: 7.60098 | MV17: 7.64858 | MW17: 7.59545 | MX17: 7.65153 | MY17: 7.62319 | MZ17: 7.63933 | NA17: 7.74383 | NB17: 7.6665 | NC17: 7.626505 | ND17: 7.644675 | NE17: 7.69245 | NF17: 7.70306 | NG17: 7.6574 | NH17: 7.60124 | NI17: 7.652785 | NJ17: 7.667075 | NK17: 7.685675 | NL17: 7.70679 | NM17: 7.725325 | NN17: 7.622155 | NO17: 7.63749 | NP17: 7.58471 | NQ17: 7.547265 | NR17: 7.52096 | NS17: 7.50666 | NT17: 7.511425 | NU17: 7.54947 | NV17: 7.470705 | NW17: 7.372545 | NX17: 7.3383 | NY17: 7.338645 | NZ17: 7.357165 | OA17: 7.331945 | OB17: 7.2755 | OC17: 7.29185 | OD17: 7.34919 | OE17: 7.33935 | OF17: 7.33886 | OG17: 7.34376 | OH17: 7.34818 | OI17: 7.372925 | OJ17: 7.38996 | OK17: 7.411795 | OL17: 7.480165 | OM17: 7.492215
A18: Hungary* | BI18: 67.8 | BJ18: 72.62654933 | BK18: 75.46627511 | BL18: 75.46925115 | BM18: 75.73728482 | BN18: 74.83276227 | BO18: 75.66446916 | BP18: 77.62378004 | BQ18: 77.90080155 | BR18: 77.88757542 | BS18: 78.96681328 | BT18: 78.77719365 | BU18: 80.44457084 | BV18: 91.78802075 | BW18: 90.99627088 | BX18: 85.62446041 | BY18: 86.40648092 | BZ18: 85.57637944 | CA18: 83.78475653 | CB18: 85.47060003 | CC18: 85.69137481 | CD18: 88.32693392 | CE18: 88.569021 | CF18: 93.90333201 | CG18: 97.55927744 | CH18: 94.28271407 | CI18: 93.37302949 | CJ18: 95.2733406 | CK18: 94.42141095 | CL18: 95.70566939 | CM18: 100.1994636 | CN18: 102.1554209 | CO18: 104.9852139 | CP18: 106.5971066 | CQ18: 101.9143947 | CR18: 101.9498523 | CS18: 101.7540552 | CT18: 102.3389428 | CU18: 103.1125956 | CV18: 107.0175704 | CW18: 107.7179375 | CX18: 107.5829199 | CY18: 106.1444998 | CZ18: 108.4098907 | DA18: 110.7283723 | DB18: 117.369118 | DC18: 115.4842139 | DD18: 114.297745 | DE18: 114.0891392 | DF18: 114.4813092 | DG18: 118.3930006 | DH18: 119.78289 | DI18: 120.1589549 | DJ18: 121.995075 | DK18: 125.1539957 | DL18: 124.8529904 | DM18: 135.4378298 | DN18: 136.2752312 | DO18: 139.0424383 | DP18: 138.7185003 | DQ18: 139.7797151 | DR18: 143.4206198 | DS18: 149.5752818 | DT18: 169.2216287 | DU18: 171.482054 | DV18: 173.9642267 | DW18: 177.8721162 | DX18: 178.8227907 | DY18: 177.0716325 | DZ18: 182.6525761 | EA18: 186.2701828 | EB18: 187.2924698 | EC18: 190.2892292 | ED18: 190.5092219 | EE18: 192.8493452 | EF18: 194.4564462 | EG18: 192.9614154 | EH18: 194.4738336 | EI18: 196.6882065 | EJ18: 202.1405639 | EK18: 204.2468158 | EL18: 202.846267 | EM18: 205.1513869 | EN18: 205.7419971 | EO18: 207.4704411 | EP18: 203.1735743 | EQ18: 203.2735567 | ER18: 205.4449155 | ES18: 206.2600157 | ET18: 209.8260444 | EU18: 209.6677571 | EV18: 209.5219576 | EW18: 213.0699081 | EX18: 216.7642346 | EY18: 221.3731669 | EZ18: 221.3546671 | FA18: 222.0921851 | FB18: 222.942133 | FC18: 225.0197965 | FD18: 225.7867425 | FE18: 229.7893203 | FF18: 236.5146383 | FG18: 236.9336603 | FH18: 237.6231784 | FI18: 247.0527913 | FJ18: 255.4401041 | FK18: 256.5042373 | FL18: 253.9591246 | FM18: 256.0582456 | FN18: 248.91116 | FO18: 253.215676 | FP18: 255.272888 | FQ18: 250.248155 | FR18: 249.521984 | FS18: 249.617432 | FT18: 253.34086 | FU18: 254.49211 | FV18: 257.378445 | FW18: 254.8755 | FX18: 254.101102 | FY18: 253.681592 | FZ18: 255.104505 | GA18: 255.38106 | GB18: 257.873682 | GC18: 257.768705 | GD18: 259.135065 | GE18: 259.282948 | GF18: 260.347581 | GG18: 260.464876 | GH18: 262.70458 | GI18: 263.931869 | GJ18: 264.835948 | GK18: 264.941265 | GL18: 264.701812 | GM18: 267.146976 | GN18: 267.424128 | GO18: 262.99588 | GP18: 253.56048 | GQ18: 243.70672 | GR18: 247.617665 | GS18: 253.163752 | GT18: 256.845899 | GU18: 255.183324 | GV18: 252.623118 | GW18: 245.909139 | GX18: 243.744777 | GY18: 245.671098 | GZ18: 243.556632 | HA18: 243.044848 | HB18: 243.555102 | HC18: 246.1032 | HD18: 244.751094 | HE18: 244.871199 | HF18: 243.89696 | HG18: 241.342488 | HH18: 237.265227 | HI18: 236.125292 | HJ18: 243.889984 | HK18: 244.029006 | HL18: 247.33829 | HM18: 245.705694 | HN18: 249.195938 | HO18: 266.226246 | HP18: 264.082894 | HQ18: 257.636806 | HR18: 254.281596 | HS18: 258.82194 | HT18: 265.211328 | HU18: 262.60296 | HV18: 265.26528 | HW18: 258.54276 | HX18: 248.94176 | HY18: 251.938336 | HZ18: 250.785834 | IA18: 253.74778 | IB18: 247.557957 | IC18: 249.958929 | ID18: 248.825268 | IE18: 245.811363 | IF18: 247.26041 | IG18: 245.573009 | IH18: 248.599845 | II18: 242.059563 | IJ18: 247.366084 | IK18: 252.480102 | IL18: 252.736176 | IM18: 247.632068 | IN18: 244.943715 | IO18: 244.435722 | IP18: 249.943752 | IQ18: 248.359111 | IR18: 252.280284 | IS18: 251.960326 | IT18: 252.72089 | IU18: 252.6525 | IV18: 265.31968 | IW18: 263.101482 | IX18: 262.713088 | IY18: 281.948914 | IZ18: 272.269042 | JA18: 274.870039 | JB18: 273.12684 | JC18: 262.070832 | JD18: 255.9348 | JE18: 252.36354 | JF18: 258.458208 | JG18: 255.249731 | JH18: 247.887934 | JI18: 246.291315 | JJ18: 250.535219 | JK18: 246.70934 | JL18: 250.632495 | JM18: 254.899295 | JN18: 250.741436 | JO18: 251.392247 | JP18: 253.564458 | JQ18: 254.099181 | JR18: 259.98708 | JS18: 261.615583 | JT18: 259.15868 | JU18: 253.50402 | JV18: 241.164908 | JW18: 236.081664 | JX18: 231.152077 | JY18: 238.397565 | JZ18: 241.935245 | KA18: 261.327145 | KB18: 256.779952 | KC18: 261.514347 | KD18: 294.38352 | KE18: 295.983396 | KF18: 310.0764 | KG18: 286.142625 | KH18: 283.08784 | KI18: 273.167818 | KJ18: 267.321304 | KK18: 271.681792 | KL18: 270.587997 | KM18: 271.8908 | KN18: 271.9163 | KO18: 270.933642 | KP18: 270.912468 | KQ18: 269.69018 | KR18: 266.911158 | KS18: 266.260055 | KT18: 275.479888 | KU18: 287.75495 | KV18: 283.94526 | KW18: 287.21468 | KX18: 277.641264 | KY18: 274.299315 | KZ18: 284.344248 | LA18: 278.79813 | LB18: 274.264452 | LC18: 272.59897 | LD18: 265.642486 | LE18: 264.19594 | LF18: 266.395815 | LG18: 265.053567 | LH18: 269.89902 | LI18: 271.3999 | LJ18: 291.192195 | LK18: 297.143223 | LL18: 314.839952 | LM18: 311.415852 | LN18: 293.23188 | LO18: 289.468119 | LP18: 295.982316 | LQ18: 287.721636 | LR18: 300.251824 | LS18: 288.47467 | LT18: 279.27674 | LU18: 284.920323 | LV18: 283.38681 | LW18: 283.416309 | LX18: 279.97816 | LY18: 291.495042 | LZ18: 292.138 | MA18: 296.45282 | MB18: 303.93948 | MC18: 300.3292 | MD18: 296.419746 | ME18: 295.84344 | MF18: 299.736225 | MG18: 300.32862 | MH18: 298.54153 | MI18: 293.363346 | MJ18: 300.458004 | MK18: 297.430497 | ML18: 310.59768 | MM18: 312.215239 | MN18: 307.996344 | MO18: 309.00735 | MP18: 302.70864 | MQ18: 310.214154 | MR18: 311.663805 | MS18: 315.470148 | MT18: 308.447079 | MU18: 306.2118 | MV18: 308.592243 | MW18: 314.609733 | MX18: 310.785755 | MY18: 303.41256 | MZ18: 300.111546 | NA18: 303.219955 | NB18: 309.73795 | NC18: 316.368975 | ND18: 309.960321 | NE18: 314.84991 | NF18: 312.619715 | NG18: 310.106516 | NH18: 311.392865 | NI18: 312.054081 | NJ18: 312.90168 | NK18: 309.98136 | NL18: 314.93187 | NM18: 312.499215 | NN18: 314.76588 | NO18: 315.618758 | NP18: 312.797611 | NQ18: 309.58092 | NR18: 308.434235 | NS18: 310.330046 | NT18: 310.935495 | NU18: 309.578629 | NV18: 312.36822 | NW18: 307.917029 | NX18: 308.585024 | NY18: 312.3794 | NZ18: 309.048782 | OA18: 309.116844 | OB18: 304.66746 | OC18: 304.292725 | OD18: 311.38325 | OE18: 311.525984 | OF18: 313.133523 | OG18: 310.402826 | OH18: 310.727408 | OI18: 314.095224 | OJ18: 312.879474 | OK18: 312.797784 | OL18: 318.306392 | OM18: 328.825548
A19: India | B19: 12.6263 | C19: 12.9817 | D19: 12.4296 | E19: 12.497 | F19: 12.5245 | G19: 12.4315 | H19: 11.8203 | I19: 11.9643 | J19: 11.9914 | K19: 12.0211 | L19: 12.0043 | M19: 12.1655 | N19: 12.354 | O19: 12.1517 | P19: 12.2871 | Q19: 12.2953 | R19: 12.7885 | S19: 12.5329 | T19: 12.6132 | U19: 12.582 | V19: 12.6897 | W19: 13.0376 | X19: 13.0892 | Y19: 13.122 | Z19: 13.0435 | AA19: 13.0804 | AB19: 12.9283 | AC19: 12.6404 | AD19: 12.8536 | AE19: 12.9343 | AF19: 13.1174 | AG19: 13.0713 | AH19: 13.1006 | AI19: 13.1018 | AJ19: 12.8583 | AK19: 12.8772 | AL19: 13.1319 | AM19: 13.0791 | AN19: 12.9535 | AO19: 13.1865 | AP19: 13.4703 | AQ19: 14.1101 | AR19: 14.3234 | AS19: 14.3919 | AT19: 14.5654 | AU19: 14.8315 | AV19: 14.9694 | AW19: 14.9489 | AX19: 15.1876 | AY19: 15.3466 | AZ19: 15.6324 | BA19: 15.8876 | BB19: 16.3033 | BC19: 16.5308 | BD19: 16.4043 | BE19: 16.7197 | BF19: 16.6749 | BG19: 16.897 | BH19: 16.9346 | BI19: 17.0352 | BJ19: 16.9658 | BK19: 17.0654 | BL19: 17.2267 | BM19: 17.2983 | BN19: 17.4495 | BO19: 17.4532 | BP19: 17.3261 | BQ19: 17.6269 | BR19: 18.0678 | BS19: 18.1701 | BT19: 18.1499 | BU19: 18.0732 | BV19: 18.5827 | BW19: 19.0774 | BX19: 19.6197 | BY19: 20.0761 | BZ19: 20.9588 | CA19: 21.1903 | CB19: 25.7524 | CC19: 25.904 | CD19: 25.7632 | CE19: 25.9087 | CF19: 25.9856 | CG19: 25.8338 | CH19: 25.8871 | CI19: 25.9047 | CJ19: 25.89 | CK19: 25.89 | CL19: 25.89 | CM19: 25.89 | CN19: 25.89 | CO19: 25.89 | CP19: 25.89 | CQ19: 25.89 | CR19: 25.89 | CS19: 26.2 | CT19: 26.2 | CU19: 26.2 | CV19: 31.23 | CW19: 31.31 | CX19: 31.38 | CY19: 31.34 | CZ19: 31.37 | DA19: 31.38 | DB19: 31.37 | DC19: 31.37 | DD19: 31.37 | DE19: 31.38 | DF19: 31.37 | DG19: 31.37 | DH19: 31.37 | DI19: 31.37 | DJ19: 31.37 | DK19: 31.37 | DL19: 31.38 | DM19: 31.37 | DN19: 31.37 | DO19: 31.37 | DP19: 31.39 | DQ19: 31.38 | DR19: 31.37 | DS19: 31.43 | DT19: 31.5 | DU19: 31.39 | DV19: 31.42 | DW19: 31.42 | DX19: 31.4 | DY19: 31.84 | DZ19: 34.01 | EA19: 34.62 | EB19: 34.94 | EC19: 35.18 | ED19: 36.49 | EE19: 35.03 | EF19: 34.33 | EG19: 34.52 | EH19: 35.09 | EI19: 35.06 | EJ19: 35.68 | EK19: 35.68 | EL19: 35.76 | EM19: 35.68 | EN19: 35.76 | EO19: 35.93 | EP19: 35.88 | EQ19: 35.89 | ER19: 35.91 | ES19: 35.78 | ET19: 35.79 | EU19: 35.82 | EV19: 35.71 | EW19: 36.36 | EX19: 36.18 | EY19: 36.4 | EZ19: 38.57 | FA19: 39.28 | FB19: 38.92 | FC19: 39.3 | FD19: 39.5 | FE19: 39.73 | FF19: 41.5 | FG19: 42.47 | FH19: 42.56 | FI19: 42.545 | FJ19: 42.49 | FK19: 42.37 | FL19: 42.63 | FM19: 42.48 | FN19: 42.5 | FO19: 42.49 | FP19: 42.43 | FQ19: 42.82 | FR19: 42.84 | FS19: 43.36 | FT19: 43.29 | FU19: 43.48 | FV19: 43.61 | FW19: 43.42 | FX19: 43.41 | FY19: 43.49 | FZ19: 43.64 | GA19: 43.61 | GB19: 43.62 | GC19: 43.66 | GD19: 44.58 | GE19: 44.68 | GF19: 44.99 | GG19: 45.8 | GH19: 46.07 | GI19: 46.8 | GJ19: 46.84 | GK19: 46.75 | GL19: 46.41 | GM19: 46.61 | GN19: 46.64 | GO19: 46.86 | GP19: 46.99 | GQ19: 47.04 | GR19: 47.16 | GS19: 47.15 | GT19: 47.86 | GU19: 47.97 | GV19: 47.99 | GW19: 48.18 | GX19: 48.58 | GY19: 48.81 | GZ19: 48.8 | HA19: 48.97 | HB19: 49.03 | HC19: 48.87 | HD19: 48.68 | HE19: 48.51 | HF19: 48.38 | HG19: 48.41 | HH19: 48.27 | HI19: 48.03 | HJ19: 47.8 | HK19: 47.67 | HL19: 47.55 | HM19: 47.35 | HN19: 47.03 | HO19: 46.47 | HP19: 46.14 | HQ19: 45.85 | HR19: 45.85 | HS19: 45.315 | HT19: 45.935 | HU19: 45.605 | HV19: 45.305 | HW19: 45.255 | HX19: 43.445 | HY19: 44.375 | HZ19: 45.555 | IA19: 45.975 | IB19: 46.445 | IC19: 46.345 | ID19: 46.155 | IE19: 45.455 | IF19: 44.755 | IG19: 43.585 | IH19: 43.695 | II19: 43.64 | IJ19: 43.755 | IK19: 43.645 | IL19: 43.685 | IM19: 43.515 | IN19: 43.49 | IO19: 44.04 | IP19: 43.99 | IQ19: 45.115 | IR19: 45.935 | IS19: 45.065 | IT19: 44.07 | IU19: 44.435 | IV19: 44.605 | IW19: 44.985 | IX19: 46.43 | IY19: 45.085 | IZ19: 46.495 | JA19: 46.545 | JB19: 45.955 | JC19: 45.025 | JD19: 44.76 | JE19: 44.245 | JF19: 44.175 | JG19: 44.3 | JH19: 43.595 | JI19: 41.295 | JJ19: 40.735 | JK19: 40.755 | JL19: 40.425 | JM19: 40.955 | JN19: 39.735 | JO19: 39.32 | JP19: 39.675 | JQ19: 39.415 | JR19: 39.395 | JS19: 39.925 | JT19: 39.985 | JU19: 40.46 | JV19: 42.585 | JW19: 42.95 | JX19: 42.485 | JY19: 43.785 | JZ19: 46.935 | KA19: 49.245 | KB19: 49.84 | KC19: 48.455 | KD19: 49.025 | KE19: 50.725 | KF19: 50.945 | KG19: 50.225 | KH19: 47.29 | KI19: 47.88 | KJ19: 48.155 | KK19: 48.885 | KL19: 48.04 | KM19: 46.96 | KN19: 46.48 | KO19: 46.68 | KP19: 46.375 | KQ19: 46.235 | KR19: 45.135 | KS19: 44.445 | KT19: 46.44 | KU19: 46.6 | KV19: 46.46 | KW19: 47.08 | KX19: 44.92 | KY19: 44.54 | KZ19: 46.04 | LA19: 44.81 | LB19: 45.95 | LC19: 45.18 | LD19: 44.65 | LE19: 44.38 | LF19: 45.03 | LG19: 44.72 | LH19: 44.1553 | LI19: 46.019 | LJ19: 48.9253 | LK19: 48.873 | LL19: 52.165 | LM19: 53.26 | LN19: 49.6825 | LO19: 48.9408 | LP19: 51.1565 | LQ19: 52.5193 | LR19: 56.4225 | LS19: 56.309 | LT19: 55.807 | LU19: 55.7215 | LV19: 52.697 | LW19: 54.1175 | LX19: 54.5265 | LY19: 54.7773 | LZ19: 53.289 | MA19: 53.7735 | MB19: 54.3893 | MC19: 54.219 | MD19: 56.4958 | ME19: 59.6995 | MF19: 61.115 | MG19: 66.5742 | MH19: 62.777 | MI19: 61.41 | MJ19: 62.3948 | MK19: 61.897 | ML19: 62.4768 | MM19: 62.072 | MN19: 60.0998 | MO19: 60.3375 | MP19: 59.0335 | MQ19: 60.0933 | MR19: 60.246 | MS19: 60.4745 | MT19: 61.6135 | MU19: 61.408 | MV19: 61.9736 | MW19: 63.3315 | MX19: 61.7575 | MY19: 61.7908 | MZ19: 62.5908 | NA19: 63.578 | NB19: 63.7615 | NC19: 63.7549 | ND19: 64.0054 | NE19: 66.3062 | NF19: 65.7418 | NG19: 65.2231 | NH19: 66.8148 | NI19: 66.326 | NJ19: 67.8763 | NK19: 68.616 | NL19: 66.3329 | NM19: 66.5176 | NN19: 67.203 | NO19: 67.6166 | NP19: 67.034 | NQ19: 66.9813 | NR19: 66.6596
A20: Indonesia | B20: 1082 | C20: 1092 | D20: 1102 | E20: 1109 | F20: 1117 | G20: 1118 | H20: 1116 | I20: 1119 | J20: 1121 | K20: 1123 | L20: 1122 | M20: 1125 | N20: 1127 | O20: 1128 | P20: 1125 | Q20: 1124 | R20: 1130 | S20: 1131 | T20: 1131 | U20: 1132 | V20: 1633 | W20: 1640 | X20: 1650 | Y20: 1641 | Z20: 1633 | AA20: 1644 | AB20: 1644 | AC20: 1641 | AD20: 1649 | AE20: 1648 | AF20: 1640 | AG20: 1640 | AH20: 1650 | AI20: 1648 | AJ20: 1650 | AK20: 1650 | AL20: 1662 | AM20: 1660 | AN20: 1660 | AO20: 1669 | AP20: 1673 | AQ20: 1688 | AR20: 1693 | AS20: 1699 | AT20: 1706 | AU20: 1715 | AV20: 1721 | AW20: 1731 | AX20: 1740 | AY20: 1745 | AZ20: 1756 | BA20: 1759 | BB20: 1771 | BC20: 1773 | BD20: 1774 | BE20: 1785 | BF20: 1783 | BG20: 1791 | BH20: 1791 | BI20: 1797 | BJ20: 1805 | BK20: 1812 | BL20: 1823 | BM20: 1829 | BN20: 1836 | BO20: 1844 | BP20: 1849 | BQ20: 1858 | BR20: 1864 | BS20: 1872 | BT20: 1884 | BU20: 1901 | BV20: 1912 | BW20: 1920 | BX20: 1932 | BY20: 1939 | BZ20: 1947 | CA20: 1954 | CB20: 1959 | CC20: 1965 | CD20: 1968 | CE20: 1977 | CF20: 1985 | CG20: 1992 | CH20: 2004 | CI20: 2010 | CJ20: 2017 | CK20: 2022 | CL20: 2027 | CM20: 2033 | CN20: 2035 | CO20: 2034 | CP20: 2038 | CQ20: 2050 | CR20: 2059 | CS20: 2062 | CT20: 2066 | CU20: 2067 | CV20: 2071 | CW20: 2074 | CX20: 2078 | CY20: 2088 | CZ20: 2096 | DA20: 2102 | DB20: 2108 | DC20: 2106 | DD20: 2106 | DE20: 2110 | DF20: 2122 | DG20: 2137 | DH20: 2143 | DI20: 2149 | DJ20: 2155 | DK20: 2160 | DL20: 2169 | DM20: 2175 | DN20: 2181 | DO20: 2186 | DP20: 2193 | DQ20: 2200 | DR20: 2207 | DS20: 2212 | DT20: 2219 | DU20: 2227 | DV20: 2236 | DW20: 2246 | DX20: 2256 | DY20: 2266 | DZ20: 2275 | EA20: 2285 | EB20: 2296 | EC20: 2308 | ED20: 2311 | EE20: 2322 | EF20: 2337 | EG20: 2342 | EH20: 2354 | EI20: 2342 | EJ20: 2353 | EK20: 2363 | EL20: 2340 | EM20: 2352 | EN20: 2368 | EO20: 2383 | EP20: 2396 | EQ20: 2406 | ER20: 2419 | ES20: 2433 | ET20: 2440 | EU20: 2450 | EV20: 2599 | EW20: 3035 | EX20: 3275 | EY20: 3670 | EZ20: 3648 | FA20: 4650 | FB20: 10375 | FC20: 8750 | FD20: 8325 | FE20: 7500 | FF20: 10525 | FG20: 14900 | FH20: 13000 | FI20: 11075 | FJ20: 10700 | FK20: 7550 | FL20: 7300 | FM20: 8025 | FN20: 8950 | FO20: 8730 | FP20: 8685 | FQ20: 8260 | FR20: 8105 | FS20: 6726 | FT20: 6875 | FU20: 7565 | FV20: 8386 | FW20: 6900 | FX20: 7425 | FY20: 7085 | FZ20: 7425 | GA20: 7505 | GB20: 7590 | GC20: 7945 | GD20: 8620 | GE20: 8735 | GF20: 9003 | GG20: 8290 | GH20: 8780 | GI20: 9395 | GJ20: 9530 | GK20: 9595 | GL20: 9450 | GM20: 9835 | GN20: 10400 | GO20: 11675 | GP20: 11058 | GQ20: 11440 | GR20: 9525 | GS20: 8865 | GT20: 9675 | GU20: 10435 | GV20: 10430 | GW20: 10400 | GX20: 10320 | GY20: 10189 | GZ20: 9655 | HA20: 9316 | HB20: 8785 | HC20: 8730 | HD20: 9108 | HE20: 8867 | HF20: 9015 | HG20: 9233 | HH20: 8976 | HI20: 8940 | HJ20: 8876 | HK20: 8905 | HL20: 8908 | HM20: 8675 | HN20: 8279 | HO20: 8285 | HP20: 8505 | HQ20: 8535 | HR20: 8389 | HS20: 8495 | HT20: 8537 | HU20: 8465 | HV20: 8441 | HW20: 8447 | HX20: 8587 | HY20: 8661 | HZ20: 9210 | IA20: 9415 | IB20: 9168 | IC20: 9328 | ID20: 9170 | IE20: 9090 | IF20: 9018 | IG20: 9290 | IH20: 9165 | II20: 9260 | IJ20: 9480 | IK20: 9570 | IL20: 9495 | IM20: 9713 | IN20: 9819 | IO20: 10240 | IP20: 10310 | IQ20: 10090 | IR20: 10035 | IS20: 9830 | IT20: 9395 | IU20: 9230 | IV20: 9075 | IW20: 8775 | IX20: 9220 | IY20: 9300 | IZ20: 9070 | JA20: 9100 | JB20: 9235 | JC20: 9110 | JD20: 9165 | JE20: 9020 | JF20: 9090 | JG20: 9160 | JH20: 9118 | JI20: 9083 | JJ20: 8815 | JK20: 9054 | JL20: 9186 | JM20: 9410 | JN20: 9137 | JO20: 9103 | JP20: 9376 | JQ20: 9419 | JR20: 9291 | JS20: 9051 | JT20: 9217 | JU20: 9234 | JV20: 9318 | JW20: 9225 | JX20: 9118 | JY20: 9153 | JZ20: 9378 | KA20: 10995 | KB20: 12151 | KC20: 10950 | KD20: 11355 | KE20: 11980 | KF20: 11575 | KG20: 10713 | KH20: 10340 | KI20: 10225 | KJ20: 9920 | KK20: 10060 | KL20: 9681 | KM20: 9545 | KN20: 9480 | KO20: 9400 | KP20: 9365 | KQ20: 9335 | KR20: 9115 | KS20: 9012 | KT20: 9180 | KU20: 9083 | KV20: 8952 | KW20: 9041 | KX20: 8924 | KY20: 8928 | KZ20: 9013 | LA20: 8991 | LB20: 9057 | LC20: 8823 | LD20: 8709 | LE20: 8574 | LF20: 8537 | LG20: 8597 | LH20: 8508 | LI20: 8578 | LJ20: 8823 | LK20: 8835 | LL20: 9170 | LM20: 9068 | LN20: 9000 | LO20: 9085 | LP20: 9180 | LQ20: 9190 | LR20: 9565 | LS20: 9480 | LT20: 9485 | LU20: 9560 | LV20: 9588 | LW20: 9615 | LX20: 9605 | LY20: 9670 | LZ20: 9698 | MA20: 9667 | MB20: 9719 | MC20: 9722 | MD20: 9802 | ME20: 9929 | MF20: 10278 | MG20: 10924 | MH20: 11613 | MI20: 11234 | MJ20: 11977 | MK20: 12189 | ML20: 12226 | MM20: 11634 | MN20: 11404 | MO20: 11532 | MP20: 11611 | MQ20: 11969 | MR20: 11591 | MS20: 11717 | MT20: 12212 | MU20: 12082 | MV20: 12196 | MW20: 12440 | MX20: 12625 | MY20: 12863 | MZ20: 13084 | NA20: 12937 | NB20: 13211 | NC20: 13332 | ND20: 13481 | NE20: 14027 | NF20: 14657 | NG20: 13639 | NH20: 13840 | NI20: 13795 | NJ20: 13846 | NK20: 13395 | NL20: 13276 | NM20: 13204 | NN20: 13615 | NO20: 13180 | NP20: 13094 | NQ20: 13300 | NR20: 12998 | NS20: 13051 | NT20: 13563 | NU20: 13436 | NV20: 13343 | NW20: 13347 | NX20: 13321 | NY20: 13327 | NZ20: 13321 | OA20: 13319 | OB20: 13323 | OC20: 13351 | OD20: 13492 | OE20: 13572 | OF20: 13514 | OG20: 13548 | OH20: 13413 | OI20: 13707 | OJ20: 13756 | OK20: 13877 | OL20: 13951 | OM20: 14404
A21: Jamaica | B21: 5.13 | C21: 5.04 | D21: 5.48 | E21: 5.48 | F21: 5.5 | G21: 5.62 | H21: 5.76 | I21: 5.76 | J21: 5.93 | K21: 5.989 | L21: 5.48 | M21: 5.48 | N21: 5.48 | O21: 5.48 | P21: 5.46 | Q21: 5.48 | R21: 5.47 | S21: 5.48 | T21: 5.48 | U21: 5.46 | V21: 5.47 | W21: 5.49 | X21: 5.48 | Y21: 5.48 | Z21: 5.48 | AA21: 5.49 | AB21: 5.48 | AC21: 5.49 | AD21: 5.49 | AE21: 5.49 | AF21: 5.48 | AG21: 5.48 | AH21: 5.48 | AI21: 5.49 | AJ21: 5.49 | AK21: 5.5 | AL21: 5.48 | AM21: 5.51 | AN21: 5.48 | AO21: 5.49 | AP21: 5.5 | AQ21: 5.48 | AR21: 5.49 | AS21: 5.49 | AT21: 5.48 | AU21: 5.5 | AV21: 5.5 | AW21: 5.48 | AX21: 5.48 | AY21: 5.48 | AZ21: 5.49 | BA21: 5.5 | BB21: 5.48 | BC21: 5.48 | BD21: 5.5 | BE21: 5.68 | BF21: 5.91 | BG21: 6.19 | BH21: 6.48 | BI21: 6.48 | BJ21: 6.95 | BK21: 6.95 | BL21: 6.95 | BM21: 6.95 | BN21: 6.95 | BO21: 6.95 | BP21: 6.95 | BQ21: 6.95 | BR21: 7.8643 | BS21: 7.9519 | BT21: 8.0384 | BU21: 8.0376 | BV21: 8.1848 | BW21: 8.2429 | BX21: 8.4399 | BY21: 8.799 | BZ21: 10.2791 | CA21: 10.131 | CB21: 10.1527 | CC21: 11.9513 | CD21: 16.7646 | CE21: 18.6451 | CF21: 19.5019 | CG21: 21.4925 | CH21: 22.0378 | CI21: 23.3513 | CJ21: 27.2672 | CK21: 24.6156 | CL21: 22.9897 | CM21: 22.3022 | CN21: 22.1684 | CO21: 22.1727 | CP21: 22.1809 | CQ21: 22.1749 | CR21: 22.177 | CS21: 22.1846 | CT21: 22.1837 | CU21: 22.1856 | CV21: 22.1845 | CW21: 22.1849 | CX21: 22.1828 | CY21: 22.5938 | CZ21: 25.9993 | DA21: 27.3217 | DB21: 27.5165 | DC21: 28.2822 | DD21: 30.8751 | DE21: 32.4745 | DF21: 32.7983 | DG21: 33.0822 | DH21: 33.0999 | DI21: 33.0101 | DJ21: 33.4697 | DK21: 33.3837 | DL21: 33.3418 | DM21: 33.2654 | DN21: 33.2853 | DO21: 33.1603 | DP21: 33.187 | DQ21: 33.2015 | DR21: 33.14 | DS21: 33.09 | DT21: 32.2528 | DU21: 33.4523 | DV21: 33.6646 | DW21: 33.7382 | DX21: 34.1182 | DY21: 35.4429 | DZ21: 36.7916 | EA21: 38.6557 | EB21: 39.5512 | EC21: 39.6164 | ED21: 39.631 | EE21: 39.7862 | EF21: 38.8445 | EG21: 39.8088 | EH21: 38.1352 | EI21: 35.3799 | EJ21: 35.4926 | EK21: 34.9238 | EL21: 34.82 | EM21: 34.9087 | EN21: 34.9545 | EO21: 34.8654 | EP21: 34.6221 | EQ21: 34.9522 | ER21: 34.9837 | ES21: 35.3797 | ET21: 35.2829 | EU21: 35.2491 | EV21: 35.3729 | EW21: 35.476 | EX21: 35.9526 | EY21: 35.9518 | EZ21: 36.1643 | FA21: 36.3406 | FB21: 36.2172 | FC21: 36.4558 | FD21: 36.3945 | FE21: 36.4641 | FF21: 36.3483 | FG21: 36.2834 | FH21: 36.3146 | FI21: 36.452 | FJ21: 36.6109 | FK21: 36.9497 | FL21: 37.1277 | FM21: 37.0549 | FN21: 37.5423 | FO21: 37.8381 | FP21: 38.1808 | FQ21: 38.2852 | FR21: 38.5369 | FS21: 38.7742 | FT21: 39.5854 | FU21: 39.653 | FV21: 39.8524 | FW21: 40.0783 | FX21: 40.6667 | FY21: 41.2907 | FZ21: 42.0107 | GA21: 41.9732 | GB21: 42.0724 | GC21: 42.0232 | GD21: 42.1546 | GE21: 42.4088 | GF21: 42.487 | GG21: 43.1172 | GH21: 44.6114 | GI21: 44.6103 | GJ21: 45.3262 | GK21: 45.4149 | GL21: 45.6947 | GM21: 45.6545 | GN21: 45.6077 | GO21: 45.5419 | GP21: 45.7261 | GQ21: 45.7511 | GR21: 45.6572 | GS21: 45.7249 | GT21: 45.8944 | GU21: 47.4863 | GV21: 47.1505 | GW21: 47.286 | GX21: 47.4929 | GY21: 47.4464 | GZ21: 47.5618 | HA21: 47.8195 | HB21: 48.2295 | HC21: 48.4837 | HD21: 48.59 | HE21: 48.9565 | HF21: 49.1737 | HG21: 49.3678 | HH21: 49.859 | HI21: 50.7617 | HJ21: 52.8584 | HK21: 53.6222 | HL21: 56.0789 | HM21: 57.1243 | HN21: 59.2497 | HO21: 58.7829 | HP21: 59.0449 | HQ21: 59.2313 | HR21: 59.6043 | HS21: 60.2623 | HT21: 60.55415 | HU21: 60.5171 | HV21: 60.6027 | HW21: 60.8406 | HX21: 60.8982 | HY21: 60.3924 | HZ21: 60.787 | IA21: 60.9923 | IB21: 61.4466 | IC21: 61.6886 | ID21: 61.7203 | IE21: 61.7698 | IF21: 61.8049 | IG21: 61.45 | IH21: 61.7312 | II21: 61.7437 | IJ21: 61.4533 | IK21: 61.5051 | IL21: 61.5783 | IM21: 61.6669 | IN21: 62.1418 | IO21: 62.0824 | IP21: 62.08235 | IQ21: 62.74675 | IR21: 64.549 | IS21: 64.3807 | IT21: 64.8155 | IU21: 65.2112 | IV21: 65.3793 | IW21: 65.5114 | IX21: 65.6278 | IY21: 65.9021 | IZ21: 65.8621 | JA21: 65.86865 | JB21: 65.9712 | JC21: 66.4118 | JD21: 66.805 | JE21: 67.0321 | JF21: 67.4473 | JG21: 67.4096 | JH21: 67.68215 | JI21: 67.95835 | JJ21: 68.0991 | JK21: 68.4212 | JL21: 68.7623 | JM21: 69.69235 | JN21: 70.26725 | JO21: 71.0493 | JP21: 71.20405 | JQ21: 70.3966 | JR21: 71.59295 | JS21: 71.23455 | JT21: 70.9413 | JU21: 71.21625 | JV21: 71.38765 | JW21: 71.71325 | JX21: 71.85165 | JY21: 71.90235 | JZ21: 72.47885 | KA21: 76.1253 | KB21: 77.5128 | KC21: 80.2167 | KD21: 85.8368 | KE21: 88.0531 | KF21: 88.385 | KG21: 88.78295 | KH21: 88.97375 | KI21: 88.8327 | KJ21: 88.8109 | KK21: 88.8021 | KL21: 88.8674 | KM21: 89.1037 | KN21: 89.3837 | KO21: 89.3279 | KP21: 89.4844 | KQ21: 89.58815 | KR21: 89.23245 | KS21: 88.9342 | KT21: 88.0885 | KU21: 85.7313 | KV21: 85.8825 | KW21: 85.3509 | KX21: 86.0219 | KY21: 85.3825 | KZ21: 85.9415 | LA21: 85.6011 | LB21: 85.4668 | LC21: 85.678 | LD21: 85.5727 | LE21: 85.5419 | LF21: 85.5838 | LG21: 85.7277 | LH21: 85.9147 | LI21: 85.9568 | LJ21: 86.1207 | LK21: 86.2778 | LL21: 86.5007 | LM21: 86.368 | LN21: 86.6169 | LO21: 86.83985 | LP21: 87.1154 | LQ21: 87.1685 | LR21: 87.88765 | LS21: 88.4486 | LT21: 89.3815 | LU21: 89.61295 | LV21: 89.7207 | LW21: 90.80495 | LX21: 91.555 | LY21: 92.5637 | LZ21: 93.60735 | MA21: 96.69655 | MB21: 98.4109 | MC21: 98.4109 | MD21: 99.0553 | ME21: 100.96715 | MF21: 101.60855 | MG21: 101.8653 | MH21: 103.23485 | MI21: 104.6866 | MJ21: 105.60755 | MK21: 106.0471 | ML21: 107.3637 | MM21: 108.0458 | MN21: 109.28435 | MO21: 109.84845 | MP21: 111.10385 | MQ21: 111.8606 | MR21: 112.6074 | MS21: 112.59995 | MT21: 112.52655 | MU21: 112.4939 | MV21: 113.3583288 | MW21: 114.39 | MX21: 115.6719343 | MY21: 115.39545 | MZ21: 114.7659 | NA21: 115.35495 | NB21: 115.35495 | NC21: 116.6654 | ND21: 117.08715 | NE21: 117.51615 | NF21: 118.70065 | NG21: 119.5755 | NH21: 119.58865 | NI21: 120.02845 | NJ21: 121.13965 | NK21: 121.5143 | NL21: 121.7024881 | NM21: 122.7618574 | NN21: 125.06766 | NO21: 126.0812579 | NP21: 126.2261319 | NQ21: 117.51615 | NR21: 127.929961 | NS21: 128.7033086 | NT21: 128.6701 | NU21: 127.9605 | NV21: 127.9391014 | NW21: 127.8191 | NX21: 128.2168 | NY21: 128.86655 | NZ21: 129.72375 | OA21: 128.1306 | OB21: 127.60585 | OC21: 129.2588 | OD21: 129.20085 | OE21: 126.68505 | OF21: 125.54055 | OG21: 124.3041 | OH21: 124.7149 | OI21: 127.1471 | OJ21: 125.31975 | OK21: 124.82775 | OL21: 126.99415 | OM21: 129.36285
A22: Jordan | B22: 0.408496732 | C22: 0.415247903 | D22: 0.40374677 | E22: 0.4032420662 | F22: 0.4032420662 | G22: 0.3982477102 | H22: 0.3862495172 | I22: 0.3887420308 | J22: 0.3783436117 | K22: 0.376747165 | L22: 0.3692489476 | M22: 0.3677552221 | N22: 0.3639539962 | O22: 0.3508525717 | P22: 0.3577433549 | Q22: 0.3463563314 | R22: 0.3586028833 | S22: 0.3479955457 | T22: 0.3437961976 | U22: 0.3412969283 | V22: 0.341997264 | W22: 0.3449941351 | X22: 0.3425009419 | Y22: 0.3441037817 | Z22: 0.3374046832 | AA22: 0.3396969903 | AB22: 0.333900965 | AC22: 0.3302618977 | AD22: 0.3356042555 | AE22: 0.3417985439 | AF22: 0.3446018126 | AG22: 0.3407038942 | AH22: 0.3461045928 | AI22: 0.3386042732 | AJ22: 0.3331001632 | AK22: 0.3290014805 | AL22: 0.3375983255 | AM22: 0.3382034632 | AN22: 0.3346048317 | AO22: 0.3386960203 | AP22: 0.343194454 | AQ22: 0.3644979041 | AR22: 0.370800224 | AS22: 0.3756009615 | AT22: 0.3783006734 | AU22: 0.4430071324 | AV22: 0.4660049397 | AW22: 0.4770082045 | AX22: 0.49200492 | AY22: 0.5399859604 | AZ22: 0.5399859604 | BA22: 0.5399859604 | BB22: 0.5694112288 | BC22: 0.5683109798 | BD22: 0.5764020981 | BE22: 0.6062810719 | BF22: 0.6150818059 | BG22: 0.6309944472 | BH22: 0.6439979392 | BI22: 0.6480041472 | BJ22: 0.6619886138 | BK22: 0.6719978496 | BL22: 0.6710058378 | BM22: 0.6710058378 | BN22: 0.6710058378 | BO22: 0.668002672 | BP22: 0.6609822196 | BQ22: 0.6579813133 | BR22: 0.6579813133 | BS22: 0.6559958016 | BT22: 0.6599788807 | BU22: 0.6649820455 | BV22: 0.666977923 | BW22: 0.668002672 | BX22: 0.681988679 | BY22: 0.6830134554 | BZ22: 0.6809994348 | CA22: 0.687994496 | CB22: 0.687994496 | CC22: 0.690989497 | CD22: 0.6870019236 | CE22: 0.6870019236 | CF22: 0.681988679 | CG22: 0.6749915626 | CH22: 0.6780120686 | CI22: 0.681988679 | CJ22: 0.687994496 | CK22: 0.6899882702 | CL22: 0.6789788159 | CM22: 0.6719978496 | CN22: 0.6700167504 | CO22: 0.6640106242 | CP22: 0.672992799 | CQ22: 0.686012211 | CR22: 0.690989497 | CS22: 0.690989497 | CT22: 0.6889899407 | CU22: 0.690989497 | CV22: 0.6870019236 | CW22: 0.683994528 | CX22: 0.6819979813 | CY22: 0.6949994788 | CZ22: 0.6970098278 | DA22: 0.693000693 | DB22: 0.6909990464 | DC22: 0.7010017315 | DD22: 0.702000702 | DE22: 0.7040022528 | DF22: 0.704999859 | DG22: 0.6989976374 | DH22: 0.7000007 | DI22: 0.6980023174 | DJ22: 0.6989976374 | DK22: 0.688999435 | DL22: 0.6949994788 | DM22: 0.6989976374 | DN22: 0.6980023174 | DO22: 0.6919984222 | DP22: 0.702000702 | DQ22: 0.7010017315 | DR22: 0.6970001115 | DS22: 0.6949994788 | DT22: 0.6909990464 | DU22: 0.6909990464 | DV22: 0.6919984222 | DW22: 0.6949994788 | DX22: 0.6980023174 | DY22: 0.7120022214 | DZ22: 0.7109998791 | EA22: 0.7089986104 | EB22: 0.7089986104 | EC22: 0.7089986104 | ED22: 0.7089986104 | EE22: 0.7089986104 | EF22: 0.7089986104 | EG22: 0.7089986104 | EH22: 0.7089986104 | EI22: 0.7089986104 | EJ22: 0.7089986104 | EK22: 0.7089986104 | EL22: 0.7089986104 | EM22: 0.7089986104 | EN22: 0.7089986104 | EO22: 0.7089986104 | EP22: 0.7089986104 | EQ22: 0.7089986104 | ER22: 0.7089986104 | ES22: 0.7089986104 | ET22: 0.7089986104 | EU22: 0.7089986104 | EV22: 0.7089986104 | EW22: 0.7089986104 | EX22: 0.7089986104 | EY22: 0.7089986104 | EZ22: 0.7089986104 | FA22: 0.7089986104 | FB22: 0.7089986104 | FC22: 0.7089986104 | FD22: 0.7089986104 | FE22: 0.7089986104 | FF22: 0.7089986104 | FG22: 0.7089986104 | FH22: 0.7089986104 | FI22: 0.7089986104 | FJ22: 0.7089986104 | FK22: 0.7089986104 | FL22: 0.7089986104 | FM22: 0.7089986104 | FN22: 0.7089986104 | FO22: 0.7089986104 | FP22: 0.7089986104 | FQ22: 0.7089986104 | FR22: 0.7089986104 | FS22: 0.7089986104 | FT22: 0.7089986104 | FU22: 0.7089986104 | FV22: 0.7089986104 | FW22: 0.7089986104 | FX22: 0.7089986104 | FY22: 0.7089986104 | FZ22: 0.7089986104 | GA22: 0.7089986104 | GB22: 0.7089986104 | GC22: 0.7089986104 | GD22: 0.7089986104 | GE22: 0.7089986104 | GF22: 0.7089986104 | GG22: 0.7089986104 | GH22: 0.7089986104 | GI22: 0.7089986104 | GJ22: 0.7089986104 | GK22: 0.7089986104 | GL22: 0.7090000179 | GM22: 0.7089986104 | GN22: 0.7089986104 | GO22: 0.7089986104 | GP22: 0.7089986104 | GQ22: 0.7089986104 | GR22: 0.7089986104 | GS22: 0.7089986104 | GT22: 0.7089986104 | GU22: 0.7089986104 | GV22: 0.7089986104 | GW22: 0.7089986104 | GX22: 0.7089986104 | GY22: 0.7089986104 | GZ22: 0.7089986104 | HA22: 0.7089986104 | HB22: 0.7089986104 | HC22: 0.7089986104 | HD22: 0.7089986104 | HE22: 0.7089986104 | HF22: 0.7089986104 | HG22: 0.7089986104 | HH22: 0.7089986104 | HI22: 0.7089986104 | HJ22: 0.7089986104 | HK22: 0.7089986104 | HL22: 0.7089986104 | HM22: 0.7089986104 | HN22: 0.7089986104 | HO22: 0.7089986104 | HP22: 0.7089986104 | HQ22: 0.7089986104 | HR22: 0.7089986104 | HS22: 0.7089986104 | HT22: 0.7089986104 | HU22: 0.7089986104 | HV22: 0.7089986104 | HW22: 0.7089986104 | HX22: 0.7089986104 | HY22: 0.7089986104 | HZ22: 0.7089986104 | IA22: 0.7089986104 | IB22: 0.7089986104 | IC22: 0.7089986104 | ID22: 0.7089986104 | IE22: 0.7089986104 | IF22: 0.7089986104 | IG22: 0.7089986104 | IH22: 0.7089986104 | II22: 0.7089986104 | IJ22: 0.7089986104 | IK22: 0.7089986104 | IL22: 0.7089986104 | IM22: 0.7089986104 | IN22: 0.7089986104 | IO22: 0.7089986104 | IP22: 0.7089986104 | IQ22: 0.7089986104 | IR22: 0.7089986104 | IS22: 0.7089986104 | IT22: 0.7089986104 | IU22: 0.7089986104 | IV22: 0.7089986104 | IW22: 0.7089986104 | IX22: 0.7089986104 | IY22: 0.7089986104 | IZ22: 0.7089986104 | JA22: 0.7089986104 | JB22: 0.7089986104 | JC22: 0.7089986104 | JD22: 0.7089986104 | JE22: 0.7089986104 | JF22: 0.7089986104 | JG22: 0.7089986104 | JH22: 0.7089986104 | JI22: 0.7089986104 | JJ22: 0.7089986104 | JK22: 0.7089986104 | JL22: 0.7089986104 | JM22: 0.7089986104 | JN22: 0.7089986104 | JO22: 0.7089986104 | JP22: 0.7089986104 | JQ22: 0.7089986104 | JR22: 0.7089986104 | JS22: 0.7090187181 | JT22: 0.7090187181 | JU22: 0.7090187181 | JV22: 0.7092198582 | JW22: 0.7092198582 | JX22: 0.7092198582 | JY22: 0.7092198582 | JZ22: 0.7092198582 | KA22: 0.7092198582 | KB22: 0.7092198582 | KC22: 0.7092198582 | KD22: 0.7092198582 | KE22: 0.7092198582 | KF22: 0.7092198582 | KG22: 0.71 | KH22: 0.71 | KI22: 0.71 | KJ22: 0.71 | KK22: 0.71 | KL22: 0.71 | KM22: 0.71 | KN22: 0.71 | KO22: 0.71 | KP22: 0.71 | KQ22: 0.71 | KR22: 0.71 | KS22: 0.71 | KT22: 0.71 | KU22: 0.71 | KV22: 0.71 | KW22: 0.71 | KX22: 0.71 | KY22: 0.71 | KZ22: 0.71 | LA22: 0.71 | LB22: 0.71 | LC22: 0.71 | LD22: 0.71 | LE22: 0.71 | LF22: 0.71 | LG22: 0.71 | LH22: 0.71 | LI22: 0.71 | LJ22: 0.71 | LK22: 0.71 | LL22: 0.71 | LM22: 0.71 | LN22: 0.71 | LO22: 0.71 | LP22: 0.71 | LQ22: 0.71 | LR22: 0.71 | LS22: 0.71 | LT22: 0.71 | LU22: 0.71 | LV22: 0.71 | LW22: 0.71 | LX22: 0.71 | LY22: 0.71 | LZ22: 0.71 | MA22: 0.71 | MB22: 0.71 | MC22: 0.71 | MD22: 0.71 | ME22: 0.71 | MF22: 0.71 | MG22: 0.71 | MH22: 0.71 | MI22: 0.71 | MJ22: 0.71 | MK22: 0.71 | ML22: 0.71 | MM22: 0.71 | MN22: 0.71 | MO22: 0.71 | MP22: 0.71 | MQ22: 0.71 | MR22: 0.71 | MS22: 0.71 | MT22: 0.71 | MU22: 0.71 | MV22: 0.71 | MW22: 0.71 | MX22: 0.71 | MY22: 0.71 | MZ22: 0.71 | NA22: 0.71 | NB22: 0.71 | NC22: 0.71 | ND22: 0.71 | NE22: 0.71 | NF22: 0.71 | NG22: 0.71 | NH22: 0.71 | NI22: 0.71 | NJ22: 0.71 | NK22: 0.71 | NL22: 0.71 | NM22: 0.71 | NN22: 0.71 | NO22: 0.71 | NP22: 0.71 | NQ22: 0.71 | NR22: 0.71
A23: Kazakhstan | DD23: 4.7 | DE23: 6.31 | DF23: 10.71 | DG23: 11.58 | DH23: 19.84 | DI23: 29.92 | DJ23: 40.22 | DK23: 42.89 | DL23: 45.33 | DM23: 46.16 | DN23: 48 | DO23: 49.55 | DP23: 52.1 | DQ23: 54.26 | DR23: 56.82 | DS23: 59.7 | DT23: 61.2 | DU23: 62.8 | DV23: 63.4 | DW23: 63.35 | DX23: 61 | DY23: 58 | DZ23: 59.9 | EA23: 62.2 | EB23: 63.9 | EC23: 63.95 | ED23: 64.8 | EE23: 65.3 | EF23: 65.1 | EG23: 65.95 | EH23: 66.8 | EI23: 66.8 | EJ23: 67.25 | EK23: 67.35 | EL23: 68.85 | EM23: 69.5 | EN23: 70.45 | EO23: 73.3 | EP23: 75.4 | EQ23: 75.5 | ER23: 75 | ES23: 75.4 | ET23: 75.55 | EU23: 75.5 | EV23: 75.5 | EW23: 75.55 | EX23: 75.55 | EY23: 75.55 | EZ23: 75.55 | FA23: 75.55 | FB23: 76.4 | FC23: 76.4 | FD23: 76.5 | FE23: 76.5 | FF23: 76.6 | FG23: 76.95 | FH23: 77.3 | FI23: 78.6 | FJ23: 80.2 | FK23: 81.45 | FL23: 82.9 | FM23: 83.8 | FN23: 84.9 | FO23: 85.4 | FP23: 87.5 | FQ23: 114.5 | FR23: 128 | FS23: 131 | FT23: 132.2 | FU23: 132 | FV23: 140 | FW23: 140.6 | FX23: 138 | FY23: 138.2 | FZ23: 139.45 | GA23: 140.15 | GB23: 141.8 | GC23: 142.15 | GD23: 142.35 | GE23: 142.6 | GF23: 142.7 | GG23: 142.65 | GH23: 142.75 | GI23: 142.65 | GJ23: 144.1 | GK23: 144.5 | GL23: 145.1 | GM23: 145.3 | GN23: 145.45 | GO23: 145.65 | GP23: 146.1 | GQ23: 146.5 | GR23: 146.8 | GS23: 147.15 | GT23: 147.7 | GU23: 148.1 | GV23: 148.55 | GW23: 150.2 | GX23: 151.3 | GY23: 151.9 | GZ23: 152.2 | HA23: 152.8 | HB23: 152.9 | HC23: 153.1 | HD23: 153.85 | HE23: 154.15 | HF23: 154.55 | HG23: 154.35 | HH23: 154.2 | HI23: 154.6 | HJ23: 155.2 | HK23: 152.6 | HL23: 151.5 | HM23: 151.75 | HN23: 151.8 | HO23: 148 | HP23: 146.79 | HQ23: 147.36 | HR23: 148.93 | HS23: 148.03 | HT23: 146.61 | HU23: 144.22 | HV23: 139.41 | HW23: 139.25 | HX23: 138.88 | HY23: 138.5 | HZ23: 137.34 | IA23: 136.45 | IB23: 136.31 | IC23: 136.61 | ID23: 134.56 | IE23: 132 | IF23: 130.02 | IG23: 130 | IH23: 130.37 | II23: 130.15 | IJ23: 132.59 | IK23: 131.61 | IL23: 132.49 | IM23: 135.26 | IN23: 135.71 | IO23: 135.25 | IP23: 133.89 | IQ23: 134 | IR23: 134.07 | IS23: 133.98 | IT23: 132.17 | IU23: 130.3 | IV23: 128.45 | IW23: 124.11 | IX23: 121.48 | IY23: 118.69 | IZ23: 118.41 | JA23: 125.24 | JB23: 127.12 | JC23: 127.82 | JD23: 127.98 | JE23: 127 | JF23: 126.24 | JG23: 123.71 | JH23: 123.75 | JI23: 120.02 | JJ23: 121.62 | JK23: 121.66 | JL23: 123.61 | JM23: 126.05 | JN23: 121.2 | JO23: 120.84 | JP23: 120.87 | JQ23: 120.3 | JR23: 120.22 | JS23: 120.87 | JT23: 120.69 | JU23: 120.39 | JV23: 120.47 | JW23: 120.75 | JX23: 120.19 | JY23: 119.65 | JZ23: 119.81 | KA23: 119.81 | KB23: 120.35 | KC23: 120.79 | KD23: 121.56 | KE23: 150.26 | KF23: 151.4 | KG23: 150.64 | KH23: 150.44 | KI23: 150.43 | KJ23: 150.71 | KK23: 150.8 | KL23: 150.95 | KM23: 150.74 | KN23: 148.67 | KO23: 148.46 | KP23: 148.21 | KQ23: 147.32 | KR23: 146.98 | KS23: 146.43 | KT23: 146.69 | KU23: 147.55 | KV23: 147.69 | KW23: 147.33 | KX23: 147.57 | KY23: 147.51 | KZ23: 147.58 | LA23: 147.5 | LB23: 146.87 | LC23: 146.02 | LD23: 145.7 | LE23: 145.54 | LF23: 145.43 | LG23: 145.83 | LH23: 146.14 | LI23: 146.46 | LJ23: 147.99 | LK23: 147.77 | LL23: 147.69 | LM23: 148.4 | LN23: 148.56 | LO23: 147.74 | LP23: 147.77 | LQ23: 147.89 | LR23: 148.06 | LS23: 149.42 | LT23: 150.01 | LU23: 149.57 | LV23: 149.86 | LW23: 150.77 | LX23: 150.52 | LY23: 150.74 | LZ23: 150.81 | MA23: 150.37 | MB23: 150.84 | MC23: 151.23 | MD23: 151.36 | ME23: 151.65 | MF23: 153.47 | MG23: 152.81 | MH23: 153.81 | MI23: 154.23 | MJ23: 153.68 | MK23: 154.06 | ML23: 155.5 | MM23: 184.08 | MN23: 182.06 | MO23: 182.06 | MP23: 183.5 | MQ23: 183.52 | MR23: 183.28 | MS23: 182 | MT23: 181.9 | MU23: 180.87 | MV23: 180.87 | MW23: 182.35 | MX23: 184.45 | MY23: 185.05 | MZ23: 185.65 | NA23: 185.8 | NB23: 185.95 | NC23: 186.2 | ND23: 187.45 | NE23: 237.66 | NF23: 270.89 | NG23: 279.18 | NH23: 307.4 | NI23: 340.01 | NJ23: 364.79 | NK23: 348.78 | NL23: 343.62 | NM23: 327.66 | NN23: 335.84 | NO23: 338.66 | NP23: 352.25 | NQ23: 340.1 | NR23: 335.46 | NS23: 335.12 | NT23: 341.44 | NU23: 333.29 | NV23: 324.24 | NW23: 312.76 | NX23: 313.73 | NY23: 314.4 | NZ23: 312.26 | OA23: 322.27 | OB23: 328.07 | OC23: 337.04 | OD23: 341.19 | OE23: 334.71 | OF23: 331.22 | OG23: 332.33 | OH23: 322.9 | OI23: 320.3 | OJ23: 318.31 | OK23: 327.25 | OL23: 329.35 | OM23: 341.08
A24: Kenya | B24: 16.0561 | C24: 16.4764 | D24: 16.1008 | E24: 16.1763 | F24: 16.1487 | G24: 16.1815 | H24: 16.5791 | I24: 17.1108 | J24: 16.7497 | K24: 16.541 | L24: 16.2846 | M24: 16.2843 | N24: 16.2407 | O24: 16.0116 | P24: 16.4868 | Q24: 16.0015 | R24: 16.58 | S24: 16.3363 | T24: 16.0609 | U24: 16.0888 | V24: 16.1694 | W24: 16.2779 | X24: 16.2156 | Y24: 16.0422 | Z24: 16.0597 | AA24: 16.2264 | AB24: 16.0405 | AC24: 16.1765 | AD24: 16.3057 | AE24: 16.4489 | AF24: 16.6219 | AG24: 16.5156 | AH24: 16.8789 | AI24: 17.0201 | AJ24: 16.981 | AK24: 16.5149 | AL24: 17.0432 | AM24: 17.1642 | AN24: 17.0271 | AO24: 17.0845 | AP24: 17.2816 | AQ24: 18.0846 | AR24: 18.1353 | AS24: 18.3981 | AT24: 18.506 | AU24: 18.2029 | AV24: 18.2335 | AW24: 18.5994 | AX24: 18.8607 | AY24: 18.8848 | AZ24: 19.3838 | BA24: 19.5968 | BB24: 20.8587 | BC24: 21.0661 | BD24: 20.844 | BE24: 21.3858 | BF24: 21.8541 | BG24: 21.8059 | BH24: 21.8603 | BI24: 21.601 | BJ24: 21.7444 | BK24: 22.128 | BL24: 22.9765 | BM24: 23.1413 | BN24: 23.0204 | BO24: 23.1304 | BP24: 23.1029 | BQ24: 23.2322 | BR24: 23.3344 | BS24: 23.217 | BT24: 23.4005 | BU24: 24.0841 | BV24: 24.7208 | BW24: 25.2054 | BX24: 26.5961 | BY24: 27.782 | BZ24: 27.8113 | CA24: 28.6553 | CB24: 28.6055 | CC24: 29.093 | CD24: 28.6643 | CE24: 28.7884 | CF24: 28.3665 | CG24: 28.0741 | CH24: 28.8148 | CI24: 29.318 | CJ24: 30.0257 | CK24: 31.5288 | CL24: 31.7689 | CM24: 32.3075 | CN24: 32.6327 | CO24: 32.8914 | CP24: 33.5362 | CQ24: 35.2858 | CR24: 35.7942 | CS24: 36.2163 | CT24: 35.9224 | CU24: 36.4557 | CV24: 45.5283 | CW24: 59.8664 | CX24: 63.1789 | CY24: 65.1424 | CZ24: 65.253 | DA24: 65.5595 | DB24: 66.9622 | DC24: 69.0639 | DD24: 68.749 | DE24: 68.1631 | DF24: 67.6655 | DG24: 67.1253 | DH24: 64.8581 | DI24: 60.7703 | DJ24: 56.4593 | DK24: 55.9589 | DL24: 55.9084 | DM24: 54.8125 | DN24: 48.0072 | DO24: 41.2678 | DP24: 45.9478 | DQ24: 44.8389 | DR24: 44.4667 | DS24: 44.4361 | DT24: 43.5522 | DU24: 45.8867 | DV24: 54.0394 | DW24: 54.6283 | DX24: 55.8333 | DY24: 55.3167 | DZ24: 55.4722 | EA24: 55.4972 | EB24: 55.5778 | EC24: 55.9389 | ED24: 59.5333 | EE24: 58.3933 | EF24: 58.3894 | EG24: 58.3333 | EH24: 58.1989 | EI24: 57.4172 | EJ24: 57.23 | EK24: 56.9222 | EL24: 56.1111 | EM24: 55.6944 | EN24: 55.4006 | EO24: 55.0211 | EP24: 54.7089 | EQ24: 54.9411 | ER24: 54.7044 | ES24: 55.4933 | ET24: 53.4478 | EU24: 54.4556 | EV24: 58.9139 | EW24: 65.9167 | EX24: 62.025 | EY24: 63.9856 | EZ24: 63.5389 | FA24: 62.6778 | FB24: 60.0389 | FC24: 59.9861 | FD24: 59.8922 | FE24: 59.7072 | FF24: 63.0639 | FG24: 59.4811 | FH24: 59.0472 | FI24: 59.5389 | FJ24: 60.0444 | FK24: 59.7311 | FL24: 60.0472 | FM24: 61.9056 | FN24: 61.7456 | FO24: 63.92 | FP24: 64.9056 | FQ24: 67.7222 | FR24: 70.5 | FS24: 72.9111 | FT24: 74.2306 | FU24: 75.1722 | FV24: 77.0722 | FW24: 75.1944 | FX24: 74.6611 | FY24: 72.9306 | FZ24: 72.8139 | GA24: 73.3972 | GB24: 74.8739 | GC24: 74.8556 | GD24: 76.7033 | GE24: 77.9528 | GF24: 74.5611 | GG24: 77.6078 | GH24: 78.9889 | GI24: 79.3556 | GJ24: 79.3 | GK24: 78.0361 | GL24: 78.6222 | GM24: 78.0806 | GN24: 77.8167 | GO24: 77.5506 | GP24: 78.5233 | GQ24: 78.985 | GR24: 78.8761 | GS24: 78.9344 | GT24: 79.0211 | GU24: 79.0811 | GV24: 78.9733 | GW24: 78.6 | GX24: 78.5967 | GY24: 78.11 | GZ24: 78.0578 | HA24: 78.3017 | HB24: 78.3211 | HC24: 78.7861 | HD24: 78.7356 | HE24: 79.0256 | HF24: 79.0256 | HG24: 79.6589 | HH24: 80.1067 | HI24: 77.0722 | HJ24: 77.7433 | HK24: 76.6033 | HL24: 76.6461 | HM24: 74.4983 | HN24: 73.1139 | HO24: 74.1667 | HP24: 75.4312 | HQ24: 76.6778 | HR24: 78.4167 | HS24: 78.4467 | HT24: 76.35 | HU24: 76.1389 | HV24: 76.4722 | HW24: 76.45 | HX24: 77.7617 | HY24: 78.3467 | HZ24: 79.3722 | IA24: 79.5128 | IB24: 80.4 | IC24: 80.0444 | ID24: 81.1144 | IE24: 81.2722 | IF24: 81.2422 | IG24: 77.3444 | IH24: 76.7278 | II24: 75.6222 | IJ24: 75.0167 | IK24: 76.6022 | IL24: 77.0567 | IM24: 76.2056 | IN24: 76.0444 | IO24: 75.6956 | IP24: 74.07777778 | IQ24: 73.60555556 | IR24: 74.48555556 | IS24: 72.3667 | IT24: 71.98222222 | IU24: 73.19777778 | IV24: 71.87222222 | IW24: 71.15777778 | IX24: 72.27 | IY24: 73.88 | IZ24: 73.61666667 | JA24: 72.6244 | JB24: 72.67888889 | JC24: 72.02 | JD24: 69.9478 | JE24: 69.3967 | JF24: 70.53666667 | JG24: 69.73333333 | JH24: 68.78111111 | JI24: 68.30555556 | JJ24: 66.96555556 | JK24: 66.56444444 | JL24: 67.50888889 | JM24: 66.98888889 | JN24: 66.9711 | JO24: 67.1144 | JP24: 64.4244 | JQ24: 62.675 | JR24: 70.5611 | JS24: 68.97777778 | JT24: 62.8478 | JU24: 62.1356 | JV24: 62.02888889 | JW24: 64.69444444 | JX24: 67.31833333 | JY24: 68.73333333 | JZ24: 73.2189 | KA24: 79.65277778 | KB24: 77.88055556 | KC24: 77.71111111 | KD24: 79.54388889 | KE24: 79.68722222 | KF24: 80.43055556 | KG24: 78.66166667 | KH24: 78.34833333 | KI24: 77.15777778 | KJ24: 76.6067 | KK24: 76.2333 | KL24: 74.9994 | KM24: 75.2389 | KN24: 74.9072 | KO24: 75.82 | KP24: 75.8856 | KQ24: 76.8972 | KR24: 77.3314 | KS24: 77.266 | KT24: 79.7453 | KU24: 81.9167 | KV24: 80.22972222 | KW24: 81.07111111 | KX24: 80.77805556 | KY24: 80.78694444 | KZ24: 80.97416667 | LA24: 80.75194444 | LB24: 81.27222222 | LC24: 82.36388889 | LD24: 82.9889 | LE24: 83.4194 | LF24: 85.7044 | LG24: 89.86388889 | LH24: 91.1 | LI24: 93.6222 | LJ24: 99.8319 | LK24: 99.7783 | LL24: 89.7208 | LM24: 85.0681 | LN24: 84.5875 | LO24: 82.97083333 | LP24: 83.0556 | LQ24: 83.21638889 | LR24: 86.825 | LS24: 84.2333 | LT24: 84.2125 | LU24: 84.32083333 | LV24: 85.2833 | LW24: 85.1775 | LX24: 85.9347 | LY24: 86.0008 | LZ24: 87.6111 | MA24: 86.23611111 | MB24: 85.6386 | MC24: 83.8208 | MD24: 85.1236 | ME24: 86.0075 | MF24: 87.27972222 | MG24: 87.59666667 | MH24: 86.64583333 | MI24: 85.14694444 | MJ24: 86.99305556 | MK24: 86.30972222 | ML24: 86.2361 | MM24: 86.32638889 | MN24: 86.44138889 | MO24: 86.87111111 | MP24: 87.79722222 | MQ24: 87.62694444 | MR24: 87.80416667 | MS24: 88.39444444 | MT24: 89.27944444 | MU24: 89.35222222 | MV24: 90.17916667 | MW24: 90.50166667 | MX24: 91.6736 | MY24: 91.4231 | MZ24: 92.335 | NA24: 94.6 | NB24: 97.781 | NC24: 98.6394 | ND24: 102.5212 | NE24: 103.8699 | NF24: 105.2928 | NG24: 101.8 | NH24: 102.1143 | NI24: 102.3114 | NJ24: 102.2834 | NK24: 101.6971 | NL24: 101.3339 | NM24: 101.1413 | NN24: 100.8306 | NO24: 101.1022 | NP24: 101.3888889 | NQ24: 101.3589 | NR24: 101.2616667 | NS24: 101.4586111 | NT24: 101.8769 | NU24: 102.4858333 | NV24: 103.9555556 | NW24: 103.3416667 | NX24: 103 | NY24: 103.2222222 | NZ24: 103.3811111 | OA24: 103.7116667 | OB24: 103.9111111 | OC24: 103.1433333 | OD24: 103.2472222 | OE24: 103.6944444 | OF24: 103.2533333 | OG24: 103.2316667 | OH24: 102.3572222 | OI24: 101.6166667 | OJ24: 100.8472222 | OK24: 100.3611111 | OL24: 101.4811111 | OM24: 101.05
A25: Korea | B25: 830.6 | C25: 842.8 | D25: 850.3 | E25: 865.9 | F25: 871 | G25: 873.8 | H25: 876.3 | I25: 886.8 | J25: 891.7 | K25: 892.2 | L25: 889.1 | M25: 890.2 | N25: 888.7 | O25: 883.8 | P25: 885.2 | Q25: 885.1 | R25: 889.8 | S25: 886.6 | T25: 885 | U25: 880.2 | V25: 877 | W25: 873.2 | X25: 865 | Y25: 861.4 | Z25: 857.2 | AA25: 854.8 | AB25: 846.9 | AC25: 834.1 | AD25: 822.7 | AE25: 808.9 | AF25: 808 | AG25: 807.7 | AH25: 805.8 | AI25: 801.4 | AJ25: 796.4 | AK25: 792.3 | AL25: 781.6 | AM25: 760.8 | AN25: 746.2 | AO25: 740 | AP25: 732.9 | AQ25: 728.3 | AR25: 723.8 | AS25: 722 | AT25: 719 | AU25: 701.4 | AV25: 687.5 | AW25: 684.1 | AX25: 680.6 | AY25: 673.1 | AZ25: 671.9 | BA25: 666.3 | BB25: 666.7 | BC25: 667.2 | BD25: 667.4 | BE25: 669.2 | BF25: 670 | BG25: 671.6 | BH25: 672.7 | BI25: 679.6 | BJ25: 686.3 | BK25: 694 | BL25: 702.1 | BM25: 707 | BN25: 712.3 | BO25: 716 | BP25: 715.1 | BQ25: 714 | BR25: 712.9 | BS25: 713.8 | BT25: 713.1 | BU25: 716.4 | BV25: 719 | BW25: 724.4 | BX25: 724.7 | BY25: 725.1 | BZ25: 723 | CA25: 723.1 | CB25: 726.1 | CC25: 735.6 | CD25: 741.5 | CE25: 750.3 | CF25: 754.5 | CG25: 760.8 | CH25: 762 | CI25: 768.2 | CJ25: 775.1 | CK25: 778.8 | CL25: 783.5 | CM25: 790.2 | CN25: 788.1 | CO25: 787.6 | CP25: 786.6 | CQ25: 782.4 | CR25: 785.1 | CS25: 788.4 | CT25: 794 | CU25: 794.9 | CV25: 794 | CW25: 795.9 | CX25: 801.1 | CY25: 803.7 | CZ25: 806.6 | DA25: 808.4 | DB25: 808.8 | DC25: 808.2 | DD25: 807.59998 | DE25: 808.09998 | DF25: 808.09998 | DG25: 802.6 | DH25: 806.5 | DI25: 807.5 | DJ25: 806.09998 | DK25: 805.5 | DL25: 802.6 | DM25: 801.09998 | DN25: 798.90002 | DO25: 796.90002 | DP25: 794.29999 | DQ25: 788.7 | DR25: 786.7 | DS25: 786 | DT25: 771.5 | DU25: 761.8 | DV25: 760.09998 | DW25: 758.09998 | DX25: 756.5 | DY25: 771.1 | DZ25: 768.4 | EA25: 765.5 | EB25: 769.20001 | EC25: 774.7 | ED25: 784.29999 | EE25: 780.70001 | EF25: 782.7 | EG25: 778.70001 | EH25: 787.90002 | EI25: 810.6 | EJ25: 813.29999 | EK25: 819.4 | EL25: 821.20001 | EM25: 831.29999 | EN25: 828.7 | EO25: 844.20001 | EP25: 861.3 | EQ25: 863.90002 | ER25: 897.09998 | ES25: 892.09998 | ET25: 891.79999 | EU25: 888.09998 | EV25: 892 | EW25: 902 | EX25: 914.79999 | EY25: 965.09998 | EZ25: 1163.8 | FA25: 1695 | FB25: 1525 | FC25: 1633 | FD25: 1383 | FE25: 1336 | FF25: 1407 | FG25: 1373 | FH25: 1230 | FI25: 1350 | FJ25: 1391 | FK25: 1319 | FL25: 1246 | FM25: 1204 | FN25: 1175 | FO25: 1223 | FP25: 1227 | FQ25: 1188 | FR25: 1186.2 | FS25: 1157.6 | FT25: 1204 | FU25: 1184.6 | FV25: 1216.4 | FW25: 1200 | FX25: 1159.2 | FY25: 1138 | FZ25: 1123.2 | GA25: 1131 | GB25: 1106 | GC25: 1109.1 | GD25: 1129.4 | GE25: 1115 | GF25: 1116.7 | GG25: 1108.8 | GH25: 1115 | GI25: 1139 | GJ25: 1214.3 | GK25: 1264.5 | GL25: 1259 | GM25: 1250.8 | GN25: 1327.5 | GO25: 1319.7 | GP25: 1282.7 | GQ25: 1297.5 | GR25: 1300 | GS25: 1278 | GT25: 1309.6 | GU25: 1296.1 | GV25: 1273 | GW25: 1313.5 | GX25: 1314.4 | GY25: 1323.8 | GZ25: 1325.9 | HA25: 1294 | HB25: 1226.3 | HC25: 1201.3 | HD25: 1188 | HE25: 1201.9 | HF25: 1227.8 | HG25: 1221.6 | HH25: 1208.8 | HI25: 1186.2 | HJ25: 1170.1 | HK25: 1193.7 | HL25: 1254.6 | HM25: 1215.3 | HN25: 1205.9 | HO25: 1193.1 | HP25: 1179.7 | HQ25: 1178.2 | HR25: 1150.1 | HS25: 1183.1 | HT25: 1202.1 | HU25: 1192.6 | HV25: 1173.7 | HW25: 1176.2 | HX25: 1146.6 | HY25: 1173.3 | HZ25: 1160.1 | IA25: 1155.5 | IB25: 1170 | IC25: 1153 | ID25: 1151.8 | IE25: 1119.6 | IF25: 1048.2 | IG25: 1035.1 | IH25: 1025.6 | II25: 1006 | IJ25: 1015.5 | IK25: 997.1 | IL25: 1007.7 | IM25: 1025.4 | IN25: 1026.8 | IO25: 1038.5 | IP25: 1041.1 | IQ25: 1040.2 | IR25: 1033.5 | IS25: 1011.6 | IT25: 964.6 | IU25: 970.9 | IV25: 971.6 | IW25: 943.4 | IX25: 945.6 | IY25: 960.3 | IZ25: 955.2 | JA25: 961.5 | JB25: 946.2 | JC25: 942.3 | JD25: 929.5 | JE25: 929.8 | JF25: 941 | JG25: 941.8 | JH25: 940.9 | JI25: 930.8 | JJ25: 927.7 | JK25: 926.8 | JL25: 919.3 | JM25: 938.3 | JN25: 915.1 | JO25: 900.7 | JP25: 921.1 | JQ25: 936.1 | JR25: 943.9 | JS25: 939 | JT25: 990.4 | JU25: 1002.6 | JV25: 1030.1 | JW25: 1046 | JX25: 1012.2 | JY25: 1089 | JZ25: 1207 | KA25: 1291 | KB25: 1469 | KC25: 1259.5 | KD25: 1379.5 | KE25: 1534 | KF25: 1383.5 | KG25: 1282 | KH25: 1255 | KI25: 1273.9 | KJ25: 1228.5 | KK25: 1248.9 | KL25: 1178.1 | KM25: 1182.5 | KN25: 1162.8 | KO25: 1164.5 | KP25: 1161.8 | KQ25: 1160 | KR25: 1131.3 | KS25: 1108.4 | KT25: 1202.5 | KU25: 1210.3 | KV25: 1182.7 | KW25: 1189.1 | KX25: 1140.2 | KY25: 1125.3 | KZ25: 1159.7 | LA25: 1134.8 | LB25: 1121.5 | LC25: 1128.7 | LD25: 1096.7 | LE25: 1071.5 | LF25: 1079.2 | LG25: 1067.7 | LH25: 1054.5 | LI25: 1066.8 | LJ25: 1178.1 | LK25: 1110 | LL25: 1143 | LM25: 1151.8 | LN25: 1123.3 | LO25: 1118.7 | LP25: 1133 | LQ25: 1130 | LR25: 1180.3 | LS25: 1145.4 | LT25: 1130.6 | LU25: 1134.7 | LV25: 1111.4 | LW25: 1090.7 | LX25: 1082.9 | LY25: 1070.6 | LZ25: 1089 | MA25: 1083 | MB25: 1111.1 | MC25: 1101.2 | MD25: 1129.7 | ME25: 1142 | MF25: 1109.4 | MG25: 1110 | MH25: 1074.7 | MI25: 1060.7 | MJ25: 1058.2 | MK25: 1055.4 | ML25: 1070.4 | MM25: 1067.5 | MN25: 1064.7 | MO25: 1033.2 | MP25: 1020.1 | MQ25: 1011.8 | MR25: 1027.9 | MS25: 1014 | MT25: 1055.2 | MU25: 1068.5 | MV25: 1107.9 | MW25: 1099.3 | MX25: 1093.5 | MY25: 1098.4 | MZ25: 1109.5 | NA25: 1072.4 | NB25: 1108.2 | NC25: 1115.5 | ND25: 1170 | NE25: 1182.5 | NF25: 1185.3 | NG25: 1140.1 | NH25: 1158.1 | NI25: 1172.5 | NJ25: 1199.1 | NK25: 1236.7 | NL25: 1143.5 | NM25: 1139.3 | NN25: 1191.7 | NO25: 1151.8 | NP25: 1120.2 | NQ25: 1118.5 | NR25: 1101.3 | NS25: 1145.2 | NT25: 1168.5 | NU25: 1207.7 | NV25: 1162.1 | NW25: 1130.7 | NX25: 1118.4 | NY25: 1137.9 | NZ25: 1119.5 | OA25: 1144.1 | OB25: 1119 | OC25: 1127.8 | OD25: 1145.4 | OE25: 1120.4 | OF25: 1088.2 | OG25: 1070.5 | OH25: 1067.9 | OI25: 1082.8 | OJ25: 1063.5 | OK25: 1068 | OL25: 1077.7 | OM25: 1114.5
A26: Malaysia | B26: 2.4925 | C26: 2.5835 | D26: 2.5215 | E26: 2.48 | F26: 2.472999999 | G26: 2.490499999 | H26: 2.4615 | I26: 2.482 | J26: 2.442999999 | K26: 2.448 | L26: 2.425 | M26: 2.4265 | N26: 2.4775 | O26: 2.484 | P26: 2.58 | Q26: 2.585 | R26: 2.635999999 | S26: 2.63 | T26: 2.623 | U26: 2.6085 | V26: 2.6238 | W26: 2.624 | X26: 2.6023 | Y26: 2.603 | Z26: 2.5385 | AA26: 2.5225 | AB26: 2.5075 | AC26: 2.4773 | AD26: 2.4968 | AE26: 2.5238 | AF26: 2.5458 | AG26: 2.5198 | AH26: 2.534 | AI26: 2.513 | AJ26: 2.4928 | AK26: 2.4928 | AL26: 2.5525 | AM26: 2.5853 | AN26: 2.5663 | AO26: 2.5753 | AP26: 2.5885 | AQ26: 2.6068 | AR26: 2.6365 | AS26: 2.6665 | AT26: 2.6783 | AU26: 2.672 | AV26: 2.6745 | AW26: 2.7153 | AX26: 2.73 | AY26: 2.7343 | AZ26: 2.7545 | BA26: 2.6993 | BB26: 2.7143 | BC26: 2.7055 | BD26: 2.6623 | BE26: 2.6963 | BF26: 2.6905 | BG26: 2.6963 | BH26: 2.6995 | BI26: 2.7033 | BJ26: 2.6998 | BK26: 2.703 | BL26: 2.7273 | BM26: 2.7183 | BN26: 2.703 | BO26: 2.7105 | BP26: 2.705 | BQ26: 2.6885 | BR26: 2.701 | BS26: 2.7005 | BT26: 2.6945 | BU26: 2.7015 | BV26: 2.699 | BW26: 2.7168 | BX26: 2.772 | BY26: 2.759 | BZ26: 2.7595 | CA26: 2.781 | CB26: 2.789 | CC26: 2.7855 | CD26: 2.741 | CE26: 2.745 | CF26: 2.7515 | CG26: 2.724 | CH26: 2.6945 | CI26: 2.588 | CJ26: 2.585 | CK26: 2.527 | CL26: 2.5305 | CM26: 2.5065 | CN26: 2.5025 | CO26: 2.493 | CP26: 2.4985 | CQ26: 2.509 | CR26: 2.534 | CS26: 2.612 | CT26: 2.6238 | CU26: 2.6335 | CV26: 2.5945 | CW26: 2.5709 | CX26: 2.5575 | CY26: 2.5805 | CZ26: 2.5665 | DA26: 2.5495 | DB26: 2.5508 | DC26: 2.558 | DD26: 2.5585 | DE26: 2.7015 | DF26: 2.762 | DG26: 2.728 | DH26: 2.673 | DI26: 2.688 | DJ26: 2.5785 | DK26: 2.6035 | DL26: 2.594 | DM26: 2.5533 | DN26: 2.5655 | DO26: 2.553 | DP26: 2.5575 | DQ26: 2.56 | DR26: 2.5565 | DS26: 2.5545 | DT26: 2.5368 | DU26: 2.4715 | DV26: 2.4655 | DW26: 2.4395 | DX26: 2.4575 | DY26: 2.499 | DZ26: 2.5072 | EA26: 2.5445 | EB26: 2.5425 | EC26: 2.542 | ED26: 2.563 | EE26: 2.5505 | EF26: 2.5368 | EG26: 2.493 | EH26: 2.5005 | EI26: 2.4955 | EJ26: 2.4955 | EK26: 2.495 | EL26: 2.5085 | EM26: 2.534 | EN26: 2.527 | EO26: 2.529 | EP26: 2.4865 | EQ26: 2.483 | ER26: 2.479 | ES26: 2.5128 | ET26: 2.5125 | EU26: 2.5248 | EV26: 2.6307 | EW26: 2.958 | EX26: 3.1935 | EY26: 3.43 | EZ26: 3.505 | FA26: 3.8919 | FB26: 4.5674 | FC26: 3.674 | FD26: 3.648 | FE26: 3.7315 | FF26: 3.8905 | FG26: 4.169 | FH26: 4.1365 | FI26: 4.2085 | FJ26: 3.8 | FK26: 3.8015 | FL26: 3.7965 | FM26: 3.8 | FN26: 3.8 | FO26: 3.8 | FP26: 3.8 | FQ26: 3.8 | FR26: 3.8 | FS26: 3.8 | FT26: 3.8 | FU26: 3.8 | FV26: 3.8 | FW26: 3.8 | FX26: 3.8 | FY26: 3.8 | FZ26: 3.8 | GA26: 3.8 | GB26: 3.8 | GC26: 3.8 | GD26: 3.8 | GE26: 3.8 | GF26: 3.8 | GG26: 3.8 | GH26: 3.8 | GI26: 3.8 | GJ26: 3.8 | GK26: 3.8 | GL26: 3.8 | GM26: 3.8 | GN26: 3.8 | GO26: 3.8 | GP26: 3.8 | GQ26: 3.8 | GR26: 3.8 | GS26: 3.8 | GT26: 3.8 | GU26: 3.8 | GV26: 3.8 | GW26: 3.8 | GX26: 3.8 | GY26: 3.8 | GZ26: 3.8 | HA26: 3.8 | HB26: 3.8 | HC26: 3.8 | HD26: 3.8 | HE26: 3.8 | HF26: 3.8 | HG26: 3.8 | HH26: 3.8 | HI26: 3.8 | HJ26: 3.8 | HK26: 3.8 | HL26: 3.8 | HM26: 3.8 | HN26: 3.8 | HO26: 3.8 | HP26: 3.8 | HQ26: 3.8 | HR26: 3.8 | HS26: 3.8 | HT26: 3.8 | HU26: 3.8 | HV26: 3.8 | HW26: 3.8 | HX26: 3.8 | HY26: 3.8 | HZ26: 3.8 | IA26: 3.8 | IB26: 3.8 | IC26: 3.8 | ID26: 3.8 | IE26: 3.8 | IF26: 3.8 | IG26: 3.8 | IH26: 3.8 | II26: 3.8 | IJ26: 3.8 | IK26: 3.8 | IL26: 3.8 | IM26: 3.8 | IN26: 3.7505 | IO26: 3.7698 | IP26: 3.7692 | IQ26: 3.7748 | IR26: 3.77825 | IS26: 3.78 | IT26: 3.751 | IU26: 3.7135 | IV26: 3.686 | IW26: 3.6255 | IX26: 3.629 | IY26: 3.675 | IZ26: 3.6535 | JA26: 3.677 | JB26: 3.6845 | JC26: 3.648 | JD26: 3.618 | JE26: 3.5315 | JF26: 3.5015 | JG26: 3.506 | JH26: 3.456 | JI26: 3.423 | JJ26: 3.4045 | JK26: 3.4545 | JL26: 3.454 | JM26: 3.5035 | JN26: 3.417 | JO26: 3.34175 | JP26: 3.3585 | JQ26: 3.3065 | JR26: 3.236 | JS26: 3.189 | JT26: 3.1875 | JU26: 3.158 | JV26: 3.2435 | JW26: 3.2665 | JX26: 3.263 | JY26: 3.3895 | JZ26: 3.4575 | KA26: 3.5625 | KB26: 3.587 | KC26: 3.464 | KD26: 3.6085 | KE26: 3.6925 | KF26: 3.647 | KG26: 3.561 | KH26: 3.5075 | KI26: 3.5225 | KJ26: 3.52 | KK26: 3.5215 | KL26: 3.4745 | KM26: 3.4075 | KN26: 3.3875 | KO26: 3.4245 | KP26: 3.413 | KQ26: 3.409 | KR26: 3.273 | KS26: 3.1905 | KT26: 3.253 | KU26: 3.2575 | KV26: 3.1875 | KW26: 3.1375 | KX26: 3.0875 | KY26: 3.1095 | KZ26: 3.1575 | LA26: 3.0835 | LB26: 3.0595 | LC26: 3.0515 | LD26: 3.0259 | LE26: 2.9735 | LF26: 3.0115 | LG26: 3.0205 | LH26: 2.9555 | LI26: 2.9803 | LJ26: 3.191 | LK26: 3.0735 | LL26: 3.1725 | LM26: 3.177 | LN26: 3.0455 | LO26: 3 | LP26: 3.068 | LQ26: 3.034 | LR26: 3.182 | LS26: 3.1895 | LT26: 3.144 | LU26: 3.1315 | LV26: 3.066 | LW26: 3.0565 | LX26: 3.0435 | LY26: 3.05825 | LZ26: 3.0995 | MA26: 3.092 | MB26: 3.0885 | MC26: 3.0315 | MD26: 3.085 | ME26: 3.1785 | MF26: 3.249 | MG26: 3.2995 | MH26: 3.2575 | MI26: 3.1581 | MJ26: 3.2265 | MK26: 3.2815 | ML26: 3.346 | MM26: 3.2785 | MN26: 3.2685 | MO26: 3.26705 | MP26: 3.215 | MQ26: 3.2105 | MR26: 3.189 | MS26: 3.157 | MT26: 3.2715 | MU26: 3.2835 | MV26: 3.3685 | MW26: 3.495 | MX26: 3.6235 | MY26: 3.61125 | MZ26: 3.7165 | NA26: 3.5705 | NB26: 3.6515 | NC26: 3.7855 | ND26: 3.8175 | NE26: 4.214 | NF26: 4.4455 | NG26: 4.304 | NH26: 4.2615 | NI26: 4.292 | NJ26: 4.1475 | NK26: 4.2195 | NL26: 3.922 | NM26: 3.9045 | NN26: 4.1195 | NO26: 4.0225 | NP26: 4.0535 | NQ26: 4.0495 | NR26: 4.1455 | NS26: 4.204 | NT26: 4.466 | NU26: 4.486 | NV26: 4.4295 | NW26: 4.445 | NX26: 4.4265 | NY26: 4.3475 | NZ26: 4.276 | OA26: 4.294 | OB26: 4.279 | OC26: 4.2695 | OD26: 4.2275 | OE26: 4.2305 | OF26: 4.087 | OG26: 4.062 | OH26: 3.8945 | OI26: 3.9255 | OJ26: 3.862 | OK26: 3.9195 | OL26: 3.9765 | OM26: 4.0385
A27: Mexico | B27: 0.19783 | C27: 0.20259 | D27: 0.2089 | E27: 0.2152 | F27: 0.22171 | G27: 0.22801 | H27: 0.28092 | I27: 0.2915 | J27: 0.3051 | K27: 0.3215 | L27: 0.3412 | M27: 0.3717 | N27: 0.4052 | O27: 0.4397 | P27: 0.4736 | Q27: 0.504 | R27: 0.5377 | S27: 0.5754 | T27: 0.6329 | U27: 0.6962 | V27: 0.752 | W27: 0.8066 | X27: 0.8631 | Y27: 0.9235 | Z27: 0.9881 | AA27: 1.0573 | AB27: 1.126 | AC27: 1.1992 | AD27: 1.2771 | AE27: 1.3537 | AF27: 1.4159 | AG27: 1.496 | AH27: 1.5708 | AI27: 1.6522 | AJ27: 1.7632 | AK27: 2.2097 | AL27: 2.2207 | AM27: 2.281 | AN27: 2.281 | AO27: 2.281 | AP27: 2.281 | AQ27: 2.281 | AR27: 2.281 | AS27: 2.281 | AT27: 2.281 | AU27: 2.281 | AV27: 2.281 | AW27: 2.281 | AX27: 2.31 | AY27: 2.338 | AZ27: 2.369 | BA27: 2.397 | BB27: 2.43 | BC27: 2.46 | BD27: 2.491 | BE27: 2.522 | BF27: 2.551 | BG27: 2.583 | BH27: 2.613 | BI27: 2.641 | BJ27: 2.675 | BK27: 2.703 | BL27: 2.733 | BM27: 2.764 | BN27: 2.7946 | BO27: 2.8178 | BP27: 2.8434 | BQ27: 2.8582 | BR27: 2.8906 | BS27: 2.917 | BT27: 2.9342 | BU27: 2.9454 | BV27: 2.959 | BW27: 2.9702 | BX27: 2.981 | BY27: 2.9946 | BZ27: 3.007 | CA27: 3.0182 | CB27: 3.0314 | CC27: 3.0434 | CD27: 3.0558 | CE27: 3.0682 | CF27: 3.07306 | CG27: 3.071 | CH27: 3.066 | CI27: 3.06075 | CJ27: 3.0835 | CK27: 3.07895 | CL27: 3.11344 | CM27: 3.12226 | CN27: 3.11406 | CO27: 3.081 | CP27: 3.11631 | CQ27: 3.13213 | CR27: 3.1159 | CS27: 3.1154 | CT27: 3.0939 | CU27: 3.0938 | CV27: 3.0976 | CW27: 3.1022 | CX27: 3.1227 | CY27: 3.1212 | CZ27: 3.1189 | DA27: 3.1145 | DB27: 3.1178 | DC27: 3.1176 | DD27: 3.1125 | DE27: 3.1059 | DF27: 3.1063 | DG27: 3.2075 | DH27: 3.3598 | DI27: 3.2673 | DJ27: 3.3145 | DK27: 3.3918 | DL27: 3.4019 | DM27: 3.3794 | DN27: 3.404 | DO27: 3.43 | DP27: 3.4498 | DQ27: 5.325 | DR27: 5.695 | DS27: 5.8375 | DT27: 6.8175 | DU27: 5.785 | DV27: 6.1775 | DW27: 6.3092 | DX27: 6.0882 | DY27: 6.3114 | DZ27: 6.4195 | EA27: 7.1717 | EB27: 7.6517 | EC27: 7.6425 | ED27: 7.3908 | EE27: 7.539 | EF27: 7.5479 | EG27: 7.4042 | EH27: 7.4095 | EI27: 7.6108 | EJ27: 7.6135 | EK27: 7.493 | EL27: 7.5374 | EM27: 7.9172 | EN27: 7.87 | EO27: 7.8509 | EP27: 7.8393 | EQ27: 7.7844 | ER27: 7.8905 | ES27: 7.9267 | ET27: 7.9085 | EU27: 7.958 | EV27: 7.8088 | EW27: 7.7548 | EX27: 7.8199 | EY27: 8.1033 | EZ27: 8.2 | FA27: 8.0833 | FB27: 8.3603 | FC27: 8.5832 | FD27: 8.5165 | FE27: 8.4818 | FF27: 8.8802 | FG27: 9.0407 | FH27: 8.9178 | FI27: 9.96 | FJ27: 10.1062 | FK27: 10.1575 | FL27: 9.9404 | FM27: 9.865 | FN27: 10.1745 | FO27: 9.9357 | FP27: 9.5158 | FQ27: 9.2871 | FR27: 9.7498 | FS27: 9.4875 | FT27: 9.3827 | FU27: 9.3819 | FV27: 9.3582 | FW27: 9.6504 | FX27: 9.355 | FY27: 9.5143 | FZ27: 9.5123 | GA27: 9.3748 | GB27: 9.2331 | GC27: 9.4073 | GD27: 9.5274 | GE27: 9.9538 | GF27: 9.361 | GG27: 9.2317 | GH27: 9.4088 | GI27: 9.6443 | GJ27: 9.4058 | GK27: 9.5722 | GL27: 9.6687 | GM27: 9.6618 | GN27: 9.538 | GO27: 9.2671 | GP27: 9.0851 | GQ27: 9.0608 | GR27: 9.192 | GS27: 9.1438 | GT27: 9.5258 | GU27: 9.2421 | GV27: 9.2672 | GW27: 9.1423 | GX27: 9.1714 | GY27: 9.0815 | GZ27: 9.0298 | HA27: 9.3196 | HB27: 9.6134 | HC27: 9.9998 | HD27: 9.6944 | HE27: 9.899 | HF27: 10.1667 | HG27: 10.1593 | HH27: 10.1496 | HI27: 10.3125 | HJ27: 10.9863 | HK27: 11.0324 | HL27: 10.7889 | HM27: 10.4304 | HN27: 10.4063 | HO27: 10.4808 | HP27: 10.4878 | HQ27: 10.9337 | HR27: 10.9272 | HS27: 11.1078 | HT27: 11.3522 | HU27: 11.236 | HV27: 10.9145 | HW27: 11.0932 | HX27: 11.154 | HY27: 11.3387 | HZ27: 11.4515 | IA27: 11.4116 | IB27: 11.4801 | IC27: 11.3739 | ID27: 11.4106 | IE27: 11.5118 | IF27: 11.247 | IG27: 11.2648 | IH27: 11.2991 | II27: 11.0955 | IJ27: 11.2942 | IK27: 11.1033 | IL27: 10.903 | IM27: 10.8428 | IN27: 10.643 | IO27: 10.8936 | IP27: 10.8495 | IQ27: 10.9092 | IR27: 10.567 | IS27: 10.7777 | IT27: 10.4598 | IU27: 10.4761 | IV27: 10.951 | IW27: 11.1578 | IX27: 11.1303 | IY27: 11.3973 | IZ27: 10.8968 | JA27: 10.9047 | JB27: 11.0152 | JC27: 10.7093 | JD27: 11.0454 | JE27: 10.881 | JF27: 11.0855 | JG27: 11.079 | JH27: 11.0813 | JI27: 10.9312 | JJ27: 10.7873 | JK27: 10.8661 | JL27: 10.9973 | JM27: 11.1062 | JN27: 10.9243 | JO27: 10.7112 | JP27: 10.9345 | JQ27: 10.8662 | JR27: 10.8444 | JS27: 10.7344 | JT27: 10.6962 | JU27: 10.4464 | JV27: 10.3447 | JW27: 10.2841 | JX27: 10.061 | JY27: 10.1421 | JZ27: 10.7919 | KA27: 12.9142 | KB27: 13.2117 | KC27: 13.5383 | KD27: 14.1513 | KE27: 14.9275 | KF27: 14.3317 | KG27: 13.8667 | KH27: 13.159 | KI27: 13.2023 | KJ27: 13.2643 | KK27: 13.2462 | KL27: 13.5042 | KM27: 13.2823 | KN27: 12.9475 | KO27: 13.0587 | KP27: 12.9295 | KQ27: 12.8539 | KR27: 12.464 | KS27: 12.3698 | KT27: 12.8846 | KU27: 12.6567 | KV27: 12.6798 | KW27: 13.0148 | KX27: 12.5011 | KY27: 12.4776 | KZ27: 12.489 | LA27: 12.3571 | LB27: 12.0239 | LC27: 12.173 | LD27: 11.9678 | LE27: 11.5868 | LF27: 11.6256 | LG27: 11.8389 | LH27: 11.6527 | LI27: 12.4148 | LJ27: 13.4217 | LK27: 13.1973 | LL27: 14.0344 | LM27: 13.9904 | LN27: 12.9504 | LO27: 12.8779 | LP27: 12.8039 | LQ27: 13.2093 | LR27: 13.9169 | LS27: 13.6652 | LT27: 13.2837 | LU27: 13.2746 | LV27: 12.917 | LW27: 13.09 | LX27: 13.0372 | LY27: 13.0101 | LZ27: 12.7134 | MA27: 12.868 | MB27: 12.3579 | MC27: 12.155 | MD27: 12.6328 | ME27: 13.1884 | MF27: 12.7321 | MG27: 13.2539 | MH27: 13.0119 | MI27: 12.8903 | MJ27: 13.0925 | MK27: 13.0765 | ML27: 13.3671 | MM27: 13.2992 | MN27: 13.0837 | MO27: 13.1356 | MP27: 12.866 | MQ27: 13.0323 | MR27: 13.0578 | MS27: 13.0811 | MT27: 13.4541 | MU27: 13.4239 | MV27: 13.7219 | MW27: 14.718 | MX27: 14.6878 | MY27: 14.9228 | MZ27: 15.1542 | NA27: 15.2225 | NB27: 15.3581 | NC27: 15.5676 | ND27: 16.214 | NE27: 16.8863 | NF27: 17.0073 | NG27: 16.4503 | NH27: 16.5492 | NI27: 17.2065 | NJ27: 18.453 | NK27: 18.168 | NL27: 17.4015 | NM27: 17.3993 | NN27: 18.4527 | NO27: 18.9113 | NP27: 18.8602 | NQ27: 18.5773 | NR27: 19.5002 | NS27: 18.8443 | NT27: 20.5521 | NU27: 20.7314 | NV27: 21.0212 | NW27: 19.8335 | NX27: 18.8092 | NY27: 19.1119 | NZ27: 18.5121 | OA27: 17.8973 | OB27: 17.6886 | OC27: 17.876 | OD27: 18.13 | OE27: 19.1474 | OF27: 18.5848 | OG27: 19.7867 | OH27: 18.6196 | OI27: 18.6456 | OJ27: 18.3268 | OK27: 18.8644 | OL27: 19.7499 | OM27: 20.0553
A28: Morocco | B28: 9.65035 | C28: 9.994199999 | D28: 9.7023 | E28: 10.1755 | F28: 10.509 | G28: 10.439 | H28: 10.212 | I28: 10.2325 | J28: 10.0505 | K28: 9.919699999 | L28: 9.6872 | M28: 9.621299999 | N28: 9.4927 | O28: 9.0725 | P28: 9.3529 | Q28: 9.080599999 | R28: 9.3911 | S28: 9.1145 | T28: 8.9532 | U28: 8.9034 | V28: 8.8515 | W28: 8.9974 | X28: 8.7969 | Y28: 8.7117 | Z28: 8.4633 | AA28: 8.4905 | AB28: 8.4074 | AC28: 8.3412 | AD28: 8.4323 | AE28: 8.454 | AF28: 8.4929 | AG28: 8.3754 | AH28: 8.4086 | AI28: 8.1874 | AJ28: 7.928 | AK28: 7.8003 | AL28: 8.0364 | AM28: 8.0639 | AN28: 7.9532 | AO28: 7.9721 | AP28: 8.0956 | AQ28: 8.3782 | AR28: 8.4962 | AS28: 8.5215 | AT28: 8.5332 | AU28: 8.2513 | AV28: 8.138 | AW28: 8.2106 | AX28: 8.3885 | AY28: 8.332 | AZ28: 8.4787 | BA28: 8.4418 | BB28: 8.7744 | BC28: 8.7019 | BD28: 8.4273 | BE28: 8.6711 | BF28: 8.4748 | BG28: 8.4246 | BH28: 8.346 | BI28: 8.1218 | BJ28: 8.0501 | BK28: 8.0533 | BL28: 8.0581 | BM28: 8.0407 | BN28: 8.8304 | BO28: 8.7017 | BP28: 8.3578 | BQ28: 8.2399 | BR28: 8.2619 | BS28: 8.0626 | BT28: 8.0411 | BU28: 8.0429 | BV28: 7.9607 | BW28: 8.1168 | BX28: 8.9099 | BY28: 8.9667 | BZ28: 8.9518 | CA28: 9.3267 | CB28: 9.0657 | CC28: 9.039 | CD28: 8.7401 | CE28: 8.7911 | CF28: 8.6376 | CG28: 8.1499 | CH28: 8.63 | CI28: 8.7717 | CJ28: 8.8363 | CK28: 8.8628 | CL28: 8.6443 | CM28: 8.2962 | CN28: 8.1193 | CO28: 7.8548 | CP28: 8.0511 | CQ28: 8.5524 | CR28: 8.8587 | CS28: 9.0487 | CT28: 8.9762 | CU28: 9.2421 | CV28: 9.0954 | CW28: 8.8791 | CX28: 8.9757 | CY28: 9.3429 | CZ28: 9.6821 | DA28: 9.4658 | DB28: 9.2776 | DC28: 9.5528 | DD28: 9.6249 | DE28: 9.6512 | DF28: 9.6444 | DG28: 9.5584 | DH28: 9.396 | DI28: 9.358 | DJ28: 9.2718 | DK28: 9.0958 | DL28: 9.0977 | DM28: 9.0591 | DN28: 8.8738 | DO28: 8.7251 | DP28: 9.0071 | DQ28: 8.9596 | DR28: 8.8002 | DS28: 8.7072 | DT28: 8.3863 | DU28: 8.3989 | DV28: 8.3898 | DW28: 8.3606 | DX28: 8.2837 | DY28: 8.6342 | DZ28: 8.4528 | EA28: 8.4415 | EB28: 8.5453 | EC28: 8.4689 | ED28: 8.74 | EE28: 8.6144 | EF28: 8.638 | EG28: 8.8273 | EH28: 8.8274 | EI28: 8.7754 | EJ28: 8.5775 | EK28: 8.6494 | EL28: 8.7761 | EM28: 8.6841 | EN28: 8.75985 | EO28: 8.7995 | EP28: 9.1803 | EQ28: 9.39045 | ER28: 9.3198 | ES28: 9.53805 | ET28: 9.42845 | EU28: 9.5543 | EV28: 9.90175 | EW28: 9.76675 | EX28: 9.66075 | EY28: 9.47205 | EZ28: 9.5919 | FA28: 9.7141 | FB28: 9.79905 | FC28: 9.79885 | FD28: 9.9025 | FE28: 9.70635 | FF28: 9.7172 | FG28: 9.7802 | FH28: 9.6899 | FI28: 9.62345 | FJ28: 9.2593 | FK28: 9.2106 | FL28: 9.3724 | FM28: 9.2551 | FN28: 9.4575 | FO28: 9.6661 | FP28: 9.7658 | FQ28: 9.86345 | FR28: 9.9466 | FS28: 10.03475 | FT28: 9.7915 | FU28: 9.8284 | FV28: 9.749 | FW28: 9.8271 | FX28: 10.076 | FY28: 10.087 | FZ28: 10.246 | GA28: 10.353 | GB28: 10.354 | GC28: 10.678 | GD28: 10.571 | GE28: 10.405 | GF28: 10.626 | GG28: 10.834 | GH28: 10.892 | GI28: 11.138 | GJ28: 11.012 | GK28: 10.619 | GL28: 10.616 | GM28: 10.696 | GN28: 10.985 | GO28: 11.549 | GP28: 11.968 | GQ28: 11.938 | GR28: 11.655 | GS28: 11.271 | GT28: 11.299 | GU28: 11.391 | GV28: 11.519 | GW28: 11.56 | GX28: 11.776 | GY28: 11.771 | GZ28: 11.692 | HA28: 11.398 | HB28: 11.095 | HC28: 10.579 | HD28: 10.705 | HE28: 10.665 | HF28: 10.636 | HG28: 10.639 | HH28: 10.587 | HI28: 10.167 | HJ28: 9.9118 | HK28: 9.9292 | HL28: 9.857 | HM28: 9.6835 | HN28: 9.2567 | HO28: 9.4802 | HP28: 9.5591 | HQ28: 9.8406 | HR28: 9.3025 | HS28: 9.3498 | HT28: 9.1194 | HU28: 8.7499 | HV28: 8.8486 | HW28: 8.8696 | HX28: 8.9825 | HY28: 9.1319 | HZ28: 8.989 | IA28: 9.0271 | IB28: 9.1062 | IC28: 9.0533 | ID28: 8.8864 | IE28: 8.6913 | IF28: 8.3964 | IG28: 8.2177 | IH28: 8.5313 | II28: 8.4158 | IJ28: 8.5577 | IK28: 8.5899 | IL28: 8.9205 | IM28: 9.0744 | IN28: 9.0494 | IO28: 8.9888 | IP28: 9.0944 | IQ28: 9.0981 | IR28: 9.2687 | IS28: 9.2494 | IT28: 9.0726 | IU28: 9.1963 | IV28: 9.056 | IW28: 8.7858 | IX28: 8.6269 | IY28: 8.6794 | IZ28: 8.6742 | JA28: 8.6302 | JB28: 8.7297 | JC28: 8.713 | JD28: 8.4421 | JE28: 8.4566 | JF28: 8.5745 | JG28: 8.4315 | JH28: 8.3875 | JI28: 8.2217 | JJ28: 8.3156 | JK28: 8.281 | JL28: 8.1867 | JM28: 8.2205 | JN28: 7.9591 | JO28: 7.8353 | JP28: 7.6943 | JQ28: 7.7132 | JR28: 7.6489 | JS28: 7.5163 | JT28: 7.2582 | JU28: 7.3656 | JV28: 7.3847 | JW28: 7.2863 | JX28: 7.3204 | JY28: 7.7143 | JZ28: 7.8964 | KA28: 8.7074 | KB28: 8.6849 | KC28: 8.0982 | KD28: 8.6312 | KE28: 8.7637 | KF28: 8.3912 | KG28: 8.4251 | KH28: 7.9995 | KI28: 7.9976 | KJ28: 7.9892 | KK28: 7.9156 | KL28: 7.7717 | KM28: 7.6825 | KN28: 7.5879 | KO28: 7.8601 | KP28: 8.0702 | KQ28: 8.2511 | KR28: 8.2822 | KS28: 8.3865 | KT28: 8.9322 | KU28: 8.974 | KV28: 8.5046 | KW28: 8.7214 | KX28: 8.221 | KY28: 8.086 | KZ28: 8.5516 | LA28: 8.3569 | LB28: 8.1861 | LC28: 8.1217 | LD28: 7.9582 | LE28: 7.658 | LF28: 7.8661 | LG28: 7.8238 | LH28: 7.8852 | LI28: 7.8533 | LJ28: 8.3253 | LK28: 8.0492 | LL28: 8.2837 | LM28: 8.5772 | LN28: 8.4579 | LO28: 8.3184 | LP28: 8.368 | LQ28: 8.4291 | LR28: 8.8826 | LS28: 8.7253 | LT28: 8.9539 | LU28: 8.7629 | LV28: 8.5829 | LW28: 8.5548 | LX28: 8.5594 | LY28: 8.4335 | LZ28: 8.2566 | MA28: 8.4861 | MB28: 8.6499 | MC28: 8.5083 | MD28: 8.553 | ME28: 8.5028 | MF28: 8.4049 | MG28: 8.433 | MH28: 8.2674 | MI28: 8.2247 | MJ28: 8.2374 | MK28: 8.1506 | ML28: 8.2817 | MM28: 8.1358 | MN28: 8.1496 | MO28: 8.1089 | MP28: 8.2304 | MQ28: 8.2125 | MR28: 8.3474 | MS28: 8.4526 | MT28: 8.7722 | MU28: 8.8211 | MV28: 8.8366 | MW28: 9.0425 | MX28: 9.5585 | MY28: 9.6205 | MZ28: 9.9561 | NA28: 9.7526 | NB28: 9.853 | NC28: 9.752 | ND28: 9.8047 | NE28: 9.72 | NF28: 9.7376 | NG28: 9.8177 | NH28: 10.074 | NI28: 9.9057 | NJ28: 9.9168 | NK28: 9.9052 | NL28: 9.6337 | NM28: 9.6202 | NN28: 9.7579 | NO28: 9.7847 | NP28: 9.7552 | NQ28: 9.7509 | NR28: 9.7483 | NS28: 9.8711 | NT28: 10.047 | NU28: 10.096 | NV28: 9.9759 | NW28: 10.066 | NX28: 10.019 | NY28: 9.8909 | NZ28: 9.7206 | OA28: 9.6176 | OB28: 9.457 | OC28: 9.402 | OD28: 9.4085 | OE28: 9.5045 | OF28: 9.3941 | OG28: 9.3295 | OH28: 9.1408 | OI28: 9.2485 | OJ28: 9.1983 | OK28: 9.2914 | OL28: 9.5152 | OM28: 9.5
A29: Nigeria | B29: 0.8301510882 | C29: 0.8641548566 | D29: 0.8817564596 | E29: 0.8906305672 | F29: 0.8950948801 | G29: 0.8950948801 | H29: 0.8950948801 | I29: 0.8996041742 | J29: 0.9225092251 | K29: 0.9225092251 | L29: 0.9317927702 | M29: 0.9996001599 | N29: 0.9996001599 | O29: 0.9996001599 | P29: 1.009693053 | Q29: 1.019887812 | R29: 1.061683831 | S29: 1.187225454 | T29: 1.329433661 | U29: 1.329433661 | V29: 1.601024656 | W29: 3.871467286 | X29: 3.512469266 | Y29: 3.316749585 | Z29: 3.891050584 | AA29: 3.924646782 | AB29: 4.020908725 | AC29: 4.04040404 | AD29: 4.161464836 | AE29: 3.738317757 | AF29: 3.898635478 | AG29: 4.122011542 | AH29: 4.222972973 | AI29: 4.299226139 | AJ29: 4.235493435 | AK29: 4.140786749 | AL29: 4.198152813 | AM29: 4.288164666 | AN29: 4.293688278 | AO29: 4.192872117 | AP29: 4.045307443 | AQ29: 4.314063848 | AR29: 4.741583689 | AS29: 4.621072089 | AT29: 4.68164794 | AU29: 4.803073967 | AV29: 5.336179296 | AW29: 5.353319058 | AX29: 7.246376812 | AY29: 7.587253414 | AZ29: 7.587253414 | BA29: 7.558578987 | BB29: 7.451564829 | BC29: 7.183908046 | BD29: 7.199424046 | BE29: 7.299270073 | BF29: 7.374631268 | BG29: 7.473841555 | BH29: 7.547169811 | BI29: 7.651109411 | BJ29: 7.880220646 | BK29: 7.923930269 | BL29: 7.942811755 | BM29: 7.942811755 | BN29: 7.942811755 | BO29: 7.949125596 | BP29: 7.955449483 | BQ29: 7.96812749 | BR29: 7.98084597 | BS29: 8.058017728 | BT29: 8.650519031 | BU29: 9.00090009 | BV29: 9.398496241 | BW29: 9.756097561 | BX29: 8.787346221 | BY29: 9.082652134 | BZ29: 9.699321048 | CA29: 10.50420168 | CB29: 11.61440186 | CC29: 10.86956522 | CD29: 9.861932939 | CE29: 9.861932939 | CF29: 9.861932939 | CG29: 9.861932939 | CH29: 9.727626459 | CI29: 10.55966209 | CJ29: 18.51851852 | CK29: 18.51851852 | CL29: 18.4501845 | CM29: 18.4501845 | CN29: 18.4501845 | CO29: 18.62197393 | CP29: 19.56947162 | CQ29: 19.37984496 | CR29: 19.64636542 | CS29: 19.64636542 | CT29: 20.44989775 | CU29: 24.87562189 | CV29: 24.87562189 | CW29: 21.97802198 | CX29: 21.97802198 | CY29: 21.97802198 | CZ29: 21.88183807 | DA29: 21.88183807 | DB29: 21.88183807 | DC29: 21.88183807 | DD29: 21.88183807 | DE29: 21.88183807 | DF29: 21.99590876 | DG29: 21.99590876 | DH29: 21.99590876 | DI29: 21.99590876 | DJ29: 21.99590876 | DK29: 21.99590876 | DL29: 21.99590876 | DM29: 21.99590876 | DN29: 21.99590876 | DO29: 21.99736032 | DP29: 21.99736032 | DQ29: 21.99736032 | DR29: 21.99600553 | DS29: 21.88610036 | DT29: 21.88610036 | DU29: 21.88610036 | DV29: 21.88610036 | DW29: 21.88610036 | DX29: 21.88610036 | DY29: 21.88610036 | DZ29: 21.88610036 | EA29: 21.88610036 | EB29: 21.88610036 | EC29: 21.88662727 | ED29: 21.88662727 | EE29: 21.88662727 | EF29: 21.88662727 | EG29: 21.88662727 | EH29: 21.88662727 | EI29: 21.88662727 | EJ29: 21.88662727 | EK29: 21.88605246 | EL29: 21.88605246 | EM29: 21.8661 | EN29: 21.8861 | EO29: 21.8861 | EP29: 21.8861 | EQ29: 21.8861 | ER29: 21.8861 | ES29: 21.8861 | ET29: 21.8861 | EU29: 21.8861 | EV29: 21.886 | EW29: 21.886 | EX29: 21.886 | EY29: 21.886 | EZ29: 21.886 | FA29: 21.886 | FB29: 21.886 | FC29: 21.886 | FD29: 21.886 | FE29: 21.886 | FF29: 21.886 | FG29: 21.886 | FH29: 21.886 | FI29: 21.886 | FJ29: 21.886 | FK29: 21.886 | FL29: 21.886 | FM29: 21.886 | FN29: 85.57 | FO29: 85.57 | FP29: 89.55 | FQ29: 94.05 | FR29: 94.4056 | FS29: 94.4056 | FT29: 94.4056 | FU29: 94.406 | FV29: 94.406 | FW29: 94.4852 | FX29: 97 | FY29: 97.95 | FZ29: 98.9 | GA29: 100.2 | GB29: 100.12 | GC29: 99.87 | GD29: 100.7 | GE29: 101.7 | GF29: 103.5 | GG29: 102.05 | GH29: 101.75 | GI29: 102 | GJ29: 102.1 | GK29: 109.55 | GL29: 110.3 | GM29: 113.7 | GN29: 110.2 | GO29: 113.7 | GP29: 112.6 | GQ29: 111.5 | GR29: 111.2 | GS29: 111.11 | GT29: 110.11 | GU29: 110.11 | GV29: 112.1 | GW29: 112.95 | GX29: 113.7 | GY29: 115.2 | GZ29: 115.6 | HA29: 115.8 | HB29: 116.3 | HC29: 119.6 | HD29: 125.5 | HE29: 125.5 | HF29: 125.75 | HG29: 126.25 | HH29: 126.41 | HI29: 126.4 | HJ29: 126.77 | HK29: 126.52 | HL29: 126.87 | HM29: 127.1 | HN29: 127.32 | HO29: 127.42 | HP29: 127.23 | HQ29: 127.8 | HR29: 127.86 | HS29: 132.02 | HT29: 137.7 | HU29: 136.5 | HV29: 134.8 | HW29: 134.5 | HX29: 133.35 | HY29: 132.8 | HZ29: 131.75 | IA29: 132.25 | IB29: 132.32 | IC29: 132.33 | ID29: 132.37 | IE29: 132.4 | IF29: 132.37 | IG29: 132.35 | IH29: 132.36 | II29: 132.35 | IJ29: 132.35 | IK29: 132.33 | IL29: 132.33 | IM29: 132.37 | IN29: 132.36 | IO29: 129.07 | IP29: 129 | IQ29: 129.53 | IR29: 129.01 | IS29: 129 | IT29: 130.29 | IU29: 129.28 | IV29: 128.52 | IW29: 128.45 | IX29: 128.46 | IY29: 128.44 | IZ29: 128.36 | JA29: 128.29 | JB29: 128.27 | JC29: 128.31 | JD29: 128.27 | JE29: 128.27 | JF29: 128.28 | JG29: 128.28 | JH29: 128.06 | JI29: 127.87 | JJ29: 127.49 | JK29: 127.3105 | JL29: 127.1186 | JM29: 126.1995 | JN29: 125.644 | JO29: 123.0988 | JP29: 118.8568 | JQ29: 117.968 | JR29: 117.9781 | JS29: 117.9478 | JT29: 117.8973 | JU29: 117.867 | JV29: 117.8266 | JW29: 117.7963 | JX29: 117.7559 | JY29: 117.7256 | JZ29: 117.7256 | KA29: 117.7357 | KB29: 117.7862 | KC29: 132.5625 | KD29: 145.9551 | KE29: 147.3085 | KF29: 147.157 | KG29: 147.359 | KH29: 148.167 | KI29: 148.2175 | KJ29: 151.2475 | KK29: 151.4191 | KL29: 148.7932 | KM29: 150.6314 | KN29: 149.7931 | KO29: 149.581 | KP29: 150.3183 | KQ29: 150.0961 | KR29: 149.783 | KS29: 150.0961 | KT29: 150.2678 | KU29: 149.985 | KV29: 150.086 | KW29: 150.7829 | KX29: 151.3485 | KY29: 149.985 | KZ29: 150.2375 | LA29: 150.6617 | LB29: 151.8535 | LC29: 152.0656 | LD29: 153.0352 | LE29: 154.4492 | LF29: 155.1259 | LG29: 153.3079 | LH29: 151.9646 | LI29: 153.924 | LJ29: 156.146 | LK29: 151.7525 | LL29: 157.8731 | LM29: 158.267 | LN29: 158.6205 | LO29: 157.459 | LP29: 157.5701 | LQ29: 157.257 | LR29: 157.3075 | LS29: 157.4994 | LT29: 157.3984 | LU29: 157.358 | LV29: 157.3378 | LW29: 157.2674 | LX29: 157.3176 | LY29: 157.3277 | LZ29: 157.2974 | MA29: 157.3075 | MB29: 157.3075 | MC29: 157.3075 | MD29: 157.2974 | ME29: 157.3075 | MF29: 157.3176 | MG29: 157.3176 | MH29: 157.3075 | MI29: 157.358 | MJ29: 157.2772 | MK29: 157.257 | ML29: 157.3075 | MM29: 157.3075 | MN29: 157.2974 | MO29: 157.2873 | MP29: 157.2873 | MQ29: 157.2873 | MR29: 157.2873 | MS29: 157.2873 | MT29: 157.3075 | MU29: 157.3176 | MV29: 166.65 | MW29: 169.68 | MX29: 169.68 | MY29: 169.68 | MZ29: 197 | NA29: 197 | NB29: 197 | NC29: 196.95 | ND29: 197 | NE29: 197 | NF29: 196.95 | NG29: 197 | NH29: 197 | NI29: 197 | NJ29: 197 | NK29: 196.5 | NL29: 196.5 | NM29: 196.5 | NN29: 196.5 | NO29: 282.25 | NP29: 312.5 | NQ29: 305.5 | NR29: 304.75 | NS29: 305 | NT29: 305 | NU29: 305 | NV29: 305.25 | NW29: 305.5 | NX29: 306.35 | NY29: 305.85 | NZ29: 305.4 | OA29: 305.9 | OB29: 305.65 | OC29: 305.85 | OD29: 305.75 | OE29: 305.8 | OF29: 306 | OG29: 306 | OH29: 305.7 | OI29: 305.9 | OJ29: 305.65 | OK29: 305.7 | OL29: 305.95 | OM29: 305.75
A30: Pakistan | B30: 15.5 | C30: 16.02 | D30: 15.9 | E30: 16 | F30: 16 | G30: 16 | H30: 16 | I30: 15.9 | J30: 16.05 | K30: 15.98 | L30: 15.98 | M30: 15.98 | N30: 15.98 | O30: 15.98 | P30: 15.98 | Q30: 16.26 | R30: 16.88 | S30: 16.82 | T30: 16.9 | U30: 16.95 | V30: 17 | W30: 17.1 | X30: 17.25 | Y30: 17.25 | Z30: 17.25 | AA30: 17.25 | AB30: 17.3 | AC30: 17.3 | AD30: 17.3 | AE30: 17.35 | AF30: 17.5 | AG30: 17.52 | AH30: 17.52 | AI30: 17.53 | AJ30: 17.5 | AK30: 17.45 | AL30: 17.5 | AM30: 17.55 | AN30: 17.6 | AO30: 17.6 | AP30: 17.7 | AQ30: 18 | AR30: 18.15 | AS30: 18.3 | AT30: 18.35 | AU30: 18.55 | AV30: 18.7 | AW30: 18.65 | AX30: 19.1 | AY30: 19.3 | AZ30: 19.75 | BA30: 20.15 | BB30: 21.1 | BC30: 21.1 | BD30: 21.05 | BE30: 21.05 | BF30: 21.07 | BG30: 21.19 | BH30: 21.35 | BI30: 21.42 | BJ30: 21.42 | BK30: 21.42 | BL30: 21.52 | BM30: 21.86 | BN30: 21.9 | BO30: 21.79 | BP30: 21.72 | BQ30: 21.74 | BR30: 21.74 | BS30: 21.85 | BT30: 21.85 | BU30: 21.9 | BV30: 22.15 | BW30: 22.15 | BX30: 22.95 | BY30: 23.5 | BZ30: 23.8 | CA30: 24.3 | CB30: 24.65 | CC30: 24.7 | CD30: 24.6 | CE30: 24.68 | CF30: 24.72 | CG30: 24.72 | CH30: 24.65 | CI30: 24.7 | CJ30: 24.98 | CK30: 25.05 | CL30: 25.1 | CM30: 25.13 | CN30: 25.13 | CO30: 25.08 | CP30: 25.08 | CQ30: 25.25 | CR30: 25.57 | CS30: 25.7 | CT30: 26 | CU30: 26.25 | CV30: 26.65 | CW30: 26.7 | CX30: 26.94 | CY30: 27.16 | CZ30: 29.85 | DA30: 29.85 | DB30: 29.85 | DC30: 30.05 | DD30: 30.05 | DE30: 30.12 | DF30: 30.26 | DG30: 30.47 | DH30: 30.5 | DI30: 30.55 | DJ30: 30.65 | DK30: 30.61 | DL30: 30.59 | DM30: 30.65 | DN30: 30.65 | DO30: 30.65 | DP30: 30.7 | DQ30: 30.8 | DR30: 30.86 | DS30: 30.88 | DT30: 30.88 | DU30: 30.86 | DV30: 30.97 | DW30: 31.01 | DX30: 31.19 | DY30: 31.32 | DZ30: 31.55 | EA30: 34.25 | EB30: 34.25 | EC30: 34.25 | ED30: 34.33 | EE30: 34.4 | EF30: 34.52 | EG30: 34.75 | EH30: 34.83 | EI30: 35.1 | EJ30: 35.32 | EK30: 35.62 | EL30: 36.97 | EM30: 40.12 | EN30: 40.12 | EO30: 40.12 | EP30: 40.12 | EQ30: 40.12 | ER30: 40.12 | ES30: 40.24 | ET30: 40.39 | EU30: 40.46 | EV30: 40.52 | EW30: 40.52 | EX30: 40.52 | EY30: 44.05 | EZ30: 44.05 | FA30: 44.05 | FB30: 44.05 | FC30: 44.05 | FD30: 44.05 | FE30: 44.05 | FF30: 44.05 | FG30: 46 | FH30: 46 | FI30: 46 | FJ30: 45.885287 | FK30: 45.885287 | FL30: 45.885287 | FM30: 45.885287 | FN30: 46 | FO30: 46 | FP30: 46 | FQ30: 46 | FR30: 51.69 | FS30: 51.39 | FT30: 51.16 | FU30: 51.62 | FV30: 51.7457 | FW30: 51.766 | FX30: 51.7864 | FY30: 51.7846 | FZ30: 51.7892 | GA30: 51.875 | GB30: 51.79245 | GC30: 51.79245 | GD30: 51.79155 | GE30: 51.79155 | GF30: 51.79155 | GG30: 51.79155 | GH30: 58.43745 | GI30: 56.96872 | GJ30: 57.48475 | GK30: 58.02916 | GL30: 59.20258 | GM30: 60.26839 | GN30: 60.9272 | GO30: 61.23792 | GP30: 62.52169 | GQ30: 64.11439 | GR30: 64.01447 | GS30: 64.06815 | GT30: 64.1979 | GU30: 62.1479 | GV30: 60.86385 | GW30: 60.86385 | GX30: 60.2261 | GY30: 60.09395 | GZ30: 60.121 | HA30: 60.05095 | HB30: 60.16665 | HC30: 60.05775 | HD30: 59.53875 | HE30: 59.3625 | HF30: 59.1857 | HG30: 59.1875 | HH30: 58.53385 | HI30: 58.53385 | HJ30: 58.20435 | HK30: 58.0906 | HL30: 57.77995 | HM30: 57.77045 | HN30: 57.6245 | HO30: 57.8125 | HP30: 57.70935 | HQ30: 57.7438 | HR30: 57.90665 | HS30: 57.4135 | HT30: 57.215 | HU30: 57.215 | HV30: 57.41435 | HW30: 57.3389 | HX30: 57.511 | HY30: 57.4681 | HZ30: 57.7176 | IA30: 58.1257 | IB30: 58.29935 | IC30: 58.81435 | ID30: 59.21095 | IE30: 59.21095 | IF30: 59.673 | IG30: 59.124 | IH30: 59.124 | II30: 59.124 | IJ30: 59.124 | IK30: 59.124 | IL30: 59.5603 | IM30: 59.7145 | IN30: 59.6406 | IO30: 59.68085 | IP30: 59.7152 | IQ30: 59.7223 | IR30: 59.7805 | IS30: 59.82995 | IT30: 59.84145 | IU30: 59.9362 | IV30: 59.97705 | IW30: 60.0508 | IX30: 60.1854 | IY30: 60.2637 | IZ30: 60.3561 | JA30: 60.3475 | JB30: 60.5603 | JC30: 60.5971 | JD30: 60.7783 | JE30: 60.9182 | JF30: 60.7683 | JG30: 60.8103 | JH30: 60.7075 | JI30: 60.732 | JJ30: 60.7561 | JK30: 60.5224 | JL30: 60.4025 | JM30: 60.6548 | JN30: 60.7105 | JO30: 60.7477 | JP30: 61.2207 | JQ30: 61.2207 | JR30: 61.2207 | JS30: 61.2207 | JT30: 62.7172 | JU30: 64.5241 | JV30: 67.0958 | JW30: 68.2808 | JX30: 71.4908 | JY30: 76.1052 | JZ30: 78.0355 | KA30: 81.6232 | KB30: 78.8237 | KC30: 79.098 | KD30: 78.9782 | KE30: 79.8686 | KF30: 80.441 | KG30: 80.514 | KH30: 80.9864 | KI30: 81.3896 | KJ30: 83.2423 | KK30: 83.1036 | KL30: 83.1765 | KM30: 83.652 | KN30: 83.6542 | KO30: 84.2634 | KP30: 84.7339 | KQ30: 85.0305 | KR30: 84.1799 | KS30: 84.0056 | KT30: 85.0652 | KU30: 85.4634 | KV30: 85.663 | KW30: 85.6366 | KX30: 86.2851 | KY30: 85.871 | KZ30: 85.7669 | LA30: 85.7108 | LB30: 85.6993 | LC30: 85.6697 | LD30: 85.3113 | LE30: 84.6587 | LF30: 85.9064 | LG30: 85.9894 | LH30: 86.5135 | LI30: 87.2463 | LJ30: 87.5023 | LK30: 86.5602 | LL30: 88.3754 | LM30: 89.9679 | LN30: 90.3818 | LO30: 90.9641 | LP30: 90.7029 | LQ30: 90.9693 | LR30: 94.0277 | LS30: 94.627 | LT30: 94.7144 | LU30: 94.5865 | LV30: 94.8654 | LW30: 95.8844 | LX30: 96.5568 | LY30: 97.1361 | LZ30: 97.738 | MA30: 98.1907 | MB30: 98.4611 | MC30: 98.4625 | MD30: 98.5663 | ME30: 99.1141 | MF30: 101.8408 | MG30: 104.5646 | MH30: 106.0025 | MI30: 106.8747 | MJ30: 108.6055 | MK30: 105.6782 | ML30: 105.46375 | MM30: 104.9564 | MN30: 98.2198 | MO30: 98.70015 | MP30: 98.73375 | MQ30: 98.80875 | MR30: 98.8056 | MS30: 101.8964 | MT30: 102.6506 | MU30: 102.9356 | MV30: 101.8487 | MW30: 100.4586 | MX30: 101.2007 | MY30: 101.8895 | MZ30: 101.9223 | NA30: 101.75005 | NB30: 101.98 | NC30: 101.7895 | ND30: 101.7981 | NE30: 104.1873 | NF30: 104.5143 | NG30: 105.499 | NH30: 105.5204 | NI30: 104.8655 | NJ30: 104.9437 | NK30: 104.7167 | NL30: 104.7555 | NM30: 104.8254 | NN30: 104.848 | NO30: 104.7619 | NP30: 104.8497 | NQ30: 104.8125 | NR30: 104.7002 | NS30: 104.8406 | NT30: 104.8493 | NU30: 104.813 | NV30: 104.8658 | NW30: 104.8514 | NX30: 104.8545 | NY30: 104.798 | NZ30: 104.86415 | OA30: 104.8861 | OB30: 105.4263 | OC30: 105.2692 | OD30: 105.42215 | OE30: 105.4164 | OF30: 105.4843 | OG30: 110.43275 | OH30: 110.5604 | OI30: 110.58625 | OJ30: 115.5052 | OK30: 115.60745 | OL30: 115.6142 | OM30: 121.5405
A31: Paraguay | B31: 240 | C31: 240 | D31: 320 | E31: 320 | F31: 320 | G31: 320 | H31: 320 | I31: 320 | J31: 320 | K31: 320 | L31: 320 | M31: 320 | N31: 320 | O31: 320 | P31: 320 | Q31: 320 | R31: 320 | S31: 320 | T31: 320 | U31: 320 | V31: 320 | W31: 320 | X31: 320 | Y31: 550 | Z31: 550 | AA31: 550 | AB31: 550 | AC31: 550 | AD31: 550 | AE31: 550 | AF31: 550 | AG31: 550 | AH31: 550 | AI31: 550 | AJ31: 550 | AK31: 550 | AL31: 550 | AM31: 550 | AN31: 550 | AO31: 550 | AP31: 550 | AQ31: 550 | AR31: 550 | AS31: 550 | AT31: 550 | AU31: 550 | AV31: 550 | AW31: 550 | AX31: 550 | AY31: 550 | AZ31: 1003 | BA31: 1015 | BB31: 1105 | BC31: 1165 | BD31: 1258 | BE31: 1262 | BF31: 1200 | BG31: 1185 | BH31: 1204 | BI31: 1218 | BJ31: 1290 | BK31: 1250 | BL31: 1218 | BM31: 1235 | BN31: 1255 | BO31: 1205 | BP31: 1201 | BQ31: 1197 | BR31: 1215 | BS31: 1201 | BT31: 1234 | BU31: 1258 | BV31: 1323 | BW31: 1323 | BX31: 1312 | BY31: 1312 | BZ31: 1323 | CA31: 1328 | CB31: 1316 | CC31: 1318 | CD31: 1310 | CE31: 1310 | CF31: 1324.2 | CG31: 1380 | CH31: 1417 | CI31: 1442 | CJ31: 1446.5 | CK31: 1447 | CL31: 1452 | CM31: 1468.8 | CN31: 1483.9 | CO31: 1515.4 | CP31: 1539.6 | CQ31: 1559.5 | CR31: 1582.52 | CS31: 1630 | CT31: 1631.8 | CU31: 1665 | CV31: 1717 | CW31: 1727 | CX31: 1736 | CY31: 1745 | CZ31: 1753 | DA31: 1765 | DB31: 1792 | DC31: 1802 | DD31: 1815 | DE31: 1880 | DF31: 1869.02 | DG31: 1888.62 | DH31: 1906.39 | DI31: 1903.5 | DJ31: 1910.55 | DK31: 1907.98 | DL31: 1910.48 | DM31: 1909.41 | DN31: 1918.12 | DO31: 1919.1 | DP31: 1921.98 | DQ31: 1924.7 | DR31: 1942.02 | DS31: 1957.29 | DT31: 1968.07 | DU31: 1968.23 | DV31: 1964.62 | DW31: 1965.17 | DX31: 1964.68 | DY31: 1965.02 | DZ31: 1965.02 | EA31: 1965.03 | EB31: 1974.08 | EC31: 1979.66 | ED31: 2005.97 | EE31: 2020.12 | EF31: 2023.99 | EG31: 2038.49 | EH31: 2044.04 | EI31: 2056.34 | EJ31: 2064.54 | EK31: 2080.6 | EL31: 2084.76 | EM31: 2097.78 | EN31: 2104.49 | EO31: 2109.67 | EP31: 2128.22 | EQ31: 2129.4 | ER31: 2140.46 | ES31: 2147.82 | ET31: 2161.59 | EU31: 2161.9 | EV31: 2173.81 | EW31: 2184.86 | EX31: 2192.09 | EY31: 2215.96 | EZ31: 2236.07 | FA31: 2360 | FB31: 2521.96 | FC31: 2525.72 | FD31: 2581.71 | FE31: 2746.81 | FF31: 2702.7 | FG31: 2770.12 | FH31: 2812.93 | FI31: 2819.75 | FJ31: 2818.23 | FK31: 2829.08 | FL31: 2838.82 | FM31: 2840.19 | FN31: 2849.94 | FO31: 2898.55 | FP31: 2904.78 | FQ31: 2911.97 | FR31: 2949.46 | FS31: 3236.17 | FT31: 3294.43 | FU31: 3308.92 | FV31: 3310.9 | FW31: 3312.17 | FX31: 3316.45 | FY31: 3328.86 | FZ31: 3364.99 | GA31: 3489.4 | GB31: 3495.3 | GC31: 3492.5 | GD31: 3497.5 | GE31: 3499.5 | GF31: 3501.9 | GG31: 3494.4 | GH31: 3482.5 | GI31: 3502.51 | GJ31: 3543.88 | GK31: 3526.9 | GL31: 3593.65 | GM31: 3742.6 | GN31: 3784 | GO31: 3789.1 | GP31: 3856.2 | GQ31: 4004.1 | GR31: 4270.8 | GS31: 4330.1 | GT31: 4452.5 | GU31: 4577.6 | GV31: 4704.2 | GW31: 4682 | GX31: 4825.2 | GY31: 4898 | GZ31: 4831.3 | HA31: 4818.9 | HB31: 5249.8 | HC31: 5960.7 | HD31: 5984.2 | HE31: 6137.3 | HF31: 6014.8 | HG31: 6484.5 | HH31: 6973.45 | HI31: 7103.59 | HJ31: 6985.19 | HK31: 6895.3 | HL31: 6866.9 | HM31: 6824.8 | HN31: 6299.5 | HO31: 6193.5 | HP31: 6054.1 | HQ31: 6246 | HR31: 6245.8 | HS31: 6211.4 | HT31: 6059.1 | HU31: 6114.96 | HV31: 6229.96 | HW31: 6014.58 | HX31: 5881.5 | HY31: 5730 | HZ31: 5985 | IA31: 5900 | IB31: 5915 | IC31: 5912.5 | ID31: 5950 | IE31: 6070 | IF31: 6130 | IG31: 6250 | IH31: 6340 | II31: 6260 | IJ31: 6302.5 | IK31: 6270 | IL31: 6235 | IM31: 6080 | IN31: 5995 | IO31: 6090 | IP31: 6110 | IQ31: 6140 | IR31: 6147.5 | IS31: 6120 | IT31: 6135 | IU31: 6000 | IV31: 5950 | IW31: 5765 | IX31: 5775 | IY31: 5575 | IZ31: 5485 | JA31: 5415 | JB31: 5380 | JC31: 5400 | JD31: 5410 | JE31: 5190 | JF31: 5260 | JG31: 5190 | JH31: 5065 | JI31: 5115 | JJ31: 5050 | JK31: 5155 | JL31: 5110 | JM31: 5105 | JN31: 5045 | JO31: 4840 | JP31: 4730 | JQ31: 4875 | JR31: 4700 | JS31: 4660 | JT31: 4395 | JU31: 4120 | JV31: 4080 | JW31: 3975 | JX31: 4000 | JY31: 3990 | JZ31: 4000 | KA31: 4625 | KB31: 4880 | KC31: 4945 | KD31: 5060 | KE31: 5107.1 | KF31: 5115 | KG31: 5065 | KH31: 5045 | KI31: 5025 | KJ31: 4990 | KK31: 4960 | KL31: 4890 | KM31: 4865 | KN31: 4785 | KO31: 4610 | KP31: 4755 | KQ31: 4716.5 | KR31: 4696 | KS31: 4726.5 | KT31: 4745.5 | KU31: 4760.36 | KV31: 4760.1 | KW31: 4759.15 | KX31: 4788.85 | KY31: 4922.7 | KZ31: 4788.59 | LA31: 4573.75 | LB31: 4602.05 | LC31: 4586.3 | LD31: 4305.25 | LE31: 4051.6 | LF31: 4000.25 | LG31: 3995.8 | LH31: 3927.05 | LI31: 3890 | LJ31: 4017.5 | LK31: 4175.5 | LL31: 4325.87 | LM31: 4439.905 | LN31: 4613.505 | LO31: 4443.515 | LP31: 4293.7 | LQ31: 4308.5 | LR31: 4386.9 | LS31: 4537.95 | LT31: 4436.6 | LU31: 4410.85 | LV31: 4424.6 | LW31: 4455 | LX31: 4460.15 | LY31: 4288.8 | LZ31: 4187.55 | MA31: 4024.55 | MB31: 4001.6 | MC31: 4096.2 | MD31: 4197.45 | ME31: 4404.3 | MF31: 4464.65 | MG31: 4429.55 | MH31: 4446.4 | MI31: 4444.6 | MJ31: 4425.7 | MK31: 4524 | ML31: 4686.505 | MM31: 4436.26 | MN31: 4442.075 | MO31: 4434.405 | MP31: 4423.42 | MQ31: 4386.935 | MR31: 4298.035 | MS31: 4266.39 | MT31: 4499.06 | MU31: 4618.595 | MV31: 4630.285 | MW31: 4626.255 | MX31: 4818.77475 | MY31: 4724.85 | MZ31: 4798.775 | NA31: 5013.465 | NB31: 5120.185 | NC31: 5183.7 | ND31: 5171.74 | NE31: 5378.67 | NF31: 5636.085 | NG31: 5634.71 | NH31: 5680.5 | NI31: 5806.915 | NJ31: 5932.545 | NK31: 5722.54 | NL31: 5628.71 | NM31: 5571.105 | NN31: 5708.68 | NO31: 5588.96 | NP31: 5543.565 | NQ31: 5527.82 | NR31: 5555.395 | NS31: 5723.49 | NT31: 5839.87 | NU31: 5766.93 | NV31: 5776.885 | NW31: 5464.995 | NX31: 5638.14 | NY31: 5571.655 | NZ31: 5596.675 | OA31: 5559.675 | OB31: 5555.3 | OC31: 5654.5 | OD31: 5656.58 | OE31: 5636.725 | OF31: 5669.335 | OG31: 5590.475 | OH31: 5610.195 | OI31: 5564.645 | OJ31: 5548.29 | OK31: 5552.425 | OL31: 5734.935 | OM31: 5702.705
... 36 more rows

Sheet Inflation
A1: Inflation - change in CPI (all items): corresponding period previous year (CPI, all items)
B2: Jan 1985 | C2: Feb 1985 | D2: Mar 1985 | E2: Apr 1985 | F2: May 1985 | G2: Jun 1985 | H2: Jul 1985 | I2: Aug 1985 | J2: Sep 1985 | K2: Oct 1985 | L2: Nov 1985 | M2: Dec 1985 | N2: Jan 1986 | O2: Feb 1986 | P2: Mar 1986 | Q2: Apr 1986 | R2: May 1986 | S2: Jun 1986 | T2: Jul 1986 | U2: Aug 1986 | V2: Sep 1986 | W2: Oct 1986 | X2: Nov 1986 | Y2: Dec 1986 | Z2: Jan 1987 | AA2: Feb 1987 | AB2: Mar 1987 | AC2: Apr 1987 | AD2: May 1987 | AE2: Jun 1987 | AF2: Jul 1987 | AG2: Aug 1987 | AH2: Sep 1987 | AI2: Oct 1987 | AJ2: Nov 1987 | AK2: Dec 1987 | AL2: Jan 1988 | AM2: Feb 1988 | AN2: Mar 1988 | AO2: Apr 1988 | AP2: May 1988 | AQ2: Jun 1988 | AR2: Jul 1988 | AS2: Aug 1988 | AT2: Sep 1988 | AU2: Oct 1988 | AV2: Nov 1988 | AW2: Dec 1988 | AX2: Jan 1989 | AY2: Feb 1989 | AZ2: Mar 1989 | BA2: Apr 1989 | BB2: May 1989 | BC2: Jun 1989 | BD2: Jul 1989 | BE2: Aug 1989 | BF2: Sep 1989 | BG2: Oct 1989 | BH2: Nov 1989 | BI2: Dec 1989 | BJ2: Jan 1990 | BK2: Feb 1990 | BL2: Mar 1990 | BM2: Apr 1990 | BN2: May 1990 | BO2: Jun 1990 | BP2: Jul 1990 | BQ2: Aug 1990 | BR2: Sep 1990 | BS2: Oct 1990 | BT2: Nov 1990 | BU2: Dec 1990 | BV2: Jan 1991 | BW2: Feb 1991 | BX2: Mar 1991 | BY2: Apr 1991 | BZ2: May 1991 | CA2: Jun 1991 | CB2: Jul 1991 | CC2: Aug 1991 | CD2: Sep 1991 | CE2: Oct 1991 | CF2: Nov 1991 | CG2: Dec 1991 | CH2: Jan 1992 | CI2: Feb 1992 | CJ2: Mar 1992 | CK2: Apr 1992 | CL2: May 1992 | CM2: Jun 1992 | CN2: Jul 1992 | CO2: Aug 1992 | CP2: Sep 1992 | CQ2: Oct 1992 | CR2: Nov 1992 | CS2: Dec 1992 | CT2: Jan 1993 | CU2: Feb 1993 | CV2: Mar 1993 | CW2: Apr 1993 | CX2: May 1993 | CY2: Jun 1993 | CZ2: Jul 1993 | DA2: Aug 1993 | DB2: Sep 1993 | DC2: Oct 1993 | DD2: Nov 1993 | DE2: Dec 1993 | DF2: Jan 1994 | DG2: Feb 1994 | DH2: Mar 1994 | DI2: Apr 1994 | DJ2: May 1994 | DK2: Jun 1994 | DL2: Jul 1994 | DM2: Aug 1994 | DN2: Sep 1994 | DO2: Oct 1994 | DP2: Nov 1994 | DQ2: Dec 1994 | DR2: Jan 1995 | DS2: Feb 1995 | DT2: Mar 1995 | DU2: Apr 1995 | DV2: May 1995 | DW2: Jun 1995 | DX2: Jul 1995 | DY2: Aug 1995 | DZ2: Sep 1995 | EA2: Oct 1995 | EB2: Nov 1995 | EC2: Dec 1995 | ED2: Jan 1996 | EE2: Feb 1996 | EF2: Mar 1996 | EG2: Apr 1996 | EH2: May 1996 | EI2: Jun 1996 | EJ2: Jul 1996 | EK2: Aug 1996 | EL2: Sep 1996 | EM2: Oct 1996 | EN2: Nov 1996 | EO2: Dec 1996 | EP2: Jan 1997 | EQ2: Feb 1997 | ER2: Mar 1997 | ES2: Apr 1997 | ET2: May 1997 | EU2: Jun 1997 | EV2: Jul 1997 | EW2: Aug 1997 | EX2: Sep 1997 | EY2: Oct 1997 | EZ2: Nov 1997 | FA2: Dec 1997 | FB2: Jan 1998 | FC2: Feb 1998 | FD2: Mar 1998 | FE2: Apr 1998 | FF2: May 1998 | FG2: Jun 1998 | FH2: Jul 1998 | FI2: Aug 1998 | FJ2: Sep 1998 | FK2: Oct 1998 | FL2: Nov 1998 | FM2: Dec 1998 | FN2: Jan 1999 | FO2: Feb 1999 | FP2: Mar 1999 | FQ2: Apr 1999 | FR2: May 1999 | FS2: Jun 1999 | FT2: Jul 1999 | FU2: Aug 1999 | FV2: Sep 1999 | FW2: Oct 1999 | FX2: Nov 1999 | FY2: Dec 1999 | FZ2: Jan 2000 | GA2: Feb 2000 | GB2: Mar 2000 | GC2: Apr 2000 | GD2: May 2000 | GE2: Jun 2000 | GF2: Jul 2000 | GG2: Aug 2000 | GH2: Sep 2000 | GI2: Oct 2000 | GJ2: Nov 2000 | GK2: Dec 2000 | GL2: Jan 2001 | GM2: Feb 2001 | GN2: Mar 2001 | GO2: Apr 2001 | GP2: May 2001 | GQ2: Jun 2001 | GR2: Jul 2001 | GS2: Aug 2001 | GT2: Sep 2001 | GU2: Oct 2001 | GV2: Nov 2001 | GW2: Dec 2001 | GX2: Jan 2002 | GY2: Feb 2002 | GZ2: Mar 2002 | HA2: Apr 2002 | HB2: May 2002 | HC2: Jun 2002 | HD2: Jul 2002 | HE2: Aug 2002 | HF2: Sep 2002 | HG2: Oct 2002 | HH2: Nov 2002 | HI2: Dec 2002 | HJ2: Jan 2003 | HK2: Feb 2003 | HL2: Mar 2003 | HM2: Apr 2003 | HN2: May 2003 | HO2: Jun 2003 | HP2: Jul 2003 | HQ2: Aug 2003 | HR2: Sep 2003 | HS2: Oct 2003 | HT2: Nov 2003 | HU2: Dec 2003 | HV2: Jan 2004 | HW2: Feb 2004 | HX2: Mar 2004 | HY2: Apr 2004 | HZ2: May 2004 | IA2: Jun 2004 | IB2: Jul 2004 | IC2: Aug 2004 | ID2: Sep 2004 | IE2: Oct 2004 | IF2: Nov 2004 | IG2: Dec 2004 | IH2: Jan 2005 | II2: Feb 2005 | IJ2: Mar 2005 | IK2: Apr 2005 | IL2: May 2005 | IM2: Jun 2005 | IN2: Jul 2005 | IO2: Aug 2005 | IP2: Sep 2005 | IQ2: Oct 2005 | IR2: Nov 2005 | IS2: Dec 2005 | IT2: Jan 2006 | IU2: Feb 2006 | IV2: Mar 2006 | IW2: Apr 2006 | IX2: May 2006 | IY2: Jun 2006 | IZ2: Jul 2006 | JA2: Aug 2006 | JB2: Sep 2006 | JC2: Oct 2006 | JD2: Nov 2006 | JE2: Dec 2006 | JF2: Jan 2007 | JG2: Feb 2007 | JH2: Mar 2007 | JI2: Apr 2007 | JJ2: May 2007 | JK2: Jun 2007 | JL2: Jul 2007 | JM2: Aug 2007 | JN2: Sep 2007 | JO2: Oct 2007 | JP2: Nov 2007 | JQ2: Dec 2007 | JR2: Jan 2008 | JS2: Feb 2008 | JT2: Mar 2008 | JU2: Apr 2008 | JV2: May 2008 | JW2: Jun 2008 | JX2: Jul 2008 | JY2: Aug 2008 | JZ2: Sep 2008 | KA2: Oct 2008 | KB2: Nov 2008 | KC2: Dec 2008 | KD2: Jan 2009 | KE2: Feb 2009 | KF2: Mar 2009 | KG2: Apr 2009 | KH2: May 2009 | KI2: Jun 2009 | KJ2: Jul 2009 | KK2: Aug 2009 | KL2: Sep 2009 | KM2: Oct 2009 | KN2: Nov 2009 | KO2: Dec 2009 | KP2: Jan 2010 | KQ2: Feb 2010 | KR2: Mar 2010 | KS2: Apr 2010 | KT2: May 2010 | KU2: Jun 2010 | KV2: Jul 2010 | KW2: Aug 2010 | KX2: Sep 2010 | KY2: Oct 2010 | KZ2: Nov 2010 | LA2: Dec 2010 | LB2: Jan 2011 | LC2: Feb 2011 | LD2: Mar 2011 | LE2: Apr 2011 | LF2: May 2011 | LG2: Jun 2011 | LH2: Jul 2011 | LI2: Aug 2011 | LJ2: Sep 2011 | LK2: Oct 2011 | LL2: Nov 2011 | LM2: Dec 2011 | LN2: Jan 2012 | LO2: Feb 2012 | LP2: Mar 2012 | LQ2: Apr 2012 | LR2: May 2012 | LS2: Jun 2012 | LT2: Jul 2012 | LU2: Aug 2012 | LV2: Sep 2012 | LW2: Oct 2012 | LX2: Nov 2012 | LY2: Dec 2012 | LZ2: Jan 2013 | MA2: Feb 2013 | MB2: Mar 2013 | MC2: Apr 2013 | MD2: May 2013 | ME2: Jun 2013 | MF2: Jul 2013 | MG2: Aug 2013 | MH2: Sep 2013 | MI2: Oct 2013 | MJ2: Nov 2013 | MK2: Dec 2013 | ML2: Jan 2014 | MM2: Feb 2014 | MN2: Mar 2014 | MO2: Apr 2014 | MP2: May 2014 | MQ2: Jun 2014 | MR2: Jul 2014 | MS2: Aug 2014 | MT2: Sep 2014 | MU2: Oct 2014 | MV2: Nov 2014 | MW2: Dec 2014 | MX2: Jan 2015 | MY2: Feb 2015 | MZ2: Mar 2015 | NA2: Apr 2015 | NB2: May 2015 | NC2: Jun 2015 | ND2: Jul 2015 | NE2: Aug 2015 | NF2: Sep 2015 | NG2: Oct 2015 | NH2: Nov 2015 | NI2: Dec 2015 | NJ2: Jan 2016 | NK2: Feb 2016 | NL2: Mar 2016 | NM2: Apr 2016 | NN2: May 2016 | NO2: Jun 2016 | NP2: Jul 2016 | NQ2: Aug 2016 | NR2: Sep 2016 | NS2: Oct 2016 | NT2: Nov 2016 | NU2: Dec 2016 | NV2: 2017 - Jan | NW2: 2017 - Feb | NX2: 2017 - Mar | NY2: 2017 - Apr | NZ2: 2017 - May | OA2: 2017 - Jun | OB2: 2017 - Jul | OC2: 2017 - Aug | OD2: 2017 - Sep | OE2: 2017 - Oct | OF2: 2017 - Nov | OG2: 2017 - Dec | OH2: 2018 - Jan | OI2: 2018 - Feb | OJ2: 2018 - Mar | OK2: 2018 - Apr | OL2: 2018 - May | OM2: 2018 - Jun
A3: Algeria | B3: 11.73380035 | C3: 9.714795009 | D3: 10.24734982 | E3: 8.680555556 | F3: 10.26548673 | G3: 9.615384615 | H3: 8.400357462 | I3: 9.586631486 | J3: 12.12938005 | K3: 11.89427313 | L3: 10.92851274 | M3: 12.45847176 | N3: 12.30407524 | O3: 13.32250203 | P3: 12.41987179 | Q3: 12.5399361 | R3: 12.1187801 | S3: 11.08452951 | T3: 12.0362737 | U3: 10.19261637 | V3: 11.93910256 | W3: 14.09448819 | X3: 14.37037037 | Y3: 11.89069424 | Z3: 9.699930216 | AA3: 10.46594982 | AB3: 9.978617249 | AC3: 9.723207949 | AD3: 10.88045812 | AE3: 5.671213209 | AF3: 6.328182487 | AG3: 6.627822287 | AH3: 6.871868289 | AI3: 5.935127674 | AJ3: 4.533678756 | AK3: 3.168316832 | AL3: 4.198473282 | AM3: 3.50421804 | AN3: 4.666234608 | AO3: 5.239327296 | AP3: 2.711426727 | AQ3: 5.230978261 | AR3: 7.058823529 | AS3: 10.45081967 | AT3: 9.77896852 | AU3: 6.64495114 | AV3: 3.345724907 | AW3: 8.637236084 | AX3: 6.41025641 | AY3: 9.780564263 | AZ3: 6.749226006 | BA3: 10.20282729 | BB3: 7.291011942 | BC3: 10.71659135 | BD3: 13.12217195 | BE3: 8.410636982 | BF3: 7.077486272 | BG3: 9.773976787 | BH3: 11.51079137 | BI3: 10.71849234 | BJ3: 8.719151463 | BK3: 6.652688266 | BL3: 13.42079501 | BM3: 12.59065359 | BN3: 16.6938762 | BO3: 20.78407961 | BP3: 13.50641006 | BQ3: 16.5479389 | BR3: 19.1085297 | BS3: 22.1701528 | BT3: 23.51017778 | BU3: 25.02718446 | BV3: 24.84294161 | BW3: 26.30542796 | BX3: 28.20306205 | BY3: 22.81675483 | BZ3: 26.26999473 | CA3: 22.31237323 | CB3: 24.89864269 | CC3: 26.24678663 | CD3: 27.73031826 | CE3: 28.10207337 | CF3: 27.16049383 | CG3: 25.49530761 | CH3: 27.29223711 | CI3: 28.67958138 | CJ3: 24.3173406 | CK3: 28.85185708 | CL3: 31.51667015 | CM3: 38.93034826 | CN3: 38.96690424 | CO3: 38.74974547 | CP3: 35.82715887 | CQ3: 31.01344622 | CR3: 28.20927724 | CS3: 28.04320731 | CT3: 26.99843032 | CU3: 27.89409933 | CV3: 28.8186057 | CW3: 25.77268742 | CX3: 26.13389786 | CY3: 15.3934149 | CZ3: 17.12791347 | DA3: 15.76655905 | DB3: 16.86217717 | DC3: 17.3952295 | DD3: 16.74846913 | DE3: 16.12125707 | DF3: 20.66834516 | DG3: 22.14404907 | DH3: 20.96724957 | DI3: 21.92497059 | DJ3: 25.09545588 | DK3: 29.00737037 | DL3: 30.06156247 | DM3: 30.90217621 | DN3: 35.29411765 | DO3: 35.54053507 | DP3: 35.64221653 | DQ3: 38.48395338 | DR3: 40.28072838 | DS3: 36.79060665 | DT3: 35.07336241 | DU3: 34.2279241 | DV3: 30.74729993 | DW3: 31.77307808 | DX3: 29.97666667 | DY3: 30.49583575 | DZ3: 25.77857841 | EA3: 22.89476828 | EB3: 23.37209989 | EC3: 21.82572853 | ED3: 19.48455839 | EE3: 21.40254272 | EF3: 21.62378563 | EG3: 21.57557041 | EH3: 22.12872938 | EI3: 21.30016987 | EJ3: 19.32911035 | EK3: 16.576376 | EL3: 15.17417162 | EM3: 16.50103268 | EN3: 15.28375921 | EO3: 15.08103632 | EP3: 13.52782744 | EQ3: 9.836357168 | ER3: 7.373271889 | ES3: 6.865214059 | ET3: 2.568949944 | EU3: 2.378663099 | EV3: 4.857081453 | EW3: 4.019012859 | EX3: 4.244825697 | EY3: 2.990864723 | EZ3: 4.993358791 | FA3: 6.046588129 | FB3: 5.322966507 | FC3: 4.251012146 | FD3: 5.395462906 | FE3: 5.696721311 | FF3: 5.508908458 | FG3: 4.573295223 | FH3: 3.299856528 | FI3: 5.079559364 | FJ3: 6.146380914 | FK3: 5.751316322 | FL3: 4.487052777 | FM3: 3.935633967 | FN3: 2.990724967 | FO3: 3.223300971 | FP3: 3.917006011 | FQ3: 2.7723924 | FR3: 3.881987578 | FS3: 3.826630223 | FT3: 3.452380952 | FU3: 2.038439138 | FV3: 1.79047619 | FW3: 1.646878591 | FX3: 1.13507378 | FY3: 1.212460362 | FZ3: 2.242234883 | GA3: 2.426636569 | GB3: 1.660757604 | GC3: 0.9243538955 | GD3: -0.485799701 | GE3: -1.184655886 | GF3: -0.6137322593 | GG3: 0 | GH3: -0.9730538922 | GI3: -0.3956292389 | GJ3: 0.2805836139 | GK3: 0.1290084777 | GL3: -1.132482473 | GM3: -0.2387511478 | GN3: 0.8259911894 | GO3: 2.242990654 | GP3: 5.257228689 | GQ3: 6.546146527 | GR3: 6.310304902 | GS3: 5.346270928 | GT3: 5.272108844 | GU3: 5.920181577 | GV3: 7.274762171 | GW3: 7.546475244 | GX3: 6.218181818 | GY3: 6.296023564 | GZ3: 4.423812125 | HA3: 3.10786106 | HB3: 0.4102747057 | HC3: -0.8930166101 | HD3: 0.1452169178 | HE3: 0.07224128589 | HF3: 0.3051516783 | HG3: -0.3928571429 | HH3: -0.6607546514 | HI3: -1.540304638 | HJ3: -2.139678192 | HK3: -0.7793557326 | HL3: -1.046025105 | HM3: 0.9042553191 | HN3: 3.091135193 | HO3: 4.739592719 | HP3: 2.95450426 | HQ3: 4.060638874 | HR3: 4.885468862 | HS3: 5.485837218 | HT3: 5.233677577 | HU3: 3.945767426 | HV3: 6.209550464 | HW3: 4.157793681 | HX3: 6.428823115 | HY3: 5.482340538 | HZ3: 3.78252628 | IA3: 2.16276669 | IB3: 2.961267606 | IC3: 1.65279223 | ID3: 3.443098447 | IE3: 3.101631543 | IF3: 1.668330007 | IG3: 1.986622074 | IH3: 2.947957839 | II3: 3.529293471 | IJ3: 3.181645119 | IK3: 3.498250875 | IL3: 2.781237028 | IM3: 2.805800226 | IN3: 1.484217366 | IO3: 1.501373415 | IP3: -1.568582173 | IQ3: -1.490150828 | IR3: -0.5627996008 | IS3: 1.662622155 | IT3: 1.121420573 | IU3: -0.174819515 | IV3: -0.06577786334 | IW3: 0.8047642041 | IX3: 2.294022617 | IY3: 1.977294694 | IZ3: 1.920808762 | JA3: 3.188610425 | JB3: 5.032089415 | JC3: 5.553789261 | JD3: 4.542687441 | JE3: 4.432115093 | JF3: 1.824049612 | JG3: 3.453867359 | JH3: 3.19955049 | JI3: 0.9228804087 | JJ3: 0.874921036 | JK3: 4.229718876 | JL3: 5.663746074 | JM3: 4.893305099 | JN3: 5.10370134 | JO3: 4.01236525 | JP3: 4.32483475 | JQ3: 3.87027027 | JR3: 4.239702869 | JS3: 6.104971633 | JT3: 7.181106975 | JU3: 9.03043415 | JV3: 7.727755612 | JW3: 5.08148622 | JX3: 5.886235185 | JY3: 7.637048859 | JZ3: 7.140308171 | KA3: 7.586439612 | KB3: 6.824085562 | KC3: 5.46896315 | KD3: 5.51769985 | KE3: 6.16867073 | KF3: 5.599611588 | KG3: 5.824771459 | KH3: 3.581267218 | KI3: 4.87366097 | KJ3: 7.290551116 | KK3: 6.499356499 | KL3: 5.813586098 | KM3: 5.994787142 | KN3: 5.975907409 | KO3: 5.792658964 | KP3: 5.150417389 | KQ3: 4.150182298 | KR3: 3.670498084 | KS3: 2.461585506 | KT3: 6.273466834 | KU3: 6.105263158 | KV3: 3.961916462 | KW3: 3.957703927 | KX3: 2.478351747 | KY3: 2.8390462 | KZ3: 3.395245171 | LA3: 2.689450223 | LB3: 3.572498502 | LC3: 3.478325637 | LD3: 3.437061128 | LE3: 4.536297844 | LF3: 3.878993081 | LG3: 3.689006467 | LH3: 5.221565731 | LI3: 5.717814589 | LJ3: 5.128205128 | LK3: 5.463372219 | LL3: 4.922037796 | LM3: 5.136738533 | LN3: 7.534890448 | LO3: 9.342834521 | LP3: 10.12576819 | LQ3: 10.97708943 | LR3: 8.97753844 | LS3: 8.674698795 | LT3: 8.20523619 | LU3: 7.188509381 | LV3: 8.716740576 | LW3: 9.893507386 | LX3: 8.08793316 | LY3: 9.055876686 | LZ3: 7.813865914 | MA3: 5.384767296 | MB3: 4.412432678 | MC3: 3.061290115 | MD3: 3.452535761 | ME3: 4.486761445 | MF3: 3.515827711 | MG3: 3.276271078 | MH3: 2.173358827 | MI3: 0.1250390747 | MJ3: 0.6589368308 | MK3: 1.148409894 | ML3: 0.6673735421 | MM3: 0.5621837716 | MN3: 0.8638369275 | MO3: 0.6801872075 | MP3: 1.709509145 | MQ3: 2.796155286 | MR3: 3.321218198 | MS3: 2.725353861 | MT3: 3.942361674 | MU3: 6.125507337 | MV3: 6.388871404 | MW3: 5.252651279 | MX3: 4.653035936 | MY3: 5.596620908 | MZ3: 5.489833641 | NA3: 5.764224619 | NB3: 5.888895755 | NC3: 4.517304189 | ND3: 3.699660359 | NE3: 4.460022965 | NF3: 6.103342735 | NG3: 3.594963521 | NH3: 3.419713643 | NI3: 4.362256994 | NJ3: 5.038186016 | NK3: 4.152941176 | NL3: 5.344314 | NM3: 6.698312236 | NN3: 6.973622782 | NO3: 7.929592192 | NP3: 8.141303076 | NQ3: 7.416835406 | NR3: 5.412895928 | NS3: 5.151360254 | NT3: 7.534324943 | NU3: 6.95706497 | NV3: 8.071243377 | NW3: 7.664068677 | NX3: 6.919494345 | NY3: 6.299774812 | NZ3: 5.18793301 | OA3: 4.079875128 | OB3: 3.093564089 | OC3: 4.502612161 | OD3: 5.24226002 | OE3: 6.503186778 | OF3: 4.862478055 | OG3: 4.93283067 | OH3: 3.572546156 | OI3: 3.572365315 | OJ3: 3.152872848 | OK3: 3.373979539 | OL3: 5.647754382 | OM3: 6.49014842
A4: Argentina | B4: 776.3327873 | C4: 803.8700304 | D4: 850.7732185 | E4: 938.7902269 | F4: 1010.084233 | G4: 1128.93917 | H4: 1003.342226 | I4: 825.6630626 | J4: 640.2169267 | K4: 532.4261634 | L4: 463.0872093 | M4: 385.4176136 | N4: 299.6826013 | O4: 236.8248773 | P4: 178.6359541 | Q4: 125.4102237 | R4: 87.41504506 | S4: 50.1009079 | T4: 50.90458792 | U4: 59.27959587 | V4: 67.45820446 | W4: 74.2004551 | X4: 79.20840368 | Y4: 81.90636364 | Z4: 89.90488123 | AA4: 98.89282244 | AB4: 105.6466725 | AC4: 102.9569637 | AD4: 103.2451027 | AE4: 109.9642574 | AF4: 116.5654128 | AG4: 126.3858246 | AH4: 135.7898552 | AI4: 165.7938105 | AJ4: 178.3055602 | AK4: 174.793725 | AL4: 178.9332147 | AM4: 188.9937065 | AN4: 206.4430679 | AO4: 247.8016377 | AP4: 285.9106933 | AQ4: 321.9123952 | AR4: 381.3707294 | AS4: 439.9803662 | AT4: 439.9284249 | AU4: 392.4277148 | AV4: 372.1517814 | AW4: 387.8123299 | AX4: 386.6995074 | AY4: 383.2589286 | AZ4: 392.8015564 | BA4: 460.3648425 | BB4: 765.1506456 | BC4: 1471.44593 | BD4: 3610.154739 | BE4: 3909.704321 | BF4: 3826.40869 | BG4: 3702.739726 | BH4: 3731.213192 | BI4: 4923.318633 | BJ4: 8163.967611 | BK4: 12086.5127 | BL4: 20266.00869 | BM4: 16903.22581 | BN4: 10724.34785 | BO4: 5648.341452 | BP4: 2047.676146 | BQ4: 1696.781879 | BR4: 1800.651826 | BS4: 1838.366191 | BT4: 1832.187106 | BU4: 1343.920854 | BV4: 767.7732461 | BW4: 582.048454 | BX4: 287.3468367 | BY4: 266.958901 | BZ4: 232.0647936 | CA4: 200.6533205 | CB4: 178.314458 | CC4: 144.4431232 | CD4: 115.0473838 | CE4: 102.3877364 | CF4: 91.3483669 | CG4: 83.98693059 | CH4: 76.03276974 | CI4: 41.60493203 | CJ4: 30.20087979 | CK4: 24.98868769 | CL4: 22.39728713 | CM4: 19.62033075 | CN4: 18.61500897 | CO4: 18.84425453 | CP4: 17.9885885 | CQ4: 17.88974666 | CR4: 17.97431546 | CS4: 17.54587435 | CT4: 15.02441617 | CU4: 13.42151374 | CV4: 11.92430142 | CW4: 11.65756666 | CX4: 12.33800746 | CY4: 12.26580683 | CZ4: 10.71294639 | DA4: 9.097844262 | DB4: 8.871456383 | DC4: 8.118243442 | DD4: 7.683708564 | DE4: 7.364981144 | DF4: 6.585982999 | DG4: 5.809272055 | DH4: 5.166075991 | DI4: 4.331421036 | DJ4: 3.363213728 | DK4: 3.022169126 | DL4: 3.639913287 | DM4: 3.837120118 | DN4: 3.693263211 | DO4: 3.44078937 | DP4: 3.615356067 | DQ4: 3.85438089 | DR4: 5.042611709 | DS4: 5.043378397 | DT4: 4.425944503 | DU4: 4.648958273 | DV4: 4.309246129 | DW4: 3.693061011 | DX4: 3.161346489 | DY4: 2.699532768 | DZ4: 2.169107839 | EA4: 2.189087801 | EB4: 1.725842469 | EC4: 1.607752207 | ED4: 0.658072911 | EE4: 0.334026498 | EF4: 0.2429727101 | EG4: -0.2119831161 | EH4: -0.3217985865 | EI4: -0.1135169355 | EJ4: 0.02236316538 | EK4: 0.1874350049 | EL4: 0.2048454179 | EM4: 0.3686493185 | EN4: 0.4418390191 | EO4: 0.05431328436 | EP4: 0.221428461 | EQ4: 0.9345185461 | ER4: 0.9817011162 | ES4: 0.6463466752 | ET4: 0.6525438282 | EU4: 0.8791949871 | EV4: 0.5580225445 | EW4: 0.8017900429 | EX4: 0.5707815675 | EY4: -0.09043488997 | EZ4: -0.1279808091 | FA4: 0.3279969246 | FB4: 0.4890903537 | FC4: 0.4534039106 | FD4: 0.8241868569 | FE4: 1.170023834 | FF4: 1.180922838 | FG4: 1.143886428 | FH4: 1.234918645 | FI4: 1.089221852 | FJ4: 1.106090282 | FK4: 0.894354906 | FL4: 0.8496558043 | FM4: 0.6643553281 | FN4: 0.5072837595 | FO4: -0.00306005043 | FP4: -0.6287130685 | FQ4: -0.7373980602 | FR4: -1.154570148 | FS4: -1.349122565 | FT4: -1.473342566 | FU4: -1.864327692 | FV4: -2.029341867 | FW4: -1.685283167 | FX4: -2.322361884 | FY4: -1.817267433 | FZ4: -1.446220731 | GA4: -1.287585041 | GB4: -1.064409162 | GC4: -1.076049236 | GD4: -0.9741107609 | GE4: -1.156732549 | GF4: -0.9040168519 | GG4: -0.7485234847 | GH4: -0.700023752 | GI4: -0.5046930398 | GJ4: -0.1107085346 | GK4: -0.7310234328 | GL4: -1.489425082 | GM4: -1.707874094 | GN4: -0.9982032342 | GO4: -0.2298391126 | GP4: 0.22070626 | GQ4: -0.3115891044 | GR4: -1.070749525 | GS4: -1.203490121 | GT4: -1.134993973 | GU4: -1.744535793 | GV4: -1.58186398 | GW4: -1.543427822 | GX4: 0.6350166314 | GY4: 4.020608142 | GZ4: 7.935067554 | HA4: 18.359375 | HB4: 23.03303303 | HC4: 28.41298649 | HD4: 32.93546429 | HE4: 36.53436199 | HF4: 38.48420197 | HG4: 39.39795918 | HH4: 40.57125307 | HI4: 40.95286885 | HJ4: 39.60336538 | HK4: 36.12702729 | HL4: 31.70481084 | HM4: 19.37886096 | HN4: 14.32755675 | HO4: 10.23869347 | HP4: 7.31243342 | HQ4: 4.87732342 | HR4: 3.528721297 | HS4: 3.908937852 | HT4: 3.634112592 | HU4: 3.656320419 | HV4: 2.740708853 | HW4: 2.261539559 | HX4: 2.276757217 | HY4: 3.090664209 | HZ4: 4.255621976 | IA4: 4.928774929 | IB4: 4.942210877 | IC4: 5.281440522 | ID4: 5.902777778 | IE4: 5.699189856 | IF4: 5.43921293 | IG4: 6.100981767 | IH4: 7.19273743 | II4: 8.134505372 | IJ4: 9.147018031 | IK4: 8.753352128 | IL4: 8.607508532 | IM4: 8.994026609 | IN4: 9.581081081 | IO4: 9.68284964 | IP4: 10.26430244 | IQ4: 10.68381765 | IR4: 12.02346041 | IS4: 12.32650364 | IT4: 12.13029316 | IU4: 11.48387097 | IV4: 11.12523032 | IW4: 11.64643399 | IX4: 11.50147697 | IY4: 11.02322974 | IZ4: 10.59933407 | JA4: 10.73730739 | JB4: 10.44359488 | JC4: 10.5317035 | JD4: 9.983341266 | JE4: 9.838187702 | JF4: 9.702314028 | JG4: 9.597772637 | JH4: 9.107878085 | JI4: 8.876128861 | JJ4: 8.81523897 | JK4: 8.771849899 | JL4: 8.641762048 | JM4: 8.671872209 | JN4: 8.567406174 | JO4: 8.374763827 | JP4: 8.530077419 | JQ4: 8.476022076 | JR4: 8.239077401 | JS4: 8.424543947 | JT4: 8.821593153 | JU4: 8.908734481 | JV4: 9.067245119 | JW4: 9.275456214 | JX4: 9.132910712 | JY4: 9.004486221 | JZ4: 8.689202077 | KA4: 8.420166298 | KB4: 7.868920893 | KC4: 7.238134629 | KD4: 6.812826555 | KE4: 6.770674008 | KF4: 6.251260335 | KG4: 5.7 | KH4: 5.489260143 | KI4: 5.266798419 | KJ4: 5.542975288 | KK4: 5.928466438 | KL4: 6.151896266 | KM4: 6.543054072 | KN4: 7.101393189 | KO4: 7.704175104 | KP4: 8.19106081 | KQ4: 9.158628593 | KR4: 9.698234959 | KS4: 10.23651845 | KT4: 10.66176471 | KU4: 11.00159579 | KV4: 11.19402985 | KW4: 11.08233117 | KX4: 11.08559882 | KY4: 11.13439636 | KZ4: 11.02077687 | LA4: 10.91316025 | LB4: 10.63829787 | LC4: 9.973753281 | LD4: 9.662629758 | LE4: 9.706488157 | LF4: 9.694181787 | LG4: 9.682875264 | LH4: 9.647651007 | LI4: 9.768487675 | LJ4: 9.88838363 | LK4: 9.699106338 | LL4: 9.471114727 | LM4: 9.532649931 | LN4: 9.703525641 | LO4: 9.721559268 | LP4: 9.805158949 | LQ4: 9.809903778 | LR4: 9.89360876 | LS4: 9.892058597 | LT4: 9.915837796 | LU4: 9.930961232 | LV4: 10.01429539 | LW4: 10.23916293 | LX4: 10.62137654 | LY4: 10.83271923 | LZ4: 11.09487985 | MA4: 10.81786543 | MB4: 10.59626437 | MC4: 10.49369523 | MD4: 10.33849198 | ME4: 10.46095559 | MF4: 10.6083809 | MG4: 10.57971014 | MH4: 10.4910409 | MI4: 10.50847458 | MJ4: 10.53551031 | MK4: 10.93085106 | ML4: =Inflation!ML124*100 -> 10.62134336 | MM4: =Inflation!MM124*100 -> 12.71202892 | MN4: =Inflation!MN124*100 -> 14.62491325 | MO4: =Inflation!MO124*100 -> 15.65474792 | MP4: =Inflation!MP124*100 -> 16.29327318 | MQ4: =Inflation!MQ124*100 -> 16.77833648 | MR4: =Inflation!MR124*100 -> 17.42782795 | MS4: =Inflation!MS124*100 -> 17.97589807 | MT4: =Inflation!MT124*100 -> 18.60859346 | MU4: =Inflation!MU124*100 -> 19.06472865 | MV4: =Inflation!MV124*100 -> 19.39506524 | MW4: =Inflation!MW124*100 -> 19.58221608 | MX4: 20.93223581 | MY4: 18.02789876 | MZ4: 16.56233375 | NA4: 15.82442099 | NB4: 15.36140348 | NC4: 14.99036027 | ND4: 14.87828244 | NE4: 14.69712647 | NF4: 14.44596443 | NG4: 14.29600937 | NH4: 23.9 | NI4: 26.9 | NJ4: 29.6 | NK4: 32.9 | NL4: 35 | NM4: 40.5
A5: Bolivia | B5: 3407.651942 | C5: 7963.50912 | D5: 8216.780794 | E5: 5604.404943 | F5: 5163.964864 | G5: 8926.871981 | H5: 14173.11006 | I5: 20560.86754 | J5: 23447.03438 | K5: 14421.59972 | L5: 11291.71457 | M5: 8170.520807 | N5: 6416.202607 | O5: 2387.63225 | P5: 1892.361218 | Q5: 1746.400308 | R5: 1274.14262 | S5: 702.7882403 | T5: 391.3358189 | U5: 197.0476916 | V5: 94.11758845 | W5: 98.97210478 | X5: 92.59685844 | Y5: 65.96344992 | Z5: 27.87588809 | AA5: 19.91410998 | AB5: 20.66911948 | AC5: 18.33850345 | AD5: 17.60258355 | AE5: 12.55211141 | AF5: 10.52075769 | AG5: 10.91130074 | AH5: 9.066867032 | AI5: 10.69174494 | AJ5: 10.4940533 | AK5: 10.66210062 | AL5: 7.529800366 | AM5: 8.289372563 | AN5: 8.443672938 | AO5: 11.79856348 | AP5: 12.99455423 | AQ5: 15.57147774 | AR5: 20.25107832 | AS5: 21.92447509 | AT5: 20.7758083 | AU5: 20.76234034 | AV5: 20.8772382 | AW5: 21.50471325 | AX5: 22.64465153 | AY5: 20.96517446 | AZ5: 20.96610213 | BA5: 15.62649117 | BB5: 14.72726106 | BC5: 12.21264837 | BD5: 8.401871098 | BE5: 9.179941134 | BF5: 13.66449391 | BG5: 13.66583196 | BH5: 15.8684864 | BI5: 16.56187144 | BJ5: 17.21521817 | BK5: 16.45679838 | BL5: 15.91631381 | BM5: 16.13722186 | BN5: 16.07549853 | BO5: 18.61547657 | BP5: 20.15852489 | BQ5: 17.78264582 | BR5: 14.89370268 | BS5: 16.45058628 | BT5: 17.69088824 | BU5: 18.01856721 | BV5: 23.62284556 | BW5: 24.05277402 | BX5: 24.40175261 | BY5: 24.63037634 | BZ5: 24.8914133 | CA5: 23.35407796 | CB5: 22.24010299 | CC5: 22.15854823 | CD5: 21.23977344 | CE5: 18.30900243 | CF5: 16.03076013 | CG5: 14.52546296 | CH5: 10.96227447 | CI5: 13.17152986 | CJ5: 13.03169873 | CK5: 12.77972499 | CL5: 12.68057785 | CM5: 12.55974509 | CN5: 12.45392312 | CO5: 12.32733907 | CP5: 11.93874903 | CQ5: 11.46529563 | CR5: 11.06296202 | CS5: 10.4598282 | CT5: 9.534368071 | CU5: 8.144578313 | CV5: 7.526366251 | CW5: 7.363136505 | CX5: 7.431149098 | CY5: 7.71408351 | CZ5: 8.101147272 | DA5: 9.002320186 | DB5: 9.506144215 | DC5: 9.478782288 | DD5: 9.157677301 | DE5: 9.286367795 | DF5: 8.367071525 | DG5: 7.932263815 | DH5: 7.89121712 | DI5: 8.305499889 | DJ5: 8.154696133 | DK5: 7.687253614 | DL5: 7.494043751 | DM5: 6.939123031 | DN5: 7.029430447 | DO5: 7.288813988 | DP5: 8.894028595 | DQ5: 8.539137715 | DR5: 8.530510585 | DS5: 8.546655656 | DT5: 9.648760331 | DU5: 10.79358553 | DV5: 10.62525541 | DW5: 10.88061826 | DX5: 10.27604272 | DY5: 9.494426752 | DZ5: 9.396636993 | EA5: 10.62242293 | EB5: 10.73566326 | EC5: 12.57231007 | ED5: 13.36775674 | EE5: 15.86154431 | EF5: 14.52798191 | EG5: 12.54407126 | EH5: 12.44920576 | EI5: 12.25238445 | EJ5: 13.08240453 | EK5: 13.68842029 | EL5: 13.27305606 | EM5: 11.09336173 | EN5: 9.712292938 | EO5: 7.947927372 | EP5: 6.309041835 | EQ5: 3.62770847 | ER5: 3.619611714 | ES5: 4.418796373 | ET5: 4.779894875 | EU5: 5.196078431 | EV5: 5.348198417 | EW5: 4.940837864 | EX5: 3.671775223 | EY5: 4.154018214 | EZ5: 3.734901462 | FA5: 6.72802285 | FB5: 8.219612821 | FC5: 8.933945826 | FD5: 9.41568752 | FE5: 9.111005842 | FF5: 8.669070387 | FG5: 7.921714818 | FH5: 6.809815951 | FI5: 6.140484535 | FJ5: 7.206652294 | FK5: 7.853965332 | FL5: 7.752413053 | FM5: 4.40083259 | FN5: 3.108504399 | FO5: 2.646502836 | FP5: 2.002612103 | FQ5: 1.562952243 | FR5: 1.327178304 | FS5: 1.468048359 | FT5: 1.435956347 | FU5: 1.937984496 | FV5: 2.599827636 | FW5: 2.318304651 | FX5: 2.360301436 | FY5: 3.133010538 | FZ5: 3.526734926 | GA5: 3.55574444 | GB5: 4.637928582 | GC5: 5.813622115 | GD5: 4.399202733 | GE5: 4.212765957 | GF5: 4.756511891 | GG5: 4.619067737 | GH5: 5.921881562 | GI5: 6.574923547 | GJ5: 3.79219336 | GK5: 3.410660039 | GL5: 3.104395604 | GM5: 2.653898769 | GN5: 1.794697485 | GO5: 1.023431188 | GP5: 2.127369426 | GQ5: 2.681366544 | GR5: 3.162162162 | GS5: 2.086418091 | GT5: -0.02643404705 | GU5: -1.265162384 | GV5: 1.084047109 | GW5: 0.9213513153 | GX5: 0.6794564349 | GY5: 0.9195095949 | GZ5: 0.8414585281 | HA5: 0.6131698214 | HB5: 0.827880892 | HC5: 0.1988335101 | HD5: -0.5763688761 | HE5: 0.3032700422 | HF5: 1.031200423 | HG5: 1.492734478 | HH5: 2.277240831 | HI5: 2.447737497 | HJ5: 2.871509858 | HK5: 2.429684405 | HL5: 2.80794702 | HM5: 3.153153153 | HN5: 3.125413852 | HO5: 3.227940204 | HP5: 3.425559947 | HQ5: 3.851715525 | HR5: 3.624705574 | HS5: 4.360275934 | HT5: 3.249190939 | HU5: 3.939041715 | HV5: 4.154875225 | HW5: 4.58940312 | HX5: 4.238598299 | HY5: 3.94297457 | HZ5: 4.353409529 | IA5: 4.92118416 | IB5: 4.840764331 | IC5: 4.544303797 | ID5: 4.268215684 | IE5: 3.816413071 | IF5: 4.927281846 | IG5: 4.622266402 | IH5: 5.409410893 | II5: 5.263157895 | IJ5: 5.710048202 | IK5: 5.288520944 | IL5: 5.574698499 | IM5: 6.400390864 | IN5: 5.346294046 | IO5: 5.351737498 | IP5: 5.534697832 | IQ5: 5.069678039 | IR5: 4.958776437 | IS5: 4.904988124 | IT5: 3.913298184 | IU5: 4.168618267 | IV5: 3.72968549 | IW5: 4.260063373 | IX5: 4.429420678 | IY5: 3.478360693 | IZ5: 4.555940023 | JA5: 4.378807034 | JB5: 4.31489557 | JC5: 4.413446147 | JD5: 4.74726776 | JE5: 4.947356504 | JF5: 6.020971925 | JG5: 6.575989209 | JH5: 7.19116321 | JI5: 6.764970734 | JJ5: 6.351155263 | JK5: 6.600843133 | JL5: 8.836183122 | JM5: 10.36115393 | JN5: 10.4730473 | JO5: 11.33377135 | JP5: 11.8574068 | JQ5: 11.72599784 | JR5: 11.34744231 | JS5: 13.3213796 | JT5: 14.07991588 | JU5: 15.22403795 | JV5: 16.84508816 | JW5: 17.31709855 | JX5: 14.78816136 | JY5: 13.72842462 | JZ5: 14.50906194 | KA5: 13.3077604 | KB5: 12.07734162 | KC5: 11.84705996 | KD5: 11.04106972 | KE5: 8.134772897 | KF5: 6.562816849 | KG5: 5.325281362 | KH5: 3.19770053 | KI5: 2.121047944 | KJ5: 1.447439394 | KK5: 1.415913677 | KL5: 0.6478383961 | KM5: 0.78125 | KN5: 0.457796009 | KO5: 0.2676104972 | KP5: 0.07741269568 | KQ5: 0.3098640041 | KR5: 0.6833318917 | KS5: 1.216227956 | KT5: 1.392636435 | KU5: 1.328117278 | KV5: 2.159275496 | KW5: 2.600256047 | KX5: 3.270447388 | KY5: 4.20327304 | KZ5: 5.567863213 | LA5: 7.180370211 | LB5: 8.379888268 | LC5: 9.996567702 | LD5: 11.10824742 | LE5: 11.02909621 | LF5: 11.27135376 | LG5: 11.27303901 | LH5: 11.17832496 | LI5: 10.4375685 | LJ5: 9.931392236 | LK5: 9.117209456 | LL5: 8.264530369 | LM5: 6.096875251 | LN5: 5.860428232 | LO5: 4.649348623 | LP5: 4.0361865 | LQ5: 4.166666667 | LR5: 4.466903256 | LS5: 4.545454545 | LT5: 4.391141084 | LU5: 4.359111383 | LV5: 4.429560849 | LW5: 4.333005075 | LX5: 4.492600423 | LY5: 5.337674137 | LZ5: 4.914225785 | MA5: 5.076407007 | MB5: 4.793756968 | MC5: 4.942486085 | MD5: 4.719001551 | ME5: 4.812085483 | MF5: 5.050653355 | MG5: 6.08632041 | MH5: 7.127760367 | MI5: 7.507442097 | MJ5: 6.958595274 | MK5: 6.475957737 | ML5: 6.054980364 | MM5: 6.164869467 | MN5: 6.361702128 | MO5: 6.223039389 | MP5: 6.375176305 | MQ5: 7.333192716 | MR5: 7.463312369 | MS5: 6.109502138 | MT5: 4.299612219 | MU5: 3.633416627 | MV5: 4.404810161 | MW5: 5.197785878 | MX5: 5.931461658 | MY5: 5.492816572 | MZ5: 4.75428419 | NA5: 4.140869449 | NB5: 4.083797401 | NC5: 3.196646142 | ND5: 3.062817011 | NE5: 3.203795165 | NF5: 4.076707325 | NG5: 4.327142392 | NH5: 3.643069755 | NI5: 2.95174538 | NJ5: 2.389729249 | NK5: 2.641413821 | NL5: 3.278166773 | NM5: 4.123250016 | NN5: 5.01910828 | NO5: 4.157674241 | NP5: 3.564893684 | NQ5: 3.488445312 | NR5: 3.465780897 | NS5: 3.498032357 | NT5: 3.877130549 | NU5: 4.001495886 | NV5: 3.674736189 | NW5: 3.462108121 | NX5: 3.340523883 | NY5: 2.511051081 | NZ5: 1.249393498 | OA5: 1.834359193 | OB5: 2.570975996 | OC5: 3.249163371 | OD5: 3.610152038 | OE5: 3.011648259 | OF5: 2.668589975 | OG5: 2.714850773 | OH5: 2.931851696 | OI5: 2.869400697 | OJ5: 2.72537906 | OK5: 3.013561125 | OL5: 3.154221485 | OM5: 3.167312281
A6: Brazil | B6: 221.2990154 | C6: 225.215091 | D6: 228.9407728 | E6: 224.8932276 | F6: 219.3770981 | G6: 214.7818721 | H6: 216.4517872 | I6: 224.2728043 | J6: 222.4033359 | K6: 222.9405034 | L6: 233.0227743 | M6: 242.2390681 | N6: 250.2067825 | O6: 256.1567164 | P6: 238.6386725 | Q6: 215.4303599 | R6: 198.3649635 | S6: 178.4983854 | T6: 156.7943401 | U6: 137.3176573 | V6: 117.2643543 | W6: 100.1417183 | X6: 85.17252098 | Y6: 79.65964344 | Z6: 77.83419934 | AA6: 77.70560503 | AB6: 97.39 | AC6: 133.2704902 | AD6: 179.4011156 | AE6: 230.2734564 | AF6: 254.6266388 | AG6: 259.1376147 | AH6: 280.5538017 | AI6: 315.3478492 | AJ6: 353.2650663 | AK6: 363.4115171 | AL6: 386.6657813 | AM6: 399.899776 | AN6: 405.1826334 | AO6: 405.9849419 | AP6: 389.1881479 | AQ6: 398.5400819 | AR6: 456.5152165 | AS6: 545.2408931 | AT6: 662.9906143 | AU6: 761.7759877 | AV6: 858.0867375 | AW6: 980.2134873 | AX6: 1149.216096 | AY6: 1160.877667 | AZ6: 1045.280692 | BA6: 940.0699442 | BB6: 944.5018006 | BC6: 1001.436024 | BD6: 1054.108099 | BE6: 1169.149913 | BF6: 1269.824895 | BG6: 1424.124313 | BH6: 1660.949272 | BI6: 1972.911623 | BJ6: 2426.117093 | BK6: 3701.444827 | BL6: 6390.496211 | BM6: 6821.277858 | BN6: 6215.066567 | BO6: 5385.33254 | BP6: 4749.109365 | BQ6: 3993.667831 | BR6: 3304.719074 | BS6: 2685.671429 | BT6: 2101.311602 | BU6: 1620.9832 | BV6: 1140.25641 | BW6: 751.9788437 | BX6: 422.84 | BY6: 375.1817867 | BZ6: 374.4709953 | CA6: 372.1002232 | CB6: 369.9502678 | CC6: 381.4053321 | CD6: 386.5465317 | CE6: 411.5313215 | CF6: 448.3091252 | CG6: 472.6932318 | CH6: 497.3201364 | CI6: 515.1303678 | CJ6: 567.2136791 | CK6: 662.1572878 | CL6: 780.372041 | CM6: 857.6818667 | CN6: 937.9394087 | CO6: 996.3685643 | CP6: 1081.692542 | CQ6: 1130.940364 | CR6: 1104.203403 | CS6: 1119.097591 | CT6: 1161.7855 | CU6: 1168.484206 | CV6: 1229.711806 | CW6: 1316.414928 | CX6: 1357.460713 | CY6: 1467.327117 | CZ6: 1581.695663 | DA6: 1730.671004 | DB6: 1893.131186 | DC6: 2031.26963 | DD6: 2258.680187 | DE6: 2477.146967 | DF6: 2693.838025 | DG6: 3035.634938 | DH6: 3417.392753 | DI6: 3828.49354 | DJ6: 4331.190133 | DK6: 4922.601849 | DL6: 4005.076293 | DM6: 3044.890974 | DN6: 2253.152706 | DO6: 1703.174324 | DP6: 1267.537908 | DQ6: 916.46 | DR6: 631.5404572 | DS6: 426.8426391 | DT6: 274.7774836 | DU6: 169.0510484 | DV6: 91.79046934 | DW6: 33.02929912 | DX6: 27.45094328 | DY6: 26.36186617 | DZ6: 25.69038407 | EA6: 24.20806404 | EB6: 22.58976634 | EC6: 22.40888016 | ED6: 21.97557439 | EE6: 21.98764879 | EF6: 20.54614038 | EG6: 19.16920995 | EH6: 17.48619296 | EI6: 16.25687332 | EJ6: 14.83716746 | EK6: 14.21175463 | EL6: 13.26178063 | EM6: 12.022055 | EN6: 10.75246435 | EO6: 9.563805563 | EP6: 9.388758123 | EQ6: 8.81864332 | ER6: 8.989014099 | ES6: 8.579892745 | ET6: 7.709559982 | EU6: 7.01836142 | EV6: 6.080113258 | EW6: 5.589937568 | EX6: 5.495364286 | EY6: 5.427023388 | EZ6: 5.267642831 | FA6: 5.221693552 | FB6: 4.736155137 | FC6: 4.693877551 | FD6: 4.516367216 | FE6: 3.854833791 | FF6: 3.948487426 | FG6: 3.413691016 | FH6: 3.056426332 | FI6: 2.556681138 | FJ6: 2.271905508 | FK6: 2.050141285 | FL6: 1.758597923 | FM6: 1.661486971 | FN6: 1.649753724 | FO6: 2.238761888 | FP6: 3.020134228 | FQ6: 3.347624361 | FR6: 3.14399252 | FS6: 3.312689881 | FT6: 4.568587306 | FU6: 5.691439323 | FV6: 6.251841376 | FW6: 7.493814069 | FX6: 8.646926979 | FY6: 8.935920047 | FZ6: 8.850487477 | GA6: 7.863415761 | GB6: 6.920395451 | GC6: 6.773881912 | GD6: 6.464589235 | GE6: 6.509076514 | GF6: 7.054150817 | GG6: 7.854917668 | GH6: 7.769520852 | GI6: 6.653513099 | GJ6: 5.982627579 | GK6: 5.97409606 | GL6: 5.921158488 | GM6: 6.272430232 | GN6: 6.4404062 | GO6: 6.610250679 | GP6: 7.035282848 | GQ6: 7.348412446 | GR6: 7.049171762 | GS6: 6.406024345 | GT6: 6.45808676 | GU6: 7.189105858 | GV6: 7.606802582 | GW6: 7.674288333 | GX6: 7.62063902 | GY6: 7.510080645 | GZ6: 7.747928697 | HA6: 7.982626928 | HB6: 7.771093323 | HC6: 7.661489762 | HD6: 7.517328908 | HE6: 7.460009695 | HF6: 7.927300851 | HG6: 8.447193058 | HH6: 10.93445042 | HI6: 12.52837684 | HJ6: 14.46786487 | HK6: 15.85091421 | HL6: 16.57656818 | HM6: 16.76837725 | HN6: 17.23103894 | HO6: 16.56636192 | HP6: 15.42722237 | HQ6: 15.07059407 | HR6: 15.14242207 | HS6: 13.98258256 | HT6: 11.01956746 | HU6: 9.301054932 | HV6: 7.706851905 | HW6: 6.689328639 | HX6: 5.88846692 | HY6: 5.26190759 | HZ6: 5.155247727 | IA6: 6.061561502 | IB6: 6.812460667 | IC6: 7.185417483 | ID6: 6.705822864 | IE6: 6.864722308 | IF6: 7.235621521 | IG6: 7.602091825 | IH6: 7.407266066 | II6: 7.385070551 | IJ6: 7.535487768 | IK6: 8.071917551 | IL6: 8.053590809 | IM6: 7.268403255 | IN6: 6.565768154 | IO6: 6.016165015 | IP6: 6.040170597 | IQ6: 6.365681934 | IR6: 6.217560554 | IS6: 5.689168424 | IT6: 5.699058447 | IU6: 5.510225707 | IV6: 5.322286196 | IW6: 4.632465544 | IX6: 4.225400894 | IY6: 4.028821838 | IZ6: 3.966964995 | JA6: 3.842969505 | JB6: 3.695427982 | JC6: 3.265320049 | JD6: 3.016729445 | JE6: 3.141166526 | JF6: 2.995058657 | JG6: 3.026346624 | JH6: 2.963333333 | JI6: 3.000365898 | JJ6: 3.183464593 | JK6: 3.686313686 | JL6: 3.735832752 | JM6: 4.169158195 | JN6: 4.133930051 | JO6: 4.10044606 | JP6: 4.176823243 | JQ6: 4.442040388 | JR6: 4.536553525 | JS6: 4.588139724 | JT6: 4.700702515 | JU6: 5.018569352 | JV6: 5.555376638 | JW6: 6.041044417 | JX6: 6.350325206 | JY6: 6.151736454 | JZ6: 6.242837132 | KA6: 6.401955183 | KB6: 6.380825903 | KC6: 5.897862456 | KD6: 5.838276616 | KE6: 5.899897474 | KF6: 5.605887264 | KG6: 5.532150435 | KH6: 5.195875031 | KI6: 4.800411897 | KJ6: 4.497936312 | KK6: 4.362194316 | KL6: 4.338836784 | KM6: 4.161322077 | KN6: 4.211746522 | KO6: 4.306716462 | KP6: 4.587020649 | KQ6: 4.828962037 | KR6: 5.1648416 | KS6: 5.259630515 | KT6: 5.217668726 | KU6: 4.840620755 | KV6: 4.601280055 | KW6: 4.487880707 | KX6: 4.706929726 | KY6: 5.200756057 | KZ6: 5.641596075 | LA6: 5.913443778 | LB6: 5.99633338 | LC6: 6.01701556 | LD6: 6.300462164 | LE6: 6.511087119 | LF6: 6.554936876 | LG6: 6.714813386 | LH6: 6.873931977 | LI6: 7.223737499 | LJ6: 7.309380143 | LK6: 6.966298252 | LL6: 6.636248279 | LM6: 6.498175574 | LN6: 6.215906974 | LO6: 5.846048255 | LP6: 5.237683665 | LQ6: 5.101754386 | LR6: 4.986030629 | LS6: 4.912434778 | LT6: 5.194965958 | LU6: 5.239086307 | LV6: 5.280511182 | LW6: 5.448807676 | LX6: 5.534597564 | LY6: 5.839673502 | LZ6: 6.152766992 | MA6: 6.310759516 | MB6: 6.585732489 | MC6: 6.491682308 | MD6: 6.501673098 | ME6: 6.692469433 | MF6: 6.267651212 | MG6: 6.086722985 | MH6: 5.855648078 | MI6: 5.835787035 | MJ6: 5.772137322 | MK6: 5.910216129 | ML6: 5.586104359 | MM6: 5.681141061 | MN6: 6.155229178 | MO6: 6.281494554 | MP6: 6.378696034 | MQ6: 6.528361102 | MR6: 6.507947493 | MS6: 6.517686589 | MT6: 6.751829003 | MU6: 6.590349357 | MV6: 6.557191136 | MW6: 6.407461513 | MX6: 7.136790344 | MY6: 7.701221123 | MZ6: 8.127250451 | NA6: 8.169463381 | NB6: 8.469083712 | NC6: 8.89023677 | ND6: 9.554236701 | NE6: 9.521854677 | NF6: 9.489333362 | NG6: 9.926832399 | NH6: 10.47467007 | NI6: 10.67249609 | NJ6: 10.70452507 | NK6: 10.35491982 | NL6: 9.386061272 | NM6: 9.277475912 | NN6: 9.32167706 | NO6: 8.844768934 | NP6: 8.735771055 | NQ6: 8.974497602 | NR6: 8.475968623 | NS6: 7.873670831 | NT6: 6.987383298 | NU6: 6.287988213 | NV6: 5.354015072 | NW6: 4.758907296 | NX6: 4.571105116 | NY6: 4.082516895 | NZ6: 3.597256178 | OA6: 2.998491131 | OB6: 2.711625767 | OC6: 2.455908494 | OD6: 2.537690933 | OE6: 2.701320889 | OF6: 2.803785425 | OG6: 2.94742132 | OH6: 2.855116451 | OI6: 2.844893725 | OJ6: 2.680802789 | OK6: 2.762797094 | OL6: 2.855013307 | OM6: 4.391103974
A7: Bulgaria | CH7: 429.2584265 | CI7: 151.2769966 | CJ7: 73.41968635 | CK7: 74.63628239 | CL7: 93.95343595 | CM7: 93.75620725 | CN7: 83.70078956 | CO7: 72.88942427 | CP7: 72.23512846 | CQ7: 77.09917426 | CR7: 80.00899539 | CS7: 79.50000495 | CT7: 83.09684635 | CU7: 81.28043307 | CV7: 84.17447484 | CW7: 85.387725 | CX7: 74.37528018 | CY7: 71.59587772 | CZ7: 68.58362748 | DA7: 70.91734733 | DB7: 71.55647645 | DC7: 68.33706863 | DD7: 64.96008089 | DE7: 63.89999593 | DF7: 59.1470557 | DG7: 58.77812442 | DH7: 61.68138495 | DI7: 89.39258972 | DJ7: 94.0687574 | DK7: 94.09851443 | DL7: 93.44782517 | DM7: 98.3495718 | DN7: 112.1525216 | DO7: 117.7000645 | DP7: 119.7112251 | DQ7: 121.9000027 | DR7: 125.0653364 | DS7: 122.6792486 | DT7: 113.4797051 | DU7: 76.72377019 | DV7: 65.87606239 | DW7: 60.07354899 | DX7: 60.73584495 | DY7: 53.83363239 | DZ7: 45.15034951 | EA7: 39.3011999 | EB7: 35.46966279 | EC7: 32.65977075 | ED7: 31.13544926 | EE7: 27.72854982 | EF7: 26.17998741 | EG7: 29.07860489 | EH7: 42.40773106 | EI7: 68.21856134 | EJ7: 104.6886076 | EK7: 139.1247485 | EL7: 170.411985 | EM7: 207.8225882 | EN7: 230.139484 | EO7: 311.5742794 | EP7: 488.9977842 | EQ7: 1901.77665 | ER7: 2019.484622 | ES7: 1948.443297 | ET7: 1767.672538 | EU7: 1496.222628 | EV7: 1230.480384 | EW7: 1093.718709 | EX7: 946.3420697 | EY7: 802.6628568 | EZ7: 728.0424157 | FA7: 547.6845168 | FB7: 344.0698566 | FC7: 31.34947804 | FD7: 22.07519198 | FE7: 23.09364246 | FF7: 18.82261992 | FG7: 13.01353942 | FH7: 9.4816495 | FI7: 4.091141382 | FJ7: 3.471484477 | FK7: 2.991086011 | FL7: 1.443678529 | FM7: 1.626641114 | FN7: 1.868300153 | FO7: -0.06596178721 | FP7: -1.193214676 | FQ7: -2.236289889 | FR7: -1.467115151 | FS7: 1.20680179 | FT7: 5.391452608 | FU7: 5.84337533 | FV7: 4.083881951 | FW7: 4.942925995 | FX7: 5.986100701 | FY7: 6.959963594 | FZ7: 7.015967042 | GA7: 8.909431034 | GB7: 9.643435454 | GC7: 9.191329243 | GD7: 10.32301516 | GE7: 11.60627424 | GF7: 8.619961779 | GG7: 11.03067489 | GH7: 11.84310463 | GI7: 11.91345639 | GJ7: 12.26283123 | GK7: 11.26088899 | GL7: 9.314691 | GM7: 8.485389591 | GN7: 8.876822339 | GO7: 9.816430738 | GP7: 9.733244754 | GQ7: 9.376865761 | GR7: 8.501384064 | GS7: 5.691722153 | GT7: 4.678403769 | GU7: 5.201790726 | GV7: 4.632085585 | GW7: 4.82316174 | GX7: 6.984393456 | GY7: 8.36862386 | GZ7: 9.158161667 | HA7: 9.230370421 | HB7: 6.902852281 | HC7: 5.181839272 | HD7: 5.492405081 | HE7: 4.470093066 | HF7: 3.978852671 | HG7: 3.231287116 | HH7: 3.173249326 | HI7: 3.814680286 | HJ7: -0.5517660859 | HK7: 0.245685417 | HL7: -0.1557041621 | HM7: 0.2498113924 | HN7: 1.744383305 | HO7: 1.249412919 | HP7: 2.038278523 | HQ7: 3.490799403 | HR7: 3.646154244 | HS7: 3.347279262 | HT7: 5.077371172 | HU7: 5.636523133 | HV7: 8.854367435 | HW7: 6.629038732 | HX7: 6.155157247 | HY7: 6.141260198 | HZ7: 6.83233084 | IA7: 7.266604476 | IB7: 7.617721956 | IC7: 6.33462258 | ID7: 6.334144282 | IE7: 5.77424436 | IF7: 4.509538378 | IG7: 3.977178905 | IH7: 3.328965851 | II7: 3.863164779 | IJ7: 4.27813026 | IK7: 5.104860464 | IL7: 4.569467881 | IM7: 5.058737885 | IN7: 3.895518208 | IO7: 4.975077115 | IP7: 5.448793089 | IQ7: 6.516921388 | IR7: 6.909193457 | IS7: 6.453531067 | IT7: 6.514487555 | IU7: 8.790972328 | IV7: 8.736456878 | IW7: 8.058906701 | IX7: 8.532876679 | IY7: 8.244622656 | IZ7: 7.648373404 | JA7: 6.780862731 | JB7: 5.620714044 | JC7: 5.701239835 | JD7: 6.145704737 | JE7: 6.489235224 | JF7: 7.143515966 | JG7: 4.479718841 | JH7: 4.131975733 | JI7: 4.176778221 | JJ7: 4.30540678 | JK7: 5.573825762 | JL7: 8.406554688 | JM7: 12.00575084 | JN7: 13.14859073 | JO7: 12.37871444 | JP7: 12.56330296 | JQ7: 12.48185393 | JR7: 12.46701715 | JS7: 13.19313531 | JT7: 14.18265924 | JU7: 14.59831421 | JV7: 15.02781534 | JW7: 15.27879214 | JX7: 14.46635776 | JY7: 11.17591068 | JZ7: 10.95372835 | KA7: 10.92030612 | KB7: 9.131812733 | KC7: 7.756205687 | KD7: 7.092104734 | KE7: 5.970781313 | KF7: 4.91729404 | KG7: 4.751239547 | KH7: 3.940223772 | KI7: 3.717354924 | KJ7: 1.58655799 | KK7: 1.302399425 | KL7: 0.15115243 | KM7: -0.2516843917 | KN7: -0.1039530225 | KO7: 0.5591391321 | KP7: 0.4303402838 | KQ7: 0.9400746041 | KR7: 1.343680584 | KS7: 1.780645762 | KT7: 1.925488322 | KU7: 1.36735356 | KV7: 2.374253187 | KW7: 2.655960846 | KX7: 3.459469913 | KY7: 3.938059088 | KZ7: 4.56557459 | LA7: 4.531277291 | LB7: 4.518787635 | LC7: 5.21796924 | LD7: 5.58051022 | LE7: 4.646612771 | LF7: 4.794282011 | LG7: 4.817327576 | LH7: 4.438890325 | LI7: 4.053644932 | LJ7: 3.31257001 | LK7: 3.494457831 | LL7: 3.104279564 | LM7: 2.752987114 | LN7: 2.33910926 | LO7: 2.004576698 | LP7: 1.711759192 | LQ7: 1.703965278 | LR7: 1.660284804 | LS7: 1.554965047 | LT7: 3.070914082 | LU7: 3.869365089 | LV7: 4.946926667 | LW7: 4.408327344 | LX7: 3.940077996 | LY7: 4.246608607 | LZ7: 4.436364408 | MA7: 3.555002872 | MB7: 2.716722052 | MC7: 2.04112325 | MD7: 1.976805925 | ME7: 2.566458789 | MF7: 0.4766042615 | MG7: -0.6617856071 | MH7: -1.626167403 | MI7: -1.408833463 | MJ7: -1.479245716 | MK7: -1.590686887 | ML7: -2.212912155 | MM7: -2.614245495 | MN7: -2.313301933 | MO7: -1.591062547 | MP7: -1.973609451 | MQ7: -1.918568181 | MR7: -0.9637040056 | MS7: -0.596691277 | MT7: -0.843766321 | MU7: -0.4371689267 | MV7: -0.6004785181 | MW7: -0.8757674586 | MX7: -1.035638299 | MY7: -0.5034275475 | MZ7: 0.1143101004 | NA7: 0.4892947773 | NB7: 0.8524289643 | NC7: 0.3495967371 | ND7: -0.2319190192 | NE7: 0.04255058622 | NF7: 0.05825540396 | NG7: -0.6184470445 | NH7: -0.3873781818 | NI7: -0.3759398496 | NJ7: 0.003061943109 | NK7: -0.4901406019 | NL7: -1.528310524 | NM7: -2.21756816 | NN7: -2.020979127 | NO7: -1.305702411 | NP7: -0.1973505932 | NQ7: -0.2686393376 | NR7: -0.5759579496 | NS7: -0.5657311837 | NT7: -0.4746113152 | NU7: 0.09305215871 | NV7: 1.386714678 | NW7: 1.704404813 | NX7: 1.902421103 | NY7: 2.592830263 | NZ7: 2.295027714 | OA7: 1.917128995 | OB7: 1.281123468 | OC7: 1.41528452 | OD7: 2.055459524 | OE7: 2.485779083 | OF7: 2.972434964 | OG7: 2.769741699 | OH7: 1.723165308 | OI7: 2.049138971 | OJ7: 2.22211973 | OK7: 2.016424644 | OL7: 2.57681264 | OM7: 3.157340079
A8: Chile | B8: 26.81169975 | C8: 29.56587911 | D8: 29.91360005 | E8: 30.92206427 | F8: 31.97744922 | G8: 35.12119907 | H8: 35.66957512 | I8: 36.52666832 | J8: 34.27435067 | K8: 25.98215702 | L8: 26.52749949 | M8: 26.41603274 | N8: 25.85366257 | O8: 24.4904528 | P8: 22.90406274 | Q8: 21.83137792 | R8: 20.27674226 | S8: 17.55281053 | T8: 17.20663569 | U8: 16.90877684 | V8: 17.27335362 | W8: 17.28668336 | X8: 17.06269615 | Y8: 17.35597104 | Z8: 16.56546548 | AA8: 17.51872822 | AB8: 17.67989137 | AC8: 18.80524132 | AD8: 19.74939467 | AE8: 18.99740451 | AF8: 19.80604206 | AG8: 20.75731339 | AH8: 21.1985847 | AI8: 22.26517351 | AJ8: 22.89720772 | AK8: 21.45175393 | AL8: 19.94751685 | AM8: 18.34718198 | AN8: 18.62856769 | AO8: 16.79436025 | AP8: 15.58676755 | AQ8: 15.48242875 | AR8: 13.72710582 | AS8: 13.02650531 | AT8: 11.96159771 | AU8: 10.98257838 | AV8: 10.94284925 | AW8: 12.68290565 | AX8: 13.11953353 | AY8: 12.83838737 | AZ8: 12.86349643 | BA8: 13.16057485 | BB8: 14.84568595 | BC8: 16.16659201 | BD8: 18.12388191 | BE8: 18.35625553 | BF8: 19.74508297 | BG8: 21.35512505 | BH8: 21.14935203 | BI8: 21.41144582 | BJ8: 23.07090901 | BK8: 23.28116633 | BL8: 23.89763295 | BM8: 24.79962339 | BN8: 24.2659817 | BO8: 24.78899086 | BP8: 24.60139697 | BQ8: 25.84730966 | BR8: 29.25463976 | BS8: 30.42990135 | BT8: 29.35532005 | BU8: 27.32920971 | BV8: 24.75280773 | BW8: 24.54613095 | BX8: 23.0193614 | BY8: 23.10300521 | BZ8: 24.27491651 | CA8: 23.84670955 | CB8: 24.02043717 | CC8: 23.04554048 | CD8: 18.84012143 | CE8: 17.78197435 | CF8: 17.82856798 | CG8: 18.65801646 | CH8: 19.45865111 | CI8: 18.55546926 | CJ8: 18.01807122 | CK8: 17.40454031 | CL8: 15.77652051 | CM8: 14.46348713 | CN8: 13.68237252 | CO8: 13.92565437 | CP8: 15.07104465 | CQ8: 13.43453412 | CR8: 14.00092246 | CS8: 12.69427429 | CT8: 11.65218698 | CU8: 12.81179138 | CV8: 12.6626301 | CW8: 12.75744555 | CX8: 13.19178049 | CY8: 12.9756358 | CZ8: 12.82758952 | DA8: 13.61474576 | DB8: 12.32483929 | DC8: 13.59201167 | DD8: 12.09035738 | DE8: 12.23467577 | DF8: 13.21672833 | DG8: 13.11222781 | DH8: 13.7400342 | DI8: 12.72010512 | DJ8: 12.68402193 | DK8: 12.72688218 | DL8: 12.29659881 | DM8: 11.16896099 | DN8: 10.43107708 | DO8: 8.296873118 | DP8: 8.855200626 | DQ8: 8.945725264 | DR8: 8.504822833 | DS8: 8.71539707 | DT8: 8.161512027 | DU8: 8.286702417 | DV8: 7.417340332 | DW8: 7.635289634 | DX8: 7.889154071 | DY8: 8.458224054 | DZ8: 8.567753481 | EA8: 8.765752409 | EB8: 8.191949894 | EC8: 8.198317352 | ED8: 7.810817224 | EE8: 7.824191791 | EF8: 7.948227309 | EG8: 8.382825256 | EH8: 8.595784142 | EI8: 8.254996725 | EJ8: 7.670429607 | EK8: 6.382243717 | EL8: 6.270712066 | EM8: 6.20889419 | EN8: 6.551794592 | EO8: 6.631466359 | EP8: 6.87751854 | EQ8: 7.214324215 | ER8: 6.776033044 | ES8: 6.054134592 | ET8: 5.445528295 | EU8: 5.254292723 | EV8: 5.581463606 | EW8: 5.559344049 | EX8: 6.021877171 | EY8: 6.558218629 | EZ8: 6.283157558 | FA8: 6.045504482 | FB8: 6.248019771 | FC8: 5.231653862 | FD8: 5.317066295 | FE8: 5.383846898 | FF8: 5.332502725 | FG8: 5.441014247 | FH8: 5.257061667 | FI8: 5.186575199 | FJ8: 4.762412753 | FK8: 4.319352022 | FL8: 4.278927111 | FM8: 4.664884992 | FN8: 3.594858949 | FO8: 3.804063839 | FP8: 4.052285638 | FQ8: 4.033416777 | FR8: 3.966939705 | FS8: 3.757459663 | FT8: 3.387865894 | FU8: 3.241891615 | FV8: 2.938481009 | FW8: 2.486614423 | FX8: 2.559185674 | FY8: 2.309535081 | FZ8: 2.831071259 | GA8: 3.329545945 | GB8: 3.424275771 | GC8: 3.532477148 | GD8: 3.629278837 | GE8: 3.722218277 | GF8: 3.787749773 | GG8: 3.851111143 | GH8: 4.246569535 | GI8: 4.506153716 | GJ8: 4.68418315 | GK8: 4.52601618 | GL8: 4.694454553 | GM8: 3.794332164 | GN8: 3.534760319 | GO8: 3.509592244 | GP8: 3.739587479 | GQ8: 3.559888274 | GR8: 3.222895273 | GS8: 3.783311966 | GT8: 3.912265481 | GU8: 3.42792465 | GV8: 3.06989861 | GW8: 2.635850246 | GX8: 2.20855615 | GY8: 2.533190291 | GZ8: 2.586586587 | HA8: 2.500431796 | HB8: 2.149641506 | HC8: 1.963350785 | HD8: 2.613591204 | HE8: 2.180140875 | HF8: 2.292117828 | HG8: 3.043330988 | HH8: 2.961524931 | HI8: 2.824319732 | HJ8: 3.008423586 | HK8: 3.829503394 | HL8: 4.489806539 | HM8: 4.002644234 | HN8: 3.510793976 | HO8: 3.642328289 | HP8: 3.095671482 | HQ8: 2.878271494 | HR8: 2.212699749 | HS8: 1.172023162 | HT8: 0.9528750759 | HU8: 1.072767715 | HV8: 0.7885514019 | HW8: -0.008817564589 | HX8: -0.747067759 | HY8: -0.286650797 | HZ8: 0.6192918804 | IA8: 1.055923933 | IB8: 1.378645396 | IC8: 1.595139575 | ID8: 1.453597185 | IE8: 1.908249085 | IF8: 2.481918347 | IG8: 2.428350457 | IH8: 2.291711287 | II8: 2.18568909 | IJ8: 2.404847329 | IK8: 2.944742335 | IL8: 2.686975443 | IM8: 2.666699681 | IN8: 3.056989699 | IO8: 2.967921348 | IP8: 3.934277035 | IQ8: 4.137440526 | IR8: 3.62293137 | IS8: 3.663597299 | IT8: 4.077987979 | IU8: 4.083091907 | IV8: 4.031556639 | IW8: 3.766254265 | IX8: 3.739132541 | IY8: 3.916650588 | IZ8: 3.842420029 | JA8: 3.814485965 | JB8: 2.812684889 | JC8: 2.051294129 | JD8: 2.123490598 | JE8: 2.567686003 | JF8: 2.797533815 | JG8: 2.715955796 | JH8: 2.552930925 | JI8: 2.48756801 | JJ8: 2.87251675 | JK8: 3.228277014 | JL8: 3.83066145 | JM8: 4.679244414 | JN8: 5.848976257 | JO8: 6.451352349 | JP8: 7.436602788 | JQ8: 7.823144962 | JR8: 7.455075 | JS8: 8.070802583 | JT8: 8.508439545 | JU8: 8.301081161 | JV8: 8.875021274 | JW8: 9.474133861 | JX8: 9.476223294 | JY8: 9.305240933 | JZ8: 9.232458763 | KA8: 9.853124492 | KB8: 8.887382735 | KC8: 7.092753033 | KD8: 6.018673049 | KE8: 4.218332353 | KF8: 3.398336852 | KG8: 2.849394883 | KH8: 1.451922347 | KI8: 0.3040901719 | KJ8: -1.243453536 | KK8: -2.602322427 | KL8: -2.531915373 | KM8: -3.392692822 | KN8: -3.652513817 | KO8: -2.854788364 | KP8: -1.321890106 | KQ8: 0.259870065 | KR8: 0.2997302428 | KS8: 0.9205523314 | KT8: 1.504211793 | KU8: 1.159304417 | KV8: 2.248318779 | KW8: 2.621760613 | KX8: 1.874376869 | KY8: 1.984245688 | KZ8: 2.46270898 | LA8: 2.97457542 | LB8: 2.729181246 | LC8: 2.661748579 | LD8: 3.36686921 | LE8: 3.212373587 | LF8: 3.260225252 | LG8: 3.43805572 | LH8: 2.905664082 | LI8: 3.173823327 | LJ8: 3.268741437 | LK8: 3.666405944 | LL8: 3.927699072 | LM8: 4.440323997 | LN8: 4.233164656 | LO8: 4.418333657 | LP8: 3.78722174 | LQ8: 3.515850144 | LR8: 3.12858783 | LS8: 2.64565425 | LT8: 2.50882381 | LU8: 2.561904762 | LV8: 2.843062926 | LW8: 2.923700839 | LX8: 2.134060355 | LY8: 1.485703607 | LZ8: 1.441777612 | MA8: 1.168185623 | MB8: 1.569654132 | MC8: 1.329551318 | MD8: 1.250377586 | ME8: 2.022195031 | MF8: 2.082817327 | MG8: 2.150500046 | MH8: 1.865379654 | MI8: 1.598061944 | MJ8: 2.309165593 | MK8: 2.701651321 | ML8: 2.841828479 | MM8: 3.212121212 | MN8: 3.505775992 | MO8: 4.337325148 | MP8: 4.742247282 | MQ8: 4.309480858 | MR8: 4.497645998 | MS8: 4.545000499 | MT8: 4.910536779 | MU8: 5.688800793 | MV8: 5.447355413 | MW8: 4.639936952 | MX8: 4.53338578 | MY8: 4.403992954 | MZ8: 4.182841615 | NA8: 4.137731481 | NB8: 3.970008651 | NC8: 4.419677171 | ND8: 4.620398773 | NE8: 4.987578827 | NF8: 4.642789464 | NG8: 3.985371343 | NH8: 3.937746109 | NI8: 4.377706647 | NJ8: 4.788334901 | NK8: 4.705661792 | NL8: 4.452724732 | NM8: 4.18634806 | NN8: 4.243713018 | NO8: 4.205005521 | NP8: 4.022356606 | NQ8: 3.367309793 | NR8: 3.096704093 | NS8: 2.849670845 | NT8: 2.931625474 | NU8: 2.714891314 | NV8: 2.783014633 | NW8: 2.739480752 | NX8: 2.737893516 | NY8: 2.658014046 | NZ8: 2.554323725 | OA8: 1.70419426 | OB8: 1.691182947 | OC8: 1.85772143 | OD8: 1.449148077 | OE8: 1.876370013 | OF8: 1.910437297 | OG8: 2.265542677 | OH8: 2.192331208 | OI8: 1.995468804 | OJ8: 1.814236111 | OK8: 1.887772775 | OL8: 2.040992822 | OM8: 2.543844417
A9: Colombia | B9: 19.27424341 | C9: 21.23539136 | D9: 22.81523315 | E9: 23.81268311 | F9: 27.61147402 | G9: 27.91160927 | H9: 25.63520619 | I9: 24.66622802 | J9: 24.40024299 | K9: 24.77050522 | L9: 23.49259478 | M9: 22.45059966 | N9: 23.54647429 | O9: 23.72353842 | P9: 22.64933169 | Q9: 22.54259588 | R9: 16.4031651 | S9: 13.45968883 | T9: 14.10816443 | U9: 16.16834549 | V9: 16.78993981 | W9: 18.16948816 | X9: 19.54214086 | Y9: 20.94664366 | Z9: 21.0856648 | AA9: 19.77199789 | AB9: 20.35708065 | AC9: 19.80451561 | AD9: 22.72765649 | AE9: 24.81286889 | AF9: 26.65438715 | AG9: 25.27063373 | AH9: 25.01182922 | AI9: 24.79749603 | AJ9: 24.72932685 | AK9: 24.02164354 | AL9: 23.70495987 | AM9: 26.13040209 | AN9: 26.35717755 | AO9: 28.40642191 | AP9: 28.43924011 | AQ9: 30.27242671 | AR9: 30.25749467 | AS9: 29.64818917 | AT9: 28.99559637 | AU9: 28.59196115 | AV9: 27.68008987 | AW9: 28.12441094 | AX9: 27.91070856 | AY9: 27.04010692 | AZ9: 26.53299985 | BA9: 24.85394723 | BB9: 24.88435399 | BC9: 23.64045941 | BD9: 23.76337023 | BE9: 25.69466562 | BF9: 26.55194854 | BG9: 26.6024436 | BH9: 27.09632212 | BI9: 26.12290696 | BJ9: 26.69851213 | BK9: 27.12178248 | BL9: 27.63807849 | BM9: 27.98698766 | BN9: 28.24151374 | BO9: 28.97309992 | BP9: 28.72780729 | BQ9: 28.98931929 | BR9: 30.24216264 | BS9: 30.65409685 | BT9: 30.97540587 | BU9: 32.36770795 | BV9: 31.9850577 | BW9: 31.65823379 | BX9: 31.18499785 | BY9: 31.16827371 | BZ9: 31.49010462 | CA9: 31.00913046 | CB9: 31.60493333 | CC9: 31.20026384 | CD9: 30.01393199 | CE9: 29.25088349 | CF9: 28.22331776 | CG9: 26.82376708 | CH9: 27.43365392 | CI9: 27.35062504 | CJ9: 27.08531064 | CK9: 27.1519544 | CL9: 27.30765805 | CM9: 28.13724364 | CN9: 28.36646812 | CO9: 27.70606366 | CP9: 26.92124295 | CQ9: 26.32210272 | CR9: 25.70751346 | CS9: 25.13380236 | CT9: 24.82109298 | CU9: 24.71521301 | CV9: 24.18226054 | CW9: 23.08199976 | CX9: 22.21416428 | CY9: 21.38281952 | CZ9: 20.46901587 | DA9: 21.07368854 | DB9: 21.43038725 | DC9: 21.69404088 | DD9: 22.37292687 | DE9: 22.6079406 | DF9: 22.50485177 | DG9: 23.01309644 | DH9: 23.41888516 | DI9: 23.94174949 | DJ9: 23.86927495 | DK9: 23.08598068 | DL9: 22.69979984 | DM9: 22.35969054 | DN9: 22.31707172 | DO9: 22.37556542 | DP9: 22.16433003 | DQ9: 22.59584361 | DR9: 21.04548399 | DS9: 20.860556 | DT9: 21.33822061 | DU9: 21.17492457 | DV9: 21.30434491 | DW9: 21.66790854 | DX9: 21.50509841 | DY9: 21.09376603 | DZ9: 20.79560098 | EA9: 20.52167057 | EB9: 20.13838983 | EC9: 19.46757279 | ED9: 20.24758604 | EE9: 20.8105634 | EF9: 20.20909223 | EG9: 19.90341622 | EH9: 19.78056075 | EI9: 19.70617622 | EJ9: 20.57503863 | EK9: 21.13440287 | EL9: 21.55199506 | EM9: 21.87206736 | EN9: 21.88327783 | EO9: 21.63907411 | EP9: 20.62204049 | EQ9: 19.58649693 | ER9: 18.93822873 | ES9: 18.52679262 | ET9: 18.60844516 | EU9: 18.67485383 | EV9: 17.88556114 | EW9: 17.93862648 | EX9: 18.01943354 | EY9: 17.80038986 | EZ9: 17.81202863 | FA9: 17.68420538 | FB9: 17.84195378 | FC9: 18.03065823 | FD9: 19.24768688 | FE9: 20.74973199 | FF9: 20.67798435 | FG9: 20.69941536 | FH9: 20.27175259 | FI9: 18.94418346 | FJ9: 17.80483248 | FK9: 17.09411224 | FL9: 16.35581635 | FM9: 16.70306285 | FN9: 17.17973005 | FO9: 15.38009909 | FP9: 13.50931189 | FQ9: 11.17025204 | FR9: 9.983599164 | FS9: 8.960453472 | FT9: 8.780324018 | FU9: 9.283448484 | FV9: 9.327930777 | FW9: 9.320121087 | FX9: 9.649072936 | FY9: 9.23169707 | FZ9: 8.248728743 | GA9: 8.891376248 | GB9: 9.725186489 | GC9: 9.956337749 | GD9: 10.00313104 | GE9: 9.675396879 | GF9: 9.291781112 | GG9: 9.096595904 | GH9: 9.200042633 | GI9: 8.986091665 | GJ9: 8.822899713 | GK9: 8.748181495 | GL9: 8.492168994 | GM9: 8.058261985 | GN9: 7.814294964 | GO9: 7.975932406 | GP9: 7.86541311 | GQ9: 7.929793764 | GR9: 8.089514775 | GS9: 8.03023723 | GT9: 7.971152626 | GU9: 8.005887394 | GV9: 7.778175196 | GW9: 7.646353589 | GX9: 7.374757855 | GY9: 6.704213165 | GZ9: 5.89153574 | HA9: 5.648086341 | HB9: 5.837852478 | HC9: 6.248896764 | HD9: 6.15709841 | HE9: 5.981075191 | HF9: 5.969645375 | HG9: 6.365100616 | HH9: 7.067742673 | HI9: 6.992773803 | HJ9: 7.394279072 | HK9: 7.239359404 | HL9: 7.600128984 | HM9: 7.848137057 | HN9: 7.731403793 | HO9: 7.21274573 | HP9: 7.035128174 | HQ9: 7.264535796 | HR9: 7.114801557 | HS9: 6.58343416 | HT9: 6.128742268 | HU9: 6.490638065 | HV9: 6.187544794 | HW9: 6.280912232 | HX9: 6.214817433 | HY9: 5.488700229 | HZ9: 5.374235657 | IA9: 6.06811537 | IB9: 6.187303464 | IC9: 5.892228778 | ID9: 5.972644192 | IE9: 5.8982751 | IF9: 5.823799737 | IG9: 5.49752289 | IH9: 5.430481863 | II9: 5.246120508 | IJ9: 5.026451007 | IK9: 5.008231947 | IL9: 5.03649253 | IM9: 4.825093274 | IN9: 4.908534849 | IO9: 4.87850626 | IP9: 5.016098208 | IQ9: 5.268189566 | IR9: 5.096621682 | IS9: 4.854901579 | IT9: 4.563125365 | IU9: 4.185585975 | IV9: 4.112006914 | IW9: 4.121417407 | IX9: 4.038427185 | IY9: 3.938248493 | IZ9: 4.316859121 | JA9: 4.72453781 | JB9: 4.576858965 | JC9: 4.185928559 | JD9: 4.313589754 | JE9: 4.477911271 | JF9: 4.711753001 | JG9: 5.246767573 | JH9: 5.780461519 | JI9: 6.256336376 | JJ9: 6.226435005 | JK9: 6.033817559 | JL9: 5.771774717 | JM9: 5.21775774 | JN9: 5.005001935 | JO9: 5.163300191 | JP9: 5.412075409 | JQ9: 5.694062756 | JR9: 5.997045202 | JS9: 6.352007554 | JT9: 5.925951655 | JU9: 5.727999967 | JV9: 6.394319852 | JW9: 7.185301792 | JX9: 7.51953924 | JY9: 7.870008759 | JZ9: 7.573531894 | KA9: 7.936794624 | KB9: 7.730453863 | KC9: 7.674758433 | KD9: 7.178155512 | KE9: 6.465398613 | KF9: 6.143583287 | KG9: 5.72986658 | KH9: 4.768623183 | KI9: 3.808266477 | KJ9: 3.274711947 | KK9: 3.127206698 | KL9: 3.214069133 | KM9: 2.719580983 | KN9: 2.370429892 | KO9: 2 | KP9: 2.098306237 | KQ9: 2.139406487 | KR9: 1.824602707 | KS9: 1.980415868 | KT9: 2.073610591 | KU9: 2.250048914 | KV9: 2.241143081 | KW9: 2.308520004 | KX9: 2.281629456 | KY9: 2.373014317 | KZ9: 2.629513344 | LA9: 3.137254902 | LB9: 3.407984421 | LC9: 3.088803089 | LD9: 3.179190751 | LE9: 2.88618276 | LF9: 3.0651341 | LG9: 3.233830846 | LH9: 3.378960467 | LI9: 3.260349938 | LJ9: 3.68597415 | LK9: 4.022988506 | LL9: 3.919694073 | LM9: 3.802281369 | LN9: 3.578154426 | LO9: 3.558052434 | LP9: 3.454715219 | LQ9: 3.355079217 | LR9: 3.43866171 | LS9: 3.243744208 | LT9: 3.055555556 | LU9: 3.148148148 | LV9: 3.139427516 | LW9: 3.038674033 | LX9: 2.759889604 | LY9: 2.380952381 | LZ9: 2 | MA9: 1.898734177 | MB9: 1.895306859 | MC9: 2.073940487 | MD9: 1.976639712 | ME9: 2.154398564 | MF9: 2.246181491 | MG9: 2.244165171 | MH9: 2.238137869 | MI9: 1.787310098 | MJ9: 1.790510295 | MK9: 1.967799642 | ML9: 2.082691622 | MM9: 2.265519077 | MN9: 2.480070859 | MO9: 2.650176678 | MP9: 2.907488987 | MQ9: 2.724077329 | MR9: 2.899824253 | MS9: 2.985074627 | MT9: 2.88966725 | MU9: 3.336259877 | MV9: 3.605980651 | MW9: 3.684210526 | MX9: 3.809448808 | MY9: 4.37884436 | MZ9: 4.580812446 | NA9: 4.647160069 | NB9: 4.452054795 | NC9: 4.448246364 | ND9: 4.449188728 | NE9: 4.774083546 | NF9: 5.361702128 | NG9: 5.862361937 | NH9: 6.451612903 | NI9: 6.768189509 | NJ9: 7.485281749 | NK9: 7.564422278 | NL9: 7.933884298 | NM9: 7.976973684 | NN9: 8.196721311 | NO9: 8.5995086 | NP9: 8.960837217 | NQ9: 8.096013019 | NR9: 7.270964615 | NS9: 6.48371048 | NT9: 5.966339635 | NU9: 5.747126437 | NV9: 5.470339646 | NW9: 5.185070706 | NX9: 4.692643344 | NY9: 4.66179159 | NZ9: 4.365289883 | OA9: 3.990043747 | OB9: 3.399114579 | OC9: 3.869025216 | OD9: 3.968971231 | OE9: 4.046721929 | OF9: 4.117425668 | OG9: 4.085457271 | OH9: 3.672924241 | OI9: 3.372024684 | OJ9: 3.136882129 | OK9: 3.129548763 | OL9: 3.158811996 | OM9: 3.198665409
A10: Costa Rica | B10: 19.7297905 | C10: 18.43553605 | D10: 18.01542133 | E10: 16.55785274 | F10: 15.45218249 | G10: 14.82846162 | H10: 14.96373274 | I10: 14.55059984 | J10: 14.53920811 | K10: 12.65973503 | L10: 11.34075077 | M10: 10.92506443 | N10: 7.798732295 | O10: 8.381870418 | P10: 8.349019181 | Q10: 9.086665629 | R10: 9.772533189 | S10: 11.62851396 | T10: 13.38156338 | U10: 14.19824189 | V10: 14.7632688 | W10: 13.81830632 | X10: 14.71355711 | Y10: 15.4253065 | Z10: 17.69505502 | AA10: 17.49666841 | AB10: 18.38190955 | AC10: 20.09841677 | AD10: 20.45573488 | AE10: 17.60903352 | AF10: 14.72771781 | AG10: 14.54451346 | AH10: 14.11601741 | AI10: 15.06369177 | AJ10: 16.34829137 | AK10: 16.42760384 | AL10: 15.19132559 | AM10: 19.51920113 | AN10: 19.74336895 | AO10: 19.367941 | AP10: 18.74214723 | AQ10: 19.77078704 | AR10: 20.68977579 | AS10: 21.08635453 | AT10: 21.73375322 | AU10: 24.47601728 | AV10: 23.23568945 | AW10: 25.33572555 | AX10: 24.73094098 | AY10: 20.17782729 | AZ10: 18.05392375 | BA10: 16.18661015 | BB10: 17.24946105 | BC10: 16.93778316 | BD10: 16.92557385 | BE10: 16.87845674 | BF10: 15.92414208 | BG10: 13.87676461 | BH10: 13.47148858 | BI10: 9.954452783 | BJ10: 12.10903627 | BK10: 12.78173547 | BL10: 14.48390058 | BM10: 16.62128141 | BN10: 16.35642896 | BO10: 18.0381253 | BP10: 19.84929605 | BQ10: 21.26325269 | BR10: 21.08299792 | BS10: 22.38695865 | BT10: 24.71501315 | BU10: 27.25443628 | BV10: 26.62449552 | BW10: 29.54369035 | BX10: 29.1863698 | BY10: 30.14803066 | BZ10: 30.70064802 | CA10: 30.2286264 | CB10: 29.66992058 | CC10: 28.76779843 | CD10: 29.86737081 | CE10: 28.43281137 | CF10: 26.68492627 | CG10: 25.31606327 | CH10: 27.06159848 | CI10: 26.21091157 | CJ10: 26.11306088 | CK10: 25.03526173 | CL10: 24.05164382 | CM10: 22.9936067 | CN10: 21.09370846 | CO10: 20.0773881 | CP10: 18.64546726 | CQ10: 18.07046988 | CR10: 17.73401244 | CS10: 16.96542989 | CT10: 12.98967109 | CU10: 11.11990318 | CV10: 10.19319227 | CW10: 9.177872033 | CX10: 9.222997139 | CY10: 9.296471316 | CZ10: 9.852043728 | DA10: 9.654178674 | DB10: 8.890435388 | DC10: 9.207172175 | DD10: 9.109156133 | DE10: 9.043993232 | DF10: 9.541663156 | DG10: 10.22912914 | DH10: 11.2748372 | DI10: 11.24152753 | DJ10: 11.6696001 | DK10: 12.03329562 | DL10: 11.83006275 | DM10: 13.47111058 | DN10: 16.26123427 | DO10: 16.81041304 | DP10: 17.29617598 | DQ10: 19.85801847 | DR10: 23.79238393 | DS10: 24.15952725 | DT10: 23.53264608 | DU10: 23.06150939 | DV10: 22.47248541 | DW10: 22.36882063 | DX10: 23.20933733 | DY10: 22.33815792 | DZ10: 21.98610648 | EA10: 23.85279377 | EB10: 24.92211749 | EC10: 22.62457986 | ED10: 19.1 | EE10: 18.62068966 | EF10: 18.27956989 | EG10: 18.5617104 | EH10: 19.46050096 | EI10: 19.25996205 | EJ10: 18.767507 | EK10: 18.55955679 | EL10: 17.40707162 | EM10: 15.49295775 | EN10: 14.01547721 | EO10: 13.84876805 | EP10: 14.7774979 | EQ10: 14.28571429 | ER10: 14.95867769 | ES10: 15.57377049 | ET10: 14.27419355 | EU10: 13.60381862 | EV10: 13.20754717 | EW10: 13.41900312 | EX10: 11.96911197 | EY10: 10.74695122 | EZ10: 11.41779789 | FA10: 11.19402985 | FB10: 10.7315289 | FC10: 11.11918605 | FD10: 11.07836089 | FE10: 10.46099291 | FF10: 10.74805928 | FG10: 10.77731092 | FH10: 11.72222222 | FI10: 12.70342649 | FJ10: 12.75172414 | FK10: 12.86992429 | FL10: 12.46784892 | FM10: 12.34899329 | FN10: 12.58505648 | FO10: 12.26945716 | FP10: 10.68539253 | FQ10: 9.939004815 | FR10: 9.99808832 | FS10: 10.63910487 | FT10: 9.062655395 | FU10: 7.536708707 | FV10: 8.66719677 | FW10: 9.920731707 | FX10: 9.508907078 | FY10: 10.11947431 | FZ10: 10.09271212 | GA10: 10.881976 | GB10: 12.05122208 | GC10: 11.91380015 | GD10: 10.53759703 | GE10: 10.49594332 | GF10: 11.67217599 | GG10: 11.74504249 | GH10: 11.4375774 | GI10: 10.517557 | GJ10: 10.40888107 | GK10: 10.23109472 | GL10: 9.849696194 | GM10: 9.488284123 | GN10: 10.62985963 | GO10: 12.03882482 | GP10: 13.25402233 | GQ10: 12.05336367 | GR10: 11.25854854 | GS10: 11.44349237 | GT10: 11.67794727 | GU10: 10.97726246 | GV10: 11.05027377 | GW10: 10.97440945 | GX10: 10.62590975 | GY10: 9.90403071 | GZ10: 8.880430189 | HA10: 7.699115044 | HB10: 7.681628876 | HC10: 8.061836641 | HD10: 8.990825688 | HE10: 9.381255687 | HF10: 9.170956041 | HG10: 9.886928991 | HH10: 10.02689377 | HI10: 9.680709534 | HJ10: 9.179824561 | HK10: 9.57038072 | HL10: 9.424172211 | HM10: 10.28528302 | HN10: 10.16373138 | HO10: 10.20626041 | HP10: 9.486531987 | HQ10: 8.651526495 | HR10: 8.361615874 | HS10: 8.910931841 | HT10: 9.32899379 | HU10: 9.868166219 | HV10: 11.01916201 | HW10: 11.547657 | HX10: 11.34195583 | HY10: 11.28739804 | HZ10: 11.44873842 | IA10: 11.88824737 | IB10: 12.43561159 | IC10: 13.05293293 | ID10: 13.78270957 | IE10: 13.31393371 | IF10: 13.2914017 | IG10: 13.12779377 | IH10: 13.41759512 | II10: 13.19152222 | IJ10: 13.61308951 | IK10: 13.66321465 | IL10: 14.45477094 | IM10: 13.76301291 | IN10: 13.74867189 | IO10: 14.06755903 | IP10: 13.38274633 | IQ10: 13.93706032 | IR10: 14.18833905 | IS10: 14.07635208 | IT10: 13.19538912 | IU10: 12.96244019 | IV10: 12.21655167 | IW10: 11.62907048 | IX10: 11.86392961 | IY10: 12.41985279 | IZ10: 12.02599003 | JA10: 11.61399079 | JB10: 11.23969188 | JC10: 10.08543523 | JD10: 9.427302182 | JE10: 9.428656151 | JF10: 9.193307454 | JG10: 8.617362866 | JH10: 9.222417883 | JI10: 9.759190159 | JJ10: 9.167569264 | JK10: 8.750755191 | JL10: 8.75241211 | JM10: 8.562715903 | JN10: 9.430067312 | JO10: 9.843982503 | JP10: 10.08535269 | JQ10: 10.81002331 | JR10: 10.55830939 | JS10: 11.39921902 | JT10: 11.03074141 | JU10: 10.94377053 | JV10: 11.90031734 | JW10: 12.81542065 | JX10: 14.16758267 | JY10: 15.39972017 | JZ10: 15.7624553 | KA10: 16.30597942 | KB10: 16.29979503 | KC10: 13.90130599 | KD10: 13.50504699 | KE10: 12.75074454 | KF10: 12.32641865 | KG10: 11.75167007 | KH10: 9.517057303 | KI10: 8.201711089 | KJ10: 6.902384021 | KK10: 5.712929261 | KL10: 4.83618122 | KM10: 3.998223638 | KN10: 2.567020391 | KO10: 4.047710658 | KP10: 5.343452929 | KQ10: 5.597257875 | KR10: 5.838201781 | KS10: 5.555146127 | KT10: 6.236786952 | KU10: 6.310347449 | KV10: 5.680705191 | KW10: 5.207641455 | KX10: 4.971962617 | KY10: 5.252906855 | KZ10: 6.112864845 | LA10: 5.827971304 | LB10: 4.832253839 | LC10: 4.572686261 | LD10: 4.583083403 | LE10: 4.681481969 | LF10: 4.847051393 | LG10: 5.177715798 | LH10: 5.19711984 | LI10: 5.252367036 | LJ10: 5.206552707 | LK10: 4.92793269 | LL10: 4.553882103 | LM10: 4.759242435 | LN10: 4.19993058 | LO10: 4.091788775 | LP10: 4.242306555 | LQ10: 4.701590142 | LR10: 5.025641026 | LS10: 4.644047052 | LT10: 3.957712117 | LU10: 4.23144518 | LV10: 4.461444723 | LW10: 4.687288937 | LX10: 5.252525253 | LY10: 4.536357572 | LZ10: 5.729513658 | MA10: 6.507304117 | MB10: 6.150793651 | MC10: 6.311637081 | MD10: 5.2734375 | ME10: 5.133203379 | MF10: 5.801825293 | MG10: 5.317769131 | MH10: 5.379131562 | MI10: 4.129032258 | MJ10: 3.390914907 | MK10: 3.70134014 | ML10: 3.125459321 | MM10: 2.714405116 | MN10: 3.278663177 | MO10: 3.685415589 | MP10: 4.224452918 | MQ10: 4.561424738 | MR10: 5.187026554 | MS10: 5.469541677 | MT10: 5.203171697 | MU10: 5.678270266 | MV10: 5.907060922 | MW10: 5.089117575 | MX10: 4.385964912 | MY10: 3.526970954 | MZ10: 3.041550675 | NA10: 1.804281346 | NB10: 0.9735320961 | NC10: 1.020305081 | ND10: -0.3203523876 | NE10: -0.7383755737 | NF10: -0.8692177041 | NG10: -0.8617234469 | NH10: -1.238266427 | NI10: -0.8206565252 | NJ10: -0.1600640256 | NK10: 0 | NL10: -1.040624375 | NM10: -0.8711324722 | NN10: -0.4720297278 | NO10: -0.9 | NP10: 0.4755271114 | NQ10: 0.5958667489 | NR10: 0.3857547195 | NS10: 0.5518009867 | NT10: 0.560372339 | NU10: 0.7651910978 | NV10: 0.6557145455 | NW10: 1.085465378 | NX10: 1.581660425 | NY10: 1.643854812 | NZ10: 1.671159953 | OA10: 1.774317033 | OB10: 1.163108132 | OC10: 0.9094421203 | OD10: 1.641200272 | OE10: 2.325431605 | OF10: 2.491316787 | OG10: 2.574109945 | OH10: 2.407825171 | OI10: 2.212488146 | OJ10: 2.612967691 | OK10: 2.375430196 | OL10: 2.035903118 | OM10: 2.134131614
A11: Cote d'Ivoire | B11: 4.900105052 | C11: 0.8454006629 | D11: -0.1777089896 | E11: -1.182968718 | F11: 0.08534978625 | G11: -1.633066809 | H11: -2.18418982 | I11: 2.881854393 | J11: 2.850667393 | K11: 3.876360362 | L11: 8.003582231 | M11: 4.459869395 | N11: 6.958250497 | O11: 10.3343465 | P11: 10.97683787 | Q11: 13.02136317 | R11: 11.28712871 | S11: 12.20472441 | T11: 13.28047572 | U11: 5.140640155 | V11: 8.932038835 | W11: 8.030592734 | X11: 8.169014085 | Y11: 8.286252354 | Z11: 7.249070632 | AA11: 6.427915519 | AB11: 5.444646098 | AC11: 5.04050405 | AD11: 3.914590747 | AE11: 5.263157895 | AF11: 5.249343832 | AG11: 12.17712177 | AH11: 8.556149733 | AI11: 8.230088496 | AJ11: 8.420138889 | AK11: 7.47826087 | AL11: 7.452339688 | AM11: 9.059534081 | AN11: 8.691910499 | AO11: 9.083119109 | AP11: 9.726027397 | AQ11: 7.166666667 | AR11: 6.816292602 | AS11: 6.003289474 | AT11: 6.405582923 | AU11: 6.132461161 | AV11: 3.087269816 | AW11: 4.103559871 | AX11: 4.274193548 | AY11: 2.056962025 | AZ11: 1.26682502 | BA11: 0.9426551453 | BB11: 0.7334581773 | BC11: 0.8553654743 | BD11: 0.9338521401 | BE11: 1.086113266 | BF11: 0.3070940263 | BG11: -0.1540832049 | BH11: 0.3448382988 | BI11: 0.09947774186 | BJ11: -0.618716164 | BK11: -0.6201550388 | BL11: -0.1563721658 | BM11: 0 | BN11: -0.1549186677 | BO11: -1.696222051 | BP11: -1.464919044 | BQ11: -1.765157329 | BR11: -1.538461538 | BS11: -1.080246914 | BT11: -0.6965944272 | BU11: 0.1552795031 | BV11: 0.7003891051 | BW11: 1.482059282 | BX11: 2.270947533 | BY11: 1.712062257 | BZ11: 0.7757951901 | CA11: 2.352941176 | CB11: 2.190923318 | CC11: 1.953125 | CD11: 2.03125 | CE11: 1.560062402 | CF11: 1.558846454 | CG11: 1.627906977 | CH11: 3.323029366 | CI11: 2.690238278 | CJ11: 2.143950995 | CK11: 3.596021423 | CL11: 4.003079292 | CM11: 5.517241379 | CN11: 5.359877489 | CO11: 5.977011494 | CP11: 5.359877489 | CQ11: 5.069124424 | CR11: 4.221028396 | CS11: 3.50877193 | CT11: 3.08499381 | CU11: 3.67693444 | CV11: 3.832372123 | CW11: 1.485958723 | CX11: 2.729447437 | CY11: 1.289202016 | CZ11: 0.7630333938 | DA11: 1.347056301 | DB11: 1.962593315 | DC11: 1.352290899 | DD11: 1.794760926 | DE11: 2.782042134 | DF11: 9.281437126 | DG11: 15.49155909 | DH11: 21.15193644 | DI11: 23.32332332 | DJ11: 25.3716551 | DK11: 28.10650888 | DL11: 30.75396825 | DM11: 30.02944063 | DN11: 30.78431373 | DO11: 32.73809524 | DP11: 33.23383085 | DQ11: 32.44575937 | DR11: 27.94520548 | DS11: 21.06620808 | DT11: 18.85245902 | DU11: 19.15584416 | DV11: 16.75889328 | DW11: 13.85681293 | DX11: 11.45675266 | DY11: 10.33962264 | DZ11: 9.52023988 | EA11: 9.192825112 | EB11: 8.812546677 | EC11: 8.78629933 | ED11: 3.997144897 | EE11: 4.048295455 | EF11: 1.379310345 | EG11: 1.089918256 | EH11: 1.82802979 | EI11: 2.231237323 | EJ11: 2.110279101 | EK11: 2.804377565 | EL11: 3.148528405 | EM11: 2.327173169 | EN11: 2.608098833 | EO11: 2.327173169 | EP11: 3.917923721 | EQ11: 3.708049567 | ER11: 4.274335488 | ES11: 3.800083497 | ET11: 2.826468981 | EU11: 3.272898084 | EV11: 3.960584755 | EW11: 4.454717261 | EX11: 4.402762831 | EY11: 4.614035676 | EZ11: 4.226019207 | FA11: 4.796352653 | FB11: 5.049137698 | FC11: 5.546072861 | FD11: 5.209415736 | FE11: 5.94399967 | FF11: 7.525713696 | FG11: 7.682616338 | FH11: 5.954643059 | FI11: 3.983599508 | FJ11: 2.204196643 | FK11: 1.93109617 | FL11: 2.434178514 | FM11: 2.00002747 | FN11: 1.871482142 | FO11: 1.251041249 | FP11: 0.4805700697 | FQ11: -0.5811570778 | FR11: -2.092932252 | FS11: -2.592580963 | FT11: -0.6468863256 | FU11: 1.701914677 | FV11: 3.347548571 | FW11: 2.86850059 | FX11: 1.596906265 | FY11: 1.556399204 | FZ11: 0.5346456834 | GA11: 0.3146611041 | GB11: 1.954699045 | GC11: 2.546709022 | GD11: 2.942039259 | GE11: 3.697038724 | GF11: 3.584339868 | GG11: 2.808168306 | GH11: 1.880334956 | GI11: 3.014389338 | GJ11: 3.470417685 | GK11: 3.599523066 | GL11: 5.016059175 | GM11: 5.600943299 | GN11: 4.701259113 | GO11: 4.37689027 | GP11: 4.880905302 | GQ11: 4.128715256 | GR11: 3.663044812 | GS11: 3.215501535 | GT11: 3.467036856 | GU11: 3.89901996 | GV11: 4.714284465 | GW11: 4.778466363 | GX11: 4.464441784 | GY11: 3.92675367 | GZ11: 3.350357889 | HA11: 3.260649629 | HB11: 2.176168319 | HC11: 2.660879375 | HD11: 1.864407264 | HE11: 1.849570658 | HF11: 2.523495444 | HG11: 2.941820844 | HH11: 3.565982211 | HI11: 4.408603219 | HJ11: 3.227949747 | HK11: 3.882531865 | HL11: 4.03469019 | HM11: 4.540668452 | HN11: 5.035070454 | HO11: 4.244711654 | HP11: 4.179290304 | HQ11: 4.592436817 | HR11: 3.160390988 | HS11: 1.863713102 | HT11: 1.022585351 | HU11: -0.1030099918 | HV11: 0.2921891959 | HW11: -0.4497282612 | HX11: 0.2740327532 | HY11: 1.197543661 | HZ11: 0.7909245261 | IA11: 0.5312615305 | IB11: 1.483266693 | IC11: 0.9526203855 | ID11: 1.715598668 | IE11: 2.060473981 | IF11: 4.301738304 | IG11: 4.442140741 | IH11: 4.863965153 | II11: 5.178944677 | IJ11: 4.555848417 | IK11: 3.0519124 | IL11: 2.991235562 | IM11: 3.290320979 | IN11: 3.521422872 | IO11: 4.482212039 | IP11: 4.811275366 | IQ11: 4.795112312 | IR11: 2.678914292 | IS11: 2.5259158 | IT11: 1.982386562 | IU11: 2.201263561 | IV11: 2.148957451 | IW11: 2.570760051 | IX11: 2.8668035 | IY11: 3.41780125 | IZ11: 3.526339332 | JA11: 2.774623592 | JB11: 2.171322629 | JC11: 1.914561428 | JD11: 1.982304419 | JE11: 2.041126071 | JF11: 2.5259691 | JG11: 2.799254592 | JH11: 3.171269593 | JI11: 2.586208289 | JJ11: 2.507801517 | JK11: 2.002702314 | JL11: 1.390922401 | JM11: 0.878477306 | JN11: 1.180811808 | JO11: 1.113585746 | JP11: 1.112759644 | JQ11: 1.483679525 | JR11: 2.05591239 | JS11: 2.659607482 | JT11: 3.496604218 | JU11: 4.11315942 | JV11: 4.945798232 | JW11: 5.215199423 | JX11: 8.16323444 | JY11: 8.977600943 | JZ11: 9.662844858 | KA11: 9.599483333 | KB11: 7.924922597 | KC11: 8.931981433 | KD11: 7.143336619 | KE11: 5.790555895 | KF11: 3.561694188 | KG11: 3.099977608 | KH11: 2.651498144 | KI11: 0.8422987374 | KJ11: -1.229035566 | KK11: -1.348176607 | KL11: -2.222121895 | KM11: -2.582286925 | KN11: -0.9149111663 | KO11: -1.629087435 | KP11: -1.228743748 | KQ11: -1.388963749 | KR11: -0.4800219245 | KS11: 1.130147455 | KT11: 0.4036129539 | KU11: 1.717761406 | KV11: 1.372272403 | KW11: 1.053669876 | KX11: 1.248405629 | KY11: 2.469692221 | KZ11: 3.623543769 | LA11: 4.929408011 | LB11: 4.650510627 | LC11: 5.061549769 | LD11: 6.005348614 | LE11: 9.123726107 | LF11: 6.47639842 | LG11: 4.593254164 | LH11: 4.534275758 | LI11: 4.55898488 | LJ11: 4.706345074 | LK11: 4.129166918 | LL11: 3.266527126 | LM11: 1.943965317 | LN11: 2.295895403 | LO11: 1.973736641 | LP11: 0.6199908387 | LQ11: -3.855150929 | LR11: -1.244680333 | LS11: 0.9723883439 | LT11: 1.701571781 | LU11: 1.868347435 | LV11: 2.204948951 | LW11: 3.037672869 | LX11: 2.976429572 | LY11: 3.433068601 | LZ11: 3.408763668 | MA11: 3.599730303 | MB11: 3.672027711 | MC11: 3.942091214 | MD11: 3.45760407 | ME11: 2.916529964 | MF11: 2.440449341 | MG11: 2.260330618 | MH11: 2.165427267 | MI11: 1.682912191 | MJ11: 1.132714142 | MK11: 0.4153974825 | ML11: 0.09531686653 | MM11: -0.1539754551 | MN11: -0.0162732847 | MO11: -0.2128417458 | MP11: 0.8550346944 | MQ11: 0.6130710289 | MR11: 0.9168564389 | MS11: 0.821373469 | MT11: 0.0460533496 | MU11: 0.6148519106 | MV11: 0.9957146492 | MW11: 0.8625059245 | MX11: 1.515559143 | MY11: 1.293103448 | MZ11: 1.733740568 | NA11: 1.415516932 | NB11: 1.172707889 | NC11: 0.8986564641 | ND11: 1.23248803 | NE11: 1.244776385 | NF11: 1.625067337 | NG11: 0.5004468275 | NH11: 0.8197451662 | NI11: 1.405944118 | NJ11: 0.2915194346 | NK11: 0.8421985816 | NL11: 0.8918322296 | NM11: 2.03180212 | NN11: 2.309448542 | NO11: 1.728395062 | NP11: 0.4642200228 | NQ11: -0.4389815628 | NR11: 0.6233303651 | NS11: 0.5333333333 | NT11: 0.3533568905 | NU11: -0.1755926251 | NV11: 1.145374449 | NW11: 1.405975395 | NX11: 0.3499562555 | NY11: 0.08658008658 | NZ11: -0.3433476395 | OA11: -0.08665511265 | OB11: 0.6974716652 | OC11: 1.234567901 | OD11: 1.327433628 | OE11: 1.061007958 | OF11: 0.3521126761 | OG11: 1.055408971 | OH11: 0.1742160279 | OI11: -0.6065857886 | OJ11: 0.6102877071 | OK11: 0.08650519031 | OL11: -1.033591731 | OM11: 0.4336513443
A12: Croatia | CT12: 1023.106512 | CU12: 1119.97643 | CV12: 1320.438085 | CW12: 1434.327225 | CX12: 1391.828483 | CY12: 1571.333937 | CZ12: 1689.473684 | DA12: 1809.677419 | DB12: 1889.915966 | DC12: 1839.393939 | DD12: 1432.394366 | DE12: 1133.082707 | DF12: 839.5454545 | DG12: 658.5185185 | DH12: 486.8571429 | DI12: 375.5813953 | DJ12: 292.0754717 | DK12: 209.7014925 | DL12: 145.1764706 | DM12: 86.3963964 | DN12: 40.40540541 | DO12: 4 | DP12: 1.960784314 | DQ12: 2.43902439 | DR12: 2.493201875 | DS12: 4.496396821 | DT12: 4.5059262 | DU12: 6.652052947 | DV12: 5.373203677 | DW12: 3.552139593 | DX12: 2.070785624 | DY12: 2.081631973 | DZ12: 3.506355581 | EA12: 4.339356764 | EB12: 4.857427056 | EC12: 4.577175698 | ED12: 4.679552391 | EE12: 4.43101712 | EF12: 4.417670683 | EG12: 2.075098814 | EH12: 3.051181102 | EI12: 5.516549649 | EJ12: 6.079027356 | EK12: 6.020408163 | EL12: 4.208416834 | EM12: 3.972194638 | EN12: 4.051383399 | EO12: 3.729146222 | EP12: 4.275996113 | EQ12: 3.664416586 | ER12: 3.653846154 | ES12: 4.549854792 | ET12: 4.297994269 | EU12: 4.182509506 | EV12: 3.342884432 | EW12: 4.331087584 | EX12: 4.326923077 | EY12: 3.724928367 | EZ12: 4.178537512 | FA12: 5.014191107 | FB12: 5.776497501 | FC12: 6.042772894 | FD12: 6.209443325 | FE12: 6.62732589 | FF12: 6.519270203 | FG12: 6.130513743 | FH12: 7.043663604 | FI12: 6.693091333 | FJ12: 7.053557648 | FK12: 6.954981628 | FL12: 6.336289053 | FM12: 5.389887495 | FN12: 4.093567251 | FO12: 4.075691412 | FP12: 3.913043478 | FQ12: 3.746397695 | FR12: 3.708987161 | FS12: 3.708987161 | FT12: 4.584527221 | FU12: 4.447632712 | FV12: 4.142857143 | FW12: 4.428571429 | FX12: 3.556187767 | FY12: 3.829787234 | FZ12: 3.745539367 | GA12: 3.76072411 | GB12: 4.070259439 | GC12: 4.233103191 | GD12: 3.524846543 | GE12: 4.558618192 | GF12: 4.864299006 | GG12: 5.004908935 | GH12: 5.155422283 | GI12: 5.161466462 | GJ12: 5.742302958 | GK12: 5.457821985 | GL12: 4.796511628 | GM12: 4.92040521 | GN12: 4.172661871 | GO12: 5.007153076 | GP12: 5.563480742 | GQ12: 4.378531073 | GR12: 2.52454418 | GS12: 3.370786517 | GT12: 3.361344538 | GU12: 2.51396648 | GV12: 2.370990237 | GW12: 2.503477051 | GX12: 3.19001387 | GY12: 2.482758621 | GZ12: 2.624309392 | HA12: 1.498637602 | HB12: 1.216216216 | HC12: 0.8119079838 | HD12: 1.504787962 | HE12: 0.6793478261 | HF12: 0.9485094851 | HG12: 1.634877384 | HH12: 1.771117166 | HI12: 1.763907734 | HJ12: 1.344086022 | HK12: 1.749663526 | HL12: 2.153432032 | HM12: 1.610738255 | HN12: 1.335113485 | HO12: 1.476510067 | HP12: 2.021563342 | HQ12: 2.294197031 | HR12: 1.879194631 | HS12: 1.742627346 | HT12: 1.87416332 | HU12: 1.733333333 | HV12: 2.122015915 | HW12: 1.851851852 | HX12: 1.449275362 | HY12: 1.981505945 | HZ12: 2.371541502 | IA12: 2.513227513 | IB12: 1.981505945 | IC12: 1.846965699 | ID12: 1.581027668 | IE12: 1.976284585 | IF12: 2.23390276 | IG12: 2.752293578 | IH12: 2.077922078 | II12: 3.246753247 | IJ12: 4.025974026 | IK12: 3.497409326 | IL12: 2.702702703 | IM12: 2.838709677 | IN12: 2.979274611 | IO12: 3.10880829 | IP12: 3.761348898 | IQ12: 4.134366925 | IR12: 3.856041131 | IS12: 3.571428571 | IT12: 3.944020356 | IU12: 3.522012579 | IV12: 2.871410737 | IW12: 3.37922403 | IX12: 4.010025063 | IY12: 4.140526976 | IZ12: 3.522012579 | JA12: 3.391959799 | JB12: 2.875 | JC12: 2.109181141 | JD12: 2.475247525 | JE12: 2.093596059 | JF12: 1.713586291 | JG12: 1.336573512 | JH12: 1.82038835 | JI12: 2.300242131 | JJ12: 2.289156627 | JK12: 1.927710843 | JL12: 2.065613609 | JM12: 2.673147023 | JN12: 3.888213852 | JO12: 4.2527339 | JP12: 4.710144928 | JQ12: 5.790108565 | JR12: 6.257521059 | JS12: 5.755395683 | JT12: 5.721096544 | JU12: 5.680473373 | JV12: 6.360424028 | JW12: 7.56501182 | JX12: 8.452380952 | JY12: 7.455621302 | JZ12: 6.432748538 | KA12: 5.944055944 | KB12: 4.61361015 | KC12: 2.850627138 | KD12: 3.397508494 | KE12: 4.195011338 | KF12: 3.833145434 | KG12: 3.9193729 | KH12: 2.76854928 | KI12: 1.978021978 | KJ12: 1.207464325 | KK12: 1.431718062 | KL12: 0.989010989 | KM12: 1.210121012 | KN12: 1.874310915 | KO12: 1.884700665 | KP12: 1.095290252 | KQ12: 0.6528835691 | KR12: 0.8686210641 | KS12: 0.5387931034 | KT12: 0.7543103448 | KU12: 0.7543103448 | KV12: 0.9761388286 | KW12: 0.8686210641 | KX12: 1.414581066 | KY12: 1.413043478 | KZ12: 1.19047619 | LA12: 1.849836779 | LB12: 1.950162514 | LC12: 2.27027027 | LD12: 2.583423036 | LE12: 2.357984995 | LF12: 2.459893048 | LG12: 2.032085561 | LH12: 1.933404941 | LI12: 2.045209903 | LJ12: 2.145922747 | LK12: 2.679528403 | LL12: 2.673796791 | LM12: 2.136752137 | LN12: 1.168969182 | LO12: 1.268498943 | LP12: 1.993704092 | LQ12: 2.617801047 | LR12: 3.966597077 | LS12: 3.773584906 | LT12: 3.371970495 | LU12: 4.008438819 | LV12: 4.93697479 | LW12: 4.801670146 | LX12: 4.375 | LY12: 4.60251046 | LZ12: 5.25210084 | MA12: 4.90605428 | MB12: 3.703703704 | MC12: 3.265306122 | MD12: 1.606425703 | ME12: 2.02020202 | MF12: 2.242609582 | MG12: 1.926977688 | MH12: 1.201201201 | MI12: 0.1992031873 | MJ12: 0.2994011976 | MK12: 0.3 | ML12: 0.0998003992 | MM12: -0.5970149254 | MN12: -0.3968253968 | MO12: -0.4940711462 | MP12: -0.2964426877 | MQ12: -0.396039604 | MR12: -0.09970089731 | MS12: -0.2985074627 | MT12: -0.1978239367 | MU12: 0.3976143141 | MV12: 0.1990049751 | MW12: -0.4985044865 | MX12: -0.9970089731 | MY12: -0.4004004004 | MZ12: 0.09960159362 | NA12: -0.09930486594 | NB12: 0.09910802775 | NC12: 0 | ND12: -0.3992015968 | NE12: -0.5988023952 | NF12: -0.8919722498 | NG12: -0.8910891089 | NH12: -0.8937437934 | NI12: -0.6012024048 | NJ12: -0.8056394763 | NK12: -1.306532663 | NL12: -1.691542289 | NM12: -1.689860835 | NN12: -1.881188119 | NO12: -1.590457256 | NP12: -1.503006012 | NQ12: -1.506024096 | NR12: -0.9 | NS12: -0.5994005994 | NT12: -0.2004008016 | NU12: 0.2016129032 | NV12: 0.8121827411 | NW12: 1.323828921 | NX12: 1.113360324 | NY12: 1.415571284 | NZ12: 1.109989909 | OA12: 0.7070707071 | OB12: 0.7121057986 | OC12: 0.9174311927 | OD12: 1.41271443 | OE12: 1.407035176 | OF12: 1.40562249 | OG12: 1.207243461 | OH12: 1.10775428 | OI12: 0.8040201005 | OJ12: 1.001001001 | OK12: 1.395812562 | OL12: 1.896207585 | OM12: 2.407221665
A13: Czech Republic | DF13: 10.92057762 | DG13: 9.710467706 | DH13: 9.388839681 | DI13: 9.202994276 | DJ13: 9.294169224 | DK13: 9.654871123 | DL13: 9.713790113 | DM13: 10.16365202 | DN13: 10.07031369 | DO13: 9.937803797 | DP13: 10.23776369 | DQ13: 10.06274098 | DR13: 9.49806546 | DS13: 10.10284311 | DT13: 10.10008065 | DU13: 10.78554577 | DV13: 10.61639885 | DW13: 10.98312216 | DX13: 10.20643037 | DY13: 9.000105099 | DZ13: 8.546168959 | EA13: 8.171206226 | EB13: 8.011583012 | EC13: 7.861936721 | ED13: 8.893093661 | EE13: 8.638497653 | EF13: 8.895131086 | EG13: 8.526413346 | EH13: 8.679593721 | EI13: 8.409506399 | EJ13: 9.406392694 | EK13: 9.589041096 | EL13: 8.868778281 | EM13: 8.723021583 | EN13: 8.579088472 | EO13: 8.622222222 | EP13: 7.384882711 | EQ13: 7.260155575 | ER13: 6.7927773 | ES13: 6.660973527 | ET13: 6.287170773 | EU13: 6.745362563 | EV13: 9.348914858 | EW13: 9.916666667 | EX13: 10.30756442 | EY13: 10.25641026 | EZ13: 10.12345679 | FA13: 9.983633388 | FB13: 13.10679612 | FC13: 13.37630943 | FD13: 13.44605475 | FE13: 13.1305044 | FF13: 13.02957634 | FG13: 12.00631912 | FH13: 10.38167939 | FI13: 9.39893859 | FJ13: 8.816880181 | FK13: 8.177044261 | FL13: 7.473841555 | FM13: 6.770833333 | FN13: 3.505007153 | FO13: 2.842928216 | FP13: 2.484031228 | FQ13: 2.476999292 | FR13: 2.333804809 | FS13: 2.256699577 | FT13: 1.037344398 | FU13: 1.318667306 | FV13: 1.246537396 | FW13: 1.386962552 | FX13: 1.877607789 | FY13: 2.578397213 | FZ13: 3.448045319 | GA13: 3.674243669 | GB13: 3.889633372 | GC13: 3.451950677 | GD13: 3.749643119 | GE13: 4.136936294 | GF13: 3.950295454 | GG13: 4.103071594 | GH13: 4.103071594 | GI13: 4.401575025 | GJ13: 4.262256444 | GK13: 3.988800749 | GL13: 4.227405248 | GM13: 4 | GN13: 4.072727273 | GO13: 4.661325564 | GP13: 5.014534884 | GQ13: 5.49132948 | GR13: 5.890804598 | GS13: 5.519713262 | GT13: 4.731182796 | GU13: 4.431736955 | GV13: 4.285714286 | GW13: 4.133998574 | GX13: 3.636363636 | GY13: 3.846153846 | GZ13: 3.703703704 | HA13: 3.131524008 | HB13: 2.491349481 | HC13: 1.164383562 | HD13: 0.6784260516 | HE13: 0.6114130435 | HF13: 0.8213552361 | HG13: 0.5475701574 | HH13: 0.4109589041 | HI13: 0.5475701574 | HJ13: -0.330634278 | HK13: -0.3367003367 | HL13: -0.4043126685 | HM13: -0.06747638327 | HN13: 0 | HO13: 0.2708192282 | HP13: -0.1347708895 | HQ13: -0.06752194463 | HR13: 0 | HS13: 0.340367597 | HT13: 1.02319236 | HU13: 1.021102791 | HV13: 2.295037574 | HW13: 2.22972973 | HX13: 2.50338295 | HY13: 2.295746117 | HZ13: 2.76839973 | IA13: 2.903443619 | IB13: 3.238866397 | IC13: 3.378378378 | ID13: 3.054989817 | IE13: 3.527815468 | IF13: 2.903443619 | IG13: 2.830188679 | IH13: 1.654533422 | II13: 1.718440185 | IJ13: 1.518151815 | IK13: 1.584158416 | IL13: 1.314060447 | IM13: 1.771653543 | IN13: 1.633986928 | IO13: 1.633986928 | IP13: 2.173913043 | IQ13: 2.55570118 | IR13: 2.427821522 | IS13: 2.162516383 | IT13: 2.9296875 | IU13: 2.794022092 | IV13: 2.795838752 | IW13: 2.794022092 | IX13: 3.112840467 | IY13: 2.7724049 | IZ13: 2.958199357 | JA13: 3.151125402 | JB13: 2.707930368 | JC13: 1.277955272 | JD13: 1.473414478 | JE13: 1.603592046 | JF13: 1.328273245 | JG13: 1.580278129 | JH13: 1.960784314 | JI13: 2.591656131 | JJ13: 2.452830189 | JK13: 2.509410289 | JL13: 2.435977514 | JM13: 2.556109726 | JN13: 2.950408035 | JO13: 4.03785489 | JP13: 5.113636364 | JQ13: 5.618686869 | JR13: 7.553058677 | JS13: 7.529558183 | JT13: 7.071960298 | JU13: 6.715958102 | JV13: 6.813996317 | JW13: 6.670746634 | JX13: 6.890243902 | JY13: 6.443768997 | JZ13: 6.585365854 | KA13: 6.003638569 | KB13: 4.444444444 | KC13: 3.64614465 | KD13: 2.205455601 | KE13: 1.967592593 | KF13: 2.259559676 | KG13: 1.847575058 | KH13: 1.379310345 | KI13: 1.204819277 | KJ13: 0.2281802624 | KK13: 0.1713306682 | KL13: 0 | KM13: -0.171624714 | KN13: 0.5175388154 | KO13: 0.9803921569 | KP13: 0.624645088 | KQ13: 0.5675368899 | KR13: 0.6798866856 | KS13: 1.077097506 | KT13: 1.133786848 | KU13: 1.133786848 | KV13: 1.935116676 | KW13: 1.824401368 | KX13: 1.887871854 | KY13: 1.891117479 | KZ13: 1.887871854 | LA13: 2.284408909 | LB13: 1.749435666 | LC13: 1.862302483 | LD13: 1.631963984 | LE13: 1.570386988 | LF13: 2.01793722 | LG13: 1.849775785 | LH13: 1.730876605 | LI13: 1.735722284 | LJ13: 1.852891634 | LK13: 2.305961755 | LL13: 2.52667041 | LM13: 2.400893356 | LN13: 3.54963949 | LO13: 3.656509695 | LP13: 3.765227021 | LQ13: 3.478741027 | LR13: 3.186813187 | LS13: 3.522289488 | LT13: 3.128430296 | LU13: 3.357182168 | LV13: 3.41786108 | LW13: 3.40846619 | LX13: 2.73822563 | LY13: 2.39912759 | LZ13: 1.874665238 | MA13: 1.763762694 | MB13: 1.654215582 | MC13: 1.760939168 | MD13: 1.277955272 | ME13: 1.541733121 | MF13: 1.383714742 | MG13: 1.277955272 | MH13: 1.012793177 | MI13: 0.903774588 | MJ13: 1.066098081 | MK13: 1.384451544 | ML13: 0.1577287066 | MM13: 0.262605042 | MN13: 0.2099737533 | MO13: 0.1048767698 | MP13: 0.4206098843 | MQ13: 0 | MR13: 0.5249343832 | MS13: 0.578338591 | MT13: 0.7387862797 | MU13: 0.7376185458 | MV13: 0.5801687764 | MW13: 0.0525210084 | MX13: 0.1049868766 | MY13: 0.05238344683 | MZ13: 0.1571503405 | NA13: 0.4714510215 | NB13: 0.7329842932 | NC13: 0.8376963351 | ND13: 0.4699738903 | NE13: 0.3136434919 | NF13: 0.3666841278 | NG13: 0.2092050209 | NH13: 0.1048767698 | NI13: 0.1049868766 | NJ13: 0.5768222339 | NK13: 0.4712041885 | NL13: 0.3138075314 | NM13: 0.5735140772 | NN13: 0.103950104 | NO13: 0.05192107996 | NP13: 0.4980079681 | NQ13: 0.5988023952 | NR13: 0.5 | NS13: 0.8 | NT13: 1.606425703 | NU13: 2.010050251 | NV13: 2.197802198 | NW13: 2.49500998 | NX13: 2.597402597 | NY13: 1.986097319 | NZ13: 2.388059701 | OA13: 2.286282306 | OB13: 2.477700694 | OC13: 2.48015873 | OD13: 2.686567164 | OE13: 2.876984127 | OF13: 2.56916996 | OG13: 2.36453202 | OH13: 2.150537634 | OI13: 1.752677702 | OJ13: 1.655306719 | OK13: 1.947419669 | OL13: 2.235179786 | OM13: 2.623906706
A14: Dominican Republic | B14: 46.12198795 | C14: 50.76904297 | D14: 51.44097432 | E14: 50.67078238 | F14: 52.85077428 | G14: 48.29602969 | H14: 48.04574728 | I14: 47.56272798 | J14: 43.56456552 | K14: 41.15340968 | L14: 38.67 | M14: 30.85282741 | N14: 22.50279138 | O14: 14.10412112 | P14: 10.79703798 | Q14: 9.329446064 | R14: 5.656612173 | S14: 4.520288206 | T14: 3.990099752 | U14: 4.029962547 | V14: 4.787820843 | W14: 5.722847537 | X14: 4.809980529 | Y14: 4.39893018 | Z14: 3.26719484 | AA14: 4.995387781 | AB14: 7.402084082 | AC14: 9.607207207 | AD14: 12.02963824 | AE14: 15.78259923 | AF14: 17.26649838 | AG14: 17.27390553 | AH14: 15.896968 | AI14: 16.20463187 | AJ14: 19.56102931 | AK14: 22.6724196 | AL14: 28.31149433 | AM14: 31.18875448 | AN14: 33.47607896 | AO14: 32.22645976 | AP14: 33.38736869 | AQ14: 36.86387566 | AR14: 44.58453779 | AS14: 51.63013446 | AT14: 54.31478229 | AU14: 57.60604438 | AV14: 59.00903493 | AW14: 55.79797758 | AX14: 52.07153818 | AY14: 48.87698331 | AZ14: 46.6713455 | BA14: 48.45094236 | BB14: 49.74964756 | BC14: 44.57825808 | BD14: 36.98315467 | BE14: 33.56413994 | BF14: 34.23593125 | BG14: 36.10901404 | BH14: 33.1692664 | BI14: 34.59381283 | BJ14: 35.00347947 | BK14: 35.15916955 | BL14: 35.64153394 | BM14: 36.55031489 | BN14: 35.31244928 | BO14: 35.23897001 | BP14: 39.25222036 | BQ14: 51.6416553 | BR14: 60.42799509 | BS14: 67.15014699 | BT14: 75.96477878 | BU14: 79.91927875 | BV14: 77.13917526 | BW14: 82.49660787 | BX14: 81.40402157 | BY14: 74.06226235 | BZ14: 69.71427201 | CA14: 66.06712101 | CB14: 58.66152268 | CC14: 44.38113517 | CD14: 33.33697791 | CE14: 21.76170961 | CF14: 13.39346389 | CG14: 7.902403496 | CH14: 7.800087298 | CI14: 2.374973697 | CJ14: 0.7681409045 | CK14: 2.765210773 | CL14: 3.529727743 | CM14: 6.119110409 | CN14: 5.200500372 | CO14: 4.616577585 | CP14: 3.979773131 | CQ14: 4.222818755 | CR14: 4.68264778 | CS14: 5.165035437 | CT14: 6.050667422 | CU14: 7.569404478 | CV14: 7.530498311 | CW14: 6.581636152 | CX14: 6.463769303 | CY14: 4.31772273 | CZ14: 5.388325517 | DA14: 4.37182338 | DB14: 4.246733787 | DC14: 4.164160761 | DD14: 3.917614302 | DE14: 2.788154196 | DF14: 2.620459694 | DG14: 3.838118774 | DH14: 5.578914983 | DI14: 7.203335306 | DJ14: 7.94890539 | DK14: 8.19139585 | DL14: 7.862576065 | DM14: 9.139559952 | DN14: 9.958014449 | DO14: 10.78058516 | DP14: 11.43497477 | DQ14: 14.31443808 | DR14: 15.26794241 | DS14: 14.46727596 | DT14: 14.2192812 | DU14: 12.75686576 | DV14: 12.08135819 | DW14: 11.78541571 | DX14: 12.31870431 | DY14: 12.28997699 | DZ14: 12.52594283 | EA14: 11.99410832 | EB14: 12.0806274 | EC14: 9.216146829 | ED14: 7.477620933 | EE14: 7.193381061 | EF14: 6.473833594 | EG14: 6.753246753 | EH14: 6.542293831 | EI14: 6.236833235 | EJ14: 5.810826366 | EK14: 4.801374186 | EL14: 3.767259388 | EM14: 3.255569269 | EN14: 2.986346412 | EO14: 3.949145252 | EP14: 6.949366328 | EQ14: 6.681663667 | ER14: 6.680244806 | ES14: 7.470782976 | ET14: 7.426973894 | EU14: 7.524514907 | EV14: 9.284386249 | EW14: 9.779914889 | EX14: 9.873124362 | EY14: 9.974133877 | EZ14: 9.433190893 | FA14: 8.36805589 | FB14: 5.507480477 | FC14: 5.571077116 | FD14: 5.254317044 | FE14: 4.228668316 | FF14: 4.493243916 | FG14: 4.587048827 | FH14: 3.284087156 | FI14: 2.891382066 | FJ14: 2.915077534 | FK14: 4.835693692 | FL14: 6.58007516 | FM14: 7.81496523 | FN14: 7.14668381 | FO14: 6.926128444 | FP14: 7.656786942 | FQ14: 8.06364907 | FR14: 7.535859559 | FS14: 6.389095943 | FT14: 5.46031746 | FU14: 5.51097973 | FV14: 5.244388504 | FW14: 6.599609976 | FX14: 6.188892249 | FY14: 5.102954342 | FZ14: 5.99 | GA14: 6.327083124 | GB14: 5.725685786 | GC14: 5.521838623 | GD14: 5.653991638 | GE14: 7.276548894 | GF14: 8.037326911 | GG14: 8.965379228 | GH14: 12.70679689 | GI14: 9.175813595 | GJ14: 8.144280968 | GK14: 9.019496498 | GL14: 11.39730163 | GM14: 11.49566201 | GN14: 11.07651665 | GO14: 11.69149538 | GP14: 11.89937818 | GQ14: 10.188468 | GR14: 9.426952726 | GS14: 8.98989899 | GT14: 5.906799894 | GU14: 5.891172061 | GV14: 5.283946283 | GW14: 4.384061116 | GX14: 2.413822309 | GY14: 2.317516705 | GZ14: 3.924233415 | HA14: 3.984467331 | HB14: 3.342594931 | HC14: 4.047417443 | HD14: 4.710575454 | HE14: 4.869828966 | HF14: 5.385321867 | HG14: 8.178562505 | HH14: 8.803668195 | HI14: 10.51230872 | HJ14: 13.50479656 | HK14: 17.97139787 | HL14: 18.7086228 | HM14: 18.24971586 | HN14: 20.0912498 | HO14: 26.11490885 | HP14: 30.20993759 | HQ14: 33.01197076 | HR14: 33.14054825 | HS14: 32.73539149 | HT14: 40.05057084 | HU14: 42.65502709 | HV14: 50.86338798 | HW14: 61.41826081 | HX14: 62.32442853 | HY14: 62.98228752 | HZ14: 65.2917232 | IA14: 60.34716397 | IB14: 55.63994024 | IC14: 51.83619232 | ID14: 47.89050878 | IE14: 46.09361406 | IF14: 35.52905132 | IG14: 28.74024056 | IH14: 18.78682507 | II14: 6.815419344 | IJ14: 4.292500848 | IK14: 3.896377422 | IL14: 0.9317025119 | IM14: -0.9819308624 | IN14: -0.9999200064 | IO14: -0.2187922667 | IP14: 4.216794753 | IQ14: 3.974114658 | IR14: 4.832068464 | IS14: 7.43730536 | IT14: 8.249308831 | IU14: 8.075266195 | IV14: 8.256059867 | IW14: 8.558686398 | IX14: 9.50754341 | IY14: 10.27433448 | IZ14: 10.60116354 | JA14: 9.348961448 | JB14: 4.729547122 | JC14: 3.684753141 | JD14: 5.233162617 | JE14: 5.000190701 | JF14: 4.364319249 | JG14: 4.809536344 | JH14: 5.537606131 | JI14: 5.766357932 | JJ14: 6.283189127 | JK14: 5.907934987 | JL14: 5.238164816 | JM14: 4.36415342 | JN14: 6.812652068 | JO14: 7.210724019 | JP14: 8.445550351 | JQ14: 8.877588086 | JR14: 9.047396264 | JS14: 8.678960964 | JT14: 9.671792681 | JU14: 10.83333333 | JV14: 10.03458999 | JW14: 12.20420379 | JX14: 13.72787227 | JY14: 14.56768559 | JZ14: 14.5785877 | KA14: 12.84350096 | KB14: 7.214198947 | KC14: 4.517248282 | KD14: 3.679746543 | KE14: 4.030900267 | KF14: 2.440845208 | KG14: 0.6945329425 | KH14: 0.473121011 | KI14: 0.2574202152 | KJ14: -1.220814894 | KK14: -0.469583778 | KL14: -1.569371649 | KM14: -0.3013606892 | KN14: 4.179517845 | KO14: 5.764811032 | KP14: 6.849742429 | KQ14: 6.680619561 | KR14: 7.429571663 | KS14: 7.655291317 | KT14: 7.899928921 | KU14: 5.442595756 | KV14: 5.674455862 | KW14: 5.007384184 | KX14: 5.699634822 | KY14: 6.166945353 | KZ14: 5.374061468 | LA14: 6.239069329 | LB14: 6.166107383 | LC14: 7.287958115 | LD14: 7.610049834 | LE14: 8.162631906 | LF14: 8.031755851 | LG14: 9.315294847 | LH14: 9.870317003 | LI14: 10.17767279 | LJ14: 9.569914391 | LK14: 8.868191942 | LL14: 8.628519528 | LM14: 7.76 | LN14: 6.904385618 | LO14: 6.002342378 | LP14: 4.939700917 | LQ14: 4.045911047 | LR14: 3.540752052 | LS14: 2.711384034 | LT14: 1.639344262 | LU14: 2.16256525 | LV14: 2.604408892 | LW14: 2.817556258 | LX14: 3.372352285 | LY14: 3.906829993 | LZ14: 4.758384921 | MA14: 4.732529233 | MB14: 4.973797922 | MC14: 4.899797757 | MD14: 4.986634713 | ME14: 4.801324503 | MF14: 5.668202765 | MG14: 5.301094891 | MH14: 5.13099447 | MI14: 4.739079316 | MJ14: 4.143075402 | MK14: 3.876038225 | ML14: 2.822367261 | MM14: 2.83956044 | MN14: 2.986512524 | MO14: 3.487862589 | MP14: 3.696224759 | MQ14: 3.677374057 | MR14: 3.410379416 | MS14: 3.127978511 | MT14: 2.828317668 | MU14: 2.884034194 | MV14: 2.675181222 | MW14: 1.581979194 | MX14: 1.158003088 | MY14: 1.017267909 | MZ14: 0.6378093375 | NA14: -0.04234058769 | NB14: 0.2286004572 | NC14: 0.6179632608 | ND14: 0.4976383266 | NE14: 0.4284994119 | NF14: 0.394129979 | NG14: 1.225346202 | NH14: 1.538073626 | NI14: 2.344477359 | NJ14: 2.526922751 | NK14: 1.743251248 | NL14: 1.588642893 | NM14: 1.753642833 | NN14: 1.714816692 | NO14: 1.90980986 | NP14: 1.983193277 | NQ14: 1.075 | NR14: 1.116666667 | NS14: 0.5867768595 | NT14: 0.8774108104 | NU14: 1.695335759 | NV14: 2.332313291 | NW14: 3.34359145 | NX14: 3.144235568 | NY14: 3.513446008 | NZ14: 3.106054314 | OA14: 2.550978288 | OB14: 2.537903757 | OC14: 3.182455272 | OD14: 3.7992418 | OE14: 3.48369074 | OF14: 4.135554279 | OG14: 4.204277466 | OH14: 3.863250626 | OI14: 3.315895372 | OJ14: 3.911290323 | OK14: 4.045684871 | OL14: 4.470398711 | OM14: 4.628884238
A15: Egypt | B15: 19.76149915 | C15: 14.90066225 | D15: 13.36553945 | E15: 9.87460815 | F15: 12.57861635 | G15: -2.877697842 | H15: 14.15384615 | I15: 14.96183206 | J15: 15.83850932 | K15: 13.57466063 | L15: 9.867452135 | M15: 11.40350877 | N15: 18.20768137 | O15: 19.02017291 | P15: 15.625 | Q15: 20.11412268 | R15: 19.83240223 | S15: 35.11111111 | T15: 21.8328841 | U15: 21.3811421 | V15: 26.54155496 | W15: 29.61487384 | X15: 30.56300268 | Y15: 27.95275591 | Z15: 20.81829122 | AA15: 23.60774818 | AB15: 26.9041769 | AC15: 25.53444181 | AD15: 23.07692308 | AE15: 25.10964912 | AF15: 19.91150442 | AG15: 20.4595186 | AH15: 14.19491525 | AI15: 12.90983607 | AJ15: 13.6550308 | AK15: 13.53846154 | AL15: 15.03984064 | AM15: 13.80999021 | AN15: 13.55275895 | AO15: 19.01608325 | AP15: 17.32954545 | AQ15: 9.991235758 | AR15: 15.86715867 | AS15: 17.80199818 | AT15: 22.72727273 | AU15: 20.68965517 | AV15: 23.84823848 | AW15: 21.86088528 | AX15: 16.36363636 | AY15: 19.96557659 | AZ15: 22.84739983 | BA15: 24.96025437 | BB15: 17.99838579 | BC15: 16.65338645 | BD15: 19.18789809 | BE15: 17.34772552 | BF15: 17.83824641 | BG15: 25.4887218 | BH15: 26.62290299 | BI15: 28.46553002 | BJ15: 26.33928571 | BK15: 21.44906743 | BL15: 18.32061069 | BM15: 10.49618321 | BN15: 23.11901505 | BO15: 21.37978142 | BP15: 21.64328657 | BQ15: 20.03942181 | BR15: 17.96023092 | BS15: 11.02456561 | BT15: 7.546082949 | BU15: 7.212925563 | BV15: 10.9540636 | BW15: 14.94388659 | BX15: 15.07331378 | BY15: 16.69545193 | BZ15: 14.61111111 | CA15: 20.70906021 | CB15: 21.30697419 | CC15: 20.36124795 | CD15: 25.01359434 | CE15: 25.90393956 | CF15: 24.63845742 | CG15: 25.78040904 | CH15: 26.11464968 | CI15: 21.32579651 | CJ15: 20.99898063 | CK15: 18.30291071 | CL15: 16.67474552 | CM15: 9.743589744 | CN15: 9.506564056 | CO15: 9.595270578 | CP15: 8.351457155 | CQ15: 8.701243035 | CR15: 9.282337774 | CS15: 9.285408644 | CT15: 10.43771044 | CU15: 12.4523507 | CV15: 12.80539174 | CW15: 13.13594662 | CX15: 13.58537599 | CY15: 14.95327103 | CZ15: 11.94708557 | DA15: 14.02489627 | DB15: 11.24046568 | DC15: 10.05520505 | DD15: 11.08926465 | DE15: 9.749412686 | DF15: 7.355182927 | DG15: 7.344632768 | DH15: 7.393577296 | DI15: 6.892738666 | DJ15: 6.254572056 | DK15: 6.393200296 | DL15: 7.717872969 | DM15: 7.168850073 | DN15: 8.191988452 | DO15: 9.458975278 | DP15: 11.39823009 | DQ15: 11.95148056 | DR15: 17.82037629 | DS15: 17.89473684 | DT15: 16.96801113 | DU15: 16.06896552 | DV15: 16.35111876 | DW15: 17.33240709 | DX15: 15.94103531 | DY15: 16.74023769 | DZ15: 15.01000667 | EA15: 13.94435352 | EB15: 12.23387353 | EC15: 13.12938177 | ED15: 7.110575475 | EE15: 6.339285714 | EF15: 6.658739596 | EG15: 7.42721331 | EH15: 8.047337278 | EI15: 8.28892836 | EJ15: 9.25487877 | EK15: 7.591623037 | EL15: 7.77262181 | EM15: 6.95202528 | EN15: 5.719139298 | EO15: 5.408450704 | EP15: 5.682137834 | EQ15: 5.401623286 | ER15: 5.546265329 | ES15: 5.365044248 | ET15: 4.874041621 | EU15: 4.756697649 | EV15: 3.614429566 | EW15: 3.784406527 | EX15: 3.683922608 | EY15: 3.95598368 | EZ15: 3.929118838 | FA15: 3.985711449 | FB15: 3.755656261 | FC15: 3.784706073 | FD15: 3.392836389 | FE15: 3.59009945 | FF15: 3.866288878 | FG15: 4.084313387 | FH15: 4.268846503 | FI15: 4.347826087 | FJ15: 4.693140794 | FK15: 4.402515723 | FL15: 3.76344086 | FM15: 3.574620197 | FN15: 3.835860839 | FO15: 3.736654804 | FP15: 3.818827709 | FQ15: 3.259911894 | FR15: 2.797202797 | FS15: 2.877070619 | FT15: 2.87456446 | FU15: 2.864583333 | FV15: 2.413793103 | FW15: 2.323580034 | FX15: 3.022452504 | FY15: 3.192407248 | FZ15: 2.920962199 | GA15: 3.001715266 | GB15: 2.994011976 | GC15: 2.901023891 | GD15: 2.806122449 | GE15: 2.542372881 | GF15: 2.794242168 | GG15: 2.616033755 | GH15: 2.525252525 | GI15: 2.52312868 | GJ15: 2.347024308 | GK15: 2.257525084 | GL15: 2.587646077 | GM15: 2.331390508 | GN15: 2.159468439 | GO15: 2.32172471 | GP15: 2.150537634 | GQ15: 2.231404959 | GR15: 2.224052718 | GS15: 2.138157895 | GT15: 2.134646962 | GU15: 2.296964725 | GV15: 2.211302211 | GW15: 2.452984464 | GX15: 2.44100895 | GY15: 2.60374288 | GZ15: 2.764227642 | HA15: 2.431118314 | HB15: 2.753036437 | HC15: 2.748585287 | HD15: 2.578565673 | HE15: 2.657004831 | HF15: 2.974276527 | HG15: 2.806736167 | HH15: 3.125 | HI15: 2.952913009 | HJ15: 2.938840349 | HK15: 3.092783505 | HL15: 3.560126582 | HM15: 3.955696203 | HN15: 3.940110323 | HO15: 4.012588513 | HP15: 4.399057345 | HQ15: 4.864300203 | HR15: 5.088629573 | HS15: 5.721596105 | HT15: 6.023028695 | HU15: 6.398155573 | HV15: 7.93881705 | HW15: 9.80994695 | HX15: 10.89295593 | HY15: 12.21480869 | HZ15: 11.87629082 | IA15: 11.70907455 | IB15: 11.98275862 | IC15: 11.13967438 | ID15: 11.91489362 | IE15: 12.59509721 | IF15: 11.67086482 | IG15: 11.35225376 | IH15: 9.5004095 | II15: 6.902086677 | IJ15: 5.682715075 | IK15: 4.73970474 | IL15: 5.046583851 | IM15: 4.732350659 | IN15: 4.311008468 | IO15: 4.703161141 | IP15: 3.726235741 | IQ15: 3.078078078 | IR15: 3.383458647 | IS15: 3.148425787 | IT15: 3.440538519 | IU15: 3.978978979 | IV15: 3.659447349 | IW15: 4.376854599 | IX15: 5.395417591 | IY15: 7.259259259 | IZ15: 8.413284133 | JA15: 8.910162003 | JB15: 9.530791789 | JC15: 11.79898034 | JD15: 12.14545455 | JE15: 12.42732558 | JF15: 12.28057696 | JG15: 12.5669127 | JH15: 12.77111689 | JI15: 11.46899667 | JJ15: 9.874890796 | JK15: 8.420001624 | JL15: 7.610041264 | JM15: 8.037373248 | JN15: 9.135368026 | JO15: 7.333136318 | JP15: 6.644485196 | JQ15: 6.701313719 | JR15: 10.5 | JS15: 12.05179283 | JT15: 14.38492063 | JU15: 16.43564356 | JV15: 19.72249752 | JW15: 20.17804154 | JX15: 22.00392927 | JY15: 23.61516035 | JZ15: 21.52380952 | KA15: 20.16965127 | KB15: 20.30217186 | KC15: 18.34430856 | KD15: 14.38914027 | KE15: 13.51111111 | KF15: 12.14223764 | KG15: 11.81972789 | KH15: 10.18211921 | KI15: 9.958847737 | KJ15: 9.98389694 | KK15: 10.07150449 | KL15: 11.52894068 | KM15: 13.08208445 | KN15: 13.05801355 | KO15: 13.58181396 | KP15: 13.72500984 | KQ15: 12.79241132 | KR15: 12.17490189 | KS15: 10.95409781 | KT15: 10.16031606 | KU15: 10.1784239 | KV15: 10.49475333 | KW15: 10.88295688 | KX15: 10.90909091 | KY15: 10.9670987 | KZ15: 10.17964072 | LA15: 10.36217304 | LB15: 10.8 | LC15: 10.67864271 | LD15: 11.39742319 | LE15: 12.1182266 | LF15: 11.76470588 | LG15: 11.81640625 | LH15: 10.38095238 | LI15: 8.518518519 | LJ15: 8.196721311 | LK15: 7.097933513 | LL15: 9.057971014 | LM15: 9.480401094 | LN15: 8.57400722 | LO15: 9.197475203 | LP15: 9.074733096 | LQ15: 8.787346221 | LR15: 8.333333333 | LS15: 7.248908297 | LT15: 6.384814495 | LU15: 6.399317406 | LV15: 6.228956229 | LW15: 6.711409396 | LX15: 4.318936877 | LY15: 4.662781016 | LZ15: 6.292601829 | MA15: 8.224607762 | MB15: 7.585644372 | MC15: 8.109854604 | MD15: 8.20242915 | ME15: 9.771986971 | MF15: 10.3000811 | MG15: 9.037690457 | MH15: 10.17432647 | MI15: 10.47169811 | MJ15: 12.93789809 | MK15: 11.69451074 | ML15: 11.36310315 | MM15: 9.766519152 | MN15: 9.818043973 | MO15: 8.868798565 | MP15: 8.239167852 | MQ15: 8.204747774 | MR15: 11.01470588 | MS15: 12.2527028 | MT15: 11.11910242 | MU15: 11.83461429 | MV15: 9.0870638 | MW15: 10.12820513 | MX15: 9.655898876 | MY15: 10.55887669 | MZ15: 11.50155333 | NA15: 10.97385217 | NB15: 13.10840708 | NC15: 11.40819964 | ND15: 8.35872301 | NE15: 7.908012842 | NF15: 9.210355987 | NG15: 9.704104359 | NH15: 11.0895696 | NI15: 11.04643642 | NJ15: 10.08645533 | NK15: 9.148066646 | NL15: 9.033496378 | NM15: 10.26592455 | NN15: 12.31051345 | NO15: 13.96923077 | NP15: 13.99755501 | NQ15: 15.42197936 | NR15: 14.10788382 | NS15: 13.57308585 | NT15: 19.42990111 | NU15: 23.29644729 | NV15: 28.1559046 | NW15: 30.24193548 | NX15: 30.8915389 | NY15: 31.46382501 | NZ15: 29.72237343 | OA15: 29.75161987 | OB15: 32.97587131 | OC15: 31.93056286 | OD15: 31.58441558 | OE15: 30.79673136 | OF15: 25.96200682 | OG15: 21.87057156 | OH15: 17.06763504 | OI15: 14.37417072 | OJ15: 13.31887202 | OK15: 13.13993174 | OL15: 11.45614771 | OM15: 14.35705368
A16: Ghana | B16: 7.728048549 | C16: 4.110323465 | D16: 3.352698055 | E16: 1.722827464 | F16: 1.139514251 | G16: 6.782768103 | H16: 10.18167716 | I16: 17.0210728 | J16: 17.43763077 | K16: 18.26028147 | L16: 20.46678057 | M16: 19.49875304 | N16: 18.7454156 | O16: 19.56857584 | P16: 20.29139517 | Q16: 21.60232462 | R16: 23.33671427 | S16: 23.14645923 | T16: 23.87502031 | U16: 23.93386265 | V16: 23.83641248 | W16: 28.94256692 | X16: 32.72143431 | Y16: 33.33505102 | Z16: 33.43546155 | AA16: 34.38053309 | AB16: 37.49157271 | AC16: 40.99815662 | AD16: 42.34308321 | AE16: 43.87157202 | AF16: 45.02972548 | AG16: 45.54080532 | AH16: 45.90730001 | AI16: 39.30600435 | AJ16: 35.29779427 | AK16: 34.16425121 | AL16: 33.91600622 | AM16: 34.13813365 | AN16: 33.15917622 | AO16: 32.48595778 | AP16: 33.55870275 | AQ16: 33.35352006 | AR16: 31.44949815 | AS16: 30.47542695 | AT16: 30.03276798 | AU16: 29.9181322 | AV16: 28.74301468 | AW16: 26.57064669 | AX16: 26.2818031 | AY16: 25.52962727 | AZ16: 24.80794382 | BA16: 24.37898225 | BB16: 23.27351377 | BC16: 22.76453224 | BD16: 23.53534659 | BE16: 23.67139677 | BF16: 24.40296331 | BG16: 25.61089458 | BH16: 28.05088375 | BI16: 30.45813514 | BJ16: 33.04280224 | BK16: 35.94624031 | BL16: 36.06877607 | BM16: 36.00309519 | BN16: 35.6053565 | BO16: 36.41786352 | BP16: 39.00881671 | BQ16: 40.34628869 | BR16: 41.3590667 | BS16: 39.32237716 | BT16: 37.24316849 | BU16: 35.90157357 | BV16: 30.38006979 | BW16: 26.61418915 | BX16: 24.88148824 | BY16: 22.29440191 | BZ16: 19.77270343 | CA16: 17.29916616 | CB16: 15.28221015 | CC16: 14.60461015 | CD16: 13.22196717 | CE16: 13.95097621 | CF16: 12.89090286 | CG16: 10.26103477 | CH16: 8.686567729 | CI16: 7.724583638 | CJ16: 7.323118927 | CK16: 8.211086704 | CL16: 8.871462188 | CM16: 8.369743625 | CN16: 10.23211638 | CO16: 11.69264125 | CP16: 11.48221066 | CQ16: 11.71513839 | CR16: 12.74212369 | CS16: 13.33022877 | CT16: 21.45570282 | CU16: 22.96909662 | CV16: 23.27475593 | CW16: 23.04217687 | CX16: 23.93134889 | CY16: 26.04607754 | CZ16: 25.1812546 | DA16: 25.21916093 | DB16: 26.88426364 | DC16: 26.49363574 | DD16: 26.6119851 | DE16: 27.65576044 | DF16: 22.80986993 | DG16: 21.96169364 | DH16: 21.53233471 | DI16: 21.05267814 | DJ16: 20.99363829 | DK16: 20.89325531 | DL16: 22.31921769 | DM16: 23.68629412 | DN16: 26.10082432 | DO16: 29.44233485 | DP16: 31.70253203 | DQ16: 34.17936451 | DR16: 35.58134102 | DS16: 38.38759478 | DT16: 43.58964811 | DU16: 49.92984713 | DV16: 56.11989413 | DW16: 61.85209813 | DX16: 67.20192143 | DY16: 69.93699673 | DZ16: 69.80158991 | EA16: 69.1390292 | EB16: 70.23864941 | EC16: 70.81684059 | ED16: 69.19586445 | EE16: 68.03319228 | EF16: 64.78566427 | EG16: 60.26465858 | EH16: 54.24074413 | EI16: 48.4214851 | EJ16: 42.64431266 | EK16: 39.21370368 | EL16: 36.51312608 | EM16: 34.29101019 | EN16: 33.16865976 | EO16: 32.66273436 | EP16: 31.50863971 | EQ16: 30.55728162 | ER16: 29.21643611 | ES16: 29.09082615 | ET16: 29.57384549 | EU16: 29.04762599 | EV16: 29.17050293 | EW16: 28.21926002 | EX16: 23.12383382 | EY16: 20.97276761 | EZ16: 18.38670874 | FA16: 16.11903754 | FB16: 15.45884637 | FC16: 15.31570075 | FD16: 15.92000313 | FE16: 18.61453617 | FF16: 18.50171403 | FG16: 17.44911877 | FH16: 14.41231212 | FI16: 14.28559236 | FJ16: 17.38 | FK16: 17.13534291 | FL16: 16.16435604 | FM16: 15.75247525 | FN16: 15.32634033 | FO16: 15.04199302 | FP16: 13.73801917 | FQ16: 10.23295945 | FR16: 9.396537233 | FS16: 10.2555537 | FT16: 12.68606225 | FU16: 12.0070928 | FV16: 11.7822457 | FW16: 12.61658031 | FX16: 12.80809479 | FY16: 13.78838423 | FZ16: 14.28330807 | GA16: 14.93724879 | GB16: 15.56982343 | GC16: 17.50939261 | GD16: 18.72311002 | GE16: 19.84547796 | GF16: 22.06544581 | GG16: 26.6038447 | GH16: 32.29936743 | GI16: 37.3821026 | GJ16: 40.07206378 | GK16: 40.53972788 | GL16: 40.92114959 | GM16: 40.13702541 | GN16: 41.94444444 | GO16: 39.49243989 | GP16: 37.9214392 | GQ16: 36.83478701 | GR16: 34.89301525 | GS16: 32.02334167 | GT16: 28.30808226 | GU16: 25.60281313 | GV16: 23.67686498 | GW16: 21.29332478 | GX16: 19.86612979 | GY16: 18.32858016 | GZ16: 16.02250489 | HA16: 14.88874033 | HB16: 14.33866654 | HC16: 13.6812933 | HD16: 13.48739687 | HE16: 13.12917193 | HF16: 12.87657702 | HG16: 13.19379638 | HH16: 13.98858256 | HI16: 15.16955506 | HJ16: 16.25076346 | HK16: 29.36087799 | HL16: 29.87560616 | HM16: 29.95843724 | HN16: 29.81246666 | HO16: 29.55062571 | HP16: 28.99429673 | HQ16: 27.67212853 | HR16: 26.75311245 | HS16: 24.55637563 | HT16: 23.76349095 | HU16: 23.55936746 | HV16: 22.40777573 | HW16: 11.28189773 | HX16: 10.51948052 | HY16: 11.18075988 | HZ16: 11.22526396 | IA16: 11.94919241 | IB16: 12.36728212 | IC16: 12.88720959 | ID16: 12.58355038 | IE16: 12.44365997 | IF16: 12.29963299 | IG16: 11.77874187 | IH16: 11.60402232 | II16: 14.03073427 | IJ16: 16.70387779 | IK16: 16.56311126 | IL16: 16.33082279 | IM16: 15.74730354 | IN16: 14.85771288 | IO16: 14.77690797 | IP16: 14.97895588 | IQ16: 15.44779257 | IR16: 15.30726257 | IS16: 14.83740401 | IT16: 15.88783633 | IU16: 12.4521256 | IV16: 9.565473054 | IW16: 8.768897005 | IX16: 9.107365678 | IY16: 9.217001974 | IZ16: 10.67948626 | JA16: 10.50727418 | JB16: 11.12805269 | JC16: 11.16564296 | JD16: 11.41292746 | JE16: 11.69141 | JF16: 10.89108911 | JG16: 10.41600508 | JH16: 10.19088349 | JI16: 10.50164813 | JJ16: 11.02017994 | JK16: 10.6851796 | JL16: 10.13854527 | JM16: 10.41140651 | JN16: 10.19114588 | JO16: 10.14428083 | JP16: 11.39684107 | JQ16: 12.74716648 | JR16: 12.81055901 | JS16: 13.21062218 | JT16: 13.78739114 | JU16: 15.29247262 | JV16: 16.88109519 | JW16: 18.41196255 | JX16: 18.31169415 | JY16: 18.09703166 | JZ16: 17.89052669 | KA16: 17.29462075 | KB16: 17.43985112 | KC16: 18.13394839 | KD16: 19.85547144 | KE16: 20.33195021 | KF16: 20.5274323 | KG16: 20.56112549 | KH16: 20.05640865 | KI16: 20.74233294 | KJ16: 20.49743687 | KK16: 19.64841674 | KL16: 18.36999199 | KM16: 18.03737959 | KN16: 16.91756272 | KO16: 15.97657113 | KP16: 14.78251507 | KQ16: 14.2364532 | KR16: 13.31791828 | KS16: 11.65917779 | KT16: 10.67932655 | KU16: 9.520933338 | KV16: 9.444426937 | KW16: 9.437375052 | KX16: 9.384258663 | KY16: 9.383229834 | KZ16: 9.074187615 | LA16: 8.57605692 | LB16: 9.079823656 | LC16: 9.163432514 | LD16: 9.13354652 | LE16: 9.018288838 | LF16: 8.903039415 | LG16: 8.594566353 | LH16: 8.407716671 | LI16: 8.411865341 | LJ16: 8.396631926 | LK16: 8.557500817 | LL16: 8.547084406 | LM16: 8.580288447 | LN16: 8.731045948 | LO16: 8.636889478 | LP16: 8.776580901 | LQ16: 9.112445595 | LR16: 9.336509569 | LS16: 9.440568786 | LT16: 9.543160691 | LU16: 9.460254627 | LV16: 9.432886088 | LW16: 9.243743497 | LX16: 9.307713273 | LY16: 8.839853432 | LZ16: 12.12031081 | MA16: 11.50056058 | MB16: 10.64834911 | MC16: 10.59962678 | MD16: 9.254743336 | ME16: 9.43187935 | MF16: 9.996776827 | MG16: 10.07084178 | MH16: 11.00993605 | MI16: 14.60570496 | MJ16: 14.91035449 | MK16: 15.26602388 | ML16: 13.8028169 | MM16: 14.04651163 | MN16: 14.53703704 | MO16: 14.67639015 | MP16: 14.84162896 | MQ16: 14.97326203 | MR16: 15.31690141 | MS16: 15.86879433 | MT16: 16.51785714 | MU16: 16.94323144 | MV16: 17.07105719 | MW16: 16.98113208 | MX16: 16.41914191 | MY16: 16.47634584 | MZ16: 16.65319321 | NA16: 16.77265501 | NB16: 16.94247439 | NC16: 17.05426357 | ND16: 17.9389313 | NE16: 17.29150727 | NF16: 17.31800766 | NG16: 17.40104556 | NH16: 17.61658031 | NI16: 17.6686217 | NJ16: 19.06449327 | NK16: 18.48739496 | NL16: 19.22148302 | NM16: 18.73267529 | NN16: 18.86792453 | NO16: 18.41059603 | NP16: 16.71713203 | NQ16: 16.86004159 | NR16: 17.21409067 | NS16: 15.76514436 | NT16: 15.52018371 | NU16: 15.36193853 | NV16: 13.34817059 | NW16: 13.24226607 | NX16: 12.77582793 | NY16: 13.03968678 | NZ16: 12.57741204 | OA16: 12.1017284 | OB16: 11.85508638 | OC16: 12.33854473 | OD16: 12.17253121 | OE16: 11.64316504 | OF16: 11.74252125 | OG16: 11.82125821 | OH16: 10.34959496 | OI16: 10.58163666 | OJ16: 10.36132643 | OK16: 9.554635049 | OL16: 9.805249507 | OM16: 9.959481038
